Workbook

Sheet Recap Sheet
A1: South Carolina School Food Service Purchasing Alliance, Inc
A2: School Food Authority: | B2: WILLIAMSBURG COUNTY SCHOOLS
A3: Offeror Name:
A4: Firm Fixed Fee | B4: $0.00
A5: Bid Recap
A6: Categories | B6: Subtotals
A7: Beef | B7: =Beef!L100 -> $30,144.53
A8: Chicken | B8: =Chicken!L255 -> $34,398.47
A9: Turkey | B9: =Turkey!L60 -> $11,008.20
A10: Pork | B10: =Pork!L50 -> $21,587.32
A11: Fish | B11: =Fish!L49 -> $4,790.80
A12: Pizza | B12: ='Pizza '!L163 -> $14,265.26
A13: Frozen Entrees | B13: ='Frozen Entrees'!L105 -> 0
A14: Franks & Corn Dogs | B14: ='Franks & Corn Dogs'!L55 -> $15,330.10
A15: Dairy & Egg | B15: ='Dairy & Egg'!L151 -> $15,063.64
A16: Frozen Potato | B16: ='Frozen Potato '!L94 -> $26,082.08
A17: Frozen Fruit & Juice | B17: ='Frozen Fruit & Juice'!L110 -> $33,810.38
A18: Shelf-stable Fruit& Juice | B18: ='Shelf-stable Fruit& Juice'!L104 -> $567.00
A19: Frozen Vegetables | B19: ='Frozen Vegetables'!L67 -> 0
A20: Shelf-stable Vegetables | B20: ='Shelf-stable Vegetables'!L120 -> $10,125.40
A21: Breakfast Products | B21: ='Breakfast Products'!L271 -> $2,070.80
A22: Groceries | B22: =Groceries!L224 -> 0
A23: Beverages | B23: =Beverages!L64 -> 0
A24: Spices- Flavorings | B24: ='Spices- Flavorings'!L144 -> 0
A25: Condiments Portion Control | B25: ='Condiments Portion Control'!L130 -> 0
A26: Smart Snacks | B26: ='Smart Snacks'!L141 -> 0
A27: Special Diet Foods | B27: ='Special Diet Foods'!L61 -> 0
A28: Bread Products, Frozen | B28: ='Bread Products, Frozen'!L30 -> 0
A29: Chemicals | B29: =Chemicals!L15 -> 0
A30: Disposables | B30: =Disposables!L221 -> 0
A31: Lot A Total | B31: =SUM(B7:B30) -> $219,243.98

Sheet Chicken
B1: ='Recap Sheet'!A2 -> School Food Authority: | E1: ='Recap Sheet'!A3 -> Offeror Name:
B2: ='Recap Sheet'!B2 -> WILLIAMSBURG COUNTY SCHOOLS | C2: Return to Recap Sheet | E2: ='Recap Sheet'!B3 -> 0 | P2: Commodity
A3: Item | B3: Description | C3: Approved Brand Name / Manuf ID # | F3: Firm Fixed Fee | K3: ='Recap Sheet'!B4 -> $0.00 | L3: o provide | N3: Processing | O3: Commodity | P3: Pounds of | R3: NOI | S3: Net NOI | T3: Total Cost
A4: # | D4: Distributor | E4: Vendor | F4: Svgs | G4: Est. | H4: Bid | I4: Bid | J4: Unit | K4: Unit Price | L4: Total | M4: Cost per | N4: Fee for | O4: Value Per | P4: DF Needed | Q4: Commodity | R4: Net | S4: Cost Per | T4: Price Fee
D5: Code | E5: Pack | F5: per unit | G5: Bid Qty | H5: Qty | I5: Unit | J5: Price | K5: plus Fee | L5: Price | M5: Unit | N5: Service | O5: Pound | P5: Per Case | Q5: Value | R5: Price | S5: Serving | T5: For Service
B6: Chicken, Whole Muscle (Muscle Intact) | O6: Chicken, Large 100103
A7: 1 | B7: Chicken Fillet, Breaded, chicken breast meat only. | C7: Gold Kist 7516 | E7: 120/4.0z | F7: 120 | G7: 0 | H7: =ROUND(G7*F7/F7,2) -> 0 | I7: Cs | J7: $89.83 | K7: =IF(OR(ISBLANK(J7),G7=0,ISBLANK(G7)),,ROUND(J7+$K$3,2)) -> 0 | L7: =ROUND(H7*K7,2) -> 0 | M7: =ROUND(K7/F7,2) -> 0 | N7: $67.65 | O7: $0.8957 | P7: 24.76 | Q7: =ROUND(O7*P7,2) -> $22.18 | R7: =K7-Q7 -> $(22.18) | S7: =R7/F7 -> $(0.18) | T7: =N7/F7 -> $0.56
B8: Solid Whole muscle meat; fully cooked, IQF. Each portion must provide a
B9: minimum to meet 2 M/MA and 1 OEG. Breading must meet Whole Grain Rich
B10: requirements. Batter / breading not to exceed 30% of the weight of the finished
B11: product. Sodium must not exceed 580mg per serving. No Egg, No Alternate
B12: Protein Product. Domestic birds only. No bag included.
B13: Possible Allergens: None Listed
A14: 2 | B14: Chicken Fillet, Breaded, Spicy, chicken breast meat only, | C14: Gold Kist 7517 | E14: 120/4.0z | F14: 120 | G14: 0 | H14: =ROUND(G14*F14/F14,2) -> 0 | I14: Cs | J14: $89.83 | K14: =IF(OR(ISBLANK(J14),G14=0,ISBLANK(G14)),,ROUND(J14+$K$3,2)) -> 0 | L14: =ROUND(H14*K14,2) -> 0 | M14: =ROUND(K14/F14,2) -> 0 | N14: $67.65 | O14: $0.8957 | P14: 24.76 | Q14: =ROUND(O14*P14,2) -> $22.18 | R14: =K14-Q14 -> $(22.18) | S14: =R14/F14 -> $(0.18) | T14: =N14/F14 -> $0.56
B15: Solid Whole muscle meat, fully cooked, IQF. Each portion must provide a
B16: minimum to meet 2 M/MA and 1 OEG. Breading must meet Whole Grain Rich
B17: requirements. Batter / breading not to exceed 30% of the weight of the finished
B18: product. Sodium must not exceed 580mg per serving. No Egg, No Alternate
B19: Protein Product. Domestic Birds only.
B20: Possible Allergens: None Listed
A21: 3 | B21: Chicken Chunks, breaded, chicken breast with rib meat only; | C21: Gold Kist 7518 | E21: 30 lbs | F21: 128 | G21: 0 | H21: =ROUND(G21*F21/F21,2) -> 0 | I21: Cs | J21: $89.83 | K21: =IF(OR(ISBLANK(J21),G21=0,ISBLANK(G21)),,ROUND(J21+$K$3,2)) -> 0 | L21: =ROUND(H21*K21,2) -> 0 | M21: =ROUND(K21/F21,2) -> 0 | N21: $67.65 | O21: $0.8957 | P21: 24.76 | Q21: =ROUND(O21*P21,2) -> $22.18 | R21: =K21-Q21 -> $(22.18) | S21: =R21/F21 -> $(0.17) | T21: $0.53
B22: Solid Whole muscle meat, fully cooked, IQF. Each portion must provide a
B23: minimum to meet 2 M/MA and 1 OEG. Breading must meet Whole Grain Rich
B24: requirements. Batter / breading not to exceed 30% of weightof the finished product.
B25: Sodium must not exceed 580mg per serving. No Egg, No Alternate Protein
B26: Product. Domestic birds only.
B27: Possible Allergens: None Listed
A28: 4 | B28: Chicken Fillet, Breaded, chicken breast meat only, with bag | C28: Gold Kist 7505 | E28: 10 lbs | F28: 40 | G28: 0 | H28: =ROUND(G28*F28/F28,2) -> 0 | I28: Cs | J28: $39.50 | K28: =IF(OR(ISBLANK(J28),G28=0,ISBLANK(G28)),,ROUND(J28+$K$3,2)) -> 0 | L28: =ROUND(H28*K28,2) -> 0 | M28: =ROUND(K28/F28,2) -> 0 | N28: 0 | O28: $0.0000 | P28: 0 | Q28: =ROUND(O28*P28,2) -> $0.00 | R28: =K28-Q28 -> 0 | S28: =R28/F28 -> 0 | T28: =N28/F28 -> 0
B29: Solid Whole muscle meat; fully cooked, IQF. Each portion must provide a
B30: minimum to meet 2 M/MA and 1 OEG. Breading must meet Whole Grain Rich
B31: requirements. Batter / breading not to exceed 30% of the weight of the finished
B32: product. Sodium must not exceed 580mg per serving. No Egg, No Alternate Protein
B33: Product. Domestic birds only. Foil lined bags included.
B34: Possible Allergens: None Listed
A35: 5 | B35: Chicken Tenders, Breaded, Chicken Breast Meat Only | C35: Gold Kist/Pilgrims 7572 | E35: 106/4.35z | F35: 106 | G35: 12 | H35: =ROUND(G35*F35/F35,2) -> 12 | I35: Cs | J35: $72.38 | K35: =IF(OR(ISBLANK(J35),G35=0,ISBLANK(G35)),,ROUND(J35+$K$3,2)) -> $72.38 | L35: =ROUND(H35*K35,2) -> $868.56 | M35: =ROUND(K35/F35,2) -> $0.68 | N35: $49.05 | O35: $0.8957 | P35: 26.05 | Q35: =ROUND(O35*P35,2) -> $23.33 | R35: =K35-Q35 -> $49.05 | S35: =R35/F35 -> $0.46 | T35: =N35/F35 -> $0.46
B36: Solid Whole muscle meat; fully cooked, IQF. Each portion must provide a | C36: Proview 41-2017 | E36: 64/4.90z | F36: 64 | H36: =ROUND(G35*F35/F36,2) -> 19.88 | I36: Cs | N36: 0 | O36: $0.0000 | P36: 0 | Q36: =ROUND(O36*P36,2) -> $0.00 | R36: =K36-Q36 ->  | S36: =R36/F36 ->  | T36: =N36/F36 -> 0
B37: minimum to meet 2 M/MA and 1 OEG. Breading must meet Whole Grain Rich
B38: requirements. Batter / breading not to exceed 30% of the weight of the finished
B39: product. Sodium must not exceed 580mg per serving. No Egg, No Alternate Protein
B40: Product. Domestic birds only
B41: Possible Allergens: None Listed
A42: 6 | B42: Chicken Chunks, Breaded Buffalo Style | C42: Proview 64230WG | E42: 20 lbs | F42: 75 | G42: 10 | H42: =ROUND(G42*F42/F42,2) -> 10 | I42: Cs | J42: $52.00 | K42: =IF(OR(ISBLANK(J42),G42=0,ISBLANK(G42)),,ROUND(J42+$K$3,2)) -> $52.00 | L42: =ROUND(H42*K42,2) -> $520.00 | M42: =ROUND(K42/F42,2) -> $0.69 | N42: $0.8722 | O42: $0.8722 | P42: 33.74 | Q42: =ROUND(O42*P42,2) -> $29.43 | R42: =K42-Q42 -> $22.57 | S42: =R42/F42 -> $0.30 | T42: =S42/G42 -> $0.03
B43: Fully Cooked, chicken breast with rib meat, APP and egg allowed, in compliance with
B44: Apendix A of 7 CFR Part 210 CN label to provide 2 oz. M/MA and 1.25 OEG, Breading
B45: must meet Whole Grain Rich requirements. Batter or breading not to exceed 30%
B46: of the weight of the product. Sodium not to exceed 750mg.
A49: 7 | B49: Chicken Fillet, Breakfast, Breaded (Savory Flavor with Bags) | C49: Proview 60416WG | E49: 20 lbs | F49: 211 | G49: 0 | H49: =ROUND(G49*F49/F49,2) -> 0 | I49: Cs | J49: $59.80 | K49: =IF(OR(ISBLANK(J49),G49=0,ISBLANK(G49)),,ROUND(J49+$K$3,2)) -> 0 | L49: =ROUND(H49*K49,2) -> 0 | M49: =ROUND(K49/F49,2) -> 0 | N49: 0 | O49: $0.0000 | P49: 0 | Q49: =ROUND(O49*P49,2) -> $0.00 | R49: =K49-Q49 -> 0 | S49: =R49/F49 -> 0 | T49: 0
B50: Fully cooked, chicken breast with rib meat only, APP an Egg Allowed in compliance
B51: with Apendix A of 7 CFR 210 CN label to provide 1.0 oz. M/MA and .5 OEG, Breading
B52: must meet Whole Grain Rich requirements. Batter or breading not to exceed 30%
B53: product. Sodium must not exceed 300 mg per serving.
B54: Possible Allergens: Wheat, Milk and Soy
B55: Chicken, Made with whole muscle white meat pieces,
A56: 8 | B56: Chicken Patty | C56: Tyson 70302-928 | E56: 132/3.75z | F56: 132 | G56: 0 | H56: =ROUND(G56*F56/F56,2) -> 0 | I56: Cs | J56: $89.01 | K56: =IF(OR(ISBLANK(J56),G56=0,ISBLANK(G56)),,ROUND(J56+$K$3,2)) -> 0 | L56: =ROUND(H56*K56,2) -> 0 | M56: =ROUND(K56/F56,2) -> 0 | N56: $58.79 | O56: $0.8957 | P56: 33.74 | Q56: =ROUND(O56*P56,2) -> $30.22 | R56: =K56-Q56 -> $(30.22) | S56: =R56/F56 -> $(0.23) | T56: $0.45
B57: Fully Cooked, portioned, CN Labeled. Product is made with whole muscle white
B58: meat chicken pieces. No ground Chicken. Each portion must provide a minimum to
B59: meet 2 M/MA and 1 OEG. No ground Chicken. Each portion must provide a
B60: minimum to meet 2 M/MA and 1 OEG. Breading must meet Whole Grain Rich
B61: requirements. Batter / breading not to exceed 30% of weight of the finished product.
B62: Sodium must not exceed 400mg per serving. Domestic Birds only
A63: 9 | B63: Chicken Tender | C63: Proview 63230WG | E63: 4/5 lbs | F63: 59 | G63: 0 | H63: =ROUND(G63*F63/F63,2) -> 0 | I63: Cs | J63: $53.00 | K63: =IF(OR(ISBLANK(J63),G63=0,ISBLANK(G63)),,ROUND(J63+$K$3,2)) -> 0 | L63: =ROUND(H63*K63,2) -> 0 | M63: =ROUND(K63/F63,2) -> 0 | N63: $0.8722 | O63: $0.8722 | P63: 33.74 | Q63: =ROUND(O63*P63,2) -> $29.43 | R63: =K63-Q63 -> $(29.43) | S63: =R63/F63 -> $(0.50) | T63: =S63/G63 -> 
B64: Fully Cooked, portioned, CN Labeled. Product is made with whole muscle white
B65: meat chicken pieces. No ground Chicken. Each portion must provide a minimum
B66: to meet 2 M/MA and 1 OEG. Breading must meet Whole Grain Rich requirements
B67: Batter / breading not to exceed 30% of weight of the finished product.
B68: Sodium must not exceed 400mg per serving. Domestic Birds only (3 tenders=1 serving)
A69: 10 | B69: Chicken Bite | C69: Tyson 70362-928 | E69: 121/3.95z | F69: 121 | G69: 0 | H69: =ROUND(G69*F69/F69,2) -> 0 | I69: Cs | J69: $86.33 | K69: =IF(OR(ISBLANK(J69),G69=0,ISBLANK(G69)),,ROUND(J69+$K$3,2)) -> 0 | L69: =ROUND(H69*K69,2) -> 0 | M69: =ROUND(K69/F69,2) -> 0 | N69: $57.00 | O69: $0.8957 | P69: 32.74 | Q69: =ROUND(O69*P69,2) -> $29.33 | R69: =K69-Q69 -> $(29.33) | S69: =R69/F69 -> $(0.24) | T69: =N69/F69 -> $0.47
B70: Fully Cooked, portioned, CN Labeled. Product is made with whole muscle white
B71: meat chicken pieces. No ground Chicken. Each portion must provide a minimum to
B72: meet 2 M/MA and 1 OEG. Breading must meet Whole Grain Rich requirements.
B73: Batter / breading not to exceed 30% of weightof the finished product.
B74: Sodium must not exceed 400mg per serving. Domestic Birds only
B75: Chicken, chopped and formed
A76: 11 | B76: Chicken Patty, Breakfast, Breaded. | C76: Gold Kist 633100 | E76: 20Lb | F76: 192 | G76: 80 | H76: =ROUND(G76*F76/F76,2) -> 80 | I76: Cs | N76: 0 | O76: $0.0000 | P76: 0 | Q76: =ROUND(O76*P76,2) -> $0.00 | R76: =K76-Q76 ->  | S76: =R76/F76 ->  | T76: 0
B77: Fully cooked. Chicken breast with rib meat only; chopped and formed; alternate | C77: King's Delight 66206 | E77: 20Lb | F77: 213 | H77: =ROUND(G76*F76/F77,2) -> 72.11 | I77: Cs | J77: $35.00 | K77: =IF(OR(ISBLANK(J77),G76=0,ISBLANK(G76)),,ROUND(J77+$K$3,2)) -> $35.00 | L77: =ROUND(H77*K77,2) -> $2,523.85 | M77: =ROUND(K77/F77,2) -> $0.16 | N77: $0.8722 | O77: $0.8722 | P77: 32.74 | Q77: =ROUND(O77*P77,2) -> $28.56 | R77: =K77-Q77 -> $6.44 | S77: =R77/F77 -> $0.03
B78: protein product and egg allowed, in compliance with Appendix A of 7 CFR | C78: Rich Chicks 54411 | E78: 20Lb | F78: 214 | H78: =ROUND(G76*F76/F78,2) -> 71.78 | I78: Cs | N78: $40.73 | O78: $0.8957 | P78: 14.59 | Q78: $13.07 | R78: $40.73 | S78: =R78/F78 -> $0.19 | T78: $0.19
B79: Part 210. CN label to provide 1 oz M/MA, and no more than 1 OEG. Breading | C79: Rich Chicks Commodity#54411
B80: must meet Whole Grain Rich requirements. Batter or breading not to exceed 30%
B81: of the weight of the product. Sodium not to exceed 200mg.
B82: The label must specify the minimum number of pieces or portions per case.
A83: 12 | B83: Chicken Patty, Breaded | C83: (16-17) Gold Kist 663100 | E83: 20 Lb | F83: 104 | G83: 300 | I83: Cs | J83: $32.10 | K83: =IF(OR(ISBLANK(J83),G83=0,ISBLANK(G83)),,ROUND(J83+$K$3,2)) -> $32.10 | L83: =ROUND(H83*K83,2) -> 0 | M83: =ROUND(K83/F83,2) -> $0.31 | N83: 0 | O83: $0.0000 | P83: 0 | Q83: =ROUND(O83*P83,2) -> $0.00 | R83: =K83-Q83 -> $32.10 | S83: =R83/F83 -> $0.31 | T83: 0
B84: Fully cooked, Chicken breast with rib meat only; chopped and formed; alternate
B85: protein product and egg allowed, in compliance with Appendix A of 7 CFR Part 210.
B86: CN label to provide 2 oz M/MA and a not more than 1 OEG. Breading must meet
B87: Whole Grain Rich requirements. One serving to contain no more than 60% of total
B88: calories from fat; saturated fat not to exceed 15% of calories from saturated fat per
B89: serving. Batter or breading not to exceed 30% of the weight of the finished product.
B90: Sodium not to exceed 400 mg.
B91: The label must specify the minimum number of pieces or portions per case.
A92: 13 | B92: Chicken Patty, Breaded, Spicy | C92: Tyson 70312-928 | E92: 132/3.75z | F92: 132 | G92: 15 | H92: =ROUND(G92*F92/F92,2) -> 15 | I92: Cs | N92: $61.80 | O92: $0.8957 | P92: 33.74 | Q92: =ROUND(O92*P92,2) -> $30.22 | R92: $61.80 | S92: =R92/F92 -> $0.47 | T92: $0.47
B93: Fully cooked, Chicken breast with rib meat only; chopped and formed; alternate | C93: King's Delight 66214 | E93: 20Lb | F93: 114 | H93: =ROUND(G92*F92/F93,2) -> 17.37 | I93: Cs | J93: $33.80 | K93: =IF(OR(ISBLANK(J93),G92=0,ISBLANK(G92)),,ROUND(J93+$K$3,2)) -> $33.80 | L93: =ROUND(H93*K93,2) -> $587.11 | M93: =ROUND(K93/F93,2) -> $0.30
B94: protein product and egg allowed, in compliance with Appendix A of 7 CFR Part 210.
B95: CN label to provide 2 oz M/MA and a not more than 1 OEG. (Spicy) Breading must
B96: meet Whole Grain Rich requirements. One serving to contain no more than 60% of
B97: total calories from fat; saturated fat not to exceed 15% of calories from saturated fat
B98: per serving. Batter or breading not to exceed 30% of the weight of the finished
B99: product. Sodium not to exceed 480mg.
B100: The label must specify the minimum number of pieces or portions per case.
A101: 14 | B101: Chicken Patty, Grilled, | C101: Advance Pierre 9989 | E101: 100/2.8z | F101: 100 | G101: 40 | H101: =ROUND(G101*F101/F101,2) -> 40 | I101: Cs
B102: Fully cooked. Unbreaded, breast with rib meat,chopped and formed; no alternate | C102: Proview 55000 | E102: 64/2.5z | F102: 64 | H102: =ROUND(G101*F101/F102,2) -> 62.5 | I102: Cs | J102: $22.00 | K102: =IF(OR(ISBLANK(J102),G101=0,ISBLANK(G101)),,ROUND(J102+$K$3,2)) -> $22.00 | L102: =ROUND(H102*K102,2) -> $1,375.00 | M102: =ROUND(K102/F102,2) -> $0.34
B103: proteins. One serving to equal at least 2 oz M/MA for the Child Nutrition Meal
B104: Pattern Requirements. Sodium not to exceed 480 mg. 1 serving to contain no
B105: more than 30% of the calories from total fat, >10% total calories from saturated fat.
A106: 15 | B106: Chicken Nugget, Breaded | C106: Gold Kist 613100 | E106: 20lb | F106: 104 | G106: 155 | H106: =ROUND(G106*F106/F106,2) -> 155 | I106: Cs | O106: $0.0000 | P106: 0 | Q106: =ROUND(O106*P106,2) -> $0.00 | R106: =K106-Q106 ->  | S106: =R106/F106 ->  | T106: =N106/F106 -> 0
B107: Fully Cooked. Chopped and formed; chicken breast with rib meat only; alternate | C107: Proview 40015-WG | E107: 20Lb | F107: 106 | H107: =ROUND(G106*F106/F107,2) -> 152.08 | I107: Cs | J107: $28.20 | K107: =IF(OR(ISBLANK(J107),G106=0,ISBLANK(G106)),,ROUND(J107+$K$3,2)) -> $28.20 | L107: =ROUND(H107*K107,2) -> $4,288.66 | M107: =ROUND(K107/F107,2) -> $0.27 | N107: 0 | O107: $0.8722 | P107: 29.43 | Q107: =ROUND(O107*P107,2) -> $25.67 | R107: =K107-Q107 -> $2.53 | S107: =R107/F107 -> $0.02 | T107: 0
B108: protein product and egg allowed, in compliance with Appendix A of 7 CFR Part 210. | C108: Rich Chicks 54410 | E108: 20Lb | F108: 107 | H108: =ROUND(G106*F106/F108,2) -> 150.65 | I108: Cs | N108: $40.73 | O108: $0.8957 | P108: 14.59 | Q108: =ROUND(O108*P108,2) -> $13.07 | R108: $40.73 | S108: =R108/F108 -> $0.38 | T108: $0.38
B109: One serving to contain no more than 54% of total calories from fat; saturated fat not | C109: Commodity #54410
B110: to exceed 15% of calories per serving. Sodium not to exceed 480 mg per serving.
B111: Batter or breading not to exceed 30% of the weight of the finished product.
B112: The label must specify the minimum number of pieces to meet the portion size
A114: 16 | B114: Chicken Rings, Breaded | C114: Gold Kist 499180 | E114: 30Lb | F114: 136 | G114: 30 | H114: =ROUND(G114*F114/F114,2) -> 30 | I114: Cs | N114: $39.15 | O114: $0.8957 | P114: 29.46 | Q114: =ROUND(O114*P114,2) -> $26.39 | R114: $39.15 | S114: =R114/F114 -> $0.29 | T114: $0.29
B115: Fully Cooked. Chicken breast with rib meat only, chopped and formed; alternate | C115: King's Delight 66205 | E115: 20Lb | F115: 106 | H115: =ROUND(G114*F114/F115,2) -> 38.49 | I115: Cs | J115: $41.00 | K115: =IF(OR(ISBLANK(J115),G114=0,ISBLANK(G114)),,ROUND(J115+$K$3,2)) -> $41.00 | L115: =ROUND(H115*K115,2) -> $1,578.09 | M115: =ROUND(K115/F115,2) -> $0.39 | N115: $0.8722 | O115: $0.8722 | P115: 29.43 | R115: =K115-Q115 ->  | S115: =R115/F115 ->  | T115: =S115/G115 -> 
B116: protein product and egg allowed,in compliance with Appendix A of 7 CFR Part 210.
B117: CN label to provide 2 oz M/MA and not more than 1.0 OEG. Breading must meet whole
B118: grain rich requirements. Batter or breading not to exceed 30% of the weight of the product
B119: Sodium not to exceed 480 mg. The label must specify number of portions per case
A121: 17 | B121: Chicken Tenders, Breaded | C121: King's Delight 66203 | E121: 20Lb | F121: 106 | G121: 140 | H121: =ROUND(G121*F121/F121,2) -> 140 | I121: Cs | N121: $0.8722 | O121: $0.8722 | P121: 29.46 | R121: =K121-Q121 ->  | S121: =R121/F121 ->  | T121: =S121/G121 -> 
B122: Fully cooked, chicken breast with rib meat only, chopped and formed, APP and egg | C122: Proview 46015WG | E122: 20Lb | F122: 106 | H122: =ROUND(G121*F121/F122,2) -> 140 | I122: Cs | J122: $30.40 | K122: =IF(OR(ISBLANK(J122),G121=0,ISBLANK(G121)),,ROUND(J122+$K$3,2)) -> $30.40 | L122: =ROUND(H122*K122,2) -> $4,256.00 | M122: =ROUND(K122/F122,2) -> $0.29 | N122: $0.8722 | O122: $0.8722 | P122: 29.46 | R122: =K122-Q122 ->  | S122: =R122/F122 ->  | T122: =S122/G122 -> 
B123: allowed, in compliance with Apendix A of 7 CFR Part 210 CN label to provide 1 oz.
B124: M/MA and 1 OEG, Batter or breading not to exceed 30% of the weight of the product
B125: Sodium not ot exceed 480 mg.
A126: 18 | B126: Chicken, Popcorn Chicken, Breaded | C126: Proview 43015-WG | E126: 20Lb | F126: 106 | G126: 50 | H126: =ROUND(G126*F126/F126,2) -> 50 | I126: Cs | J126: $30.40 | K126: =IF(OR(ISBLANK(J126),G126=0,ISBLANK(G126)),,ROUND(J126+$K$3,2)) -> $30.40 | L126: =ROUND(H126*K126,2) -> $1,520.00 | M126: =ROUND(K126/F126,2) -> $0.29 | N126: $0.8722 | O126: $0.8722 | P126: 29.46 | Q126: =ROUND(O126*P126,2) -> $25.70 | R126: =K126-Q126 -> $4.70 | S126: =R126/F126 -> $0.04 | T126: =S126/G126 -> $0.00
B127: Frozen, Fully Cooked; chicken breast with rib meat only chopped and formed; | C127: Gold Kist 698100 | E127: 20Lb | F127: 103 | H127: =ROUND(G126*F126/F127,2) -> 51.46 | I127: Cs | T127: 0
B128: alternate protein product allowed in compliance with Appendix A of 7 CFR Part 210. CN label to provide 2 oz M/MA and not more than 1 OEG. | C128: Kings Delight 66209 | E128: 20Lb | F128: 112 | H128: =ROUND(G126*F126/F128,2) -> 47.32 | I128: Cs | N128: $0.8722 | T128: =S128/G128 -> 
B129: One serving to contain no more than 3g saturated fat and not more than 400mg sodium.
B130: The label must specify the minimum number of pieces or portions per case.
B132: Chicken Leg, 100113 Chicken, Dark Meat, Asian Entrée
A133: 19 | B133: Teriyaki Chicken, | C133: Minh's 69018 | E133: 240/2.80z | F133: 240 | G133: 0 | H133: =ROUND(G133*F133/F133,2) -> 0 | I133: Cs | J133: $129.65 | K133: =IF(OR(ISBLANK(J133),G133=0,ISBLANK(G133)),,ROUND(J133+$K$3,2)) -> 0 | L133: =ROUND(H133*K133,2) -> 0 | M133: =ROUND(K133/F133,2) -> 0 | N133: 0 | O133: $0.4757 | P133: 43.11 | Q133: =ROUND(O133*P133,2) -> $20.51 | R133: =K133-Q133 -> $(20.51) | S133: =R133/F133 -> $(0.09) | T133: 0
B134: Frozen. Unbreaded, Cooked chicken leg meat, boneless, with Teriyaki sauce.
B135: No MSG. No Trans Fat. 100-200 calories with no more than 2g
B136: saturated fat and 450 mg sodium per serving. One portion to provide min. 2 M/MA.
B137: Possible Allergens: Soy, Wheat
A138: 20 | B138: Spicy Chicken, WG | C138: Yang's 15556-2 | E138: 240/2.40z | F138: 240 | G138: 0 | H138: =ROUND(G138*F138/F138,2) -> 0 | I138: Cs | J138: $102.80 | K138: =IF(OR(ISBLANK(J138),G138=0,ISBLANK(G138)),,ROUND(J138+$K$3,2)) -> 0 | L138: =ROUND(H138*K138,2) -> 0 | M138: =ROUND(K138/F138,2) -> 0 | N138: $80.96 | O138: $0.4757 | P138: 45.92 | Q138: =ROUND(O138*P138,2) -> $21.84 | R138: =K138-Q138 -> $(21.84) | S138: =R138/F138 -> $(0.09) | T138: $0.34
B139: Frozen. Unbreaded dark meat chicken strips in spicy sauce.
B140: No MSG. No Trans Fat. 100-200 calories with no more than 2 g
B141: saturated fat and 450 mg sodium per serving. One portion to provide min. 2 M/MA.
B142: Possible Allergens: Soy, Wheat, and Citrus
A143: 21 | B143: Citrus Chicken, WG | C143: Yang's 15552-4 | E143: 192/3.60z | F143: 192 | G143: 0 | H143: =ROUND(G143*F143/F143,2) -> 0 | I143: Cs | J143: $111.44 | K143: =IF(OR(ISBLANK(J143),G143=0,ISBLANK(G143)),,ROUND(J143+$K$3,2)) -> 0 | L143: =ROUND(H143*K143,2) -> 0 | M143: =ROUND(K143/F143,2) -> 0 | N143: $93.34 | O143: $0.4757 | P143: 38.05 | Q143: =ROUND(O143*P143,2) -> $18.10 | R143: =K143-Q143 -> $(18.10) | S143: =R143/F143 -> $(0.09) | T143: =N143/F143 -> $0.49
B144: Frozen. Lightly battered or breaded boneless dark meat chicken chunks tossed with
B145: citrus flavored sauce. No MSG. No Trans Fat. 150-250
B146: calories with no more than 2 g saturated fat and 450 mg sodium
B147: per serving. One portion to provide min. 2 M/MA.
B148: Possible Allergens: Egg, Soy, Wheat, and Citrus
A149: 22 | B149: Cherry Blossom/Sweet and Sour Chicken, WG | C149: Asian Solutions 72005 | E149: 42.9 lbs | F149: 176 | G149: 0 | H149: =ROUND(G149*F149/F149,2) -> 0 | I149: Cs | N149: 0 | O149: $0.4757 | P149: 34.65 | Q149: =ROUND(O149*P149,2) -> $16.48 | R149: 0 | S149: 0 | T149: =N149/F149 -> 0
B150: Frozen. Lightly battered or breaded boneless dark meat chicken chunks tossed with | C150: Chef's Corner CMDTYWG0116 | E150: 42 lbs | F150: 171 | H150: =ROUND(G149*F149/F150,2) -> 0 | I150: Cs | N150: $80.00 | O150: $0.4757 | P150: 39.08 | Q150: =ROUND(O150*P150,2) -> $18.59 | R150: $80.00 | S150: =R150/F150 -> $0.47 | T150: =N150/F150 -> $0.47
B151: sweet and sour sauce. No MSG. No Trans Fat. 140-250 calories with no more than 2g | C151: Yang's 155551-7 | E151: 192/3.60z | F151: 192 | H151: =ROUND(G149*F149/F151,2) -> 0 | I151: Cs | N151: 0 | O151: $0.4757 | P151: 38.05 | Q151: $18.10 | R151: 0 | S151: 0 | T151: 0
B152: saturated fat and 400 mg sodium per serving. One serving to provide min. 2.0 oz M/MA | C152: Schwann's 69016 | E152: 240/2.80z | F152: 240 | H152: =ROUND(G149*F149/F152,2) -> 0 | I152: Cs | J152: $136.70 | K152: =IF(OR(ISBLANK(J152),G149=0,ISBLANK(G149)),,ROUND(J152+$K$3,2)) -> 0 | L152: =ROUND(H152*K152,2) -> 0 | M152: =ROUND(K152/F152,2) -> 0 | N152: 0 | O152: $0.4757 | P152: 42.81 | Q152: $20.36 | T152: 0
B154: Possible Allergens: Egg, Soy, Wheat, Fish/Anchovy, & Citrus
A155: 23 | B155: General Tso's Chicken, Breaded, WG | C155: Yang's 15563-0 | E155: 43.5 lbs | F155: 192 | G155: 20 | H155: =ROUND(G155*F155/F155,2) -> 20 | I155: Cs | J155: $111.44 | K155: =IF(OR(ISBLANK(J155),G155=0,ISBLANK(G155)),,ROUND(J155+$K$3,2)) -> $111.44 | L155: =ROUND(H155*K155,2) -> $2,228.80 | M155: =ROUND(K155/F155,2) -> $0.58 | N155: $93.34 | O155: $0.4757 | P155: 38.05 | Q155: =ROUND(O155*P155,2) -> $18.10 | R155: =K155-Q155 -> $93.34 | S155: =R155/F155 -> $0.49 | T155: =N155/F155 -> $0.49
B156: Frozen, Breaded chicken chunks in spicy sauce, NO MSG, 100-200 calories with no
B157: more than 2 g saturated fat and 450 mg of sodium per serving. One portion to provide
B158: 2.0 oz. M/MA
B160: Possible Allergens: Egg, Soy, Wheat, and Citrus
A161: 24 | B161: Thai Sweet Chili Chicken, Unbreaded | C161: Asian Solutions 73004 | E161: 42.9 lbs | F161: 240 | G161: 0 | H161: =ROUND(G161*F161/F161,2) -> 0 | I161: Cs | J161: $120.35 | K161: =IF(OR(ISBLANK(J161),G161=0,ISBLANK(G161)),,ROUND(J161+$K$3,2)) -> 0 | L161: =ROUND(H161*K161,2) -> 0 | M161: =ROUND(K161/F161,2) -> 0 | N161: $98.48 | O161: $0.4757 | P161: 45.98 | Q161: =ROUND(O161*P161,2) -> $21.87 | R161: =K161-Q161 -> $(21.87) | S161: =R161/F161 -> $(0.09) | T161: =N161/F161 -> $0.41
B162: Frozen, breaded chicken chunks in sweet and spicy chili sauce, NO MSG, No Trans Fat
B163: 100-200 calories with no more than 2 g saturated fat and 350 mg sodium per serving
B164: One 2.85 oz. portion to provide 2.0 oz. M/MA
B166: Possible Allergens: Soy, Wheat
A167: 25 | B167: Chicken, BBQ Teriyaki | C167: Yang's 15554-8 | E167: 42 lbs | F167: 240 | G167: 0 | H167: =ROUND(G167*F167/F167,2) -> 0 | I167: Cs | J167: $102.80 | K167: =IF(OR(ISBLANK(J167),G167=0,ISBLANK(G167)),,ROUND(J167+$K$3,2)) -> 0 | L167: =ROUND(H167*K167,2) -> 0 | M167: =ROUND(K167/F167,2) -> 0 | N167: $80.96 | O167: $0.4757 | P167: 45.92 | Q167: =ROUND(O167*P167,2) -> $21.84 | R167: =K167-Q167 -> $(21.84) | S167: =R167/F167 -> $(0.09) | T167: $0.34
B168: Frozen, chicken in sweet teriyaki sauce. No MSG No Trans fat 100-200 calories with no
B169: more than 2 g saturated fat and 500 mg of sodium per serving. One portion to provide
B170: min. 2.0 oz. M/MA
B172: Possible Allergens: Soy, Wheat, and Citrus
B173: Other Poultry Products
A174: 26 | B174: Chicken Fajita Strips, Breast Meat w/ Grill marks | C174: King's Delight 66196 | E174: 20Lb | F174: 53 | G174: 0 | H174: =ROUND(G174*F174/F174,2) -> 0 | I174: Cs | J174: $62.60 | K174: =IF(OR(ISBLANK(J174),G174=0,ISBLANK(G174)),,ROUND(J174+$K$3,2)) -> 0 | L174: =ROUND(H174*K174,2) -> 0 | M174: =ROUND(K174/F174,2) -> 0
B175: Breast with Rib meat. Fully cooked.
B176: 3.02oz serving provides 2oz meat/meat alternate.
A177: 27 | B177: Chicken Fajita Strips, Unbreaded Dark Meat | C177: Tyson 004621-0928 | E177: 160/3.0z | F177: 160 | G177: 0 | H177: =ROUND(G177*F177/F177,2) -> 0 | I177: Cs | J177: $90.26 | K177: =IF(OR(ISBLANK(J177),G177=0,ISBLANK(G177)),,ROUND(J177+$K$3,2)) -> 0 | L177: =ROUND(H177*K177,2) -> 0 | M177: =ROUND(K177/F177,2) -> 0 | N177: $49.20 | O177: $0.8957 | P177: 45.84 | Q177: =ROUND(O177*P177,2) -> $41.06 | R177: =K177-Q177 -> $(41.06) | S177: =R177/F177 -> $(0.26) | T177: $0.31
B178: Fully cooked, One serving must provide 2.0 oz M/MA
B179: Possible Allergens: Wheat, Soy, Egg
A180: 28 | B180: Chicken Fajita Strips, Unbreaded Dark Meat | C180: Gold Kist/Pilgrims 1250 | E180: 195/2.46z | F180: 195 | G180: 0 | H180: =ROUND(G180*F180/F180,2) -> 0 | I180: Cs | J180: $81.00 | K180: =IF(OR(ISBLANK(J180),G180=0,ISBLANK(G180)),,ROUND(J180+$K$3,2)) -> 0 | L180: =ROUND(H180*K180,2) -> 0 | M180: =ROUND(K180/F180,2) -> 0 | N180: $48.75 | O180: $0.8957 | P180: 36 | Q180: =ROUND(O180*P180,2) -> $32.25 | R180: =K180-Q180 -> $(32.25) | S180: =R180/F180 -> $(0.17) | T180: =N180/F180 -> $0.25
B181: Fully cooked, One serving must provide 2.0 oz M/MA
B182: Possible Allergens: Wheat, Soy, Egg
A183: 29 | B183: Chicken Drumsticks, Sous Vous | C183: Perdue 51273 | E183: 96/2.0z | F183: 96 | G183: 0 | H183: =ROUND(G183*F183/F183,2) -> 0 | I183: Cs | J183: $67.20 | K183: =IF(OR(ISBLANK(J183),G183=0,ISBLANK(G183)),,ROUND(J183+$K$3,2)) -> 0 | L183: =ROUND(H183*K183,2) -> 0 | M183: =ROUND(K183/F183,2) -> 0
B184: 100-200 calories with no more than 3 g saturated fat and 400 mg sodium per serving
B185: One portion to provide 2.0 oz. M/MA per serving
B186: Possible Allergens: None Listed
A187: 30 | B187: Chicken, Drumsticks, Raw | C187: Tyson 990CN | E187: 53/4.50 oz. | F187: 53 | G187: 35 | H187: =ROUND(G187*F187/F187,2) -> 35 | I187: Cs | J187: $25.20 | K187: =IF(OR(ISBLANK(J187),G187=0,ISBLANK(G187)),,ROUND(J187+$K$3,2)) -> $25.20 | L187: =ROUND(H187*K187,2) -> $882.00 | M187: =ROUND(K187/F187,2) -> $0.48
B188: Must yield 1.5 oz. cooked meat, USDA inspected, Grade A, IQF
B189: Possible Allergens: None Listed
A190: 31 | B190: Chicken Thighs, Raw | C190: Tyson 3783CN | E190: 96/4.50z | F190: 96 | G190: 20 | H190: =ROUND(G190*F190/F190,2) -> 20 | I190: Cs | J190: $29.52 | K190: =IF(OR(ISBLANK(J190),G190=0,ISBLANK(G190)),,ROUND(J190+$K$3,2)) -> $29.52 | L190: =ROUND(H190*K190,2) -> $590.40 | M190: =ROUND(K190/F190,2) -> $0.31
B191: Minimum 4.9 oz must provide a minimum or 2 oz cooked
B192: meat. USDA inspected. Grade A, fryer parts, IQF
B193: Possible Allergens: None Listed
A194: 32 | B194: Chicken, Eight Cut, Raw | C194: Tyson 3882 | E194: 96/4.50z | F194: 96 | G194: 180 | H194: =ROUND(G194*F194/F194,2) -> 180 | I194: Cs | J194: $52.80 | K194: =IF(OR(ISBLANK(J194),G194=0,ISBLANK(G194)),,ROUND(J194+$K$3,2)) -> $52.80 | L194: =ROUND(H194*K194,2) -> $9,504.00 | M194: =ROUND(K194/F194,2) -> $0.55
B195: USDA inspected, Grade A fryer parts
B196: Equal parts of breast, leg, thigh and wings,
B197: Minimum 4 oz breast and thigh to meet 2 oz cooked
B198: meat, IQF
B199: Possible Allergens: None Listed
A200: 33 | B200: Chicken Wings, Buffalo Style | C200: King's Delight 85501 | E200: 10 lbs | F200: 19 | G200: 72 | H200: =ROUND(G200*F200/F200,2) -> 72 | I200: Cs
B201: Frozen, Fully cooked, First and second wing joint, Marinated and seasoned 275-600 | C201: Tyson 5210-0928 | E201: 10 lbs | F201: 30 | H201: =ROUND(G200*F200/F201,2) -> 45.6 | I201: Cs | J201: $35.00 | K201: =IF(OR(ISBLANK(J201),G200=0,ISBLANK(G200)),,ROUND(J201+$K$3,2)) -> $35.00 | L201: =ROUND(H201*K201,2) -> $1,596.00 | M201: =ROUND(K201/F201,2) -> $1.17
B202: calories with no more than 9 g saturated fat and 1450 mg sodium per serving
B203: Possible Allergens: Wheat, Soy
A204: 34 | B204: Chicken, Pulled, Unseasoned Bnls Skinless, | C204: Tyson 25560-928 | E204: 73/2.20z | F204: 73 | G204: 0 | H204: =ROUND(G204*F204/F204,2) -> 0 | I204: Cs | J204: $28.83 | K204: =IF(OR(ISBLANK(J204),G204=0,ISBLANK(G204)),,ROUND(J204+$K$3,2)) -> 0 | L204: =ROUND(H204*K204,2) -> 0 | M204: =ROUND(K204/F204,2) -> 0 | N204: $16.10 | O204: $0.8957 | P204: 14.21 | Q204: =ROUND(O204*P204,2) -> $12.73 | R204: =K204-Q204 -> $(12.73) | S204: =R204/F204 -> $(0.17) | T204: $0.22
B205: Chicken breast with rib meat and dark meat, fully cooked, No more than 160 calories
B206: per serving & no more than 3 g sodium per 3.0 oz. serving, Must provide 2.0 oz. M/MA
B207: Possible Allergens: None Listed
A208: 35 | B208: Chicken, Breaded, Popcorn (Dark Meat) | C208: Gold Kist/Pilgrims 110458 | E208: 108/4.30z | F208: 108 | G208: 0 | H208: =ROUND(G208*F208/F208,2) -> 0 | I208: Cs | J208: $77.56 | K208: =IF(OR(ISBLANK(J208),G208=0,ISBLANK(G208)),,ROUND(J208+$K$3,2)) -> 0 | L208: =ROUND(H208*K208,2) -> 0 | M208: =ROUND(K208/F208,2) -> 0 | N208: $41.25 | O208: $0.8957 | P208: 40.541 | Q208: =ROUND(O208*P208,2) -> $36.31 | R208: =K208-Q208 -> $(36.31) | S208: =R208/F208 -> $(0.34) | T208: $0.38
B209: Whole Grain, fully cooked, frozen, must provide 2.0 oz. M/MA Consists of
... 46 more rows

Sheet Beef
B1: ='Recap Sheet'!A2 -> School Food Authority: | E1: ='Recap Sheet'!A3 -> Offeror Name:
B2: ='Recap Sheet'!B2 -> WILLIAMSBURG COUNTY SCHOOLS | C2: Return to Recap Sheet | E2: ='Recap Sheet'!B3 -> 0 | P2: Commodity
A3: Item | B3: Description | C3: Approved Brand Name / Manuf ID # | F3: Firm Fixed Fee | K3: ='Recap Sheet'!B4 -> $0.00 | N3: Processing | O3: Commodity | P3: Pounds of | R3: NOI | S3: Net NOI | T3: Total Cost
A4: # | D4: Distributor | E4: Vendor | F4: Svgs | G4: Est. | H4: Bid | I4: Bid | J4: Unit | K4: Unit Price | L4: Total | M4: Cost per | N4: Fee for | O4: Value Per | P4: DF Needed | Q4: Commodity | R4: Net | S4: Cost Per | T4: Processing Fee
D5: Code | E5: Pack | F5: per unit | G5: Bid Qty | H5: Qty | I5: Unit | J5: Price | K5: plus Fee | L5: Price | M5: Serving | N5: Service | O5: Pound | P5: Per Case | Q5: Value | R5: Price | S5: Serving | T5: for Service
B6: Category: Beef | O6: Beef Course Ground Frozen CTN 60 Lb 100154
A7: 1 | B7: Beef Patte, Flame or Charbroiled | C7: Advance 3-155-525-0 (COM 1-155-525-20) | E7: 200/2.5z | F7: 200 | G7: 375 | H7: =ROUND(G7*F7/F7,2) -> 375 | I7: Cs | N7: 0 | O7: $2.3181 | P7: 25.44 | Q7: =ROUND(O7*P7,2) -> $58.97 | T7: =N7/F7 -> 0
B8: Frozen, IQF, Fully cooked ground beef no more than 20% fat) | C8: Don Lee Farms 202503CN (COM CNQ212503) | E8: 200/2.5z | F8: 200 | H8: =ROUND(G7*F7/F8,2) -> 375 | I8: Cs | J8: $54.15 | K8: =IF(OR(ISBLANK(J8),G7=0,ISBLANK(G7)),,ROUND(J8+$K$3,2)) -> $54.15 | L8: =ROUND(H8*K8,2) -> $20,306.25 | M8: =ROUND(K8/F8,2) -> $0.27 | N8: $21.88 | O8: $2.3181 | P8: 23.17 | Q8: =ROUND(O8*P8,2) -> $53.71 | T8: =N8/F8 -> $0.11
B9: Alternate protein products must meet the requirements in Apendix A of 7 CFR 210. | C9: Maid Rite 75156-03427 | E9: 213/2.25z | F9: 213 | H9: =ROUND($G$7*$F$7/F9,2) -> 352.11 | I9: Cs | N9: 0 | O9: $2.3181 | P9: 35.06 | Q9: =ROUND(O9*P9,2) -> $81.27 | T9: =N9/F9 -> 0
B10: Sodium content is no more than 250 mg per serving. Product to provides 2 oz. M/MA
B11: Possible Allergens: Soy
A12: 2 | B12: Beef Patties, Raw, 100% Beef IQF, USDA inspected beef. | C12: Distributor Choice | E12: 50/3.2z | F12: 50 | G12: 0 | H12: =ROUND($G$12*$F$12/F12,2) -> 0 | I12: Cs
B13: One patty to meet 2 oz meat/meat alternate. | C13: Fillable txt box | F13: 0 | H13: =ROUND(G12*F12/F13,2) ->  | I13: Cs | J13: 0 | K13: =IF(OR(ISBLANK(G12),G12=0,ISBLANK(F13)),,ROUND(J13+$K$3,2)) -> 0 | L13: =ROUND(H12*K13,2) -> 0 | M13: =ROUND(K13/F13,2) -> 
B14: Possible Allergens: None Listed
A15: 3 | B15: Beef Patties, No TVP | C15: Integrated N3200B-30NF | E15: 160/3.0z | F15: 160 | G15: 0 | H15: =ROUND(G15*F15/F15,2) -> 0 | I15: Cs | J15: $102.30 | K15: =IF(OR(ISBLANK(J15),G15=0,ISBLANK(G15)),,ROUND(J15+$K$3,2)) -> 0 | L15: =ROUND(H15*K15,2) -> 0 | M15: =ROUND(K15/F15,2) -> 0 | N15: $42.60 | O15: $2.3181 | P15: 40.14 | Q15: =ROUND(O15*P15,2) -> $93.05 | R15: 0 | S15: 0 | T15: =N15/F15 -> $0.27
B16: Frozen, IQF, Fully cooked ground beef, Not more than 20% fat Sodium cannot | C16: COM #: C32300B-30NF
B17: exceed 275 mg sodiium per serving Must provide 2.0 oz. M/MA
B18: Possible Allergens: None Listed
A19: 4 | B19: Beef Steak Patties, Breaded | C19: Adv-Pierre, 68035 | E19: 85/3.80z | F19: 85 | G19: 0 | H19: =ROUND(G19*F19/F19,2) -> 0 | I19: Cs | J19: $58.65 | K19: =IF(OR(ISBLANK(J19),G19=0,ISBLANK(G19)),,ROUND(J19+$K$3,2)) -> 0 | L19: =ROUND(H19*K19,2) -> 0 | M19: =ROUND(K19/F19,2) -> 0 | N19: $24.47 | O19: $2.3181 | P19: 15.71 | Q19: =ROUND(O19*P19,2) -> $36.42 | R19: 0 | S19: 0 | T19: $0.29
B20: Fully cooked ground beef (no more than 20% fat) Contains no APP, pre-cooked | C20: COM #: 69035
B21: CN Labeled, One serving provides 2 oz. M/MA and 1 oz. OEG
B22: Possible Allergens: Wheat, Soy, Milk
A23: 5 | B23: Beef, Frozen Ground | C23: Distributor Choice | E23: 10Lb | F23: 10 | G23: 500 | H23: =ROUND($G$23*$F$23/F23,2) -> 500 | I23: Cs
B24: USDA inspected bulk, raw fine ground, (no more than 20% fat) | C24: Fillable txt box | H24: =ROUND(G23*F23/F24,2) ->  | I24: Cs | K24: =IF(OR(ISBLANK(G23),G23=0,ISBLANK(F24)),,ROUND(J24+$K$3,2)) -> 0 | L24: =ROUND(H24*K24,2) ->  | M24: =ROUND(K24/F24,2) -> 
B25: MPS #136 Label statement required, "Domestic Beef Only"
B26: Possible Allergens: None Listed | G26: 1
A27: 6 | B27: Meatloaf with Ketchup | C27: (03-04) Pierre 9300 CN | E27: 100/3.0z | F27: 100 | G27: 0 | H27: =ROUND(G27*F27/F27,2) -> 0 | I27: Cs | J27: $43.30 | K27: =IF(OR(ISBLANK(J27),G27=0,ISBLANK(G27)),,ROUND(J27+$K$3,2)) -> 0 | L27: =ROUND(H27*K27,2) -> 0 | M27: =ROUND(K27/F27,2) -> 0 | N27: 0 | O27: $2.3181 | P27: 29.50 | Q27: =ROUND(O27*P27,2) -> $68.38 | R27: 0 | S27: 0 | T27: 0
B28: Made from ground beef (no more than 30% fat) Fully cooked, may contain VPP | C28: Com #: 9302 | E28: 100/3.0z | F28: 210 | N28: $49.98 | O28: $2.3181 | P28: 29.50 | Q28: =ROUND(O28*P28,2) -> $68.38 | R28: 0 | S28: 0 | T28: =N28/F28 -> $0.24
B29: Possible Allergens: Soy
A30: 7 | B30: Steak Nugget | C30: Adv-Pierre 68036 CN | E30: 100/3.85z | F30: 100 | G30: 30 | H30: =ROUND(G30*F30/F30,2) -> 30 | I30: Cs | J30: $72.79 | K30: =IF(OR(ISBLANK(J30),G30=0,ISBLANK(G30)),,ROUND(J30+$K$3,2)) -> $72.79 | L30: =ROUND(H30*K30,2) -> $2,183.70 | M30: =ROUND(K30/F30,2) -> $0.73 | N30: $34.29 | O30: $2.3181 | P30: 19.25 | Q30: =ROUND(O30*P30,2) -> $44.62 | R30: 0 | S30: 0 | T30: $0.34
B31: WGR, Fully cooked, chopped and form, frozen, One serving provides 2 oz. M/MA and | C31: Com #: 69036
B32: 1 oz. OEG
B33: Possible Allergens: Soy
A34: 8 | B34: Beef, Meatball | C34: Adv. Pierre 3-17-505-0 Com #: 1-17-305-0 | E34: 960/.5z | F34: 192 | G34: 0 | H34: =ROUND(G34*F34/F34,2) -> 0 | I34: Cs | J34: $59.33 | K34: =IF(OR(ISBLANK(J34),G34=0,ISBLANK(G34)),,ROUND(J34+$K$3,2)) -> 0 | L34: =ROUND(H34*K34,2) -> 0 | M34: =ROUND(K34/F34,2) -> 0 | N34: $18.25 | O34: $2.3181 | P34: 23.40 | Q34: =ROUND(O34*P34,2) -> $54.24 | R34: 0 | S34: =R34/F34 -> 0 | T34: $0.10
B35: Frozen, IQF, Fully cooked ground beef (no more than 30% fat) | C35: Maid Rite 75156-04105 Com #: 75156-94105 | E35: 960/.5z | F35: 192 | H35: =ROUND(G34*F34/F35,2) -> 0 | I35: Cs | N35: 0 | O35: $2.3181 | P35: 24.94 | Q35: =ROUND(O35*P35,2) -> $57.80 | R35: 0 | S35: 0 | T35: 0
B36: 100-200 calories with no more than 6 g saturated fat and 300 mg sodium per serving | C36: Integrated N22050B Com #: C22050B | E36: 1280/.5z | F36: 256 | H36: =ROUND(G34*F34/F36,2) -> 0 | I36: Cs | N36: 0 | O36: $2.3181 | P36: 34.34 | Q36: $79.60 | R36: 0 | S36: =R36/F36 -> 0 | T36: 0
B37: CN labeled for 5 meatballs to provide 2.0 oz. M/MA | C37: JTM 5030CE Com #: CP505030 | E37: 171.2.80z | F37: 171 | H37: =ROUND(G34*F34/F37,2) -> 0 | I37: Cs | N37: 0 | O37: $2.3181 | P37: 23.78 | Q37: $55.12 | R37: 0 | S37: 0 | T37: 0
C38: Rich Products 55668 | E38: 2/5 lb | F38: 64 | H38: =ROUND(G34*F34/F38,2) -> 0 | I38: Cs
C39: Don Lee Farms CN28053VS Com #: CNQ28053VS | E39: 240/2.0z | F39: 240 | H39: =ROUND(G34*F34/F39,2) -> 0 | I39: Cs | N39: 0 | O39: $2.3181 | P39: 28.63 | Q39: $66.37 | R39: 0 | S39: =R39/F39 -> 0 | T39: 0
B40: Possible Allergens: Wheat, Soy and Milk | C40: AFG 290854 | E40: 192/2.50z | F40: 192 | H40: =ROUND(G34*F34/F40,2) -> 0 | I40: Cs
A41: 9 | B41: Beef Meatballs, Allergen Free | C41: JTM 5049CE Com #: CP5049 | E41: 960/.5z | F41: 192 | G41: 0 | H41: =ROUND(G41*F41/F41,2) -> 0 | I41: Cs | J41: $100.04 | K41: =IF(OR(ISBLANK(J41),G41=0,ISBLANK(G41)),,ROUND(J41+$K$3,2)) -> 0 | L41: =ROUND(H41*K41,2) -> 0 | M41: =ROUND(K41/F41,2) -> 0 | N41: $22.00 | O41: $2.3181 | P41: 35.00 | Q41: =ROUND(O41*P41,2) -> $81.13 | R41: 0 | S41: 0 | T41: $0.11
B42: Frozen, IQF, Fully cooked grouind beef (no more than 20% fat) 100-200 calories with
B43: no more than 5g saturated fat and 350 mg sodium per serving CN labeled for 5 meatballs
B44: to provide 2.0 M/MA
B45: Possible Allergens: None Listed Gluten Free
A46: 10 | B46: Beef Nugget, Teriyaki | C46: Don Lee Farms CNTDO753 Com #: CNQTDO753 | E46: 160/3.0z | F46: 160 | G46: 115 | H46: =ROUND(G46*F46/F46,2) -> 115 | I46: Cs | N46: $24.00 | O46: $2.3181 | P46: 26.70 | Q46: =ROUND(O46*P46,2) -> $61.89 | R46: 0 | S46: 0 | T46: =N46/F46 -> $0.15
B47: Frozen, IQF, Fully cooked ground beef (no more than 30% fat) | C47: AFG 290872 | E47: 200/2.4z | F47: 200 | H47: =ROUND(G46*F46/F47,2) -> 92 | I47: Cs
B48: 100-200 calories with no more than 4g saturated fat and 450 mg sodium per serving | C48: Adv. Pierre 3840 Com#: 3740 | E48: 143/2.80z 143 | F48: 143 | H48: =ROUND(G46*F46/F48,2) -> 128.67 | I48: Cs | J48: $59.49 | K48: =IF(OR(ISBLANK(J48),G46=0,ISBLANK(G46)),,ROUND(J48+$K$3,2)) -> $59.49 | L48: =ROUND(H48*K48,2) -> $7,654.58 | M48: =ROUND(K48/F48,2) -> $0.42 | N48: 0 | O48: $2.3181 | P48: 22.85 | Q48: =ROUND(O48*P48,2) -> $52.97 | R48: 0 | S48: 0 | T48: 0
B50: Possible Allergens: Wheat, Soy
A51: 11 | B51: Beef and Bean Burger | C51: (16-17) Advance Pierre 68103 | E51: 110/3.5z | F51: 110 | G51: 0 | H51: =ROUND(G51*F51/F51,2) -> 0 | I51: Cs | J51: $65.25 | K51: =IF(OR(ISBLANK(J51),G51=0,ISBLANK(G51)),,ROUND(J51+$K$3,2)) -> 0 | L51: =ROUND(H51*K51,2) -> 0 | M51: =ROUND(K51/F51,2) -> 0 | N51: $28.71 | O51: $2.3181 | P51: 20.22 | Q51: =ROUND(O51*P51,2) -> $46.87 | R51: 0 | S51: 0 | T51: $0.26
B52: Beef patty with beans, Frozen, fully cooked, 3.5 oz. patty provides 2.0 oz. M/MA | C52: Comm. #: 69103
B53: and not to exceed 200 calories and 190 mg of sodium per serving
B54: Possible Allergens:
A55: 12 | B55: Beef, Taco Filling Meat, Reduced Fat and Sodium | C55: JTM 5250CE | E55: 6/5 lb | F55: 151 | G55: 0 | H55: =ROUND(G55*F55/F55,2) -> 0 | I55: Cs | J55: $67.49 | K55: =IF(OR(ISBLANK(J55),G55=0,ISBLANK(G55)),,ROUND(J55+$K$3,2)) -> 0 | L55: =ROUND(H55*K55,2) -> 0 | M55: =ROUND(K55/F55,2) -> 0 | N55: $26.60 | O55: $2.3181 | P55: 16.79 | Q55: =ROUND(O55*P55,2) -> $38.92 | R55: 0 | S55: 0 | T55: $0.18
B56: Frozen, fully cooked ground beef, no more than 20% fat, Boilable bags, 100-200 | C56: Com #: CP5250
B57: calories with no more than 2 g sat fat and 300 mg sodium per svg.
B58: CN labeled with serving size to provide min. 2.0 oz. M/MA and 1/8 c Red/Orange Veg
B59: Possible Allergens: Soy
A60: 13 | B60: Cheeseburger Meatloaf | C60: Advanced Pierre 68190 | E60: 100/2.90z | F60: 100 | G60: 0 | H60: =ROUND(G60*F60/F60,2) -> 0 | I60: Cs | J60: $62.42 | K60: =IF(OR(ISBLANK(J60),G60=0,ISBLANK(G60)),,ROUND(J60+$K$3,2)) -> 0 | L60: =ROUND(H60*K60,2) -> 0 | M60: =ROUND(K60/F60,2) -> 0 | N60: $36.42 | O60: $2.3181 | P60: 15.62 | Q60: =ROUND(O60*P60,2) -> $36.21 | R60: 0 | S60: =R60/F60 -> 0 | T60: $0.36
B61: Fully cooked, All beef with cheese One serving to meet 2.0 oz. M/MA | C61: Com#: 69190
B63: Possible Allergens:
A64: 14 | B64: Beef Crumbles, Unseasoned | C64: JTM 5872CE Com#: CP5872 | E64: 240/2.0z | F64: 240 | G64: 0 | H64: =ROUND(G64*F64/F64,2) -> 0 | I64: Cs | N64: $17.00 | O64: $2.3181 | P64: 51.51 | Q64: =ROUND(O64*P64,2) -> $119.41 | R64: 0 | S64: =R64/F64 -> 0 | T64: $0.07
B65: Frozen, fully cooked ground beef, no more than 20% fat, CN labeled with serving | C65: Adv. Pierre 320410-9 Com# 1-3201410-9 | E65: 240/2.0z | F65: 240 | H65: =ROUND(G64*F64/F65,2) -> 0 | I65: Cs | N65: 0 | O65: $2.3181 | P65: 47.72 | Q65: =ROUND(O65*P65,2) -> $110.62 | R65: 0 | S65: =R65/F65 -> 0 | T65: 0
B66: Must provide 2 oz. M/MA, 100-150 calories and no more than 250 mg sodium and | C66: Integrated N32000B Com# C32000B | E66: 316/2.02z | F66: 316 | H66: =ROUND(G64*F64/F66,2) -> 0 | I66: Cs | N66: 0 | O66: $2.3181 | P66: 53.52 | Q66: $124.06 | R66: 0 | S66: 0 | T66: 0
B67: 4 g saturated fat | C67: Don Lee Farms CN1540L Com #: CNQ15401 | E67: 4/10 lb | F67: 320 | H67: =ROUND(G64*F64/F67,2) -> 0 | I67: Cs | J67: $111.60 | K67: =IF(OR(ISBLANK(J67),G64=0,ISBLANK(G64)),,ROUND(J67+$K$3,2)) -> 0 | L67: =ROUND(H67*K67,2) -> 0 | M67: =ROUND(K67/F67,2) -> 0 | N67: 0 | O67: $2.3181 | P67: 66.67 | Q67: =ROUND(O67*P67,2) -> $154.55 | R67: 0 | S67: 0 | T67: =N67/F67 -> 0
B68: Possible Allergens: None Listed
A69: 15 | B69: Burrito, WG, Beef and Bean | C69: Fernando's 9036 | E69: 96/4.5z | F69: 96 | G69: 0 | H69: =ROUND(G69*F69/F69,2) -> 0 | I69: Cs | J69: $44.79 | K69: =IF(OR(ISBLANK(J69),G69=0,ISBLANK(G69)),,ROUND(J69+$K$3,2)) -> 0 | L69: =ROUND(H69*K69,2) -> 0 | M69: =ROUND(K69/F69,2) -> 0 | N69: 0
B70: Frozen, Provides 2.0 M/Ma 2.0 OEG; Whole Grain Tortila Bulk pack SMART SNACK | C70: Beef Bean RedChili
B71: Possible Allergens:
A72: 16 | B72: Beef Chili (for Hot Dogs) | C72: Chandler 65-464 | E72: 4/5 lbs | F72: 160 | G72: 0 | H72: =ROUND(G72*F72/F72,2) -> 0 | I72: Cs | J72: $31.60 | K72: =IF(OR(ISBLANK(J72),G72=0,ISBLANK(G72)),,ROUND(J72+$K$3,2)) -> 0 | L72: =ROUND(H72*K72,2) -> 0 | M72: =ROUND(K72/F72,2) -> 0 | N72: 0
B73: Frozen, fully cooked, No beans, 40-80 calories with no more than 1 g saturated fat and | C73: JTM 5320CE Com #: CP5320 | E73: 6/5 lbs | F73: 240 | H73: =ROUND(G72*F72/F73,2) -> 0 | I73: Cs | N73: $25.40 | O73: $2.3181 | P73: 9.12 | Q73: =ROUND(O73*P73,2) -> $21.14 | T73: =N73/F73 -> $0.11
B74: 250 mg sodium per 2.0 oz. serving
B75: Possible Allergens: Soy, Wheat
A76: 17 | B76: Beef Pattie, Rib Shaped with BBQ Sauce | C76: Advanced Pierre 3816 | E76: 100/3.25z | F76: 100 | G76: 0 | H76: =ROUND(G76*F76/F76,2) -> 0 | I76: Cs | J76: $46.42 | K76: =IF(OR(ISBLANK(J76),G76=0,ISBLANK(G76)),,ROUND(J76+$K$3,2)) -> 0 | L76: =ROUND(H76*K76,2) -> 0 | M76: =ROUND(K76/F76,2) -> 0 | N76: $28.44 | O76: $2.3181 | P76: 9.31 | Q76: =ROUND(O76*P76,2) -> $21.58 | R76: 0 | S76: =R76/F76 -> 0 | T76: =N76/F76 -> $0.28
B77: Frozen, fully cooked ground beef (no more than 20% fat) Alternate protein products must | C77: Com#: 3716
B78: meet the requirements in Appendix 7 CFR 210. Sodium content is not more than 250 mg
B79: per serving, Product provides 2.0 oz. M/MA per serving
B80: Possible Allergens: Wheat, Soy, Milk
A81: 18 | B81: Beef Pattie, Salisbury Steak | C81: Advanced Pierre 3-16-530-0 Com #: 1-16-530-0 | E81: 170/3.0z | F81: 170 | G81: 0 | H81: =ROUND(G81*F81/F81,2) -> 0 | I81: Cs | J81: $57.93 | K81: =IF(OR(ISBLANK(J81),G81=0,ISBLANK(G81)),,ROUND(J81+$K$3,2)) -> 0 | L81: =ROUND(H81*K81,2) -> 0 | M81: =ROUND(K81/F81,2) -> 0 | N81: 0 | O81: $2.3181 | P81: 24.25 | Q81: =ROUND(O81*P81,2) -> $56.21 | R81: 0 | S81: =R81/F81 -> 0 | T81: =N81/F81 -> 0
B82: Frozen, fully cooked ground beef (no more than 30% fat) 100-200 calories with no more | C82: JTM 5632CE Com #: CP5632 | E82: 173/2.78z | F82: 173 | H82: =ROUND(G81*F81/F82,2) -> 0 | I82: Cs | N82: 0 | O82: $2.3181 | P82: 25.38 | Q82: =ROUND(O82*P82,2) -> $58.83 | R82: 0 | S82: =R82/F82 -> 0 | T82: =N82/F82 -> 0
B83: than 6 g sat fat and 450 mg sodium per serving. CN labeled for one portion to provide | C83: Don Lee Farms CN752253 | E83: 240/2.25z | F83: 240 | H83: =ROUND(G81*F81/F83,2) -> 0 | I83: Cs | N83: 0 | O83: $2.3181 | P83: 33.20 | Q83: $76.96 | R83: 0 | S83: 0 | T83: 0
B84: min. 2.0 oz. M/MA. VPP Allowed | C84: Don Lee Farms Com#: CNQ752503 | E84: 200/2.50z | F84: 200 | H84: =ROUND(G81*F81/F84,2) -> 0 | I84: Cs | N84: $21.88 | O84: $2.3181 | P84: 33.20 | Q84: =ROUND(O84*P84,2) -> $76.96 | R84: 0 | S84: 0 | T84: =N84/F84 -> $0.11
B85: Possible Allergens: Wheat, Soy, Milk | C85: AFG 290852 | E85: 208/2.30z | F85: 208 | H85: =ROUND(G81*F81/F85,2) -> 0 | I85: Cs | N85: 0
A86: 19 | B86: Beef Spaghetti Sauce | C86: JTM 5578CE Com #: CP5578 | E86: 6/5 lbs | F86: 86 | G86: 0 | H86: =ROUND(G86*F86/F86,2) -> 0 | I86: Cs | J86: $65.93 | K86: =IF(OR(ISBLANK(J86),G86=0,ISBLANK(G86)),,ROUND(J86+$K$3,2)) -> 0 | L86: =ROUND(H86*K86,2) -> 0 | M86: =ROUND(K86/F86,2) -> 0 | N86: $28.16 | O86: $2.3181 | P86: 14.94 | Q86: =ROUND(O86*P86,2) -> $34.63 | R86: 0 | S86: 0 | T86: =N86/F86 -> $0.33
B87: Frozen, fully cooked Boilable bags, 150-250 calories with no more than 3 g saturated fat
B88: and 300 mg sodium per serving. CN labeled with serving size to provide 2.0 oz. M/MA
B89: and 1/2 c Red/Orange Vegetable No VPP
B90: Possible Allergens: None listed
A91: 20 | B91: Beef Steak, Breaded for Biscuits, WG | C91: Advanced Pierre 68033 Com #: 69033 | E91: 250/1.97z | F91: 250 | G91: 0 | H91: =ROUND(G91*F91/F91,2) -> 0 | I91: Cs | N91: 0 | O91: $2.3181 | P91: 22.29 | Q91: =ROUND(O91*P91,2) -> $51.67 | R91: =K91-Q91 -> $(51.67) | S91: =R91/F91 -> $(0.21) | T91: =N91/F91 -> 0
B92: Frozen, IQF, Fully cooked ground beef (no more than 30% fat) 150-250 calories with no | C92: Don Lee Farms CN621603 Com #: CNQ621603 | E92: 300/1.60z | F92: 300 | H92: =ROUND(G91*F91/F92,2) -> 0 | I92: Cs | J92: $80.70 | K92: =IF(OR(ISBLANK(J92),G91=0,ISBLANK(G91)),,ROUND(J92+$K$3,2)) -> 0 | L92: =ROUND(H92*K92,2) -> 0 | M92: =ROUND(K92/F92,2) -> 0 | N92: 0 | O92: $2.3181 | P92: 33.50 | Q92: =ROUND(O92*P92,2) -> $77.66 | R92: =K92-Q92 -> $(77.66) | S92: =R92/F92 -> $(0.26) | T92: =N92/F92 -> 0
B93: more than 5 g of saturated fat and 400 mg sodium per serving. CN labeled for one portion
B94: to provide min. 1.0 oz. M/MA and .75 OEG No VPP
B95: Possible Allergens: Wheat, Soy, Milk
A96: 21 | B96: Beef Brisket with BBQ Sauce | C96: Brookwood Farms 11125 | E96: 2/5 lbs | F96: 44 | G96: 0 | H96: =ROUND(G96*F96/F96,2) -> 0 | I96: Cs | J96: $44.40 | K96: =IF(OR(ISBLANK(J96),G96=0,ISBLANK(G96)),,ROUND(J96+$K$3,2)) -> 0 | L96: =ROUND(H96*K96,2) -> 0 | M96: =ROUND(K96/F96,2) -> 0 | N96: 0
B97: Frozen, fully cooked, sodium must not exceed 300 mg and 350 calories per 2.0 oz.
B98: serving. Must provide 2 oz. M/MA
B99: Possible Allergens:
G100: 0 | I100: Page Total | L100: =SUMIF(L7:L99,">0") -> $30,144.53

Sheet Turkey
B1: ='Recap Sheet'!A2 -> School Food Authority: | E1: ='Recap Sheet'!A3 -> Offeror Name:
B2: ='Recap Sheet'!B2 -> WILLIAMSBURG COUNTY SCHOOLS | C2: Return to Recap Sheet | E2: ='Recap Sheet'!B3 -> 0 | P2: Commodity
A3: Item | B3: Description | C3: Approved Brand Name / Manuf ID # | F3: Firm Fixed Fee | K3: ='Recap Sheet'!B4 -> $0.00 | N3: Processing | O3: Commodity | P3: Pounds of | Q3: Commodity | R3: NOI | S3: Net NOI | T3: Total Cost
A4: # | D4: Distributor | E4: Vendor | F4: Svgs | G4: Est. | H4: Bid | I4: Bid | J4: Unit | K4: Unit Price | L4: Total | M4: Cost per | N4: Fee for | O4: Value Per | P4: DF Needed | Q4: Value Per | R4: Net | S4: Cost Per | T4: Processing Fee
D5: Code | E5: Pack | F5: per unit | G5: Bid Qty | H5: Qty | I5: Unit | J5: Price | K5: plus Fee | L5: Price | M5: Unit | N5: Service | O5: Pound | P5: Per Case | Q5: Case | R5: Price | S5: Serving | T5: For Service
B6: Category: Turkey | N6: Turkey 100124
A7: 1 | B7: Turkey Breast, Deli Sliced, Frozen (1/2 oz. slices) | C7: Jennie O 2099 | E7: 64/3.0z | F7: 64 | G7: 15 | H7: =ROUND(G7*F7/F7,2) -> 15 | I7: Cs | J7: $40.80 | K7: =IF(OR(ISBLANK(J7),G7=0,ISBLANK(G7)),,ROUND(J7+$K$3,2)) -> $40.80 | L7: =ROUND(H7*K7,2) -> $612.00 | M7: =ROUND(K7/F7,2) -> $0.64 | N7: $22.08 | O7: $1.1772 | P7: 10.71 | Q7: =ROUND(O7*P7,2) -> $12.61 | T7: =N7/F7 -> $0.35
B8: Frozen, fully cooked, Oven roasted, Round Shape 50-150 calories with not more | C8: Harvest Provisions 700168 | E8: 122/3.93z | F8: 122 | H8: =ROUND(G7*F7/F8,2) -> 7.87 | I8: Cs | N8: 0 | O8: $1.1772 | P8: 27.74 | Q8: =ROUND(O8*P8,2) -> $32.66 | T8: =N8/F8 -> 0
B9: than 2 g saturated fat and 400 mg sodium per serving, CN labeled portion to
B10: provide 2 M/MA
B11: Possible Allegens: None Listed Gluten Free
A12: 2 | B12: Turkey Ham, Sliced, (1/2 oz. slices) | C12: Jennie O 2565 | E12: 12/1 lb | F12: 62 | G12: 5 | H12: =ROUND(G12*F12/F12,2) -> 5 | I12: Cs | J12: $39.96 | K12: =IF(OR(ISBLANK(J12),G12=0,ISBLANK(G12)),,ROUND(J12+$K$3,2)) -> $39.96 | L12: =ROUND(H12*K12,2) -> $199.80 | M12: =ROUND(K12/F12,2) -> $0.64 | N12: $22.68 | O12: $1.1772 | P12: 13.26 | Q12: =ROUND(O12*P12,2) -> $15.61 | R12: 0 | S12: =R12/F12 -> 0 | T12: =N12/F12 -> $0.37
B13: Frozen, fully cooked, No more than 10% water added 95% fat-free by weight
B14: 50-150 calories with no more than 2 g sat fat and 550 mg sodium per 2 oz. serving
B15: Possible Allergens: None Listed Gluten Free
A16: 3 | B16: Turkey, Combo Frozen | C16: Jennie O 2095 | E16: 4/3/1 lbs | F16: 71 | G16: 290 | H16: =ROUND(G16*F16/F16,2) -> 290 | I16: Cs | J16: $35.16 | K16: =IF(OR(ISBLANK(J16),G16=0,ISBLANK(G16)),,ROUND(J16+$K$3,2)) -> $35.16 | L16: =ROUND(H16*K16,2) -> $10,196.40 | M16: =ROUND(K16/F16,2) -> $0.50 | N16: $22.68 | O16: $1.1772 | P16: 10.53 | Q16: =ROUND(O16*P16,2) -> $12.40 | R16: 0 | S16: 0 | T16: =N16/F16 -> $0.32
B17: Frozen, fully cooked, All turkey equal parts bologna, ham, and salami. Each flavor
B18: packed separately, 1/2 oz. slices. May contain sodium nitrite
B19: Possible Allergens: None Listed Gluten Free
A20: 4 | B20: Turkey, Roast Light and Dark Meat Frozen | C20: Jennie O 3170-04 | E20: 4/9 lbs | F20: 209 | G20: 0 | H20: =ROUND(G20*F20/F20,2) -> 0 | I20: Cs | J20: $110.88 | K20: =IF(OR(ISBLANK(J20),G20=0,ISBLANK(G20)),,ROUND(J20+$K$3,2)) -> 0 | L20: =ROUND(H20*K20,2) -> 0 | M20: =ROUND(K20/F20,2) -> 0 | N20: $65.52 | O20: $1.1772 | P20: 41.31 | Q20: =ROUND(O20*P20,2) -> $48.63 | R20: 0 | S20: =R20/F20 -> 0 | T20: =N20/F20 -> $0.31
B21: Frozen, fully cooked, Whole muscle breast and thigh roast, Packed in ovenable Mylar
B22: bags, natural skin on, 50-150 calories with no more than 2 g sat fat and 480 mg sodium
B23: per 2 M/MA serving. CN Labeled
B24: Possible Allergens: None Listed Gluten Free | C24: Catch Weight per Pound | D24: $3.08
A25: 5 | B25: Turkey, Roast Light and Dark Meat Frozen | C25: Harvest Provisions 8700131 | E25: 97/3.13z | F25: 97 | G25: 0 | H25: =ROUND(G25*F25/F25,2) -> 0 | I25: Cs | J25: $53.02 | K25: =IF(OR(ISBLANK(J25),G25=0,ISBLANK(G25)),,ROUND(J25+$K$3,2)) -> 0 | L25: =ROUND(H25*K25,2) -> 0 | M25: =ROUND(K25/F25,2) -> 0 | N25: $29.26 | O25: $1.1772 | P25: 20.18 | Q25: =ROUND(O25*P25,2) -> $23.76 | R25: =K25-Q25 -> $(23.76) | S25: =R25/F25 -> $(0.24) | T25: =N25/F25 -> $0.30
B26: 60% White/40% Dark, boned and netted seasoned breast & thigh roast. Ready to
B27: cook, Frozen, NO MSG, 2 oz. raw provides 1.25 oz M/MA Catch weight
B28: Possible Allergens: None Listed Gluten Free | C28: Catch Weight per Pound | D28: $3.18
A29: 6 | B29: Turkey Pot Roast, Light and Dark Meat | C29: Harvest Provisions 700267 | E29: 135/3.55z | F29: 135 | G29: 0 | H29: =ROUND(G29*F29/F29,2) -> 0 | I29: Cs | J29: $95.29 | K29: =IF(OR(ISBLANK(J29),G29=0,ISBLANK(G29)),,ROUND(J29+$K$3,2)) -> 0 | L29: =ROUND(H29*K29,2) -> 0 | M29: =ROUND(K29/F29,2) -> 0 | N29: $53.42 | O29: $1.1772 | P29: 35.57 | Q29: =ROUND(O29*P29,2) -> $41.87 | R29: =K29-Q29 -> $(41.87) | S29: =R29/F29 -> $(0.31) | T29: =N29/F29 -> $0.40
B30: Frozen, Fully cooked. Made of breast and thigh meat, seasoned,
B31: Possible Allergens: None Listed Gluten Free | C31: Catch Weight per Pound | D31: $3.18
A32: 7 | B32: Turkey Sausage Patty | C32: Jimmy Dean 14106 CN | E32: 106/1.50z | F32: 106 | G32: 0 | H32: =ROUND(G32*F32/F32,2) -> 0 | I32: Cs | J32: $17.40 | K32: =IF(OR(ISBLANK(J32),G32=0,ISBLANK(G32)),,ROUND(J32+$K$3,2)) -> 0 | L32: =ROUND(H32*K32,2) -> 0 | M32: =ROUND(K32/F32,2) -> 0 | N32: 13.23 | O32: 13.23 | P32: 13.23 | Q32: =ROUND(O32*P32,2) -> $175.03 | R32: =K32-Q32 -> $(175.03) | S32: =R32/F32 -> $(1.65) | T32: =S32/G32 -> 
B33: Frozen, Fully cooked, No VPP, 50-100 cals per svg no more than 3 g sat fat
B34: and 320 mg sodium CN labeld to provide 1 M/MA
B35: Possible Allergens: None Listed
A36: 8 | B36: Turkey Sausage Patty Lower Sodium | C36: Jennie O 6132 | E36: 160/1.03z | F36: 160 | G36: 0 | H36: =ROUND(G36*F36/F36,2) -> 0 | I36: Cs | J36: $36.49 | K36: =IF(OR(ISBLANK(J36),G36=0,ISBLANK(G36)),,ROUND(J36+$K$3,2)) -> 0 | L36: =ROUND(H36*K36,2) -> 0 | M36: =ROUND(K36/F36,2) -> 0 | N36: $23.06 | O36: $1.1772 | P36: 9.97 | Q36: =ROUND(O36*P36,2) -> $11.74 | R36: 0 | S36: 0 | T36: =N36/F36 -> $0.14
B37: Frozen, fully cooked, No VPP, 50-100 cals per svg no more than 2 g sat fat and 150 mg
B38: sodium per 1 M/MA serving Certified to provide 1 M/MA
B39: Possible Allergens: None Listed Gluten Free
A40: 9 | B40: Turkey, Shredded with Gravy | C40: Jennie O 2847-28 | E40: 4/7 lbs | F40: 112 | G40: 0 | H40: =ROUND(G40*F40/F40,2) -> 0 | I40: Cs | J40: $71.68 | K40: =IF(OR(ISBLANK(J40),G40=0,ISBLANK(G40)),,ROUND(J40+$K$3,2)) -> 0 | L40: =ROUND(H40*K40,2) -> 0 | M40: =ROUND(K40/F40,2) -> 0 | N40: $46.48 | O40: $1.1772 | P40: 21.01 | Q40: =ROUND(O40*P40,2) -> $24.73 | R40: 0 | S40: =R40/F40 -> 0 | T40: =N40/F40 -> $0.42
B41: Frozen, fully cooked, white and dark meat, packed in boil-in-bag, 100-200 calories with
B42: no more than 3 g saturated fat and 480 mg sodium per 2 M/MA serving. CN Labeled
B43: Possible Allergens: Soy, Gluten Free
A44: 10 | B44: Turkey Taco Filling | C44: Jennie O 2856-28 | E44: 4/7 lbs | F44: 147 | G44: 0 | H44: =ROUND(G44*F44/F44,2) -> 0 | I44: Cs | J44: $72.24 | K44: =IF(OR(ISBLANK(J44),G44=0,ISBLANK(G44)),,ROUND(J44+$K$3,2)) -> 0 | L44: =ROUND(H44*K44,2) -> 0 | M44: =ROUND(K44/F44,2) -> 0 | N44: $37.52 | O44: $1.1772 | P44: 29.26 | Q44: =ROUND(O44*P44,2) -> $34.44 | R44: 0 | S44: =R44/F44 -> 0 | T44: =N44/F44 -> $0.26
B45: Frozen, fully cooked, dark/white meat, pre-seasoned, 100-200 calories with no more than
B46: 400 mg sodium per 2 M/MA serving, boil or steam in bag, CN Labeled
B47: Possible Allergens: None Listed
A48: 11 | B48: Turkey Breast Beef Steak | C48: Jennie O 2303-24 | E48: 140/2.82z | F48: 140 | G48: 0 | H48: =ROUND(G48*F48/F48,2) -> 0 | I48: Cs | J48: $104.89 | K48: =IF(OR(ISBLANK(J48),G48=0,ISBLANK(G48)),,ROUND(J48+$K$3,2)) -> 0 | L48: =ROUND(H48*K48,2) -> 0 | M48: =ROUND(K48/F48,2) -> 0 | N48: $65.65 | O48: $1.1772 | P48: 25.51 | Q48: =ROUND(O48*P48,2) -> $30.03 | R48: 0 | S48: =R48/F48 -> 0 | T48: =N48/F48 -> $0.47
B49: Frozen, fully cooked, 50-150 calories with no more than 2 g sat fat and 400 mg
B50: sodium per 2 oz. serving
B51: Possible Allergens: None Listed
A52: 12 | B52: Turkey Bacon | C52: Jennie O 2711-06 | E52: 120/1.0z | F52: 120 | G52: 0 | H52: =ROUND(G52*F52/F52,2) -> 0 | I52: Cs | J52: $81.45 | K52: =IF(OR(ISBLANK(J52),G52=0,ISBLANK(G52)),,ROUND(J52+$K$3,2)) -> 0 | L52: =ROUND(H52*K52,2) -> 0 | M52: =ROUND(K52/F52,2) -> 0 | N52: $72.53 | O52: $1.1772 | P52: 6.64 | Q52: =ROUND(O52*P52,2) -> $7.82 | R52: 0 | S52: =R52/F52 -> 0 | T52: =N52/F52 -> $0.60
B53: Frozen, pre-cooked and pre-crisped, One slice contains .179 of cooked M/MA Contains
B54: both light and dark meat
B55: Possible Allergens: None Listed
A56: 13 | B56: Turkey Sliced All Natural Turkey Breast | C56: Jennie O 2318-18 | E56: 96/3.0z | F56: 96 | G56: 0 | H56: =ROUND(G56*F56/F56,2) -> 0 | I56: Cs | J56: $77.40 | K56: =IF(OR(ISBLANK(J56),G56=0,ISBLANK(G56)),,ROUND(J56+$K$3,2)) -> 0 | L56: =ROUND(H56*K56,2) -> 0 | M56: =ROUND(K56/F56,2) -> 0 | N56: $46.80 | O56: $1.1772 | P56: 18.21 | Q56: =ROUND(O56*P56,2) -> $21.44 | R56: 0 | S56: =R56/F56 -> 0 | T56: =N56/F56 -> $0.49
B57: Frozen, fully cooked, oven roasted, round shaped, 50-150 calories with no more than
B58: 1 g sat fat and 450 mg sodium per serving, CN Labeled
B59: Possible Allergens: None Listed, Gluten Free
I60: Page Total | L60: =SUMIF(L7:L59,">0") -> $11,008.20

Sheet Pork
B1: ='Recap Sheet'!A2 -> School Food Authority: | E1: ='Recap Sheet'!A3 -> Offeror Name:
B2: ='Recap Sheet'!B2 -> WILLIAMSBURG COUNTY SCHOOLS | C2: Return to Recap Sheet | E2: ='Recap Sheet'!B3 -> 0 | P2: Commodity
A3: Item | B3: Description | C3: Approved Brand Name / Manuf ID # | F3: Firm Fixed Fee | K3: ='Recap Sheet'!B4 -> $0.00 | N3: Processing | O3: Commodity | P3: Pounds of | S3: NOI | T3: Net
A4: # | D4: Distributor | E4: Vendor | F4: Svgs | G4: Est. | H4: Bid | I4: Bid | J4: Unit | K4: Unit Price | L4: Total | M4: Cost per | N4: Fee for | O4: Value Per | P4: DF Needed | Q4: Commodity | R4: NOI | S4: Price/ | T4: Cost Per
D5: Code | E5: Pack | F5: per unit | G5: Bid Qty | H5: Qty | I5: Unit | J5: Price | K5: plus Fee | L5: Price | M5: Unit | N5: Service | O5: Pound | P5: Per Case | Q5: Value | R5: Price | S5: Serving | T5: Serving
B6: Pork Products | O6: Pork 1000193
A7: 1 | B7: Pork Barbecue, Tomato Sauce | C7: Chandler 16-550 CN | E7: 4/5 lbs | F7: 92 | G7: 85 | H7: =ROUND(G7*F7/F7,2) -> 85 | I7: Cs | J7: $51.80 | K7: =IF(OR(ISBLANK(J7),G7=0,ISBLANK(G7)),,ROUND(J7+$K$3,2)) -> $51.80 | L7: =ROUND(H7*K7,2) -> $4,403.00 | M7: =ROUND(K7/F7,2) -> $0.56 | O7: $1.3372 | P7: 10.71 | R7: =K7-Q7 ->  | S7: =R7/F7 ->  | T7: =N7/F7 -> 
B8: Frozen, fully cooked. Chopped. Products shall contain no more than | C8: Brookwood 13017 | E8: 4/5 lbs | F8: 98 | H8: =ROUND(G7*F7/F8,2) -> 79.8 | I8: Cs | O8: $1.3372 | P8: 10.71 | R8: =K8-Q8 ->  | S8: =R8/F8 ->  | T8: =N8/F8 -> 
B9: 5% textured vegetable protein. USDA inspected pork. | C9: Castleberry 7046CN | E9: 4/5 lbs | F9: 103 | H9: =ROUND(G7*F7/F9,2) -> 75.92 | I9: Cs | O9: $1.3372 | P9: 10.71 | R9: =K9-Q9 ->  | S9: =R9/F9 -> 
B10: Possible Allergens: Soy, Wheat
A11: 2 | B11: Pork Barbecue, Lower Sodium Texas Western Sauce | C11: Brookwood 12013 | E11: 2/5 lbs | F11: 40 | G11: 0 | H11: =ROUND($G$11*$F$11/F11,2) -> 0 | I11: Cs | J11: $35.40 | K11: =IF(OR(ISBLANK(J11),G11=0,ISBLANK(G11)),,ROUND(J11+$K$3,2)) -> 0 | L11: 0 | M11: 0 | N11: 0 | O11: $1.1119 | P11: 22.8 | Q11: =ROUND(O11*P11,2) -> $25.35 | T11: 0
B12: Frozen, fully cooked, 150-300 calories with no more than 7g sat fat and 275 mg | C12: Brookwood Comm # 12307 | E12: 4/5 lbs | F12: 80 | N12: $31.00 | O12: $1.1119 | P12: 22.8 | Q12: =ROUND(O12*P12,2) -> $25.35 | T12: =N12/F12 -> $0.39
B13: sodium per serving. Must provide 2 oz. M/MA 0 trans fat
B14: Possible Allergens: Soy
A15: 3 | B15: Pork, Barbecue, Vinegar Marinate/Semi Dry | C15: Brookwood 12105 | E15: 2/5 lbs | F15: 64 | G15: 0 | H15: =ROUND($G$15*$F$15/F15,2) -> 0 | I15: Cs | J15: $39.10 | K15: =IF(OR(ISBLANK(J15),G15=0,ISBLANK(G15)),,ROUND(J15+$K$3,2)) -> 0 | L15: =ROUND(H15*K15,2) -> 0 | M15: =ROUND(K15/F15,2) -> 0 | N15: 0 | O15: $1.1119 | P15: 64 | Q15: =ROUND(O15*P15,2) -> $71.16 | R15: 0 | S15: =R15/F15 -> 0 | T15: 0
B16: Frozen, fully cooked 200-300 calories with no more than 7g sat fat and 275 mg | C16: Brookwood Comm # 12302 | E16: 8/5 lbs | F16: 256 | N16: $76.40 | O16: $1.1119 | P16: 64 | Q16: =ROUND(O16*P16,2) -> $71.16 | T16: $0.30
B17: sodium per serving. Must provide 2 oz. M/MA 0 trans fat
B18: Possible Allergens: Soy
A19: 4 | B19: Ham, Buffet | C19: John Morrell 70100-04268 | E19: 2/10-12 lb | F19: 22 | G19: 5 | H19: =ROUND(G19*F19/F19,2) -> 5 | I19: Cs | J19: $37.40 | K19: =IF(OR(ISBLANK(J19),G19=0,ISBLANK(G19)),,ROUND(J19+$K$3,2)) -> $37.40 | L19: =ROUND(H19*K19,2) -> $187.00 | M19: =ROUND(K19/F19,2) -> $1.70 | O19: $0.0000 | P19: 0 | Q19: =ROUND(O19*P19,2) -> $0.00 | R19: =K19-Q19 -> $37.40 | S19: =R19/F19 -> $1.70 | T19: 0
B20: Fully cooked, water added, boneless, smoked | C20: Farmland 190450 | E20: 2/9-10 lb | F20: 20 | H20: =ROUND(G19*F19/F20,2) -> 5.5 | I20: Cs | K20: =IF(OR(ISBLANK(J20),G18=0,ISBLANK(G18)),,ROUND(J20+$K$3,2)) -> 0 | L20: 0 | M20: 0 | T20: 0
C21: John Morrell 70100-04799 | E21: 2/10 lb | F21: 20 | H21: =ROUND(G19*F19/F21,2) -> 5.5 | I21: Cs | K21: =IF(OR(ISBLANK(J21),G19=0,ISBLANK(G19)),,ROUND(J21+$K$3,2)) -> 0 | L21: =ROUND(H21*K21,2) -> 0 | M21: =ROUND(K21/F21,2) -> 0 | T21: 0
C22: Carolina Pride 2328 | E22: 2/10 lb | F22: 18 | H22: =ROUND(G19*F19/F22,2) -> 6.11 | I22: Cs | K22: =IF(OR(ISBLANK(J22),G20=0,ISBLANK(G20)),,ROUND(J22+$K$3,2)) -> 0 | L22: =ROUND(H22*K22,2) -> 0 | M22: =ROUND(K22/F22,2) -> 0 | T22: 0
B23: Possible Allergens: None Listed
A24: 5 | B24: Ham, Pre-Sliced | C24: Distributor Choice | E24: 6/2# | F24: 12 | G24: 5 | H24: =ROUND($G$24*$F$24/F24,2) -> 5 | I24: Cs
B25: Water added, .5 oz. slices, 2.0 oz. serving provides .75 oz. M/MA f | C25: Fillable txt box | H25: =ROUND(G24*F24/F25,2) ->  | I25: Cs | J25: 0 | K25: =IF(OR(ISBLANK(G24),G24=0,ISBLANK(F25)),,ROUND(J25+$K$3,2)) -> 0 | L25: =ROUND(H25*K25,2) ->  | M25: =ROUND(K25/F25,2) -> 
B26: Possible Allergens: None
A27: 6 | B27: Sausage Link with APP | C27: Briar Street Market 19331CN | E27: 137/1.16z | F27: 137 | G27: 220 | H27: =ROUND(G27*F27/F27,2) -> 220 | I27: Cs | J27: $18.50 | K27: =IF(OR(ISBLANK(J27),G27=0,ISBLANK(G27)),,ROUND(J27+$K$3,2)) -> $18.50 | L27: =ROUND(H27*K27,2) -> $4,070.00 | M27: =ROUND(K27/F27,2) -> $0.14
B28: Fully cooked, 1.16 ounce to yield 1 M/MA
B29: Possible Allergens: Soy
A30: 7 | B30: Sausage Patty, No APP | C30: Swaggerty 60010 CN | E30: 160/1.0z | F30: 160 | G30: 175 | H30: =ROUND($G$30*$F$30/F30,2) -> 175 | I30: Cs | J30: $17.50 | K30: =IF(OR(ISBLANK(J30),G30=0,ISBLANK(G30)),,ROUND(J30+$K$3,2)) -> $17.50 | L30: =ROUND(H30*K30,2) -> $3,062.50 | M30: =ROUND(K30/F30,2) -> $0.11
B31: Frozen, fully cooked, No alternate protein product must provide 1 oz. M/MA | C31: Ember Farms 25468111007 | E31: 10 lb | F31: 79 | H31: =ROUND($G$30*$F$30/F31,2) -> 354.43 | I31: Cs
B32: Possible Allergens: Soy | C32: JTM 5649CE Com#: CP5649 | E32: 361/1.33z | F32: 361 | H32: =ROUND($G$30*$F$30/F32,2) -> 77.56 | I32: Cs | K32: =IF(OR(ISBLANK(J32),G30=0,ISBLANK(G30)),,ROUND(J32+$K$3,2)) -> 0 | L32: =ROUND(H32*K32,2) -> 0 | M32: =ROUND(K32/F32,2) -> 0 | N32: $35.00 | O32: $1.1119 | P32: 26.41 | Q32: =ROUND(O32*P32,2) -> $29.37 | T32: $0.10
A33: 8 | B33: Sausage Patty with APP | C33: Advanced Pierre 3850 Com #: 3750 | E33: 250/1.20z | F33: 250 | G33: 80 | H33: =ROUND(G33*F33/F33,2) -> 80 | I33: Cs | K33: =IF(OR(ISBLANK(J33),G33=0,ISBLANK(G33)),,ROUND(J33+$K$3,2)) -> 0 | L33: =ROUND(H33*K33,2) -> 0 | M33: =ROUND(K33/F33,2) -> 0 | N33: 0 | O33: $1.1119 | P33: 22.45 | Q33: =ROUND(O33*P33,2) -> $24.96 | T33: =N33/F33 -> 0
B34: Frozen, fully cooked, 50-150 calories with no more than 4 g saturated fat and 275 mg | C34: Briar Street Market 29667CN | E34: 153/1.25z | F34: 153 | H34: =ROUND($G$33*$F$33/F34,2) -> 131 | I34: Cs | K34: =IF(OR(ISBLANK(J34),G33=0,ISBLANK(G33)),,ROUND(J34+$K$3,2)) -> 0 | L34: =ROUND(K34*H34,2) -> 0 | M34: 0
B35: sodium per serving. | C35: Maid Rite 75156-07112 Com #: 75156-97112 | E35: 400/1.20z | F35: 400 | H35: =ROUND($G$33*$F$33/F35,2) -> 50 | I35: Cs | K35: =IF(OR(ISBLANK(J35),G33=0,ISBLANK(G33)),,ROUND(J35+$K$3,2)) -> 0 | L35: 0 | M35: 0 | N35: 0 | O35: $1.1119 | P35: 34.841 | Q35: =ROUND(O35*P35,2) -> $38.74 | T35: =N35/F35 -> 0
C36: Don Lee Farms CN791203L Com #: CNQ791203P | E36: 400/1.20z | F36: 400 | H36: =ROUND($G$33*$F$33/F36,2) -> 50 | I36: Cs | K36: =IF(OR(ISBLANK(J36),G34=0,ISBLANK(G34)),,ROUND(J36+$K$3,2)) -> 0 | L36: =ROUND(K36*H36,2) -> 0 | M36: =ROUND(K36/F36,2) -> 0 | N36: $21.30 | O36: $1.1119 | P36: 40 | Q36: =ROUND(O36*P36,2) -> $44.48 | T36: $0.05
C37: Tennesee Pride 342CN | E37: 128/1.50z | F37: 128 | H37: =ROUND($G$33*$F$33/F37,2) -> 156 | I37: Cs | K37: 0 | L37: 0 | M37: 0 | T37: =N37/F37 -> 
B38: Possible Allergens: Soy | C38: Swaggerty 60125 | E38: 256/1.25z | F38: 256 | H38: =ROUND($G$33*$F$33/F38,2) -> 78 | I38: Cs | J38: $31.50 | K38: =IF(OR(ISBLANK(J38),G33=0,ISBLANK(G33)),,ROUND(J38+$K$3,2)) -> $31.50 | L38: $2,461.10 | M38: $0.12
A39: 10 | B39: Pork Chop Pattie, Breaded, WG | C39: Advanced Pierre 68019 Com #: 69019 | E39: 100/3.10 z | F39: 100 | G39: 0 | H39: =ROUND(G39*F39/F39,2) -> 0 | I39: Cs | J39: $35.37 | K39: =IF(OR(ISBLANK(J39),G39=0,ISBLANK(G39)),,ROUND(J39+$K$3,2)) -> 0 | L39: =ROUND(K39*H39,2) -> 0 | M39: =ROUND(K39/F39,2) -> 0 | N39: 0 | O39: $1.1119 | P39: 9.51 | Q39: =ROUND(O39*P39,2) -> $10.57 | T39: =N39/F39 -> 0
B40: Frozen, fully cooked, 250-350 calories with no more than 6 g saturated fat and 500 mg | C40: JTM 5694CE Com #: CP5694 | E40: 138/3.35z | F40: 138 | H40: =ROUND($G$39*$F$39/F40,2) -> 0 | I40: Cs | K40: =IF(OR(ISBLANK(J40),G39=0,ISBLANK(G39)),,ROUND(J40+$K$3,2)) -> 0 | L40: 0 | M40: 0 | N40: $35.60 | O40: $1.1119 | P40: 20.59 | Q40: $22.89 | T40: $0.26
B41: sodium per serving, CN labeled for one portion to provide min. 2 M/MA and .5 OEG
B42: Possible Allergens: Egg, Milk, Soy and Wheat
A43: 11 | B43: Pork Rib Pattie, Barbecue Flavored | C43: Advanced Pierre 44-531-0 Com #: 3787 | E43: 100/2.50z | F43: 100 | G43: 240 | H43: =ROUND(G43*F43/F43,2) -> 240 | I43: Cs | J43: $28.37 | K43: =IF(OR(ISBLANK(J43),G43=0,ISBLANK(G43)),,ROUND(J43+$K$3,2)) -> $28.37 | L43: =ROUND(K43*H43,2) -> $6,808.80 | M43: =ROUND(K43/F43,2) -> $0.28 | N43: $16.90 | O43: $1.1119 | P43: 14.89 | Q43: =ROUND(O43*P43,2) -> $16.56 | T43: =N43/F43 -> $0.17
B44: Frozen, fully cooked, 100-200 calories with no more than 4 g saturated fat and 400 mg | C44: Maid Rite 75156-05324 Com #: 75156-95324 | E44: 208/2.40z | F44: 208 | H44: =ROUND($G$43*$F$43/F44,2) -> 115 | I44: Cs | J44: 0 | K44: =IF(OR(ISBLANK(J44),G43=0,ISBLANK(G43)),,ROUND(J44+$K$3,2)) -> 0 | L44: 0 | M44: 0 | N44: 0 | O44: $1.1119 | P44: 26.963 | Q44: $29.98 | T44: 0
B45: sodium per serving. CN labeled for one portion to provide 2 M/MA | C45: Don Lee Farms CN582253 Com #: CNQ582253P | E45: 216/2.25z | F45: 216 | H45: 216 | I45: Cs | J45: 0 | K45: 0 | L45: 0 | M45: 0 | N45: 0 | O45: $1.1119 | P45: 38.06 | Q45: =ROUND(O45*P45,2) -> $42.32 | T45: =N45/F45 -> 0
B46: Possible Allergens: Milk, Soy, and Wheat
A47: 12 | B47: Sausage, Smoked | C47: Bryan 23258 | E47: 10Lb | F47: 80 | G47: 35 | H47: =ROUND(G47*F47/F47,2) -> 35 | I47: Cs | J47: 0 | K47: =IF(OR(ISBLANK(J47),G47=0,ISBLANK(G47)),,ROUND(J47+$K$3,2)) -> 0 | L47: 0 | M47: 0
B48: Made with pork and beef | C48: Swaggerty 21057 | E48: 15Lb | F48: 120 | H48: =ROUND($G$47*$F$47/F48,2) -> 23 | I48: Cs | J48: $25.50 | K48: =IF(OR(ISBLANK(J48),G47=0,ISBLANK(G47)),,ROUND(J48+$K$3,2)) -> $25.50 | L48: $594.92 | M48: $0.21
I50: Page Total | L50: =SUMIF(L7:L48,">0") -> $21,587.32

Sheet Fish
B1: ='Recap Sheet'!A2 -> School Food Authority: | E1: ='Recap Sheet'!A3 -> Offeror Name:
B2: ='Recap Sheet'!B2 -> WILLIAMSBURG COUNTY SCHOOLS | C2: Return to Recap Sheet | E2: ='Recap Sheet'!B3 -> 0 | P2: Commodity
A3: Item | B3: Description | C3: Approved Brand Name / Manuf ID # | F3: Firm Fixed Fee | K3: ='Recap Sheet'!B4 -> $0.00 | N3: Processing | O3: Commodity | P3: Pounds of | R3: Net | S3: Net NOI | T3: Total Cost
A4: # | D4: Distributor | E4: Vendor | F4: Svgs | G4: Est. | H4: Bid | I4: Bid | J4: Unit | K4: Unit Price | L4: Total | M4: Cost per | N4: Fee for | O4: Value Per | P4: DF Needed | Q4: Commodity | R4: NOI | S4: Cost Per | T4: Processing Fee
D5: Code | E5: Pack | F5: per unit | G5: Bid Qty | H5: Qty | I5: Unit | J5: Price | K5: plus Fee | L5: Price | M5: Unit | N5: Service | O5: Pound | P5: Per Case | Q5: Value | R5: Price | S5: Serving | T5: Per Serving
B6: Fish Products | O6: Fish 110601
A7: 1 | B7: Fish Portion, Pollock, WG | C7: Trident Seafood 418302CN | E7: 44/3.64z | F7: 44 | G7: 0 | H7: =ROUND($G$7*$F$7/F7,2) -> 0 | I7: Cs | N7: 0 | O7: $1.1105 | P7: 6.99 | Q7: =ROUND(O7*P7,2) -> $7.76 | R7: 0 | S7: =R7/F7 -> 0 | T7: =N7/F7 -> 0
B8: Frozen, Min. 71% Alaskan Pollock, whole grain rich breading, pre-cooked, Grade A | C8: High Liner Foods 1089869 | E8: 80/3.60z | F8: 80 | H8: =ROUND($G$7*$F$7/F8,2) -> 0 | I8: Cs | J8: $34.30 | K8: =IF(OR(ISBLANK(J8),G7=0,ISBLANK(G7)),,ROUND(J8+$K$3,2)) -> 0 | L8: =ROUND(H8*K8,2) -> 0 | M8: =ROUND(K8/F8,2) -> 0 | N8: $20.04 | O8: $1.1105 | P8: 12.84 | Q8: $14.26 | R8: =K8-Q8 -> $(14.26) | S8: $(0.18) | T8: $0.25
B9: PUFI approved, 150-250 calories with no more than 2 g saturated fat and 400 mg sodium
B10: per serving, CN labeled to provide min. 2 M/MA and 1 OEG
B11: Possible Allergens: Fish, Wheat
A12: 2 | B12: Fish Portion, Pollock, Wedge, Potato Breading WG | C12: High Liner - Viking 06533C | E12: 46/3.60z | F12: 46 | G12: 60 | H12: =ROUND(G12*F12/F12,2) -> 60 | I12: Cs | J12: $22.68 | K12: =IF(OR(ISBLANK(J12),G12=0,ISBLANK(G12)),,ROUND(J12+$K$3,2)) -> $22.68 | L12: =ROUND(H12*K12,2) -> $1,360.80 | M12: =ROUND(K12/F12,2) -> $0.49 | N12: $14.46 | O12: $1.1105 | P12: 7.4 | Q12: =ROUND(O12*P12,2) -> $8.22 | R12: =K12-Q12 -> $14.46 | S12: =R12/F12 -> $0.31 | T12: =N12/F12 -> $0.31
B13: Frozen, Min. 71% Alaskan Pollock, whole grain rich breading, pre-cooked, Grade A | C13: Trident Seafood 422072 | E13: 44/3.60z | F13: 44 | H13: =ROUND(G12*F12/F13,2) -> 62.73 | I13: Cs | N13: 0 | O13: $1.1105 | P13: 6.99 | Q13: $7.76 | R13: 0 | S13: 0 | T13: 0
B14: PUFI approved, 150-250 calories with no more than 2 g saturated fat and 300 mg sodium
B15: per serving, CN labeled to provide min. 2 M/MA and .5 OEG
B16: Possible Allergens: Fish, Wheat, Egg, Soy and Milk
A17: 3 | B17: Fish Portion, Pollock, Reduced Fat, WG | C17: High Liner/APS 53267 | E17: 44/3.60z | F17: 44 | G17: 0 | H17: =ROUND(G17*F17/F17,2) -> 0 | I17: Cs | J17: $21.20 | K17: =IF(OR(ISBLANK(J17),G17=0,ISBLANK(G17)),,ROUND(J17+$K$3,2)) -> 0 | L17: =ROUND(H17*K17,2) -> 0 | M17: =ROUND(K17/F17,2) -> 0 | T17: =N17/F17 -> 0
B18: Frozen, Min. 64% Alaskan Pollock, whole grain rich breading, pre-cooked, Grade A
B19: PUFI approved, 150-250 calories with no more than 1 g saturated fat and 350 mg sodium
B20: per serving, CN labeled to provide min. 2 M/MA and 1 OEG
B21: Possible Allergens: Fish, Wheat
A22: 4 | B22: Fish Nuggets, Natural Cod | C22: High Liner/Viking 51067CN | E22: 160/1.0z | F22: 160 | G22: 100 | H22: =ROUND(G22*F22/F22,2) -> 100 | I22: Cs | J22: $23.00 | K22: =IF(OR(ISBLANK(J22),G22=0,ISBLANK(G22)),,ROUND(J22+$K$3,2)) -> $23.00 | L22: $2,300.00 | M22: $0.14 | T22: =N22/F22 -> 0
B23: Natural Cod, chunks pre-breaded, oven ready. PUFI approved.
B24: One serving will provide 2 oz meat/meat alternate and 1z OEG
B25: Possible Allergens: Fish, Wheat, Egg
A26: 5 | B26: Fish Sticks, Pollock | C26: High Liner/APS 53167 | E26: 160/1.0z | F26: 40 | G26: 50 | H26: =ROUND(G26*F26/F26,2) -> 50 | I26: Cs | J26: $22.60 | K26: =IF(OR(ISBLANK(J26),G26=0,ISBLANK(G26)),,ROUND(J26+$K$3,2)) -> $22.60 | L26: =ROUND(H26*K26,2) -> $1,130.00 | M26: =ROUND(K26/F26,2) -> $0.57 | T26: =N26/F26 -> 0
B27: Frozen, min. 64% Alaskan Pollock, breaded, oven ready, PUFI approved, 200-300 | C27: Slade Gordon 25152 | E27: 160/1.0z | F27: 40 | H27: =ROUND($G$41*$F$41/F27,2) -> 0 | I27: Cs | T27: 0
B28: calories with no more than 2 g sat fat and 350 mg sodium per serving, CN labeled for 4 | C28: Trident Seafood 418308 | E28: 160/1.0z | F28: 40 | H28: =ROUND($G$41*$F$41/F28,2) -> 0 | I28: Cs | T28: 0
B29: sticks to provide min. 2 M/MA and 1 OEG
B30: Possible Allergens: Fish, Wheat, Soy
A31: 6 | B31: Fish Stick, Nacho Breaded, WG | C31: High Liner Foods 38118 | E31: 320/1.0z | F31: 80 | G31: 0 | H31: =ROUND(G31*F31/F31,2) -> 0 | I31: Cs | J31: $36.14 | K31: =IF(OR(ISBLANK(J31),G31=0,ISBLANK(G31)),,ROUND(J31+$K$3,2)) -> 0 | L31: =ROUND(H31*K31,2) -> 0 | M31: =ROUND(K31/F31,2) -> 0 | N31: $21.70 | O31: $1.1105 | P31: 13 | Q31: =ROUND(O31*P31,2) -> $14.44 | R31: =K31-Q31 -> $(14.44) | S31: =R31/F31 -> $(0.18) | T31: =N31/F31 -> $0.27
B32: Frozen, min. 64% Alaskan Pollock, breaded, oven ready, PUFI approved, 200-300
B33: calories with no more than 2 g sat fat and 350 mg sodium per serving, CN labeled for 4
B34: sticks to provide min. 2 M/MA and 1 OEG
B35: Possible Allergens: Fish, Wheat, Soy
A36: 7 | B36: Fish Sticks, Pollock, Potato Coated, WG | C36: Trident Seafood 422071 | E36: 160/1.0z | F36: 40 | G36: 0 | H36: =ROUND(G36*F36/F36,2) -> 0 | I36: Cs | J36: $24.30 | K36: =IF(OR(ISBLANK(J36),G36=0,ISBLANK(G36)),,ROUND(J36+$K$3,2)) -> 0 | L36: =ROUND(H36*K36,2) -> 0 | M36: =ROUND(K36/F36,2) -> 0 | N36: $17.23 | O36: $1.1105 | P36: 6.37 | Q36: =ROUND(O36*P36,2) -> $7.07 | R36: =K36-Q36 -> $(7.07) | S36: =R36/F36 -> $(0.18) | T36: =N36/F36 -> $0.43
B37: Frozen, min. 64% Alaskan Pollock, breaded, oven ready, PUFI approved, 200-300
B38: calories with no more than 2 g sat fat and 350 mg sodium per serving, CN labeled for 4
B39: sticks to provide min. 2 M/MA and .75 OEG
B40: Possible Allergens: Fish, Wheat, Soy
A41: 8 | B41: Shrimp, Popcorn Style, WG | C41: Sea Pak 47039 | E41: 5/2 lbs | F41: 53 | G41: 0 | H41: 53 | I41: Cs | T41: 0
B42: Frozen, made from minced shrimp, whole grain rich breading, 150-250 calories with no | C42: Tampa Maid 100220 | E42: 12/2 lbs | F42: 128 | H42: 128 | I42: Cs | J42: $48.24 | K42: =IF(OR(ISBLANK(J42),G41=0,ISBLANK(G41)),,ROUND(J42+$K$3,2)) -> 0 | L42: =ROUND(H42*K42,2) -> 0 | M42: =ROUND(K42/F42,2) -> 0 | T42: =N42/F42 -> 0
B43: more than 2 g saturated fat and 500 mg sodium per serving, CN labeled to provide min.
B44: 1 M/MA and 1.25 OEG per 3 ounce serving
B45: Possible Allergens: Shrimp, Wheat, Milk, Soy
A46: 9 | B46: Tuna, Chunk Light, Low Sodium | C46: Star-Kist 514540 | E46: 6/43 z. | F46: 6 | G46: 0 | H46: =ROUND(G46*F46/F46,2) -> 0 | I46: Cs | J46: $44.00 | K46: =IF(OR(ISBLANK(J46),G46=0,ISBLANK(G46)),,ROUND(J46+$K$3,2)) -> 0 | L46: =ROUND(H46*K46,2) -> 0 | M46: =ROUND(K46/F46,2) -> 0
B47: Pouch, water packed, No soy, Made in America
B48: Possible Allergens: Fish, Wheat
G49: 0 | I49: Page Total | L49: =SUMIF(L7:L46,">0") -> $4,790.80

Sheet Pizza (hidden)
B1: ='Recap Sheet'!A2 -> School Food Authority: | E1: ='Recap Sheet'!A3 -> Offeror Name:
B2: ='Recap Sheet'!B2 -> WILLIAMSBURG COUNTY SCHOOLS | C2: Return to Recap Sheet | E2: ='Recap Sheet'!B3 -> 0
A3: Item | B3: Description | C3: Approved Brand Name / Manuf ID # | F3: Firm Fixed Fee | K3: ='Recap Sheet'!B4 -> $0.00
A4: # | D4: Distributor | E4: Vendor | F4: Svgs | G4: Est. | H4: Bid | I4: Bid | J4: Unit | K4: Unit Price | L4: Total | M4: Cost per
D5: Code | E5: Pack | F5: per unit | G5: Bid Qty | H5: Qty | I5: Unit | J5: Price | K5: plus Fee | L5: Price | M5: Unit
B6: Pizza Products
A7: 1 | B7: Pizza Sticks, Pizza Style Crust, 50/50 Blend WGR | C7: The Max Stix 77387-12439 CN | E7: 192/1.93z | F7: 192 | G7: 4500 | H7: =ROUND($G$7*$F$7/F7,2) -> 4500 | I7: Cs | K7: =IF(OR(ISBLANK(J7),G7=0,ISBLANK(G7)),,ROUND(J7+$K$3,2)) -> 0 | L7: =ROUND(H7*K7,2) -> 0 | M7: =ROUND(K7/F7,2) -> 0
B8: Stuffed with Mozzarella cheese, frozen, fully cooked pre-baked pizza sticks | C8: Bosco Sticks 702011-1120 | E8: 144/2.06z | F8: 144 | H8: =ROUND($G$7*$F$7/F8,2) -> 6000 | I8: Cs | K8: =IF(OR(ISBLANK(J8),G7=0,ISBLANK(G7)),,ROUND(J8+$K$3,2)) -> 0 | L8: =ROUND(H8*K8,2) -> 0 | M8: =ROUND(K8/F8,2) -> 0
B9: stuffed with low moisture, part skim mozzarella cheese. One pizza breadstick
B10: must provide 1 oz meat/meat alternate and at least 1 oz equivalent grain.
A11: 2 | B11: Pizza Strips, 100% Mozzarella Cheese, Individually Wrapped, WGR | C11: Tony's 78379 CN, WG | E11: 48/3.1z | F11: 48 | G11: 6000 | H11: =ROUND(G11*F11/F11,2) -> 6000 | I11: Cs | K11: =IF(OR(ISBLANK(J11),G11=0,ISBLANK(G11)),,ROUND(J11+$K$3,2)) -> 0 | L11: =ROUND(H11*K11,2) -> 0 | M11: =ROUND(K11/F11,2) -> 0
B12: 30% or less of calories from fat, 0 trans fat. One serving to
B13: equal at least 2 oz grain equivalent servings and 1oz meat/meat alternate.
A14: 3 | B14: Pizza, Breakfast, 50/50 Blend, WGR No SOY added. | C14: Nardone Brothers 80WSA100 | E14: 80/3.2z | F14: 80 | G14: 3500 | H14: =ROUND(G14*F14/F14,2) -> 3500 | I14: Cs | K14: =IF(OR(ISBLANK(J14),G14=0,ISBLANK(G14)),,ROUND(J14+$K$3,2)) -> 0 | L14: =ROUND(H14*K14,2) -> 0 | M14: =ROUND(K14/F14,2) -> 0
B15: Made of crust, sausage, pork patty crumble and cheese. One serving provides
B16: 1 oz meat/meat alternate , 1.5 oz equivalent grain, may also provide 1/8 cup
B17: vegetable.
A18: 4 | B18: Pizza, Breakfast, 50/50 Blend, WGR | C18: The Max 77387-12708 CN | E18: 192/2.66z | F18: 192 | G18: 14000 | H18: =ROUND($G$18*$F$18/F18,2) -> 14000 | I18: Cs | K18: =IF(OR(ISBLANK(J18),G18=0,ISBLANK(G18)),,ROUND(J18+$K$3,2)) -> 0 | L18: =ROUND(H18*K18,2) -> 0 | M18: =ROUND(K18/F18,2) -> 0
B19: Made of crust, turkey sausage, and cheese. | C19: Tony's 63912 CN WG | E19: 128/3.31z | F19: 128 | H19: =ROUND($G$18*$F$18/F19,2) -> 21000 | I19: Cs | K19: =IF(OR(ISBLANK(J19),G18=0,ISBLANK(G18)),,ROUND(J19+$K$3,2)) -> 0 | L19: 0 | M19: 0
B20: One serving provides 1 oz meat/meat alternate and 1.5oz equivalent grain. | C20: (15-16) Nardone Brothers 80WBTSA100 | E20: 80/3.63z | F20: 80 | H20: =ROUND($G$18*$F$18/F20,2) -> 33600 | I20: Cs | K20: =IF(OR(ISBLANK(J20),G18=0,ISBLANK(G18)),,ROUND(J20+$K$3,2)) -> 0 | L20: 0 | M20: 0
A22: 5 | B22: Pizza, Breakfast, Sausage Bagel, IW WGR | C22: (15-16) Nardone Brothers M96WBTS1 | E22: 96/3.10z | F22: 96 | G22: 6000 | H22: =ROUND(G22*F22/F22,2) -> 6000 | I22: Cs | K22: =IF(OR(ISBLANK(J22),G22=0,ISBLANK(G22)),,ROUND(J22+$K$3,2)) -> 0 | L22: =ROUND(H22*K22,2) -> 0 | M22: =ROUND(K22/F22,2) -> 0
B23: 50/50 blend cheese with alternate protein product, pizza sauce
B24: One serving = 1 oz meat/meat alternate and 1 oz equivalent grain.
A25: 6 | B25: Pizza, Cheese, 4x6, 50/50 Blend. WGR | C25: Tony's Smart Pizza 78673 CN WG | E25: 96/4.6z | F25: 96 | G25: 15000 | H25: =ROUND(G25*F25/F25,2) -> 15000 | I25: Cs | K25: =IF(OR(ISBLANK(J25),G25=0,ISBLANK(G25)),,ROUND(J25+$K$3,2)) -> 0 | L25: =ROUND(H25*K25,2) -> 0 | M25: =ROUND(K25/F25,2) -> 0
B26: Made of crust, sauce, cheese-Mozzarella and blend other cheese. | C26: (15-16) Nardone 961SWCMA2 | E26: 96/4.9z | F26: 96 | H26: =ROUND(G25*F25/F26,2) -> 15000 | I26: Cs | K26: =IF(OR(ISBLANK(J26),G25=0,ISBLANK(G25)),,ROUND(J26+$K$3,2)) -> 0 | L26: 0 | M26: 0
B27: CN Label = 2 oz meat/meat alternate and 2 oz equivalent grains, 1/8c Veg optional.
A28: 7 | B28: Pizza, Cheese, 4x6, 50/50 Blend. WGR No SOY added. | C28: Nardone Brothers 96WWA2 4 X 6 | E28: 96/5.0z | F28: 96 | G28: 2500 | H28: =ROUND(G28*F28/F28,2) -> 2500 | I28: Cs | K28: =IF(OR(ISBLANK(J28),G28=0,ISBLANK(G28)),,ROUND(J28+$K$3,2)) -> 0 | L28: =ROUND(H28*K28,2) -> 0 | M28: =ROUND(K28/F28,2) -> 0
B29: Made of crust, sauce, cheese-Mozzarella and blend other cheese.
B30: CN Label = 2 oz meat/meat alternate and 2 oz equivalent grains, 1/8c Veg optional.
A32: 8 | B32: Pizza, Cheese, Wedge-shaped, 50/50 Blend No SOY added WGR | C32: Nardone Brothers 72RWWEDA2 | E32: 72/5.0z | F32: 72 | G32: 1000 | H32: =ROUND(G32*F32/F32,2) -> 1000 | I32: Cs | K32: =IF(OR(ISBLANK(J32),G32=0,ISBLANK(G32)),,ROUND(J32+$K$3,2)) -> 0 | L32: =ROUND(H32*K32,2) -> 0 | M32: =ROUND(K32/F32,2) -> 0
B33: Product must provide 2 oz meat/meat
B34: alternate, 2 oz equivalent grain, and 1/8 cup vegetable .
A35: 9 | B35: Pizza, Cheese, wedge-shaped, 50/50 Blend WGR | C35: (06-07) The Max Real Slice 77387-12680 CN WG | E35: 96/4.67z | F35: 96 | G35: 7000 | H35: =ROUND($G$35*$F$35/F35,2) -> 7000 | I35: Cs | K35: =IF(OR(ISBLANK(J35),G35=0,ISBLANK(G35)),,ROUND(J35+$K$3,2)) -> 0 | L35: =ROUND(H35*K35,2) -> 0 | M35: =ROUND(K35/F35,2) -> 0
B36: One serving not to exceed 35% of its calories from fat. 0 transfat. | C36: (14-15) Nardone 96SWWEDA2 | E36: 96/4.90z | F36: 96 | H36: =ROUND($G$35*$F$35/F36,2) -> 7000 | I36: Cs | K36: =IF(OR(ISBLANK(J36),G35=0,ISBLANK(G35)),,ROUND(J36+$K$3,2)) -> 0 | L36: 0 | M36: 0
B37: One serving to provide 2 oz meat/meat alternate, 2 oz equivalent grain,
B38: and at least 1/8 cup vegetable.
A39: 10 | B39: Pizza, Pepperoni, 50/50 Blend WGR | C39: Tony's 72560 CN WG | E39: 96/4.68z | F39: 96 | G39: 11000 | H39: =ROUND($G$39*$F$39/F39,2) -> 11000 | I39: Cs | K39: =IF(OR(ISBLANK(J39),G39=0,ISBLANK(G39)),,ROUND(J39+$K$3,2)) -> 0 | L39: =ROUND(H39*K39,2) -> 0 | M39: =ROUND(K39/F39,2) -> 0
B40: Triangular shaped, made of crust, sauce, cheese, pepperoni. | C40: (15-16) Nardone Brothers 96SWWEDPA2 | E40: 96/4.95z | F40: 96 | H40: =ROUND($G$39*$F$39/F40,2) -> 11000 | I40: Cs | K40: =IF(OR(ISBLANK(J40),G39=0,ISBLANK(G39)),,ROUND(J40+$K$3,2)) -> 0 | L40: 0 | M40: 0
B41: CN Label = 2 oz meat/meat alternate, 2oz equivalent grain, 1/8 c veg. | C41: (15-16) The Max 77387-12656 | E41: 96/4.56z | F41: 96 | H41: =ROUND($G$39*$F$39/F41,2) -> 11000 | I41: Cs | K41: =IF(OR(ISBLANK(J41),G39=0,ISBLANK(G39)),,ROUND(J41+$K$3,2)) -> 0 | L41: 0 | M41: 0
A42: 11 | B42: Pizza, Pepperoni, 50/50 Blend No SOY added WGR | C42: Nardone Brothers 96WWEDPA2 | E42: 96/5.0z | F42: 96 | G42: 4500 | H42: =ROUND(G42*F42/F42,2) -> 4500 | I42: Cs | K42: =IF(OR(ISBLANK(J42),G42=0,ISBLANK(G42)),,ROUND(J42+$K$3,2)) -> 0 | L42: 0 | M42: 0
B43: Triangular shaped, made of crust, sauce, cheese, pepperoni.
B44: CN Label = 2 oz meat/meat alternate, 2oz equivalent grain, 1/8 c veg.
A45: 12 | B45: Pizza, Low Fat Pepperoni, Wedge Shaped, 50/50 Blend WGR | C45: (06-07) The Max Real Slice 77387-12681 CN WG | E45: 96/4.67z | F45: 96 | G45: 14000 | H45: =ROUND(G45*F45/F45,2) -> 14000 | I45: Cs | K45: =IF(OR(ISBLANK(J45),G45=0,ISBLANK(G45)),,ROUND(J45+$K$3,2)) -> 0 | L45: =ROUND(H45*K45,2) -> 0 | M45: =ROUND(K45/F45,2) -> 0
B46: One serving not to exceed 35% of its calories from fat . 0 transfat. | C46: (15-16) Nardone Brothers C96SWWEDPA | E46: 96/4.95z | F46: 96 | H46: =ROUND(G45*F45/F46,2) -> 14000 | I46: Cs | K46: =IF(OR(ISBLANK(J46),G45=0,ISBLANK(G45)),,ROUND(J46+$K$3,2)) -> 0 | L46: =ROUND(H46*K46,2) -> 0 | M46: =ROUND(K46/F46,2) -> 0
B47: One serving to provide 2 oz meat/meat alternate, 2 oz equivalent grain
B48: and at least 1/8 cup vegetable.
A49: 13 | B49: Pizza, self-rising, stuffed crust pizza slice, 100% Mozzarella cheese. WGR | C49: (14-15) Gilardi
B50: One portion provides 2oz equivalent grains and 2oz Meat/ meat alternate. | C50: 16272-20113 Cheese | E50: 96/4.5z | F50: 96 | G50: 2500 | H50: =ROUND($G$50*$F$50/F50,2) -> 2500 | I50: Cs | K50: =IF(OR(ISBLANK(J50),G50=0,ISBLANK(G50)),,ROUND(J50+$K$3,2)) -> 0 | L50: =ROUND(H50*K50,2) -> 0 | M50: =ROUND(K50/F50,2) -> 0
B51: CN labeled. Includes branded serving trays in case. | C51: 16272-20114 Turkey Pepperoni | E51: 96/4.5z | F51: 96 | G51: 2500 | H51: =ROUND($G$51*$F$51/F51,2) -> 2500 | I51: Cs | K51: =IF(OR(ISBLANK(J51),G51=0,ISBLANK(G51)),,ROUND(J51+$K$3,2)) -> 0 | L51: 0 | M51: 0
A53: 14 | B53: Pizza, Sausage, 50/50 Blend, Turkey WGR | C53: Tony's Smart Pizza 78771 CN, WG | E53: 96/4.69z | F53: 96 | G53: 5000 | H53: =ROUND(G53*F53/F53,2) -> 5000 | I53: Cs | K53: =IF(OR(ISBLANK(J53),G53=0,ISBLANK(G53)),,ROUND(J53+$K$3,2)) -> 0 | L53: =ROUND(H53*K53,2) -> 0 | M53: =ROUND(K53/F53,2) -> 0
B54: Made of crust, sauce, turkey sausage 35% or less calories from fat
B55: 1 serving = 2 oz meat/meat alternate and 2 oz equivalent grain,and 1/8 cup
B56: Vegetable serving
A57: 15 | B57: Pizza, Stuff Crust, Cheese 50/50 Blend, Wedge No SOY added WGR | C57: Nardone Brothers 72WWSCMA2 | E57: 70/5.65z | F57: 70 | G57: 1500 | H57: =ROUND(G57*F57/F57,2) -> 1500 | I57: Cs | K57: =IF(OR(ISBLANK(J57),G57=0,ISBLANK(G57)),,ROUND(J57+$K$3,2)) -> 0 | L57: =ROUND(H57*K57,2) -> 0 | M57: =ROUND(K57/F57,2) -> 0
B58: Provides 2 oz meat/meat alternate and 2 oz equivalent grain,
B59: and 1/8 cup vegetable.
A60: 16 | B60: Pizza, WW Stuff Crust Pepperoni No SOY added WGR | C60: Nardones 72WWSCMP2 4x6 | E60: 70/4.95z | F60: 70 | G60: 2500 | H60: =ROUND($G$60*$F$60/F60,2) -> 2500 | I60: Cs | K60: =IF(OR(ISBLANK(J60),G60=0,ISBLANK(G60)),,ROUND(J60+$K$3,2)) -> 0 | L60: =ROUND(H60*K60,2) -> 0 | M60: =ROUND(K60/F60,2) -> 0
B61: w/ Part Skim Mozz Cheese, Rectangular shaped. One serving provides
B62: 2 oz meat/meat alternate, 2 oz equivalent grain, and 1/8 c vegetable serving.
A63: 17 | B63: Pizza, Stuffed Crust, Wedge WGR | C63: (14-15) Tony's 78650 | E63: 96/5.42z | F63: 96 | G63: 1000 | H63: =ROUND($G$63*$F$63/F63,2) -> 1000 | I63: Cs | K63: =IF(OR(ISBLANK(J63),G63=0,ISBLANK(G63)),,ROUND(J63+$K$3,2)) -> 0 | L63: =ROUND(H63*K63,2) -> 0 | M63: =ROUND(K63/F63,2) -> 0
B64: Made with Turkey and Beef Pepperoni. One serving provides 2 oz meat | C64: (15-16) The Max 77387-12717 | E64: 72/4.8z | F64: 72 | H64: =ROUND($G$63*$F$63/F64,2) -> 1333.33 | I64: Cs | K64: =IF(OR(ISBLANK(J64),G63=0,ISBLANK(G63)),,ROUND(J64+$K$3,2)) -> 0 | L64: 0 | M64: 0
B65: /meat alternate, 2 oz equivalent grain, and 1/8 c Red-orange Veg. | C65: (15-16) Nardone Brothers 72WWSCMTP2 | E65: 70/4.95z | F65: 70 | H65: =ROUND($G$63*$F$63/F65,2) -> 1371.43 | I65: Cs | K65: =IF(OR(ISBLANK(J65),G63=0,ISBLANK(G63)),,ROUND(J65+$K$3,2)) -> 0 | L65: 0 | M65: 0
A66: 18 | B66: Pizza, WW 16" Pre-Sliced Pizzeria Style Pepperoni Pizza, IQF WGR | C66: Nardones 64WPSP2 | E66: 64/5.08z | F66: 64 | G66: 1000 | H66: =ROUND(G66*F66/F66,2) -> 1000 | I66: Cs | K66: =IF(OR(ISBLANK(J66),G66=0,ISBLANK(G66)),,ROUND(J66+$K$3,2)) -> 0 | L66: 0 | M66: 0
B67: No SOY added. CN Provides 2 oz meat/meat alt. and 2 oz equivalent grain,
B68: and 1/8 c Veg
A69: 19 | B69: Pizza, WG, Cheese/Cheese Substitute | C69: (15-16) Con Agra The Max | E69: 60/5.0z | F69: 60 | G69: 500 | H69: =ROUND($G$69*$F$69/F69,2) -> 500 | I69: Cs | K69: =IF(OR(ISBLANK(J69),G69=0,ISBLANK(G69)),,ROUND(J69+$K$3,2)) -> 0 | L69: =ROUND(H69*K69,2) -> 0 | M69: =ROUND(K69/F69,2) -> 0
B70: Frozen, 5" round, reduced-fat Mozzarella cheese | C70: 77387-12724 Lunch a Round Cheese
B71: One portion meets 2M/MA 2 OEG 1/8c Veg | C71: (15-16) Tony's | E71: 60/5.03 | F71: 60 | H71: =ROUND($G$69*$F$71/F71,2) -> 500 | I71: Cs | K71: =IF(OR(ISBLANK(J71),G69=0,ISBLANK(G69)),,ROUND(J71+$K$3,2)) -> 0 | L71: =ROUND(H71*K71,2) -> 0 | M71: =ROUND(K71/F71,2) -> 0
B72: Possible Allergens: Wheat, Soy, Milk | C72: 72580 WG Pizza LS Cheese
B73: Smart Snack Compliant
A74: 20 | B74: Pizza, Cheese/Cheese Substitute | C74: (15-16) Nardone Bros. | E74: 60/5.4z | F74: 60 | G74: 500 | H74: =ROUND(G74*F74/F74,2) -> 500 | I74: Cs | K74: =IF(OR(ISBLANK(J74),G74=0,ISBLANK(G74)),,ROUND(J74+$K$3,2)) -> 0 | L74: =ROUND(H74*K74,2) -> 0 | M74: =ROUND(K74/F74,2) -> 0
B75: Frozen, 6" round, Low-moisture/part-skim Mozzarella, Mozzarella Cheese substitute. | C75: 625SWMA
B76: One portion meets 2M/MA 2.0 OEG, 1/8c Veg
B77: Possible Allergens: Wheat, Soy, Milk
B78: Smart Snack Compliant
A79: 21 | B79: Pizza, Cheese slice, | C79: (15-16) Nardone Bros | E79: 72/4.90z | F79: 72 | G79: 500 | H79: =ROUND(G79*F79/F79,2) -> 500 | I79: Cs | K79: =IF(OR(ISBLANK(J79),G79=0,ISBLANK(G79)),,ROUND(J79+$K$3,2)) -> 0 | L79: =ROUND(H79*K79,2) -> 0 | M79: =ROUND(K79/F79,2) -> 0
B80: Low moisture Part-skim Mozzarella Cheese, Cheese Substitute | C80: 72SRWWEDA2 Rolled edge wedge cheese
B81: Frozen, wedge slice,. Meets 2.0 M/MA 2.0 OEG, 1/8 c Veg
B82: Possible Allergens: Wheat, Milk, Soy
B83: Smart Snack Compliant
A84: 22 | B84: Pizza, Sausage/Cheese/Cheese Substitute | C84: (15-16) Nardone Bros | E84: 96/4.95Z | F84: 96 | G84: 500 | H84: =ROUND(G84*F84/F84,2) -> 500 | I84: Cs | K84: =IF(OR(ISBLANK(J84),G84=0,ISBLANK(G84)),,ROUND(J84+$K$3,2)) -> 0 | L84: =ROUND(H84*K84,2) -> 0 | M84: =ROUND(K84/F84,2) -> 0
B85: Frozen, Wedge slice, made from Pork sausage, low-moisture part skim Mozzarella | C85: 96SWWEDSA2 Sausage/ Cheese
B86: cheese, Mozzarella Cheese substitute.
B87: One portion provides 2M/MA 2.0 OEG, 1/8 c Veg
B88: Possible Allergens: Wheat, Milk, Soy
B89: Smart Snack Compliant
A90: 23 | B90: Pizza, Veggie with Red and Green Peppers, Onion, Cheese | C90: (15-16) Con Agra The Max | E90: 60/5.34z | F90: 60 | H90: =ROUND(G90*F90/F90,2) -> 0 | I90: Cs | K90: =IF(OR(ISBLANK(J90),G90=0,ISBLANK(G90)),,ROUND(J90+$K$3,2)) -> 0 | L90: =ROUND(H90*K90,2) -> 0 | M90: =ROUND(K90/F90,2) -> 0
B91: Frozen, 5" round, reduced -fat Mozzarella cheese and | C91: 77387-12726 Lunch Around Veggie
B92: substitute cheese. One portion meets 2M/MA 2 OEG 1/8c Veg | C92: Item Discontinued by Conagra 07/01/16
B93: Possible Allergens: Wheat, Soy, Milk
B94: Smart Snack Compliant
A95: 24 | B95: Pizza, 4 x 6, Cheese/ Cheese Substitute | C95: (15-16) Nardone Bros | E95: 96/4.90z | F95: 96 | G95: 500 | H95: =ROUND(G95*F95/F95,2) -> 500 | I95: Cs | K95: =IF(OR(ISBLANK(J95),G95=0,ISBLANK(G95)),,ROUND(J95+$K$3,2)) -> 0 | L95: =ROUND(H95*K95,2) -> 0 | M95: =ROUND(K95/F95,2) -> 0
B96: Frozen, made from low-moisture/part skim Mozzarella Cheese and Mozzarella Cheese | C96: 961SWCMA2
B97: Substitute. One portion meets 2 M/MA 2.0 OEG, 1/8 c Veg
B98: Possible Allergens: Wheat, Soy, Milk
B99: Smart Snack Compliant
A100: 25 | B100: Pizza, 4 x 6, Turkey Pepperoni | C100: (15-16) Nardone Bros. | E100: 96/4.90z | F100: 96 | G100: 500 | H100: =ROUND(G100*F100/F100,2) -> 500 | I100: Cs | K100: =IF(OR(ISBLANK(J100),G100=0,ISBLANK(G100)),,ROUND(J100+$K$3,2)) -> 0 | L100: =ROUND(H100*K100,2) -> 0 | M100: =ROUND(K100/F100,2) -> 0
B101: Frozen, made from low-moisture/part skim Mozzarella Cheese and Mozzarella Cheese | C101: 961SWTPA2
B102: Substitute; Turkey. One portion meets 2 M/MA 2.0 OEG, 1/8 c Veg
B103: Possible Allergens: Wheat, Soy, Milk
B104: Smart Snack Compliant
A105: 26 | B105: Pizza, WG, Turkey and Beef Pepperoni, 5" Round | C105: (15-16) Tony's | E105: 60/4.88z | F105: 60 | G105: 500 | H105: =ROUND(G105*F105/F105,2) -> 500 | I105: Cs | K105: =IF(OR(ISBLANK(J105),G105=0,ISBLANK(G105)),,ROUND(J105+$K$3,2)) -> 0 | L105: =ROUND(H105*K105,2) -> 0 | M105: =ROUND(K105/F105,2) -> 0
B106: One portion meets 2 M/MA 2.0 OEG, 1/8 c Veg | C106: 72581 Turkey Pepperoni LS
B107: Smart Snack Compliant
I109: Page Total | L109: =SUMIF(L6:L107,">0") -> 0

Sheet Pizza
B1: ='Recap Sheet'!A2 -> School Food Authority: | E1: ='Recap Sheet'!A3 -> Offeror Name: | O1: Commodity
B2: ='Recap Sheet'!B2 -> WILLIAMSBURG COUNTY SCHOOLS | C2: Return to Recap Sheet | E2: ='Recap Sheet'!B3 -> 0
A3: Item | B3: Description | C3: Approved Brand Name / Manuf ID # | F3: Firm Fixed Fee | K3: ='Recap Sheet'!B4 -> $0.00 | N3: Processing | O3: Commodity | P3: Pounds of | R3: NOI | S3: Net NOI | T3: Total Cost
A4: # | D4: Distributor | E4: Vendor | F4: Svgs | G4: Est. | H4: Bid | I4: Bid | J4: Unit | K4: Unit Price | L4: Total | M4: Cost per | N4: Fee For | O4: Value Per | P4: DF Needed | Q4: Commodity | R4: Net | S4: Cost Per | T4: Processing Fee
D5: Code | E5: Pack | F5: per unit | G5: Bid Qty | H5: Qty | I5: Unit | J5: Price | K5: plus Fee | L5: Price | M5: Unit | N5: Service | O5: Pound | P5: Per Case | Q5: Value | R5: Price | S5: Serving | T5: For Serving
B6: Pizza | O6: Commodity LM PT Skim UNIFZ 110244
A8: 1 | B8: Bread Stick | C8: Tyson 702011 | E8: 144/2.14z | F8: 144 | G8: 0 | H8: =ROUND($G$8*$F$8/F8,2) -> 0 | I8: Cs | J8: $46.74 | K8: =IF(OR(ISBLANK(J8),G8=0,ISBLANK(G8)),,ROUND(J8+$K$3,2)) -> 0 | L8: =ROUND(H8*K8,2) -> 0 | M8: =ROUND(K8/F8,2) -> 0 | N8: $32.08 | O8: $1.6291 | P8: 9 | Q8: =ROUND(O8*P8,2) -> $14.66 | R8: =K8-Q8 -> -$14.66 | S8: =R8/F8 -> $(0.10) | T8: =N8/F8 -> $0.22
B9: Dough filled with 100% mozzarella, WG
B10: Frozen, WGR One stick must provide 1 M/MA and 1 EOG
B11: Possible Allergens: Wheat, Milk, Soy
A12: 2 | B12: Bread Stick, w/Serving Bags | C12: Tyson 702011 | E12: 144/2.14z | F12: 144 | G12: 0 | H12: =ROUND($G$12*$F$12/F12,2) -> 0 | I12: Cs | J12: $46.74 | K12: =IF(OR(ISBLANK(J12),G12=0,ISBLANK(G12)),,ROUND(J12+$K$3,2)) -> 0 | L12: =ROUND(H12*K12,2) -> 0 | M12: =ROUND(K12/F12,2) -> 0 | N12: $32.08 | O12: $1.6291 | P12: 9 | Q12: =ROUND(O12*P12,2) -> $14.66 | R12: =K12-Q12 -> -$14.66 | S12: =R12/F12 -> $(0.10) | T12: =N12/F12 -> $0.22
B13: Dough filled with 100% mozzarella, WG
B14: Frozen, WGR One stick must provide 1 M/MA and 1 EOG
B15: Possible Allergens: Wheat, Milk, Soy
A16: 3 | B16: Pizzasticks, Filled with 100% Mozzarella and Pizza Sauce Wg | C16: Schwann's 78378 | E16: 48/3.10z | F16: 48 | G16: 0 | H16: =ROUND(G16*F16/F16,2) -> 0 | I16: Cs | J16: $21.55 | K16: =IF(OR(ISBLANK(J16),G16=0,ISBLANK(G16)),,ROUND(J16+$K$3,2)) -> 0 | L16: =ROUND(H16*K16,2) -> 0 | M16: =ROUND(K16/F16,2) -> 0 | O16: $1.6291 | P16: 1.32 | Q16: =ROUND(O16*P16,2) -> $2.15 | R16: =K16-Q16 -> -$2.15 | S16: =R16/F16 -> $(0.04) | T16: =N16/F16 -> 0
B17: Frozen, Low moisture part skim mozzarella cheese stick with whole grain rich breading. Pizza sauce inside. | C17: Rich Products 65225 | E17: 72/5.48z | F17: 72 | H17: =ROUND(G16*F16/F17,2) -> 0 | I17: Cs | O17: $1.6291 | P17: 8.83 | T17: 0
B18: 200-400 calories with no more than 20 g saturated fat and 850 mg of sodium per serving. CN Labeled for 4 stick
B19: to provide min. 2 M/MA and 2 OEG
B20: Possible Allergens: Wheat, Milk, Soy
A21: 4 | B21: Pizza, 100% Mozzarella, 4x6, WG | C21: Schwann's 78697 | E21: 96/4.50z | F21: 96 | G21: 156 | H21: =ROUND(G21*$F$37/F21,2) -> 113.75 | I21: Cs | J21: $33.11 | K21: =IF(OR(ISBLANK(J21),G21=0,ISBLANK(G21)),,ROUND(J21+$K$3,2)) -> $33.11 | L21: =ROUND(H21*K21,2) -> $3,766.26 | M21: =ROUND(K21/F21,2) -> $0.34 | O21: $1.6291 | P21: 8.4 | Q21: =ROUND(O21*P21,2) -> $13.68 | R21: =K21-Q21 -> $19.43 | S21: =R21/F21 -> $0.20 | T21: =N21/F21 -> 0
B22: Frozen, Whole grain rich 250-350 calories with no more than 7 g saturated fat and 750 mg sodium per | C22: Conagra 12584 | E22: 96/4.65z | F22: 96 | H22: =ROUND(G21*F21/F22,2) -> 156 | I22: Cs | O22: $1.6291 | P22: 7.5 | T22: 0
B23: svg, CN Labeled for one portion to provide 2 M/MA, 2 OEG, and 1/8 c Red/Orange Veg | C23: Nardones 961SWCM2 | E23: 96/4.90z | F23: 96 | H23: =ROUND(G21*F21/F23,2) -> 156 | I23: Cs | O23: $1.6291 | P23: 7.5 | T23: 0
B24: Possible Allergens: Wheat, Milk, Soy
A25: 5 | B25: Pizza, 100% Mozz, Stuffed Crust, Wedge Shaped, WG | C25: Schwann's 78649 | E25: 96/5.34z | F25: 96 | G25: 0 | H25: =ROUND(G25*$F$37/F25,2) -> 0 | I25: Cs | J25: $56.08 | K25: =IF(OR(ISBLANK(J25),G25=0,ISBLANK(G25)),,ROUND(J25+$K$3,2)) -> 0 | L25: =ROUND(H25*K25,2) -> 0 | M25: =ROUND(K25/F25,2) -> 0 | O25: $1.6291 | P25: 12.3 | Q25: =ROUND(O25*P25,2) -> $20.04 | R25: =K25-Q25 -> -$20.04 | S25: =R25/F25 -> $(0.21) | T25: =N25/F25 -> 0
B26: Frozen, Whole grain rich 300-400 calories with no more than 8 g saturated fat and 600 mg sodium per
B27: svg, CN Labeled for one portion to provide 2 M/MA, 2 OEG, and 1/8 c Red/Orange Veg
B28: Possible Allergens: Wheat, Milk, Soy
A29: 6 | B29: Pizza, 100% Mozzarella, Pork Pepperoni , 4 x 6, WG | C29: Conagra Max 12585 | E29: 96/4.65z | F29: 96 | G29: 200 | H29: =ROUND(G29*$F$29/F29,2) -> 200 | I29: Cs | O29: $1.6291 | P29: 6 | Q29: =ROUND(O29*P29,2) -> $9.77 | R29: $0.00
B30: Frozen, Whole grain rich 250-350 calories with no more than 8 g saturated fat and 810 mg sodium per | C30: Schwanns 78698 | E30: 96/4.48z | F30: 96 | H30: =ROUND(G29*$F$29/F30,2) -> 200 | I30: Cs | O30: $1.6291 | P30: 6.66 | Q30: $10.85 | R30: $0.00
B31: svg, CN Labeled for one portion to provide 2 M/MA, 2 OEG, and 1/8 c Red/Orange Veg | C31: Nardones 961SWCMP2 | E31: 96/4.95z | F31: 96 | H31: =ROUND(G29*$F$29/F31,2) -> 200 | I31: Cs | J31: $34.00 | K31: =IF(OR(ISBLANK(J31),G29=0,ISBLANK(G29)),,ROUND(J31+$K$3,2)) -> $34.00 | L31: =ROUND(H31*K31,2) -> $6,800.00 | M31: =ROUND(K31/F31,2) -> $0.35 | N31: $24.23 | O31: $1.6291 | P31: 6 | Q31: $9.77 | R31: =K31-Q31 -> $24.23 | S31: =R31/F31 -> $0.25 | T31: =N31/F31 -> $0.25
B32: Possible Allergens: Wheat, Milk, Soy
A33: 7 | B33: Pizza, 100% Mozzarella, Pork Pepperoni, Rtg. Ang. Wedge, WG | C33: Nardones 96SWWEDP2 | E33: 96/4.95z | F33: 96 | G33: 0 | H33: =ROUND(G33*$F$37/F33,2) -> 0 | I33: Cs | J33: $34.00 | K33: =IF(OR(ISBLANK(J33),G33=0,ISBLANK(G33)),,ROUND(J33+$K$3,2)) -> 0 | L33: =ROUND(H33*K33,2) -> 0 | M33: =ROUND(K33/F33,2) -> 0 | N33: $24.23 | O33: $1.6291 | P33: 6 | Q33: =ROUND(O33*P33,2) -> $9.77 | R33: =K33-Q33 -> -$9.77 | S33: =R33/F33 -> $(0.10) | T33: =N33/F33 -> $0.25
B34: Frozen, Whole grain rich 250-350 calories with no more than 6 g saturated fat and 810 mg sodium per | C34: Conagra Max 12686 | E34: 96/4.67z | F34: 96 | H34: =ROUND(G33*$F$33/F34,2) -> 0 | I34: Cs | O34: $1.6291 | P34: 6.96 | T34: 0
B35: svg, CN Labeled for one portion to provide 2 M/MA, 2 OEG, and 1/8 c Red/Orange Veg
B36: Possible Allergens: Wheat, Milk, Soy
A37: 8 | B37: Pizza, 100% Mozz. Pork Pepperoni Stuffed Crust, Wedge WG | C37: Nardone 72WWSCMP2 | E37: 70/4.95z | F37: 70 | G37: 0 | H37: =ROUND(G37*$F$37/F37,2) -> 0 | I37: Cs | J37: $38.95 | K37: =IF(OR(ISBLANK(J37),G37=0,ISBLANK(G37)),,ROUND(J37+$K$3,2)) -> 0 | L37: =ROUND(H37*K37,2) -> 0 | M37: =ROUND(K37/F37,2) -> 0 | O37: $1.6291 | P37: 6.56 | Q37: =ROUND(O37*P37,2) -> $10.69 | T37: =N37/F37 -> 0
B38: Frozen, Whole grain rich 300-400 calories with no more than 9 g saturated fat and 820 mg sodium per | C38: Conagra Max 12615 | E38: 72/5.00z | F38: 72 | H38: =ROUND(G37*$F$37/F38,2) -> 0 | I38: Cs | N38: $27.74 | O38: $1.6291 | P38: 8.14 | Q38: $13.26 | R38: $27.74 | S38: =R38/F38 -> $0.39 | T38: $0.39
B39: svg, CN Labeled for one portion to provide 2 M/MA, 2 OEG, and 1/8 c Red/Orange Veg | C39: Schwanns 78650 | E39: 96/5.32z | F39: 96 | H39: =ROUND(G37*$F$37/F39,2) -> 0 | I39: Cs | O39: $1.6291 | P39: 10.74 | Q39: $17.50 | T39: 0
B40: Possible Allergens: Wheat, Milk, Soy
A41: 9 | B41: Pizza, Turkey Pepperoni 4 x 6 | C41: Nardones 961SWTP2 | E41: 96/4.90z | F41: 96 | G41: 35 | H41: =ROUND(G41*F41/F41,2) -> 35 | I41: Cs | J41: $38.50 | K41: =IF(OR(ISBLANK(J41),G41=0,ISBLANK(G41)),,ROUND(J41+$K$3,2)) -> $38.50 | L41: =ROUND(H41*K41,2) -> $1,347.50 | M41: =ROUND(K41/F41,2) -> $0.40 | N41: $30.19 | O41: $1.6291 | P41: 5.1 | Q41: =ROUND(O41*P41,2) -> $8.31 | R41: =K41-Q41 -> $30.19 | S41: =R41/F41 -> $0.31 | T41: =N41/F41 -> $0.31
B42: Frozen, Whole Grain 100% mozzarella One serving must provide 2 M/MA, 2 EOG, & 1/8 cup Red/Orange
B43: Possible Allergens: Wheat, Milk, Soy
A44: 10 | B44: Pizza, Beef Fiestada, WG | C44: UNO HTWGCN16 | E44: 96/4.88z | F44: 96 | G44: 0 | H44: =ROUND(G44*F44/F44,2) -> 0 | I44: Cs | O44: $1.6291 | P44: 7.3 | Q44: =ROUND(O44*P44,2) -> $11.89 | T44: =N44/F44 -> 0
B45: Frozen Whole grain rich Blend of cheddar, mozz/mozz sub 300-400 calories with no more than 7 g sat fat and | C45: Alpha Foods SP167RW | E45: 72/7.23z | F45: 72 | H45: =ROUND(G44*F44/F45,2) -> 0 | I45: Cs | O45: $1.6291 | P45: 8.44 | Q45: $13.75 | T45: 0
B46: 900 mg sodium per serving. CN Labeled for one portion to provide min. 2 M/MA, 2 OEG, and 1/8 c Red/Orange | C46: Giorgio 9196 | E46: 72/4.5z | F46: 72 | H46: =ROUND(G44*F44/F46,2) -> 0 | I46: Cs | O46: $1.6291 | P46: 5.63 | Q46: =ROUND(O46*P46,2) -> $9.17 | T46: 0
B47: Vegetable | C47: Nardones 96WWMEX2 | E47: 96/5.20z | F47: 96 | H47: =ROUND(G44*F44/F47,2) -> 0 | I47: Cs | J47: $48.50 | K47: =IF(OR(ISBLANK(J47),$G$44=0,ISBLANK($G$44)),,ROUND(J47+$K$3,2)) -> 0 | L47: =ROUND(H47*K47,2) -> 0 | M47: =ROUND(K47/F47,2) -> 0 | N47: $45.57 | O47: $1.6291 | P47: 1.8 | Q47: $2.93 | R47: =K47-Q47 -> -$2.93 | S47: =R47/F47 -> $(0.03) | T47: $0.47
B48: Possible Allergens: Wheat, Milk, Soy | C48: Schwan's 68523 | E48: 72/5.44z | F48: 72 | H48: =ROUND(G44*F44/F48,2) -> 0 | I48: Cs | O48: $1.6291 | P48: 3.42 | Q48: =ROUND(O48*P48,2) -> $5.57 | R48: $0.00 | S48: 0 | T48: 0
A49: 11 | B49: Pizza, Quesadilla, Chicken, 50/50 Blend Cheese, WG | C49: Conagra Max 12700 | E49: 96/5.0z | F49: 96 | G49: 0 | H49: =ROUND($G$49*$F$49/F49,2) -> 0 | I49: Cs | J49: $50.70 | K49: =IF(OR(ISBLANK(J49),G49=0,ISBLANK(G49)),,ROUND(J49+$K$3,2)) -> 0 | L49: =ROUND(H49*K49,2) -> 0 | M49: =ROUND(K49/F49,2) -> 0 | N49: $47.57 | O49: $1.6291 | P49: 1.92 | Q49: =ROUND(O49*P49,2) -> $3.13 | R49: -$3.13 | S49: $(0.03) | T49: $0.50
B50: Frozen, Whole grain rich, wedge shaped quesadilla dough with Mozz/Mozz Sub, seasoned chicken and southwest
B51: flavored tomato sauce 250-350 calories with no more than 3g sat fat and 800 mg sodium per serving CN labeled
B52: for one portion to provide min. 2 M/MA, 2 OEG and 1/8 cup Red/Orange Vegetable
B54: Possible Allergens: Wheat, Milk, Soy
A55: 12 | B55: Pizza, French Bread Multi Cheese Garlic | C55: Nardone's 60WGUMA2 | E55: 60/4.50z | F55: 60 | G55: 0 | H55: =ROUND($G$55*$F$55/F55,2) -> 0 | I55: Cs | N55: $37.04 | O55: $1.6291 | P55: 3.75 | Q55: $6.11 | R55: $37.04 | S55: $0.62 | T55: $0.62
B56: Frozen, 6" whole grain rich french bread, blend of provolone, mozz/sub mozz 250-400 calories with no more than | C56: Schwann's 78359 | E56: 60/4.29z | F56: 60 | H56: =ROUND($G$55*$F$55/F56,2) -> 0 | I56: Cs | J56: $40.25 | K56: =IF(OR(ISBLANK(J55),G55=0,ISBLANK(G55)),,ROUND(J56+$K$3,2)) -> 0 | L56: =ROUND(H56*K56,2) -> 0 | M56: =ROUND(K56/F56,2) -> 0 | N56: 0 | O56: $1.6291 | P56: 1.75 | Q56: =ROUND(O56*P56,2) -> $2.85 | T56: =N56/F56 -> 0
B57: 7 g saturated fat and 710 mg sodium per serving. CN Labeled for one portion to provide min. 2 M/M and 2 OEG
B58: Possible Allergens: Wheat, Milk, Soy
A59: 13 | B59: Pizza, 100% Mozz. Turkey Meateaters 6" Round, WG | C59: Nardone's 625WTME2 | E59: 60/5.57z | F59: 60 | G59: 0 | H59: =ROUND($G$59*$F$59/F59,2) -> 0 | I59: Cs | J59: $45.00 | K59: =IF(OR(ISBLANK(J59),G59=0,ISBLANK(G59)),,ROUND(J59+$K$3,2)) -> 0 | L59: =ROUND(H59*K59,2) -> 0 | M59: =ROUND(K59/F59,2) -> 0 | N59: $36.35 | O59: $1.6291 | P59: 5.31 | Q59: =ROUND(O59*P59,2) -> $8.65 | R59: =K59-Q59 -> -$8.65 | S59: =R59/F59 -> $(0.14) | T59: =N59/F59 -> $0.61
B60: Frozen, 6" whole grain rich, 100% mozzarella, 300-400 calories with no more than 6 g sat fat and 600 mg sodium
B61: One portion must provide 2 M/MA. 2 EOG, and 1/8 cup Red/Orange Vegetable
B62: Possible Allergens: Wheat, Milk, Soy
A63: 14 | B63: Pizza, Cheese, 5-6" Round | C63: Schwan's 78368 | E63: 60/4.98z | F63: 60 | G63: 0 | H63: =ROUND(G63*F63/F63,2) -> 0 | I63: Cs | J63: $36.54 | K63: =IF(OR(ISBLANK(J63),G63=0,ISBLANK(G63)),,ROUND(J63+$K$3,2)) -> 0 | L63: =ROUND(H63*K63,2) -> 0 | M63: =ROUND(K63/F63,2) -> 0 | O63: $1.6291 | P63: 5.92 | Q63: =J63-P63 -> $30.62 | T63: =N63/F63 -> 0
B64: Frozen, 6" whole grain rich, 100% mozzarella, 250-400 calories with no more than 7 g sat fat and 700 mg sodium | C64: S.A Piazza 80550 | E64: 80/5.49z | F64: 80 | H64: =ROUND(G63*F63/F64,2) -> 0 | I64: Cs | O64: $1.6291 | P64: 10.08 | Q64: -$10.08 | T64: 0
B65: per serving. CN Labeled for one portion to provide min. 2 M/MA, 2 OEG and 1/8 Red/Orange Veg | C65: Nardones 625WRM2 | E65: 60/5.40z | F65: 60 | H65: =ROUND(G63*F63/F65,2) -> 0 | I65: Cs | N65: $25.83 | O65: $1.6291 | P65: 7.5 | Q65: $12.22 | R65: $25.83 | S65: $0.43 | T65: $0.43
B66: Possible Allergens: Wheat, Milk, Soy
A67: 15 | B67: Pizza, Cheese, Turkey Pepperoni, 5-6" Round | C67: Schwan's 78369 | E67: 60/4.98z | F67: 60 | G67: 0 | H67: =ROUND(G67*F67/F67,2) -> 0 | I67: Cs | J67: $37.72 | K67: =IF(OR(ISBLANK(J67),G67=0,ISBLANK(G67)),,ROUND(J67+$K$3,2)) -> 0 | L67: 0 | M67: 0 | O67: $1.6291 | P67: 4.8 | Q67: $32.92
B68: Frozen, Whole Grain 100% mozzarella 250-400 calories with no more than 7 g sat fat and 700 mg sodium per svg | C68: Nardone's 625WRMTP3 | E68: 60/5.40z | F68: 60 | H68: =ROUND(G67*F67/F68,2) -> 0 | I68: Cs | N68: $29.46 | O68: $1.6291 | P68: 6 | Q68: -$6.00 | R68: =K68-Q68 -> $6.00 | S68: $0.49 | T68: =N68/F68 -> $0.49
B69: One portion must provide 2 M/MA. 2 EOG, and 1/8 cup Red/Orange Vegetable | C69: Conagra 12445 | E69: 60/5.05z | F69: 60 | H69: =ROUND(G67*F67/F69,2) -> 0 | I69: Cs | O69: $1.6291 | P69: 4.5 | Q69: -$4.50 | R69: $0.00 | S69: 0 | T69: 0
B70: Possible Allergens: Wheat, Milk, Soy
A71: 16 | B71: Pizza, Cheese, Pepperoni, 5-6" Round | C71: Alpha Foods AS64W | E71: 60/5.36z | F71: 60 | G71: 0 | H71: =ROUND(G71*F71/F71,2) -> 0 | I71: Cs | J71: $51.80 | K71: =IF(OR(ISBLANK(J71),G71=0,ISBLANK(G71)),,ROUND(J71+$K$3,2)) -> 0 | L71: 0 | M71: 0 | N71: $40.43 | O71: $1.6291 | P71: 6.98 | Q71: =ROUND(O71*P71,2) -> $11.37 | R71: =K71-Q71 -> -$11.37 | S71: =R71/F71 -> $(0.19) | T71: =N71/F71 -> $0.67
B72: Frozen, Whole Grain 100% mozzarella
B73: One portion must provide 2 M/MA. 2 EOG, and 1/8 cup Red/Orange Vegetable
B74: Possible Allergens: Wheat, Milk, Soy
A75: 17 | B75: Pizza, Cheese, Supreme, 5-6" Round | C75: Nardone's 625WSUP2 | E75: 60/6.35z | F75: 60 | G75: 0 | H75: =ROUND(G75*F75/F75,2) -> 0 | I75: Cs | J75: $45.00 | K75: =IF(OR(ISBLANK(J75),G75=0,ISBLANK(G75)),,ROUND(J75+$K$3,2)) -> 0 | L75: =ROUND(H75*K75,2) -> 0 | M75: =ROUND(K75/F75,2) -> 0 | N75: $37.36 | O75: $1.6291 | P75: 4.69 | Q75: =ROUND(O75*P75,2) -> $7.64 | R75: =K75-Q75 -> -$7.64 | S75: =R75/F75 -> $(0.13) | T75: =N75/F75 -> $0.62
B76: Frozen, Whole Grain 100% mozzarella
B77: One portion must provide 2 M/MA. 2 EOG, and 1/8 cup Red/Orange Vegetable
B78: Possible Allergens: Wheat, Milk, Soy
A79: 18 | B79: Pizza, Whole, 15-16", Self Rising, Pepperoni | C79: UNO MVPPCN16 | E79: 96/5.50z | F79: 96 | G79: 0 | H79: =ROUND(G79*F79/F79,2) -> 0 | I79: Cs | O79: $1.6291 | P79: 10.5 | Q79: =ROUND(O79*P79,2) -> $17.11
B80: Frozen, "Pizza Pie Shape" cut into slices or cutter provided, 100% mozzarella, Whole grain | C80: Alpha Foods SP164RW | E80: 72/6.75z | F80: 72 | H80: =ROUND(G79*F79/F80,2) -> 0 | I80: Cs | J80: $52.59 | K80: =IF(OR(ISBLANK(J80),G79=0,ISBLANK(G79)),,ROUND(J80+$K$3,2)) -> 0 | L80: =ROUND(H80*K80,2) -> 0 | M80: =ROUND(K80/F80,2) -> 0 | N80: $39.75 | O80: $1.6291 | P80: 7.88 | Q80: =ROUND(O80*P80,2) -> $12.84 | R80: =K80-Q80 -> -$12.84 | S80: =R80/F80 -> $(0.18) | T80: =N80/F80 -> $0.55
B81: One portion must provide 2 M/MA. 2 EOG, and 1/8 cup Red/Orange Vegetable | C81: Nardone's 16WRSRMP1 | E81: 64/6.9z | F81: 64 | H81: =ROUND(G79*F79/F81,2) -> 0 | I81: Cs | O81: $1.6291 | P81: 5.92 | Q81: =ROUND(O81*P81,2) -> $9.64
B82: Possible Allergens: Wheat, Milk, Soy
A83: 19 | B83: Pizza, Whole, 15-16", Self Rising, Turkey/Beef Pepperoni | C83: UNO SLMVPPCN16 | E83: 96/5.50z | F83: 96 | G83: 0 | H83: =ROUND($G$83*$F$83/F83,2) -> 0 | I83: Cs | O83: $1.6291 | P83: 10.5 | Q83: =ROUND(O83*P83,2) -> $17.11 | R83: $0.00 | S83: =R83/F83 -> 0 | T83: =N83/F83 -> 0
B84: Frozen, "Pizza Pie Shape" cut into slices or cutter provided, 100% mozzarella, Whole grain | C84: Nardone's 16WRSRMTP2 | E84: 64/6.90z | F84: 64 | H84: =ROUND($G$83*$F$83/F84,2) -> 0 | I84: Cs | J84: $49.90 | K84: =IF(OR(ISBLANK(J84),G83=0,ISBLANK(G83)),,ROUND(J84+$K$3,2)) -> 0 | L84: =ROUND(H84*K84,2) -> 0 | M84: =ROUND(K84/F84,2) -> 0 | N84: $40.00 | O84: $1.6291 | P84: 6.08 | Q84: =ROUND(O84*P84,2) -> $9.90 | R84: =K84-Q84 -> -$9.90 | S84: $(0.15) | T84: $0.63
B85: One portion must provide 2 M/MA. 2 EOG, and 1/8 cup Red/Orange Vegetable
B86: Possible Allergens: Wheat, Milk, Soy
A87: 20 | B87: Pizza, Whole, 15-16", Self Rising, Buffalo Chicken | C87: Schwann's 78639 | E87: 72/5.21z | F87: 72 | G87: 0 | H87: =ROUND($G$87*$F$87/F87,2) -> 0 | I87: Cs | J87: $60.91 | K87: =IF(OR(ISBLANK(J87),G87=0,ISBLANK(G87)),,ROUND(J87+$K$3,2)) -> 0 | L87: =ROUND(H87*K87,2) -> 0 | M87: =ROUND(K87/F87,2) -> 0 | O87: $1.6291 | P87: 7.59 | Q87: =ROUND(O87*P87,2) -> $12.36 | R87: =K87-Q87 -> -$12.36 | S87: =R87/F87 -> $(0.17) | T87: =N87/F87 -> 0
B88: Frozen, "Pizza Pie Shape" Chicken Buffalo cut into slices or cutter provided, 100% mozzarella, Whole grain
B89: One portion must provide 2 M/MA. 2 EOG, and 1/8 cup Red/Orange Vegetable
B90: Possible Allergens: Wheat, Milk, Soy
A91: 21 | B91: Pizza, Whole, 15-16", Self Rising, Supreme | C91: Alpha Foods SP1668RW | E91: 72/7.19z | F91: 72 | G91: 0 | H91: =ROUND($G$91*$F$91/F91,2) -> 0 | I91: Cs | N91: $45.68 | O91: $1.6291 | P91: 9 | Q91: =ROUND(O91*P91,2) -> $14.66 | R91: $45.68 | S91: =R91/F91 -> $0.63 | T91: =N91/F91 -> $0.63
B92: Frozen, "Pizza Pie Shape" cut into slices or cutter provided, 100% mozzarella, Whole grain | C92: Nardone's 16WSRSUP | E92: 64/7.43z | F92: 64 | H92: =ROUND($G$91*$F$91/F92,2) -> 0 | I92: Cs | J92: $52.00 | K92: =IF(OR(ISBLANK(J92),G91=0,ISBLANK(G91)),,ROUND(J92+$K$3,2)) -> 0 | L92: =ROUND(H92*K92,2) -> 0 | M92: =ROUND(K92/F92,2) -> 0 | O92: $1.6291 | P92: 5.75 | Q92: =ROUND(O92*P92,2) -> $9.37 | R92: $0.00 | S92: 0 | T92: 0
B93: One portion must provide 2 M/MA. 2 EOG, and 1/8 cup Red/Orange Vegetable
B94: Possible Allergens: Wheat, Milk, Soy
A95: 22 | B95: Pizza, Whole, 15-16" Self Rising, Four Cheese | C95: Alpha Foods SP1622RW | E95: 72/6.56z | F95: 72 | G95: 0 | H95: =ROUND($G$95*$F$95/F95,2) -> 0 | I95: Cs | J95: $53.35 | K95: =IF(OR(ISBLANK(J95),G95=0,ISBLANK(G95)),,ROUND(J95+$K$3,2)) -> 0 | L95: =ROUND(H95*K95,2) -> 0 | M95: =ROUND(K95/F95,2) -> 0 | N95: $39.60 | O95: $1.6291 | P95: 8.44 | Q95: =ROUND(O95*P95,2) -> $13.75 | R95: $39.60 | S95: =R95/F95 -> $0.55 | T95: =N95/F95 -> $0.55
B96: Frozen, "Pizza Pie Shaped" cut into slices or cutter provided 100% mozzarella, Whole Grain | C96: Nardone's 16WSRFC | E96: 64/5.13z | F96: 64 | H96: =ROUND($G$95*$F$95/F96,2) -> 0 | I96: Cs | O96: $1.6291 | P96: 8 | Q96: =ROUND(O96*P96,2) -> $13.03 | R96: =K96-R96 -> $0.00 | S96: =S96/F96 -> 0 | T96: 0
B97: One portion must provide 2 M/MA. 2 EOG, and 1/8 cup Red/Orange Vegetable | C97: Schwann's 78637 | E97: 72/5.18z | F97: 72 | H97: =ROUND($G$95*$F$95/F97,2) -> 0 | I97: Cs | O97: $1.6291 | P97: 9 | Q97: =ROUND(O97*P97,2) -> $14.66 | R97: =K97-R97 -> $0.00 | S97: =S97/F97 -> 0 | T97: 0
B98: Possible Allergens: Wheat, Milk, Soy
A99: 23 | B99: Pizza, Presliced, 15-16", Parbaked, Turkey or Beef Pepperoni | C99: Nardone's 64WPSTP3 | E99: 64/5.0z | F99: 64 | G99: 0 | H99: =ROUND($G$99*$F$99/F99,2) -> 0 | I99: Cs | J99: $51.00 | K99: =IF(OR(ISBLANK(J99),G99=0,ISBLANK(G99)),,ROUND(J99+$K$3,2)) -> 0 | L99: =ROUND(H99*K99,2) -> 0 | M99: =ROUND(K99/F99,2) -> 0 | N99: $39.92 | O99: $1.6291 | P99: 6.8 | Q99: =ROUND(O99*P99,2) -> $11.08 | R99: =K99-Q99 -> -$11.08 | S99: =R99/F99 -> $(0.17) | T99: =N99/F99 -> $0.62
B100: Frozen, "Pizza Pie Shaped cut into slices, 100% mozzarella
B101: One portion must provide 2 M/MA. 2 EOG, and 1/8 cup Red/Orange Vegetable
B102: Possible Allergens: Wheat, Milk, Soy
A103: 24 | B103: Pizza, Presliced, 15-16", Parbaked, Buffalo Chicken | C103: Nardone's 64WPSBC | E103: 64/4.60z | F103: 64 | G103: 0 | H103: =ROUND($G$103*$F$103/F103,2) -> 0 | I103: Cs | J103: $51.00 | K103: =IF(OR(ISBLANK(J103),G103=0,ISBLANK(G103)),,ROUND(J103+$K$3,2)) -> 0 | L103: =ROUND(H103*K103,2) -> 0 | M103: =ROUND(K103/F103,2) -> 0 | N103: $41.23 | O103: $1.6291 | P103: 6 | Q103: =ROUND(O103*P103,2) -> $9.77 | R103: =K103-Q103 -> -$9.77 | S103: =R103/F103 -> $(0.15) | T103: =N103/F103 -> $0.64
B104: Frozen, "Pizza Pie Shaped cut into slices, 100% mozzarella
B105: One portion must provide 2 M/MA. 2 EOG, and 1/8 cup Red/Orange Vegetable
B106: Possible Allergens: Wheat, Milk, Soy
A107: 25 | B107: Pizza, Presliced, 15-16", Parbaked, Supreme | C107: Nardone's 64WSUP2 | E107: 64/5.75z | F107: 64 | G107: 0 | H107: =ROUND($G$107*$F$107/F107,2) -> 0 | I107: Cs | J107: $51.00 | K107: =IF(OR(ISBLANK(J107),G107=0,ISBLANK(G107)),,ROUND(J107+$K$3,2)) -> 0 | L107: =ROUND(H107*K107,2) -> 0 | M107: =ROUND(K107/F107,2) -> 0 | N107: $42.85 | O107: $1.6291 | P107: 5 | Q107: =ROUND(O107*P107,2) -> $8.15 | R107: =K107-Q107 -> -$8.15 | S107: =R107/F107 -> $(0.13) | T107: =N107/F107 -> $0.67
B108: Frozen, "Pizza Pie Shaped cut into slices, 100% mozzarella
B109: One portion must provide 2 M/MA. 2 EOG, and 1/8 cup Red/Orange Vegetable
B110: Possible Allergens: Wheat, Milk, Soy
A111: 26 | B111: Pizza, Whole, 15-16", 100% Mozz. Turkey Pepperoni, Four Cheese, WG | C111: Schwann's 78638 | E111: 72/5.18z | F111: 72 | G111: 0 | H111: =ROUND($G$111*$F$111/F111,2) -> 0 | I111: Cs | J111: $61.55 | K111: =IF(OR(ISBLANK(J111),G111=0,ISBLANK(G111)),,ROUND(J111+$K$3,2)) -> 0 | L111: =ROUND(H111*K111,2) -> 0 | M111: =ROUND(K111/F111,2) -> 0 | O111: $1.6291 | P111: 7.2 | Q111: =ROUND(O111*P111,2) -> $11.73 | R111: =K111-Q111 -> -$11.73 | S111: =R111/F111 -> $(0.16) | T111: =N111/F111 -> 0
B112: Frozen, whole grain rich. Topped with beef, ham, sausage and pepperoni 300-400 calories with no more than
B113: 8 g saturated fat and 660 mg sodium per serving. CN labeled for one 1/8 pizza to provide min. 2 M/MA, 2 OEG,
B114: and 1/8 cup red/orange vegetable
B116: Possible Allergens: Wheat, Milk, Soy
A117: 27 | B117: Pizza, Whole, 15-16", 100% Mozz, Four Meat, WG Self Rising | C117: Schwann's 78640 | E117: 72/5.30z | F117: 72 | G117: 0 | H117: =ROUND($G$117*$F$117/F117,2) -> 0 | I117: Cs | J117: $63.13 | K117: =IF(OR(ISBLANK(J117),G117=0,ISBLANK(G117)),,ROUND(J117+$K$3,2)) -> 0 | L117: =ROUND(H117*K117,2) -> 0 | M117: =ROUND(K117/F117,2) -> 0 | N117: 0 | O117: $1.6291 | P117: 6.46 | Q117: =ROUND(O117*P117,2) -> $10.52 | R117: =K117-Q117 -> -$10.52 | S117: =R117/F117 -> $(0.15) | T117: =N117/F117 -> 0
B118: Frozen, whole grain rich. 100% mozz, Topped with ham, sausage and pepperoni 300-400 calories with no more
B119: than 8 g sat fat and 660 mg sodium per serving. CN labeled for one 1/8 pizza to provide min. 2 M/MA, 2 OEG and
B120: 1/8 cup red/orange vegetable,
B121: Possible Allergens: Wheat, Milk, Soy
A122: 28 | B122: Pizza, Whole, 15-16", 100% Mozz, Four Cheese, Pork Pepperoni, 10 Cut Par Baked | C122: SA Piazza 20210 | E122: 90/5.50z | F122: 90 | G122: 0 | H122: =ROUND($G$122*$F$122/F122,2) -> 0 | I122: Cs | J122: $68.27 | K122: =IF(OR(ISBLANK(J122),G122=0,ISBLANK(G122)),,ROUND(J122+$K$3,2)) -> 0 | L122: =ROUND(H122*K122,2) -> 0 | M122: =ROUND(K122/F122,2) -> 0 | N122: $52.06 | O122: $1.6291 | P122: 9.95 | Q122: =ROUND(O122*P122,2) -> $16.21 | R122: =K122-Q122 -> -$16.21 | S122: =R122/F122 -> $(0.18) | T122: =N122/F122 -> $0.58
B123: Frozen, whole grain rich. 100% mozz, 300-400 calories with not nore than 10g sat fat and 600 mg sodium per
B124: serving, CN labeled for one portion to provide min. 2 M/MA, 2 OEG, and 1/8 c red/orange vegetables
B126: Possible Allergens: Wheat, Milk, Soy
A127: 29 | B127: Pizza, Whole, 15-16", 100% Mozz, Four Cheese, Parbaked WG | C127: Schwann's 68591 | E127: 72/5.13z | F127: 72 | G127: 0 | H127: =ROUND($G$127*$F$127/F127,2) -> 0 | I127: Cs | J127: $55.69 | K127: =IF(OR(ISBLANK(J127),G127=0,ISBLANK(G127)),,ROUND(J127+$K$3,2)) -> 0 | L127: =ROUND(H127*K127,2) -> 0 | M127: =ROUND(K127/F127,2) -> 0 | O127: $1.6291 | P127: 8.93 | Q127: =ROUND(O127*P127,2) -> $14.55 | R127: =K127-Q127 -> -$14.55 | S127: =R127/F127 -> $(0.20) | T127: =N127/F127 -> 0
B128: Frozen, whole grain rich. Made with mozzarella, provolone, self rising cheddar and parmesian 300-400 calories with
B129: no more then 8 g sat fat and 500 mg sodium per serving. CN labeled for one 1/8 pizza to provide min. 2 M/MA,
B130: 2 OEG , and 1/8 cup red/orange vegetable
B132: Possible Allergens: Wheat, Milk, Soy
A133: 30 | B133: Breakfast Bagel, 100% Mozz. Turkey Sausage, WG, IW | C133: Nardone's M96WBTS1 | E133: 96/3.10z | F133: 96 | G133: 0 | H133: =ROUND($G$133*$F$133/F133,2) -> 0 | I133: Cs | J133: $51.00 | K133: =IF(OR(ISBLANK(J133),G133=0,ISBLANK(G133)),,ROUND(J133+$K$3,2)) -> 0 | L133: =ROUND(H133*K133,2) -> 0 | M133: =ROUND(K133/F133,2) -> 0 | N133: $44.16 | O133: $1.6291 | P133: 4.2 | Q133: =ROUND(O133*P133,2) -> $6.84 | R133: =K133-Q133 -> -$6.84 | S133: =R133/F133 -> $(0.07) | T133: =N133/F133 -> $0.46
B134: Frozen, whole grain rich, pizza sauce topping, 150-250 calories with no more than 3 g sat fat and 400 mg sodium
B135: per serving. CN labeled for one serving to provide min. 1 M/MA, 1/8 c red/orange vegetable, 1 OEG,
B136: Individual ovenable wrap
B138: Possible Allergens: Wheat, Milk, Soy
A139: 31 | B139: Breakfast Pizza, Egg and Turkey Sausage (BULK) | C139: Nardone's 80WTSA100 | E139: 80/2.85z | F139: 80 | G139: 0 | H139: =ROUND($G$139*$F$139/F139,2) -> 0 | I139: Cs | J139: $27.00 | K139: =IF(OR(ISBLANK(J139),G139=0,ISBLANK(G139)),,ROUND(J139+$K$3,2)) -> 0 | L139: =ROUND(H139*K139,2) -> 0 | M139: =ROUND(K139/F139,2) -> 0 | N139: $24.36 | O139: $1.6162 | P139: 1.62 | Q139: =ROUND(O139*P139,2) -> $2.62 | R139: =K139-Q139 -> -$2.62 | S139: =R139/F139 -> $(0.03) | T139: =N139/F139 -> $0.30
B140: Frozen, 3" x 5" with pizza sauce
B141: One serving must provide 1 M/MA and 1 EOG Whole grain
B142: Possible Allergens: Wheat, Milk, Soy
A143: 32 | B143: Breakfast Pizza, 100% Mozz. Pork Sausage, WG | C143: Nardone's 80WS100 | E143: 80/3.30z | F143: 80 | G143: 0 | H143: =ROUND($G$143*$F$143/F143,2) -> 0 | I143: Cs | J143: $27.00 | K143: =IF(OR(ISBLANK(J143),G143=0,ISBLANK(G143)),,ROUND(J143+$K$3,2)) -> 0 | L143: =ROUND(H143*K143,2) -> 0 | M143: =ROUND(K143/F143,2) -> 0 | N143: $20.89 | O143: $1.6291 | P143: 3.75 | Q143: =ROUND(O143*P143,2) -> $6.11 | R143: =K143-Q143 -> -$6.11 | S143: =R143/F143 -> $(0.08) | T143: =N143/F143 -> $0.26
B144: Frozen, whole grain rich, 3" x 5" biscuit style crust with pizza sauce. 150-250 calories with no more than
B145: 4 g sat fat and 350 mg sodium per serving, CN labeled for one portion to provide min. 1 M/MA, 1.5 OEG
B146: 1/8 cup red/orange vegetable,
B147: Possible Allergens: Wheat, Milk
A148: 33 | B148: Breakfast Pizza, Egg and Turkey Sausage, WG, IW | C148: Conagra Max 12468 | E148: 96/3.21z | F148: 96 | G148: 0 | H148: =ROUND($G$148*$F$148/F148,2) -> 0 | I148: Cs | J148: $48.50 | K148: =IF(OR(ISBLANK(J148),G148=0,ISBLANK(G148)),,ROUND(J148+$K$3,2)) -> 0 | L148: =ROUND(H148*K148,2) -> 0 | M148: =ROUND(K148/F148,2) -> 0 | N148: $47.02 | O148: $1.6291 | P148: 0.91 | Q148: =ROUND(O148*P148,2) -> $1.48 | R148: =K148-Q148 -> -$1.48 | S148: =R148/F148 -> $(0.02) | T148: =N148/F148 -> $0.49
B149: Frozen, whole grain rich, turkey sausage, 150-250 calories with no more than 2 g sat fat and 350 mg sodium per
B150: serving. CN labeled for one serving to provide 1 M/MA and 1.5 OEG
B152: Possible Allergens: Soy, Milk and Eggs
A153: 34 | B153: Breakfast Pizza, 100% Mozz. Beef, Red Sauce, WG IW | C153: SA Piazza 90502 | E153: 160/2.80z | F153: 160 | G153: 0 | H153: =ROUND($G$153*$F$153/F153,2) -> 0 | I153: Cs | J153: $73.77 | K153: =IF(OR(ISBLANK(J153),G153=0,ISBLANK(G153)),,ROUND(J153+$K$3,2)) -> 0 | L153: =ROUND(H153*K153,2) -> 0 | M153: =ROUND(K153/F153,2) -> 0 | N153: $62.06 | O153: $1.6291 | P153: 7.19 | Q153: =ROUND(O153*P153,2) -> $11.71 | R153: =K153-Q153 -> -$11.71 | S153: =R153/F153 -> $(0.07) | T153: =N153/F153 -> $0.39
B154: Frozen, whole grain rich, beef topping, 150-250 calories with no more than 4 g sat fat and 300 mg sodium per
B155: serving. CN labeled for one serving to provide 1 M/MA and 1 OEG
B157: Possible Allergens: Soy, Milk and Wheat
A158: 35 | B158: Breakfast Bagel, Turkey Sausage | C158: Tasty Brands 55202 | E158: 120/2.72z | F158: 120 | G158: 50 | H158: =ROUND($G$158*$F$158/F158,2) -> 50 | I158: Cs | J158: $47.03 | K158: =IF(OR(ISBLANK(J158),G158=0,ISBLANK(G158)),,ROUND(J158+$K$3,2)) -> $47.03 | L158: =ROUND(H158*K158,2) -> $2,351.50 | M158: =ROUND(K158/F158,2) -> $0.39 | N158: $43.88 | O158: $1.6291 | P158: 1.9 | Q158: =ROUND(O158*P158,2) -> $3.10 | R158: =K158-Q158 -> $43.93 | S158: =R158/F158 -> $0.37 | T158: =N158/F158 -> $0.37
B159: Frozen, Cream style gravy topping | C159: Nardone's M96WBTSG | E159: 96/2.65z | F159: 96 | H159: =ROUND($G$158*$F$158/F159,2) -> 62.5 | I159: Cs | O159: $1.6291 | P159: 4.2 | Q159: =ROUND(O159*P159,2) -> $6.84
B160: One serving must provide 1 M/MA and 1 EOG Whole grain
B161: Possible Allergens: Wheat, Milk, Soy
G163: 0 | I163: Page Total | L163: =SUMIF(L8:L161,">0") -> $14,265.26

Sheet Sheet19

Sheet Sheet21

Sheet Sheet22

Sheet Sheet23

Sheet Sheet24

Sheet Sheet25

Sheet Sheet26

Sheet Sheet27

Sheet Sheet111

Sheet Sheet112

Sheet Sheet113

Sheet Sheet114

Sheet Sheet115

Sheet Sheet116

Sheet Sheet117

Sheet Sheet125

Sheet Sheet126

Sheet Sheet127

Sheet Sheet128

Sheet Sheet129

Sheet Sheet130

Sheet Sheet131

Sheet Sheet132

Sheet Sheet133

Sheet Sheet134

Sheet Sheet135

Sheet Sheet136

Sheet Sheet137

Sheet Sheet138

Sheet Sheet139

Sheet Sheet140

Sheet Sheet141

Sheet Sheet142

Sheet Sheet143

Sheet Sheet144

Sheet Sheet145

Sheet Sheet146

Sheet Sheet147

Sheet Sheet148

Sheet Sheet149

Sheet Sheet150

Sheet Sheet151

Sheet Sheet152

Sheet Sheet153

Sheet Sheet154

Sheet Sheet155

Sheet Sheet156

Sheet Sheet157

Sheet Sheet158

Sheet Sheet159

Sheet Sheet160

Sheet Sheet161

Sheet Sheet162

Sheet Sheet163

Sheet Sheet164

Sheet Sheet165

Sheet Sheet166

Sheet Sheet167

Sheet Sheet168

Sheet Sheet169

Sheet Sheet170

Sheet Sheet171

Sheet Sheet172

Sheet Sheet173

Sheet Sheet174

Sheet Sheet175

Sheet Sheet176

Sheet Sheet177

Sheet Sheet178

Sheet Sheet179

Sheet Sheet180

Sheet Sheet181

Sheet Sheet182

Sheet Sheet183

Sheet Sheet184

Sheet Sheet185

Sheet Sheet186

Sheet Sheet187

Sheet Sheet188

Sheet Sheet189

Sheet Sheet190

Sheet Sheet191

Sheet Sheet192

Sheet Sheet193

Sheet Sheet194

Sheet Sheet195

Sheet Sheet196

Sheet Sheet197

Sheet Sheet198

Sheet Sheet199

Sheet Sheet200

Sheet Sheet201

Sheet Sheet202

Sheet Sheet203

Sheet Sheet204

Sheet Sheet205

Sheet Sheet206

Sheet Sheet207

Sheet Sheet208

Sheet Sheet209

Sheet Sheet210

Sheet Sheet211

Sheet Sheet212

Sheet Sheet213

Sheet Sheet214

Sheet Sheet215

Sheet Sheet216

Sheet Sheet217

Sheet Sheet218

Sheet Sheet219

Sheet Sheet220

Sheet Sheet221

Sheet Sheet222

Sheet Sheet223

Sheet Sheet224

Sheet Sheet225

Sheet Sheet226

Sheet Sheet227

Sheet Sheet228

Sheet Sheet229

Sheet Sheet230

Sheet Sheet231

Sheet Sheet232

Sheet Sheet233

Sheet Sheet234

Sheet Sheet235

Sheet Sheet236

Sheet Sheet237

Sheet Sheet238

Sheet Sheet239

Sheet Sheet240

Sheet Sheet241

Sheet Sheet242

Sheet Sheet243

Sheet Sheet244

Sheet Sheet245

Sheet Sheet246

Sheet Sheet247

Sheet Sheet248

Sheet Sheet249

Sheet Sheet250

Sheet Sheet251

Sheet Sheet252

Sheet Sheet253

Sheet Sheet254

Sheet Sheet255

Sheet Sheet256

Sheet Sheet257

Sheet Sheet258

Sheet Sheet259

Sheet Sheet260

Sheet Sheet261

Sheet Sheet262

Sheet Sheet263

Sheet Sheet264

Sheet Sheet265

Sheet Sheet266

Sheet Sheet267

Sheet Sheet268

Sheet Sheet269

Sheet Sheet270

Sheet Sheet271

Sheet Sheet272

Sheet Sheet273

Sheet Sheet274

Sheet Sheet275

Sheet Sheet276

Sheet Sheet277

Sheet Sheet278

Sheet Sheet279

Sheet Sheet280

Sheet Sheet281

Sheet Sheet282

Sheet Sheet283

Sheet Sheet284

Sheet Sheet285

Sheet Sheet286

Sheet Sheet287

Sheet Sheet288

Sheet Sheet289

Sheet Sheet290

Sheet Sheet291

Sheet Sheet292

Sheet Sheet293

Sheet Sheet294

Sheet Sheet295

Sheet Sheet296

Sheet Sheet297

Sheet Sheet298

Sheet Sheet299

Sheet Sheet300

Sheet Sheet301

Sheet Sheet302

Sheet Sheet303

Sheet Sheet304

Sheet Sheet305

Sheet Sheet306

Sheet Sheet307

Sheet Sheet308

Sheet Sheet309

Sheet Sheet310

Sheet Sheet311

Sheet Sheet312

Sheet Sheet313

Sheet Sheet314

Sheet Sheet315

Sheet Sheet316

Sheet Sheet317

Sheet Sheet318

Sheet Sheet319

Sheet Sheet320

Sheet Sheet321

Sheet Sheet322

Sheet Sheet323

Sheet Sheet324

Sheet Sheet325

Sheet Sheet326

Sheet Sheet327

Sheet Sheet328

Sheet Sheet329

Sheet Sheet330

Sheet Sheet331

Sheet Sheet332

Sheet Sheet333

Sheet Sheet334

Sheet Sheet335

Sheet Sheet336

Sheet Sheet337

Sheet Sheet338

Sheet Sheet339

Sheet Sheet340

Sheet Sheet341

Sheet Sheet342

Sheet Sheet343

Sheet Sheet344

Sheet Sheet345

Sheet Sheet346

Sheet Sheet347

Sheet Sheet348

Sheet Sheet349

Sheet Sheet350

Sheet Sheet351

Sheet Sheet352

Sheet Sheet353

Sheet Sheet354

Sheet Sheet355

Sheet Sheet356

Sheet Sheet357

Sheet Sheet358

Sheet Sheet359

Sheet Sheet360

Sheet Sheet361

Sheet Sheet362

Sheet Sheet363

Sheet Sheet364

Sheet Sheet365

Sheet Sheet366

Sheet Sheet367

Sheet Sheet368

Sheet Sheet369

Sheet Sheet370

Sheet Sheet371

Sheet Sheet372

Sheet Sheet373

Sheet Sheet374

Sheet Sheet375

Sheet Sheet376

Sheet Sheet377

Sheet Sheet378

Sheet Sheet379

Sheet Sheet380

Sheet Sheet381

Sheet Sheet382

Sheet Sheet383

Sheet Sheet384

Sheet Sheet385

Sheet Sheet386

Sheet Sheet387

Sheet Sheet388

Sheet Sheet28

Sheet Sheet29

Sheet Sheet30

Sheet Sheet31

Sheet Sheet32

Sheet Sheet33

Sheet Sheet34

Sheet Sheet35

Sheet Sheet36

Sheet Sheet37

Sheet Sheet389

Sheet Sheet38

Sheet Sheet39

Sheet Sheet40

Sheet Sheet41

Sheet Sheet42

Sheet Sheet43

Sheet Sheet44

Sheet Sheet45

Sheet Sheet46

Sheet Sheet47

Sheet Sheet48

Sheet Sheet49

Sheet Sheet50

Sheet Sheet51

Sheet Sheet52

Sheet Sheet53

Sheet Sheet54

Sheet Sheet55

Sheet Sheet56

Sheet Sheet57

Sheet Frozen Entrees
B1: ='Recap Sheet'!A2 -> School Food Authority: | E1: ='Recap Sheet'!A3 -> Offeror Name: | O1: Commodity
B2: ='Recap Sheet'!B2 -> WILLIAMSBURG COUNTY SCHOOLS | C2: Return to Recap Sheet | E2: ='Recap Sheet'!B3 -> 0
A3: Item | B3: Description | C3: Approved Brand Name / Manuf ID # | F3: Firm Fixed Fee | K3: ='Recap Sheet'!B4 -> $0.00 | N3: Processing | O3: Commodity | P3: Pounds of | R3: NOI | S3: Net NOI | T3: Total Cost
A4: # | D4: Distributor | E4: Vendor | F4: Svgs | G4: Est. | H4: Bid | I4: Bid | J4: Unit | K4: Unit Price | L4: Total | M4: Cost per | N4: Fee For | O4: Value Per | P4: DF Needed | Q4: Commodity | R4: Net | S4: Cost Per | T4: Processing Fee
D5: Code | E5: Pack | F5: per unit | G5: Bid Qty | H5: Qty | I5: Unit | J5: Price | K5: plus Fee | L5: Price | M5: Unit | N5: Service | O5: Pound | P5: Per Case | Q5: Value | R5: Price | S5: Serving | T5: Per Serving
B6: Frozen Entrees | O6: Commodity #'s 110244 and 110242
A8: 1 | B8: Calzone, 100% Mozz. w/Pizza Sauce and Pepperoni, WG | C8: Albie's 813 | E8: 48/4.50z | F8: 48 | G8: 0 | H8: =ROUND($G$8*$F$8/F8,2) -> 0 | I8: Cs | J8: $33.12 | K8: =IF(OR(ISBLANK(J8),G8=0,ISBLANK(G8)),,ROUND(J8+$K$3,2)) -> 0 | L8: =ROUND(H8*K8,2) -> 0 | M8: =ROUND(K8/F8,2) -> 0 | N8: $25.85 | O8: $1.6291 | P8: 4.46 | Q8: =ROUND(O8*P8,2) -> $7.27 | R8: =K8-Q8 -> -$7.27 | S8: =R8/F8 -> $(0.15) | T8: =N8/F8 -> $0.54
B9: Frozen, 250-350 calories with no more than 6 g sat fat and 500 mg sodium per serving. One portion to provide
B10: min. 2 M/MA and 2 OEG
B11: Possible Allergens: Wheat, Soy, Milk
A12: 2 | B12: Calzone, 3 Cheese w/Pizza Sauce, WG | C12: Gilardi 20120 | E12: 60/4.69z | F12: 60 | G12: 0 | H12: =ROUND($G$12*$F$12/F12,2) -> 0 | I12: Cs | J12: $41.70 | K12: =IF(OR(ISBLANK(J12),G12=0,ISBLANK(G12)),,ROUND(J12+$K$3,2)) -> 0 | L12: =ROUND(H12*K12,2) -> 0 | M12: =ROUND(K12/F12,2) -> 0 | N12: $31.81 | O12: $1.6291 | P12: 6.07 | Q12: =ROUND(O12*P12,2) -> $9.89 | R12: =K12-Q12 -> -$9.89 | S12: =R12/F12 -> $(0.16) | T12: =N12/F12 -> $0.53
B13: Frozen, 200-300 calories with no more than 3 g sat fat and 500 mg sodium per serving. One portion to provide
B14: min. 2 M/MA and 2 OEG 1/8 cup red/orange vegetable
B15: Possible Allergens: Wheat, Soy, Milk
A16: 3 | B16: Cheese Sticks, Breaded Mozzarella, Red Sodium, WG | C16: High Liner Foods G1041DF | E16: 83/4.2z | F16: 83 | G16: 0 | H16: =ROUND(G16*F16/F16,2) -> 0 | I16: Cs | J16: $40.10 | K16: =IF(OR(ISBLANK(J16),G16=0,ISBLANK(G16)),,ROUND(J16+$K$3,2)) -> 0 | L16: =ROUND(H16*K16,2) -> 0 | M16: =ROUND(K16/F16,2) -> 0 | N16: $23.08 | O16: $1.6291 | P16: 10.45 | Q16: =ROUND(O16*P16,2) -> $17.02 | R16: =K16-Q16 -> -$17.02 | S16: =R16/F16 -> $(0.21) | T16: =N16/F16 -> $0.28
B17: Frozen, low moisture part skim mozzarella cheese stick with whole grain rich breading, may be prepared in oven
B18: or fryer, 300-400 cal with no more than 8 g sat fat and 400 mg sodium per serving. CN labeled for 5 stick portion
B19: to provide 2 M/MA and 1.5 OEG
B20: Possible Allergens: Wheat, Milk
A21: 4 | B21: Cheese Sticks, Mozzarella Filled Twisted Topped | C21: Tasty Brands 62002 | E21: 90/3.10z | F21: 90 | G21: 0 | H21: =ROUND(G21*F21/F21,2) -> 0 | I21: Cs | J21: $38.51 | K21: =IF(OR(ISBLANK(J21),G21=0,ISBLANK(G21)),,ROUND(J21+$K$3,2)) -> 0 | L21: =ROUND(H21*K21,2) -> 0 | M21: =ROUND(K21/F21,2) -> 0 | N21: $29.20 | O21: $1.6551 | P21: 5.625 | Q21: =ROUND(O21*P21,2) -> $9.31 | R21: =K21-Q21 -> -$9.31 | S21: =R21/F21 -> $(0.10) | T21: =N21/F21 -> $0.32
B22: Frozen, low moisture, 200-300 calories with no more than 8 g sat fat and 400 mg of sodium per serving,
B23: 0 trans fats, One serving to provide 1 M/MA and 2 OEG
B25: Possible Allergens: Wheat, Milk, Soy
A26: 5 | B26: Cheese Sticks, Breaded Mozzarella, Italian Style WG | C26: High Liner Foods G1042DF | E26: 83/4.20z | F26: 83 | G26: 0 | H26: =ROUND(G26*F26/F26,2) -> 0 | I26: Cs | J26: $40.10 | K26: =IF(OR(ISBLANK(J26),G26=0,ISBLANK(G26)),,ROUND(J26+$K$3,2)) -> 0 | L26: =ROUND(H26*K26,2) -> 0 | M26: =ROUND(K26/F26,2) -> 0 | N26: $23.08 | O26: $1.6291 | P26: 10.45 | Q26: =ROUND(O26*P26,2) -> $17.02 | R26: =K26-Q26 -> -$17.02 | S26: =R26/F26 -> $(0.21) | T26: =N26/F26 -> $0.28
B27: Frozen, low moisture part skim mozzarella cheese stick with whole grain rich breading, may be prepared in oven
B28: or fryer, 200-300 cal with no more than 8 g sat fat and 400 mg sodium per serving. CN labeled for 5 stick portion
B29: to provide 2 M/MA and 1.5 OEG
B30: Possible Allergens: Wheat, Milk
A31: 6 | B31: Egg Roll, Chicken, WG | C31: Minh 69461 | E31: 60/3.oz | F31: 60 | G31: 0 | H31: =ROUND(G31*F31/F31,2) -> 0 | I31: Cs | J31: $30.80 | K31: =IF(OR(ISBLANK(J31),G31=0,ISBLANK(G31)),,ROUND(J31+$K$3,2)) -> 0 | L31: =ROUND(H31*K31,2) -> 0 | M31: =ROUND(K31/F31,2) -> 0 | N31: $21.45 | O31: $0.1049 | P31: 18.75 | Q31: =ROUND(O31*P31,2) -> $1.97 | R31: =K31-Q31 -> -$1.97 | S31: =R31/F31 -> $(0.03) | T31: =N31/F31 -> $0.36
B32: Frozen, chicken with vegetables in WG egg roll wrapper, 150-250 calories with no more than 2 g sat fat and 450 mg
B33: sodium per serving, CN labeled for one portion to provide min. 1 M/MA, 1 OEG and 1/4 cup vegetable
B34: Possible Allergens: Milk, Wheat, Soy and Egg
A35: 7 | B35: Enchilada, Beef, WG | C35: Fernandos/Foster Farm 5279 | E35: 112/2.5z | F35: 112 | G35: 0 | H35: =ROUND(G35*F35/F35,2) -> 0 | I35: Cs | J35: $34.39 | K35: =IF(OR(ISBLANK(J35),G35=0,ISBLANK(G35)),,ROUND(J35+$K$3,2)) -> 0 | L35: =ROUND(H35*K35,2) -> 0 | M35: =ROUND(K35/F35,2) -> 0 | N35: $21.45 | O35: $0.1049 | P35: 18.75 | Q35: =ROUND(O35*P35,2) -> $1.97 | R35: =K35-Q35 -> -$1.97 | S35: =R35/F35 -> $(0.02) | T35: =N35/F35 -> $0.19
B36: Frozen, 100-200 calories with no more than 3 g sat fat and 300 mg sodium per serving, CN labeled for one
B37: portion to provide 1 M/MA and 1 OEG
B38: Possible Allergens: Soy
A39: 8 | B39: Lasagna Rollup, Cheese, WG | C39: Tasty Brands 00801WG | E39: 110/4.3oz | F39: 110 | G39: 0 | H39: =ROUND(G39*F39/F39,2) -> 0 | I39: Cs | J39: $65.96 | K39: =IF(OR(ISBLANK(J39),G39=0,ISBLANK(G39)),,ROUND(J39+$K$3,2)) -> 0 | L39: =ROUND(H39*K39,2) -> 0 | M39: =ROUND(K39/F39,2) -> 0 | N39: $47.28 | O39: $1.6551 | P39: 11.28 | Q39: =ROUND(O39*P39,2) -> $18.67 | R39: =K39-Q39 -> -$18.67 | S39: =R39/F39 -> $(0.17) | T39: =N39/F39 -> $0.43
B40: Frozen, whole grain pasta, filled with mozzarella and ricotta cheese, 150-250 calories with no more than 4 g sat
B41: fat and 400 mg sodium per serving, One portion provides 2 M/MA and 1 OEG
B42: Possible Allergens: Wheat, Milk
A43: 9 | B43: Macaroni and Cheese, Reduced Fat, WG | C43: Land O Lakes 43277 | E43: 6/5 lbs | F43: 80 | G43: 0 | H43: =ROUND(G43*F43/F43,2) -> 0 | I43: Cs | J43: $54.59 | K43: =IF(OR(ISBLANK(J43),G43=0,ISBLANK(G43)),,ROUND(J43+$K$3,2)) -> 0 | L43: =ROUND(H43*K43,2) -> 0 | M43: =ROUND(K43/F43,2) -> 0 | N43: $44.25 | O43: $1.6551 | P43: 6.25 | Q43: =ROUND(O43*P43,2) -> $10.34 | R43: =K43-Q43 -> -$10.34 | S43: =R43/F43 -> $(0.13) | T43: =N43/F43 -> $0.55
B44: Frozen, processed American cheese in boil or steam pouch, 250-350 calories with no more than 6 g sat fat and
B45: 1000 mg sodium per serving. One portion to provide 2 M/MA and 1 OEG
B46: Possible Allergens: Milk, Wheat, Egg
A47: 10 | B47: Ravioli, Mini Cheese, WG | C47: Tasty Brands 00834WG | E47: 221/2.17z | F47: 221 | G47: 0 | H47: =ROUND(G47*F47/F47,2) -> 0 | I47: Cs | J47: $66.81 | K47: =IF(OR(ISBLANK(J47),G47=0,ISBLANK(G47)),,ROUND(J47+$K$3,2)) -> 0 | L47: =ROUND(H47*K47,2) -> 0 | M47: =ROUND(K47/F47,2) -> 0 | N47: $58.17 | O47: $1.6551 | P47: 5.22 | Q47: =ROUND(O47*P47,2) -> $8.64 | R47: =K47-Q47 -> -$8.64 | S47: =R47/F47 -> $(0.04) | T47: =N47/F47 -> $0.26
B48: Frozen, whole grain pasta, filled with mozzarella and ricotta cheese, 100-200 calories with no more than 2 g sat
B49: fat and 300 mg sodium per serving, One portion provides 1 M/MA and .5 OEG
B50: Possible Allergens: Wheat, Milk, Egg
A51: 11 | B51: Sandwich, Turkey, Ham and Cheese on Hawaiian Bun, WG | C51: Integrated 130018 | E51: 100/3.10z | F51: 100 | G51: 0 | H51: =ROUND(G51*F51/F51,2) -> 0 | I51: Cs | J51: 0 | K51: =IF(OR(ISBLANK(J51),G51=0,ISBLANK(G51)),,ROUND(J51+$K$3,2)) -> 0 | L51: =ROUND(H51*K51,2) -> 0 | M51: =ROUND(K51/F51,2) -> 0 | O51: $1.6551 | P51: 2.5 | Q51: =ROUND(O51*P51,2) -> $4.14 | R51: =K51-Q51 -> -$4.14 | S51: =R51/F51 -> $(0.04) | T51: =N51/F51 -> 0
B52: Frozen, 150-250 calories with no more than 2 g sat fat and 650 mg sodium per serving. One portion to provide
B53: min. 1 M/MA and 2 OEG
B54: Possible Allergens: Wheat, Soy, Milk and Eggs
A55: 12 | B55: Tornados, Steak and Cheese, WG | C55: Ruiz Foods 86249 | E55: 24/2.79z | F55: 24 | G55: 0 | H55: =ROUND(G55*F55/F55,2) -> 0 | I55: Cs | J55: $12.50 | K55: =IF(OR(ISBLANK(J55),G55=0,ISBLANK(G55)),,ROUND(J55+$K$3,2)) -> 0 | L55: =ROUND(H55*K55,2) -> 0 | M55: =ROUND(K55/F55,2) -> 0 | N55: $19.40 | O55: $0.1049 | P55: 43.64 | Q55: =ROUND(O55*P55,2) -> $4.58 | R55: =K55-Q55 -> -$4.58 | S55: =R55/F55 -> $(0.19) | T55: =N55/F55 -> $0.81
B56: Frozen, thaw and serve, 100-200 calories with no more than 2 g sat fat and 400 mg sodium per serving.
B57: One portion to provide min. .5 M/MA and 1.25 OEG
B58: Possible Allergens: Wheat, Soy, Milk
A59: 13 | B59: Wraps, Cheese, Turkey Sausage and Egg Tortilla including Wrap | C59: Fernandos 5264 | E59: 108/2.81z | F59: 108 | G59: 0 | H59: =ROUND(G59*F59/F59,2) -> 0 | I59: Cs | J59: $43.29 | K59: =IF(OR(ISBLANK(J59),G59=0,ISBLANK(G59)),,ROUND(J59+$K$3,2)) -> 0 | L59: =ROUND(H59*K59,2) -> 0 | M59: =ROUND(K59/F59,2) -> 0 | N59: $19.40 | O59: $0.1049 | P59: 43.64 | Q59: =ROUND(O59*P59,2) -> $4.58 | R59: =K59-Q59 -> -$4.58 | S59: =R59/F59 -> $(0.04) | T59: =N59/F59 -> $0.18
B60: Frozen, thaw and serve, 150-250 calories with no more than 5 g saturated fat and 375 mg sodium per serving | C60: Ruiz Foods 41525 | E60: 50/2.50z | F60: 50 | H60: 500 | I60: Cs | J60: 0 | K60: =IF(OR(ISBLANK(J60),G60=0,ISBLANK(G60)),,ROUND(J60+$K$3,2)) -> 0 | L60: =ROUND(H60*K60,2) -> 0 | M60: =ROUND(K60/F60,2) -> 0 | N60: $19.40 | O60: $0.1049 | P60: 43.64 | Q60: $4.58 | R60: -$4.58 | S60: $(0.09) | T60: $0.39
B61: Each wrap provides 1 oz. M/MA and 1 OEG
B62: Possible Allergens: Wheat, Milk, Egg and Soy
A63: 14 | B63: Sandwich, Turkey Bacon, Egg, and Cheese Croissant, WG | C63: Bakecrafters 4708 | E63: 48/3.40z | F63: 48 | G63: 0 | H63: =ROUND(G63*F63/F63,2) -> 0 | I63: Cs | J63: $42.00 | K63: =IF(OR(ISBLANK(J63),G63=0,ISBLANK(G63)),,ROUND(J63+$K$3,2)) -> 0 | L63: =ROUND(H63*K63,2) -> 0 | M63: =ROUND(K63/F63,2) -> 0 | N63: $40.21 | O63: $1.6551 | P63: 1.08 | Q63: =ROUND(O63*P63,2) -> $1.79 | R63: =K63-Q63 -> -$1.79 | S63: =R63/F63 -> $(0.04) | T63: =N63/F63 -> $0.84
B64: Frozen, thaw and serve, 200-350 calories, no more than 4 g sat fat and 750 mg sodium per serving. One portion
B65: provides 1 M/MA and 2 OEG
B66: Possible Allergens: Wheat, Soy, Milk and Egg
O67: Commodity Peanuts, Raw Shelled 110700
A68: 15 | B68: Peanut Butter & Grape Jelly, No HFCS, Crustless, WG, IW | C68: Smuckers 5150006960 | E68: 72/2.6z | F68: 72 | G68: 0 | H68: =ROUND(G68*F68/F68,2) -> 0 | I68: Cs | J68: $35.33 | K68: =IF(OR(ISBLANK(J68),G68=0,ISBLANK(G68)),,ROUND(J68+$K$3,2)) -> 0 | L68: =ROUND(H68*K68,2) -> 0 | M68: =ROUND(K68/F68,2) -> 0 | N68: $31.54 | O68: $0.5398 | P68: 4.48 | Q68: =ROUND(O68*P68,2) -> $2.42 | R68: =K68-Q68 -> -$2.42 | S68: =R68/F68 -> $(0.03) | T68: =N68/F68 -> $0.44
B69: Frozen, smooth peanut butter and grape jelly, crustless, whole grain bread, crimped edges, 250-350 calories with
B70: no more than 4 g sat fat and 350 mg sodium per serving. One portion to provide min. 1 M/MA and 1 OEG
B71: Individually wrapped
B72: Possible Allergens: Wheat, Peanuts
A73: 16 | B73: Peanut Butter & Grape Jelly, No HFCS, Crustless, WG, IW | C73: Smuckers 5150021027 | E73: 72/5.30z | F73: 72 | G73: 0 | H73: =ROUND(G73*F73/F73,2) -> 0 | I73: Cs | J73: $64.10 | K73: =IF(OR(ISBLANK(J73),G73=0,ISBLANK(G73)),,ROUND(J73+$K$3,2)) -> 0 | L73: =ROUND(H73*K73,2) -> 0 | M73: =ROUND(K73/F73,2) -> 0 | N73: $57.57 | O73: $0.5398 | P73: 8.94 | Q73: =ROUND(O73*P73,2) -> $4.83 | R73: =K73-Q73 -> -$4.83 | S73: =R73/F73 -> $(0.07) | T73: =N73/F73 -> $0.80
B74: Frozen, smooth peanut butter and grape jelly, crustless, whole grain bread, crimped edges, 550-650 calories with
B75: no more than 7 g sat fat and 650 mg sodium per serving. One portion to provide min. 2 M/MA and 2 OEG
B76: Individually wrapped
B77: Possible Allergens: Wheat, Peanuts
A78: 17 | B78: Peanut Butter & Strawberry Jelly, No HFCS, Crustless, WG, IW | C78: Smuckers 5150006961 | E78: 72/2.60z | F78: 72 | G78: 0 | H78: =ROUND(G78*F78/F78,2) -> 0 | I78: Cs | J78: $36.89 | K78: =IF(OR(ISBLANK(J78),G78=0,ISBLANK(G78)),,ROUND(J78+$K$3,2)) -> 0 | L78: =ROUND(H78*K78,2) -> 0 | M78: =ROUND(K78/F78,2) -> 0 | N78: $33.10 | O78: $0.5398 | P78: 4.48 | Q78: =ROUND(O78*P78,2) -> $2.42 | R78: =K78-Q78 -> -$2.42 | S78: =R78/F78 -> $(0.03) | T78: =N78/F78 -> $0.46
B79: Frozen, smooth peanut butter and strawberry jelly, crustless, whole grain bread, crimped edges, 250-350 calories
B80: with no more than 3 g sat fat and 350 mg sodium per serving. One portion to provide min. 1 M/MA and 1 OEG
B81: Individually wrapped
B82: Possible Allergens: Wheat, Peanuts
A83: 18 | B83: Peanut Butter Cups, Creamy, IW | C83: Smucker-JIF 5150092100 | E83: 120/1.0z | F83: 120 | G83: 0 | H83: =ROUND(G83*F83/F83,2) -> 0 | I83: Cs | J83: $31.20 | K83: =IF(OR(ISBLANK(J83),G83=0,ISBLANK(G83)),,ROUND(J83+$K$3,2)) -> 0 | L83: =ROUND(H83*K83,2) -> 0 | M83: =ROUND(K83/F83,2) -> 0 | N83: $21.60 | O83: $0.5398 | P83: 7.4 | Q83: =ROUND(O83*P83,2) -> $3.99 | R83: =K83-Q83 -> -$3.99 | S83: =R83/F83 -> $(0.03) | T83: =N83/F83 -> $0.18
B84: Shelf stable, smooth peanut butter, 100-200 calories with no more than 3 g sat fat and 150 mg sodium per serving
B85: One portion to provide min. 1 M/MA
B86: Individually wrapped
B87: Possible Allergens: Peanuts
J88: Category: Peanut Butter Drum 100397
A89: 19 | B89: Peanut Butter & Grape Jelly, No HFCS, Crustless, WG, IW | C89: Advanced Pierre 92123 | E89: 72/2.80z | F89: 72 | G89: 0 | H89: =ROUND(G89*F89/F89,2) -> 0 | I89: Cs | J89: $30.52 | K89: =IF(OR(ISBLANK(J89),G89=0,ISBLANK(G89)),,ROUND(J89+$K$3,2)) -> 0 | L89: =ROUND(H89*K89,2) -> 0 | M89: =ROUND(K89/F89,2) -> 0 | N89: $25.81 | O89: $0.9524 | P89: 4.71 | Q89: =ROUND(O89*P89,2) -> $4.49 | R89: =K89-Q89 -> -$4.49 | S89: =R89/F89 -> $(0.06) | T89: =N89/F89 -> $0.36
B90: Frozen, smooth peanut butter and grape jelly, crustless, whole grain bread, crimped edges, 250-350 calories with
B91: no more than 3 g sat fat and 300 mg sodium per serving. One portion to provide min. 1 M/MA and 1 OEG
B92: Individually wrapped
B93: Possible Allergens: Wheat, Peanuts, Soy
A94: 20 | B94: Peanut Butter & Banana, No HFCS, Crustless, WG, IW | C94: Advanced Pierre A1312 | E94: 72/2.80z | F94: 72 | G94: 0 | H94: =ROUND(G94*F94/F94,2) -> 0 | I94: Cs | J94: $37.00 | K94: =IF(OR(ISBLANK(J94),G94=0,ISBLANK(G94)),,ROUND(J94+$K$3,2)) -> 0 | L94: =ROUND(H94*K94,2) -> 0 | M94: =ROUND(K94/F94,2) -> 0 | N94: $32.29 | O94: $0.9524 | P94: 4.95 | Q94: =ROUND(O94*P94,2) -> $4.71 | R94: =K94-Q94 -> -$4.71 | S94: =R94/F94 -> $(0.07) | T94: =N94/F94 -> $0.45
B95: Frozen, smooth peanut butter with banana spread, crustless, whole wheat bread, crimped edges, 250-350 calories
B96: with no more than 3 g sat fat and 300 mg sodium per serving. One portion to provide min. 1 M/MA and 1 OEG
B97: Individually wrapped
B98: Possible Allergens: Wheat, Peanuts, Soy
A99: 21 | B99: Peanut Butter & Strawberry Jelly, No HFCS, Crustless, WG, Twin Pack | C99: Advanced Pierre A1004 | E99: 36/5.60z | F99: 36 | G99: 0 | H99: =ROUND(G99*F99/F99,2) -> 0 | I99: Cs | J99: $31.12 | K99: =IF(OR(ISBLANK(J99),G99=0,ISBLANK(G99)),,ROUND(J99+$K$3,2)) -> 0 | L99: =ROUND(H99*K99,2) -> 0 | M99: =ROUND(K99/F99,2) -> 0 | N99: $26.41 | O99: $0.9524 | P99: 4.95 | Q99: =ROUND(O99*P99,2) -> $4.71 | R99: =K99-Q99 -> -$4.71 | S99: =R99/F99 -> $(0.13) | T99: =N99/F99 -> $0.73
B100: Frozen, smooth peanut butter and grape jelly, crustless, whole grain bread, crimped edges, 550-650 calories
B101: with no more than 5 g sat fat and 650 mg sodium per serving. One portion to provide min. 2 M/MA and 2 OEG
B102: Individually wrapped
B103: Possible Allergens: Wheat, Peanuts, Soy
I105: Page Total | L105: =SUMIF(L6:L103,">0") -> 0

Sheet Franks & Corn Dogs
B1: ='Recap Sheet'!A2 -> School Food Authority: | E1: ='Recap Sheet'!A3 -> Offeror Name:
B2: ='Recap Sheet'!B2 -> WILLIAMSBURG COUNTY SCHOOLS | E2: ='Recap Sheet'!B3 -> 0
A3: Item | B3: Description | C3: Approved Brand Name / Manuf ID # | F3: Firm Fixed Fee | K3: ='Recap Sheet'!B4 -> $0.00
A4: # | D4: Distributor | E4: Vendor | F4: Svgs | G4: Est. | H4: Bid | I4: Bid | J4: Unit | K4: Unit Price | L4: Total | M4: Cost per
D5: Code | E5: Pack | F5: per unit | G5: Bid Qty | H5: Qty | I5: Unit | J5: Price | K5: plus Fee | L5: Price | M5: Unit
B6: Franks & Corn Dogs
A7: 1 | B7: Hot Dog, Beef/Pork | C7: Kent 429 CN | E7: 160/2.0z | F7: 160 | G7: 0 | H7: =ROUND($G$7*$F$7/F7,2) -> 0 | I7: Cs | J7: $40.00 | K7: =IF(OR(ISBLANK(J7),G7=0,ISBLANK(G7)),,ROUND(J7+$K$3,2)) -> 0 | L7: =ROUND(H7*K7,2) -> 0 | M7: =ROUND(K7/F7,2) -> 0
B8: All beef and pork, Formula B, natural color, no offals. IMPS #800.
B9: Made from all skeletal cuts. 8 ct. Skinless No artificial color. Must provide 2 oz
B10: cooked meat/meat alternate for Child Nutrition Meal Pattern Requirements.
B11: One 2 oz serving contains no more than 85% of calories from fat.
B12: Possible Allergens: None Listed
A13: 2 | B13: Hot Dog, All Meat | C13: Ball Park 16720CN | E13: 80/2.0z | F13: 80 | G13: 0 | H13: =ROUND($G$18*$F$18/F13,2) -> 4 | I13: Cs
B14: Frozen, fully cooked, made from skeletal cuts, IMPS #800, No artificial color, 8 per lbs, | C14: Kent 304320 | E14: 160/2.0z | F14: 160 | H14: =ROUND($G$18*$F$18/F14,2) -> 2 | I14: Cs | J14: $26.00 | K14: =IF(OR(ISBLANK(J14),G13=0,ISBLANK(G13)),,ROUND(J14+$K$3,2)) -> 0 | L14: =ROUND(H14*K14,2) -> 0 | M14: =ROUND(K14/F14,2) -> 0
B15: 150-250 calories with no more than 7 g sat fat and 800 mg sodium per serving, One portion | C15: Bryan 16668CN | E15: 80/2.0z | F15: 80 | H15: =ROUND($G$18*$F$18/F15,2) -> 4 | I15: Cs
B16: provides 2 M/MA. May contain sodium nitrite | C16: Carolina Pride 3140CN | E16: 80/2.0z | F16: 80 | H16: 4 | I16: Cs
B17: Possible Allergens: None Listed | C17: Farmland/Smithfield 811527CN | E17: 80/2.0z | F17: 80 | H17: 4 | I17: Cs
A18: 3 | B18: Hot Dog, Beef | C18: Bryan 16787CN | E18: 2/5 lbs | F18: 80 | G18: 4 | H18: =ROUND($G$18*$F$18/F18,2) -> 4 | I18: Cs
B19: Frozen, fully cooked, all beef, Formula B, natural color, made from skeletal cuts, IMPS #800 | C19: Carolina Pride 3143 | E19: 2/5 lbs | F19: 80 | H19: =ROUND($G$18*$F$18/F19,2) -> 4 | I19: Cs
B20: 150-250 calories with no more than 8 g sat fat and 700 mg sodium per serving, One portion | C20: Harvestland/Perdue 56655 | E20: 2/5 lbs | F20: 80 | H20: =ROUND($G$18*$F$18/F20,2) -> 4 | I20: Cs
B21: provides 2 M/MA. May contain sodium nitrite | C21: Farmland/Smithfield 810967 | E21: 10 lbs | F21: 80 | H21: 4 | I21: Cs
B22: Possible Allergens: None Listed | C22: Kent 437 | E22: 20 lbs | F22: 160 | H22: 2 | I22: Cs | J22: $32.80 | K22: =IF(OR(ISBLANK(J22),G18=0,ISBLANK(G18)),,ROUND(J22+$K$3,2)) -> $32.80 | L22: =ROUND(H22*K22,2) -> $65.60 | M22: =ROUND(K22/F22,2) -> $0.21
A23: 4 | B23: Hot Dog, Turkey | C23: Briar Street SL16751 | E23: 10Lb | F23: 80 | G23: 300 | H23: =ROUND($G$23*$F$23/F23,2) -> 300 | I23: Cs
B24: Frozen, made form mechanically separated turkey meat blended with natural flavor/coloring | C24: Butterball 2265-61886 | E24: 2/5Lb | F24: 80 | H24: =ROUND($G$23*$F$23/F24,2) -> 300 | I24: Cs | J24: $9.90 | K24: =IF(OR(ISBLANK(J24),G23=0,ISBLANK(G23)),,ROUND(J24+$K$3,2)) -> $9.90 | L24: =ROUND(H24*K24,2) -> $2,970.00 | M24: =ROUND(K24/F24,2) -> $0.12
B25: and spices, 8 per lbs, 100-150 calories with no more than 5 g sat fat and 750 mg sodium per | C25: Perdue 65669 | E25: 2/5Lb | F25: 80 | H25: =ROUND($G$23*$F$23/F25,2) -> 300 | I25: Cs
B26: serving, One portion to provide 2 M/MA May contain sodium nitrites
B27: Possible Allergens: None Listed
A28: 5 | B28: Corn Dog, Chicken, WG | C28: Foster Farms 95150 CN | E28: 72/4.0z | F28: 72 | G28: 450 | H28: =ROUND(G28*F28/F28,2) -> 450 | I28: Cs | J28: $26.28 | K28: =IF(OR(ISBLANK(J28),G28=0,ISBLANK(G28)),,ROUND(J28+$K$3,2)) -> $26.28 | L28: =ROUND(H28*K28,2) -> $11,826.00 | M28: =ROUND(K28/F28,2) -> $0.37
B29: Frozen, fully cooked, sweet batter dipped frankfurter, whole wheat flour and cornmeal
B30: 200-300 calories with no more than 3 g sat fat and 400 mg sodium per serving, one
B31: portion to provide 2 M/MA and 2 OEG May contain sodium nitrite
B32: Possible Allergens: Wheat, Soy ,Eggs, Gluten
A33: 6 | B33: Corn Dog, Turkey, WG | C33: State Fair SL28322 | E33: 48/4.0z | F33: 48 | G33: 25 | H33: =ROUND($G$33*$F$33/F33,2) -> 25 | I33: Cs | J33: $15.24 | K33: =IF(OR(ISBLANK(J33),G33=0,ISBLANK(G33)),,ROUND(J33+$K$3,2)) -> $15.24 | L33: =ROUND(H33*K33,2) -> $381.00 | M33: =ROUND(K33/F33,2) -> $0.32
B34: Frozen, oven ready, sweet batter dipped frankfurter, whole wheat flour and cornmeal w/stick | C34: Don Lee Farms CN84072WG | E34: 72/4.0z | F34: 48 | H34: =ROUND($G$33*$F$33/F34,2) -> 25 | I34: Cs
B35: 200-300 calories with no more than 4 g sat fat and 850 mg sodium per serving, one
B36: portion to provide 2 M/MA and 2 OEG May contain sodium nitrite
B37: Possible Allergens: Wheat, Soy, Eggs, Milk
A38: 7 | B38: Corn Dog, Turkey, WG Reduced Fat | C38: State Fair SL09988 | E38: 72/4z | F38: 72 | G38: 0 | H38: =ROUND(G38*F38/F38,2) -> 0 | I38: Cs | J38: $27.00 | K38: =IF(OR(ISBLANK(J38),G38=0,ISBLANK(G38)),,ROUND(J38+$K$3,2)) -> 0 | L38: 0 | M38: 0
B39: Frozen, oven ready, sweet batter dipped frankfurter, whole wheat flour and cornmeal w/stick
B40: 200-300 calories with no more than 1.5 g sat fat and 850 mg sodium per serving, one
B41: portion to provide 2 M/MA and 2 OEG May contain sodium nitrite
B42: Possible Allergens: Wheat, Soy, Eggs, Milk
A43: 7 | B43: Corndog Nuggets, Chicken | C43: House of Raeford 20452 | E43: 2/5 lbs | F43: 40 | G43: 0 | H43: =ROUND($G$43*$F$43/F43,2) -> 0 | I43: Cs | J43: $17.30 | K43: =IF(OR(ISBLANK(J43),G43=0,ISBLANK(G43)),,ROUND(J43+$K$3,2)) -> 0 | L43: =ROUND(H43*K43,2) -> 0 | M43: =ROUND(K43/F43,2) -> 0
B44: Frozen, Oven Ready, sweet batter dipped frankfurter of mechanically separated chicken meat | C44: Foster Farms 96086 | E44: 2/5 lbs | F44: 40 | H44: =ROUND($G$43*$F$43/F44,2) -> 0 | I44: Cs
B45: with whole grain flour and cornmeal, 200-300 calories with no more than 4 g sat fat
B46: and 450 mg sodium per serving, CN labeled for 6 to provide 2 M/MA and 2 OEG
B47: May contain sodium nitrite
B48: Possible Allergens: Wheat, Soy, Eggs, and Milk
A49: 8 | B49: Corndog Nuggets, Turkey | C49: House of Raeford 20420 | E49: 240/.667z | F49: 40 | G49: 5 | H49: =ROUND($G$49*$F$49/F49,2) -> 5 | I49: Cs | J49: $17.50 | K49: =IF(OR(ISBLANK(J49),G49=0,ISBLANK(G49)),,ROUND(J49+$K$3,2)) -> $17.50 | L49: =ROUND(H49*K49,2) -> $87.50 | M49: =ROUND(K49/F49,2) -> $0.44
B50: Frozen, Oven Ready, sweet batter dipped frankfurter of mechanically separated turkey meat
B51: with whole grain flour and cornmeal, 150-250 calories with no more than 2 g sat fat
B52: and 450 mg sodium per serving, CN labeled for 6 to provide 2 M/MA and 2 OEG
B53: May contain sodium nitrite
B54: Possible Allergens: Wheat, Soy, Eggs, and Milk
I55: Page Total | L55: =SUMIF(L7:L49,">0") -> $15,330.10

Sheet Dairy & Egg
B1: ='Recap Sheet'!A2 -> School Food Authority: | E1: ='Recap Sheet'!A3 -> Offeror Name:
B2: ='Recap Sheet'!B2 -> WILLIAMSBURG COUNTY SCHOOLS | C2: Return to Recap Sheet | E2: ='Recap Sheet'!B3 -> 0 | P2: Commodity
A3: Item | B3: Description | C3: Approved Brand Name / Manuf ID # | F3: Firm Fixed Fee | K3: ='Recap Sheet'!B4 -> $0.00 | N3: Processing | O3: Commodity | P3: Pounds of | R3: NOI | S3: Net NOI | T3: Total Cost
A4: # | D4: Distributor | E4: Vendor | F4: Svgs | G4: Est. | H4: Bid | I4: Bid | J4: Unit | K4: Unit Price | L4: Total | M4: Cost per | N4: Fee For | O4: Value Per | P4: DF Needed | Q4: Commodity | R4: Net | S4: Cost Per | T4: Processing Fee
D5: Code | E5: Pack | F5: per unit | G5: Bid Qty | H5: Qty | I5: Unit | J5: Price | K5: plus Fee | L5: Price | M5: Unit | N5: Service | O5: Pound | P5: Per Case | Q5: Value | R5: Price | S5: Serving | T5: Per Serving
B6: Dairy and Eggs | O6: Cheese, 110242 NAT AMER FBD BARREL
A7: 1 | B7: Cheese, Mozzarella, Shredded, 100% Mozzarella | C7: Land O Lakes 41698 | E7: 4/5 lbs | F7: 640 | G7: 17 | H7: =ROUND($G$7*$F$7/F7,2) -> 17 | I7: Cs | J7: $42.20 | K7: =IF(OR(ISBLANK(J7),G7=0,ISBLANK(G7)),,ROUND(J7+$K$3,2)) -> $42.20 | L7: =ROUND(H7*K7,2) -> $717.40 | M7: =ROUND(K7/F7,2) -> $0.07 | N7: $9.10 | O7: $1.6551 | P7: 20 | Q7: =ROUND(O7*P7,2) -> $33.10 | R7: =J7-Q7 -> $9.10 | S7: =R7/F7 -> $0.01 | T7: =N7/F8 -> $0.01
B8: Refrigerated, Low moisture part skim 45-50% moisture 1/2 oz. serving | C8: Bongard's 75507 | E8: 4/5 lbs | F8: 640 | H8: =ROUND($G$7*$F$7/F8,2) -> 17 | I8: Cs | K8: =IF(OR(ISBLANK(J8),G7=0,ISBLANK(G7)),,ROUND(J8+$K$3,2)) -> 0 | L8: =ROUND(H8*K8,2) -> 0 | M8: =ROUND(K8/F8,2) -> 0 | O8: $1.6551 | P8: 20 | Q8: =ROUND(O8*P8,2) -> $33.10
B9: Possible Allergens: Milk
A10: 2 | B10: Cheese, American, Reduced Fat, Shredded | C10: Land O Lakes 41728 | E10: 4/5 lbs | F10: 640 | G10: 0 | H10: =ROUND($G$10*$F$10/F10,2) -> 0 | I10: Cs | J10: $48.19 | K10: =IF(OR(ISBLANK(J10),G10=0,ISBLANK(G10)),,ROUND(J10+$K$3,2)) -> 0 | L10: =ROUND(H10*K10,2) -> 0 | M10: =ROUND(K10/F10,2) -> 0 | N10: $22.80 | O10: $1.6551 | P10: 15.34 | Q10: =ROUND(O10*P10,2) -> $25.39 | R10: =J10-Q10 -> $22.80 | S10: =R10/F10 -> $0.04 | T10: =N10/F10 -> $0.04
B11: Refregerated, 1/2 oz. serving
B12: Possible Allergens: Milk
A13: 3 | B13: Cheese, Cheddar Mild, Shredded | C13: Land O Lakes 41749 | E13: 4/5 lbs | F13: 640 | G13: 110 | H13: =ROUND($G$13*$F$13/F13,2) -> 110 | I13: Cs | J13: $42.40 | K13: =IF(OR(ISBLANK(J13),G13=0,ISBLANK(G13)),,ROUND(J13+$K$3,2)) -> $42.40 | L13: =ROUND(H13*K13,2) -> $4,664.00 | M13: =ROUND(K13/F13,2) -> $0.07 | N13: $9.30 | O13: $1.6551 | P13: 20 | Q13: =ROUND(O13*P13,2) -> $33.10 | R13: =J13-Q13 -> $9.30 | S13: =R13/F13 -> $0.01 | T13: =N13/F13 -> $0.01
B14: Refrigerated, 1/2 oz. serving
B15: Possible Allergens: Milk
A16: 4 | B16: Cheese, Mild Cheddar, Indv. Portions, Reduced Fat | C16: Land O Lakes 44881 | E16: 168/1 oz. | F16: 168 | G16: 10 | H16: =ROUND($G$16*$F$16/F16,2) -> 10 | I16: Cs | J16: $34.81 | K16: =IF(OR(ISBLANK(J16),G16=0,ISBLANK(G16)),,ROUND(J16+$K$3,2)) -> $34.81 | L16: =ROUND(H16*K16,2) -> $348.10 | M16: =ROUND(K16/F16,2) -> $0.21 | N16: $17.43 | O16: $1.6551 | P16: 10.5 | Q16: =ROUND(O16*P16,2) -> $17.38 | R16: =J16-Q16 -> $17.43 | S16: =R16/F16 -> $0.10 | T16: =N16/F16 -> $0.10
B17: Refrigerated, Natural mild cheddar, 1 0z. Portions
B18: Possible Allergens: Milk
A19: 5 | B19: Cheese, Mild Cheddar, Red, Fat Cube Portions | C19: Land O Lakes 44113 | E19: 200/1.0z | F19: 200 | G19: 5 | H19: =ROUND($G$19*$F$19/F19,2) -> 5 | I19: Cs | J19: $54.06 | K19: =IF(OR(ISBLANK(J19),G19=0,ISBLANK(G19)),,ROUND(J19+$K$3,2)) -> $54.06 | L19: =ROUND(H19*K19,2) -> $270.30 | M19: =ROUND(K19/F19,2) -> $0.27 | N19: $33.37 | O19: $1.6551 | P19: 12.5 | Q19: =ROUND(O19*P19,2) -> $20.69 | R19: =J19-Q19 -> $33.37 | S19: =R19/F19 -> $0.17 | T19: =N19/F19 -> $0.17
B20: Refrigerated Natural mild cheddar 1 0z. Portions
B21: Possible Allergens: Milk
A22: 6 | B22: Cheese, American 50% Red Fat, 50% Red Sodium, Sliced | C22: Land O Lakes 46288 | E22: 6/5 lbs. | F22: 960 | G22: 150 | H22: =ROUND($G$22*$F$22/F22,2) -> 150 | I22: Cs | O22: $1.6551 | P22: 23.04 | Q22: =ROUND(O22*P22,2) -> $38.13
B23: Refrigerated, No more than 2 g sar fat and 125 mg sodium per 1/2 oz. serving | C23: Bongard's 10054 | E23: 4/5 lbs. | F23: 640 | H23: =ROUND($G$22*$F$22/F23,2) -> 225 | I23: Cs | J23: $36.17 | K23: =IF(OR(ISBLANK(J23),G22=0,ISBLANK(G22)),,ROUND(J23+$K$3,2)) -> $36.17 | L23: =ROUND(H23*K23,2) -> $8,138.25 | M23: =ROUND(K23/F23,2) -> $0.06 | N23: $12.20 | O23: $1.6551 | P23: 14.48 | Q23: =ROUND(O23*P23,2) -> $23.97 | R23: =J23-Q23 -> $12.20 | S23: =R23/F23 -> $0.02 | T23: =N23/F23 -> $0.02
B24: Possible Allergens: Milk, Soy
A25: 7 | B25: Sauce, Cheese, Prepared, Pouch, Reduced Sodium | C25: Land O Lakes 39940 | E25: 6/106z | F25: 212 | G25: 0 | H25: =ROUND($G$25*$F$25/F25,2) -> 0 | I25: Cs | J25: $61.49 | K25: =IF(OR(ISBLANK(J25),G25=0,ISBLANK(G25)),,ROUND(J25+$K$3,2)) -> 0 | L25: =ROUND(H25*K25,2) -> 0 | M25: =ROUND(K25/F25,2) -> 0 | N25: $39.15 | O25: $1.6551 | P25: 13.5 | Q25: =ROUND(O25*P25,2) -> $22.34 | R25: =J25-Q25 -> $39.15 | S25: =R25/F25 -> $0.18 | T25: =N25/F25 -> $0.18
B26: Shelf Stable, Aseptically produced, perservative-free, packaged 3oz.=1 M/MA
B27: Possible Allergens: Milk, Soy
A28: 8 | B28: Cheese, American, Red Fat, Red Sod., Sliced | C28: Land O Lakes 46288 | E28: 200/1.0z | F28: 200 | G28: 0 | H28: =ROUND($G$28*$F$28/F28,2) -> 0 | I28: Cs | O28: $1.6929 | P28: 10.5 | Q28: =ROUND(O28*P28,2) -> $17.78 | R28: =J28-Q28 -> $(17.78) | S28: =Q29/F29 -> $0.03 | T28: =M29/F29 -> 0
B29: Refrigerated, Red fat & sodium, no more than 2 g sat fat and 140 mg sodium per 1/2 cup | C29: Bongards 10054-1 | E29: 4/5 lbs | F29: 640 | H29: =ROUND($G$28*$F$28/F29,2) -> 0 | I29: Cs | J29: $36.17 | K29: =IF(OR(ISBLANK(J29),G28=0,ISBLANK(G28)),,ROUND(J29+$K$3,2)) -> 0 | L29: =ROUND(H29*K29,2) -> 0 | M29: =ROUND(K29/F29,2) -> 0 | O29: $1.6929 | P29: 10.5 | Q29: =ROUND(O29*P29,2) -> $17.78 | R29: =J29-Q29 -> $18.39 | S29: =Q30/F30 ->  | T29: =M30/F30 -> 
B30: serving. One slice provides 1/2 M/MA
B31: Possible Allergens: Milk and Soy
A32: 9 | B32: Cheese, Mozzarella, String Cheese, Light, IW | C32: Land O Lakes 59703 | E32: 168/1.0z | F32: 168 | G32: 0 | H32: =ROUND($G$32*$F$32/F32,2) -> 0 | I32: Cs | O32: $1.6929 | P32: 10.5 | Q32: =ROUND(O32*P32,2) -> $17.78
B33: Refrig., Part skim mozz., 50% red sodium, No more than 2g sat fat and 220 sodium | C33: Bongard's 40299-1 | E33: 168/1.0z | F33: 168 | H33: =ROUND($G$32*$F$32/F33,2) -> 0 | I33: Cs | J33: $29.14 | K33: =IF(OR(ISBLANK(J33),G32=0,ISBLANK(G32)),,ROUND(J33+$K$3,2)) -> 0 | L33: =ROUND(H33*K33,2) -> 0 | M33: =ROUND(K33/F33,2) -> 0 | N33: $11.76 | O33: $1.6929 | P33: 10.5 | Q33: =ROUND(O33*P33,2) -> $17.78 | R33: =J33-Q33 -> $11.36 | S33: =R33/F33 -> $0.07 | T33: =N33/F33 -> $0.07
B34: Possible Allergens: Milk
A35: 10 | B35: Cheese, Mozzarella, String Cheese, IW | C35: Land O Lakes 59701 | E35: 168/1.0z | F35: 168 | G35: 17 | H35: =ROUND($G$46*$F$46/F35,2) -> 0 | I35: Cs | J35: $28.56 | K35: =IF(OR(ISBLANK(J35),G35=0,ISBLANK(G35)),,ROUND(J35+$K$3,2)) -> $28.56 | L35: =ROUND(H35*K35,2) -> 0 | M35: =ROUND(K35/F35,2) -> $0.17 | N35: $11.18 | O35: $1.6551 | P35: 10.5 | Q35: =ROUND(O35*P35,2) -> $17.38 | R35: =J35-Q35 -> $11.18 | S35: =R35/F35 -> $0.07 | T35: =N35/F35 -> $0.07
B36: Refrigerated, Part skim mozzarella, 1 oz. portions | C36: Bongard's 40295 | E36: 168/1.0z | F36: 168 | H36: =ROUND($G$46*$F$46/F36,2) -> 0 | I36: Cs | O36: $1.6551 | P36: 10.5 | Q36: =ROUND(O36*P36,2) -> $17.38
C37: Pauley 232901376 | E37: 160/1.0z | F37: 160 | H37: =ROUND($G$46*$F$46/F37,2) -> 0 | I37: Cs | N37: $1.6929 | O37: 78 | P37: =ROUND(N37*O37,2) -> $132.05 | Q37: =J37-P37 -> $(132.05) | S37: =Q37/E37 ->  | T37: =R37/F37 -> 0
B38: Possible Allergens: Milk | C38: Schrieber 25616 | E38: 168/1.0z | F38: 168 | H38: =ROUND($G$46*$F$46/F38,2) -> 0 | I38: Cs | N38: $1.6929 | O38: 20 | P38: $33.86 | Q38: =J38-P38 -> $(33.86) | S38: =Q38/E38 ->  | T38: =R38/F38 -> 0
A39: 11 | B39: Cheese, Sauce, Ultimate White Blend | C39: Land O Lakes 39944 | E39: 6/106 oz | F39: 212 | G39: 0 | H39: =ROUND($G$39*$F$39/F39,2) -> 0 | I39: Cs | J39: $66.66 | K39: =IF(OR(ISBLANK(J39),G39=0,ISBLANK(G39)),,ROUND(J39+$K$3,2)) -> 0 | L39: 0 | M39: 0 | N39: $42.53 | O39: $1.6551 | P39: 14.58 | Q39: =ROUND(O39*P39,2) -> $24.13 | R39: =J39-Q39 -> $42.53 | S39: =R39/F39 -> $0.20 | T39: =N39/F39 -> $0.20
B40: Shefl Stable, Aseptically produced, preservative-free, packaged in pouch
B41: 3 oz = 1 M/MA
B42: Possible Allergens: Milk
A43: 12 | B43: Cheese, Cheddar Cups | C43: Land O Lakes 39911 | E43: 140/3.0z | F43: 140 | G43: 5 | H43: =ROUND($G$43*$F$43/F43,2) -> 5 | I43: Cs | J43: $65.43 | K43: =IF(OR(ISBLANK(J43),G43=0,ISBLANK(G43)),,ROUND(J43+$K$3,2)) -> $65.43 | L43: $327.15 | M43: $0.47 | N43: $50.67 | O43: $1.6551 | P43: 8.92 | Q43: =ROUND(O43*P43,2) -> $14.76 | R43: =J43-Q43 -> $50.67 | S43: =R43/F43 -> $0.36 | T43: =N43/F43 -> $0.36
B44: Shelf Stable, Portion Pack, 3 oz. cup = 1 M/MA
B45: Possbile Allergens: Milk
A46: 13 | B46: Cheese, Cheddar Cups, Jalepeno | C46: Land O Lakes 39912 | E46: 140/3.0z | F46: 140 | G46: 0 | H46: =ROUND($G$46*$F$46/F46,2) -> 0 | I46: Cs | J46: $65.43 | K46: =IF(OR(ISBLANK(J46),G46=0,ISBLANK(G46)),,ROUND(J46+$K$3,2)) -> 0 | L46: =ROUND(H46*K46,2) -> 0 | M46: =ROUND(K46/F46,2) -> 0 | N46: $50.67 | O46: $1.6551 | P46: 8.92 | Q46: =ROUND(O46*P46,2) -> $14.76 | R46: =J46-Q46 -> $50.67 | S46: =R46/F46 -> $0.36 | T46: =N46/F46 -> $0.36
B47: Shelf Stable, Portion Pack, 3 oz. cup = 1 M/MA
B48: Possible Allergens: Milk
A49: 14 | B49: Margarine Reddies | C49: Distributor Choice | E49: 720/.5 gm | F49: 720 | G49: 5 | N49: $1.6929 | O49: 78 | P49: =ROUND(N49*O49,2) -> $132.05 | Q49: =J49-P49 -> $(132.05) | S49: =Q49/E49 ->  | T49: 0
B50: Pure Vegetable. Contains 0 Trans fat. | C50: Fillable txt box | H50: =ROUND(G49*F49/F50,2) ->  | I50: Cs | K50: =IF(OR(ISBLANK(G49),G49=0,ISBLANK(F50)),,ROUND(J50+$K$3,2)) -> 0 | L50: =ROUND(H50*K50,2) ->  | M50: =ROUND(K50/F50,2) ->  | N50: $1.6929 | O50: 20 | P50: $33.86 | Q50: =J50-P50 -> $(33.86)
A51: 15 | B51: Margarine Solids | C51: Distributor Choice | E51: 30Lb | F51: 30 | G51: 150 | N51: $1.6929 | O51: 78 | P51: $132.05 | Q51: =J51-P51 -> $(132.05) | T51: 0
B52: Pure Vegetable. Contains 0 Trans fat. | C52: Fillable txt box | H52: =ROUND(G51*F51/F52,2) ->  | I52: Cs | K52: =IF(OR(ISBLANK(G51),G51=0,ISBLANK(F52)),,ROUND(J52+$K$3,2)) -> 0 | L52: =ROUND(H52*K52,2) ->  | M52: =ROUND(K52/F52,2) ->  | N52: $1.6929 | O52: 20 | P52: $33.86 | Q52: =J52-P52 -> $(33.86)
A53: 16 | B53: Yogurt, Low Fat, 4 oz, Gluten Free | C53: Yoplait/Trix (General Mills) | E53: 48/4.0z | F53: 48 | G53: 50 | H53: =ROUND(G53*F53/F53,2) -> 50 | I53: Cs
B54: Refrigerated, Lowfat, flavored, pasteurized, Grade A contains live and active yogurt | C54: 17725 Raspberry Rainbow
B55: cultures, No aspartame, Expiration date on container, coded, and labeled in | C55: 17726 Strawberry Banana
B56: accordance with State and Federal Regulations | C56: 31077 Triple Cherry
B57: No more than 2 g of fat per serving. 0 trans fat | C57: Dannon (Danimals) | E57: 48/4.0z | F57: 48 | H57: =ROUND(G53*F53/F57,2) -> 50 | I57: Cs | J57: $9.36 | K57: =IF(OR(ISBLANK(J57),G53=0,ISBLANK(G53)),,ROUND(J57+$K$3,2)) -> $9.36 | L57: =ROUND(H57*K57,2) -> $468.00 | M57: =ROUND(K57/F57,2) -> $0.20
C58: 2731Strawberry Dianimals, 2732 Strawb Banana
B59: Possible Allergens: Milk | C59: 2733 Vanilla
C60: Creamy 1956 &1957 | E60: 48/4.0z. | F60: 48 | J60: $9.60 | K60: =IF(OR(ISBLANK(J60),G53=0,ISBLANK(G53)),,ROUND(J60+$K$3,2)) -> $9.60 | L60: =ROUND(H60*K60,2) -> 0 | M60: =ROUND(K60/F60,2) -> $0.20
A61: 17 | B61: Yogurt, Fat Free, 4 oz. Extended Shelf Life | C61: Upstate | E61: 48/4.0z | F61: 48 | G61: 0 | H61: =ROUND(G61*F61/F61,2) -> 0 | I61: Cs | J61: $12.36 | K61: =IF(OR(ISBLANK(J61),G61=0,ISBLANK(G61)),,ROUND(J61+$K$3,2)) -> 0 | L61: =ROUND(H61*K61,2) -> 0 | M61: =ROUND(K61/F61,2) -> 0
B62: Refrigerated, Lowfat, flavored, pasteurized, Grade A contains live and active yogurt | C62: Strawberry 9815
B63: cultures, No aspartame, Expiration date on container, coded, and labeled in | C63: Peach 9818
B64: accordance with State and Federal Regulations | C64: Cherry Vanilla 9819
B65: No more than 2 g of fat per serving. 0 trans fat | C65: Strawberry Banana 9820
B67: Possible Allergens: Milk
A68: 18 | B68: Yogurt, Fat Free, 8 oz. Extended Shelf Life | C68: Upstate | E68: 12/8.0z | F68: 12 | G68: 0 | H68: =ROUND(G68*F68/F68,2) -> 0 | I68: Cs | J68: $6.43 | K68: =IF(OR(ISBLANK(J68),G68=0,ISBLANK(G68)),,ROUND(J68+$K$3,2)) -> 0 | L68: =ROUND(H68*K68,2) -> 0 | M68: =ROUND(K68/F68,2) -> 0
B69: Refrigerated, Lowfat, flavored, pasteurized, Grade A contains live and active yogurt | C69: Strawberry 9834
B70: cultures, No aspartame, Expiration date on container, coded, and labeled in | C70: Peach 9835
B71: accordance with State and Federal Regulations | C71: Cherry Vanilla 9819
B72: No more than 2 g of fat per serving. 0 trans fat | C72: Strawberry Banana 9836
B74: Possible Allergens: Milk
A76: 19 | B76: Yogurt, Parfait Pro, Vanilla Pouch, Low fat | C76: Yoplait/General Mills 16632 | E76: 96/4 oz. | F76: 96 | G76: 3 | H76: =ROUND(G76*F76/F76,2) -> 3 | I76: Cs | J76: $21.74 | K76: =IF(OR(ISBLANK(J76),G76=0,ISBLANK(G76)),,ROUND(J76+$K$3,2)) -> $21.74 | L76: =ROUND(H76*K76,2) -> $65.22 | M76: =ROUND(K76/F76,2) -> $0.23
B77: Refrigerated, Lowfat, flavored, pasteurized, Grade A contains live and active yogurt | C77: Dannon Pro 1932 | E77: 4/6 lbs | F77: 96 | H77: =ROUND(G76*F76/F77,2) -> 3 | I77: Cs
B78: cultures, No aspartame, Expiration date on container, coded, and labeled in
B79: accordance with State and Federal Regulations
B80: 4 oz. serving equals 1 oz. protein
B81: Possible Allergens: Milk, Gluten Free
A82: 20 | B82: Yogurt, Parfait Pro, Strawberry Pouch, Low fat | C82: Yoplait/General Mills 16631 | E82: 96/4.0z | F82: 96 | G82: 3 | H82: =ROUND(G82*F82/F82,2) -> 3 | I82: Cs | J82: $21.74 | K82: =IF(OR(ISBLANK(J82),G82=0,ISBLANK(G82)),,ROUND(J82+$K$3,2)) -> $21.74 | L82: =ROUND(H82*K82,2) -> $65.22 | M82: =ROUND(K82/F82,2) -> $0.23
B83: Refrigerated, Lowfat, flavored, pasteurized, Grade A contains live and active yogurt | C83: Dannon Pro 1932 | E83: 4/6 lbs | F83: 96 | H83: =ROUND(G82*F82/F83,2) -> 3 | I83: Cs
B84: cultures, No aspartame, Expiration date on container, coded, and labeled in
B85: accordance with State and Federal Regulations
B86: 4 oz. serving equals 1 oz. protein
B87: Possible Allergens: Milk, Gluten Free
A88: 21 | B88: Yogurt, Tube, All Flavors | C88: Yoplait/General Mills 70470-47402 | E88: 48/4.0z | F88: 48 | G88: 0 | H88: =ROUND(G88*F88/F88,2) -> 0 | I88: Cs | J88: $15.58 | K88: =IF(OR(ISBLANK(J88),G88=0,ISBLANK(G88)),,ROUND(J88+$K$3,2)) -> 0 | L88: =ROUND(H88*K88,2) -> 0 | M88: =ROUND(K88/F88,2) -> 0
B89: Refrigerated, pasteurized, Grade A, contains live and active yogurt cultures,
B90: No aspartame, 50-100 calories with o sat fat and no more than 50 mg sodium
B91: Provides 1 M/MA for CN programs
B93: Possbile Allergens: Milk, Gluten Free
O94: Eggs, Whole Liquid Bulk Tank 100047
A95: 22 | B95: Eggs, Hard Cooked, Peeled, Pillow -Pak/Dry Packed | C95: Michael Foods 85018 | E95: 15 lbs | F95: 144 | G95: 0 | H95: =ROUND($G$95*$F$95/F95,2) -> 0 | I95: Cs | J95: $19.88 | K95: =IF(OR(ISBLANK(J95),G95=0,ISBLANK(G95)),,ROUND(J95+$K$3,2)) -> 0 | L95: =ROUND(H95*K95,2) -> 0 | M95: =ROUND(K95/F95,2) -> 0 | N95: $13.80 | O95: $0.4055 | P95: 15 | Q95: =ROUND(O95*P95,2) -> $6.08 | R95: =J95-Q95 -> $13.80 | S95: =R95/F95 -> $0.10 | T95: =N95/F95 -> $0.10
B96: Frozen, IQF, Fully cooked, 50-150 calories with no more than 4 g saturated fat and 350
B97: mg sodium per serving. CN Labeled for one portion to provide a min. 2 M/MA
B99: Possible Allergens: Egg, Milk, Soy
A100: 23 | B100: Egg Patty, Round | C100: Michael Foods 85017 | E100: 300/1.25z | F100: 300 | G100: 0 | H100: =ROUND($G$100*$F$100/F100,2) -> 0 | I100: Cs | J100: $31.01 | K100: =IF(OR(ISBLANK(J100),G100=0,ISBLANK(G100)),,ROUND(J100+$K$3,2)) -> 0 | L100: =ROUND(H100*K100,2) -> 0 | M100: =ROUND(K100/F100,2) -> 0 | N100: $24.61 | O100: $0.4055 | P100: 15.79 | Q100: =ROUND(O100*P100,2) -> $6.40 | R100: =J100-Q100 -> $24.61 | S100: =R100/F100 -> $0.08 | T100: =N100/F100 -> $0.08
B101: Frozen, IQF, Fully cooked, USDA inspected pasteurized whole eggs, Approx. 3" pattie | C101: Sunny Fresh/Cargill 40710 | E101: 369/1.25z | F101: 369 | H101: =ROUND($G$100*$F$100/F101,2) -> 0 | I101: Cs
B102: 40-100 calories with no more than 2g sat fat and 125 mg sodium per portion.
B103: One portion to provide min 1 M/MA
B104: Possible Allergens: Egg, Milk, Soy
A106: 24 | B106: Eggs, Scrambled, Pre-Cooked Refrigerated | C106: Michael Foods 85877 | E106: 12/1.85z | F106: 165 | G106: 0 | H106: =ROUND($G$106*$F$106/F106,2) -> 0 | I106: Cs | J106: $35.76 | K106: =IF(OR(ISBLANK(J106),G106=0,ISBLANK(G106)),,ROUND(J106+$K$3,2)) -> 0 | L106: =ROUND(H106*K106,2) -> 0 | M106: =ROUND(K106/F106,2) -> 0 | N106: $29.61 | O106: $0.4055 | P106: 15.17 | Q106: =ROUND(O106*P106,2) -> $6.15 | R106: =J106-Q106 -> $29.61 | S106: =R106/F106 -> $0.18 | T106: =N106/F106 -> $0.18
B107: Frozen, IQF, Fully cooked, USDA inspected pasteurized whole eggs, 45-50 calories with
B108: no more than 2g sat fat and 150 mg sodium per 1 oz. portion, provides min. 1 M/MA
B110: Possible Allergens: Egg, Milk, Soy
A111: 25 | B111: Eggs, Scrambled, Pre-Cooked, Frozen | C111: Michael Foods 85019 | E111: 4/5 lbs | F111: 320 | G111: 0 | H111: =ROUND($G$111*$F$111/F111,2) -> 0 | I111: Cs
B112: Frozen, IQF, Fully cooked, USDA Inspected pasteurized whole eggs, 45-50 calories | C112: Sunny Fresh/Cargill 40927 | E112: 4/5 lbs | F112: 320 | H112: =ROUND($G$111*$F$111/F112,2) -> 0 | I112: Cs | J112: $29.70 | K112: =IF(OR(ISBLANK(J112),G111=0,ISBLANK(G111)),,ROUND(J112+$K$3,2)) -> 0 | L112: =ROUND(H112*K112,2) -> 0 | M112: =ROUND(K112/F112,2) -> 0 | N112: $22.02 | O112: $0.4055 | P112: 18.93 | Q112: =ROUND(O112*P112,2) -> $7.68 | R112: =J112-Q112 -> $22.02 | S112: =R112/F112 -> $0.07 | T112: =N112/F112 -> $0.07
B113: with no more than 2g saturated fat and 150 mg sodium per 1 oz. portions. A 1 oz.
B114: portion provides a min. 1 M/MA
B116: Possible Allergens: Egg, Milk, Soy
A117: 26 | B117: Egg Omelet Cheddar Cheese | C117: Michael Foods 85037 | E117: 144/2.0z. | F117: 144 | G117: 0 | H117: =ROUND($G$117*$F$117/F117,2) -> 0 | I117: Cs | J117: $40.14 | K117: =IF(OR(ISBLANK(J117),G117=0,ISBLANK(G117)),,ROUND(J117+$K$3,2)) -> 0 | L117: =ROUND(H117*K117,2) -> 0 | M117: =ROUND(K117/F117,2) -> 0 | N117: $35.03 | O117: $0.4055 | P117: 12.61 | Q117: =ROUND(O117*P117,2) -> $5.11 | R117: =J117-Q117 -> $35.03 | S117: =R117/F117 -> $0.24 | T117: =N117/F117 -> $0.24
B118: Frozen, IQF, Fully cooked, USDA inspected pasteurized whole eggs with cheddar
B119: cheese filling. Oven baked, 100-200 calories with no more than 4g saturated fat and
B120: 300 mg sodium per serving. CN Labeled for one portion to provide min. 2 M/MA
B122: Possible Allergens: Egg, Milk, Soy
A123: 27 | B123: Skillet Frittata w/Egg, Cheese, Veg and Ham, IW | C123: Sunny Fresh/Cargill 40263 | E123: 96/3.35z | F123: 95 | G123: 0 | H123: =ROUND($G$123*$F$123/F123,2) -> 0 | I123: Cs | J123: $49.51 | K123: =IF(OR(ISBLANK(J123),G123=0,ISBLANK(G123)),,ROUND(J123+$K$3,2)) -> 0 | L123: =ROUND(H123*K123,2) -> 0 | M123: =ROUND(K123/F123,2) -> 0 | N123: $45.09 | O123: $0.4055 | P123: 12.61 | Q123: =ROUND(O123*P123,2) -> $5.11 | R123: =J123-Q123 -> $44.40 | S123: =R123/F123 -> $0.47 | T123: =N123/F123 -> $0.47
B124: Frozen, IQF, Fully cooked, 50-200 calories with no more than 5g saturated fat and 550
B125: mg sodium per serving. One portion provides min. 2 M/MA and 1 OEG
B127: Possible Allergens: Egg, Milk, Soy
A128: 28 | B128: Skillet Frittata w/Egg, Cheese, and Turkey Sausage Bulk | C128: Sunny Fresh/Cargill 40184 | E128: 225/2.20z | F128: 225 | G128: 0 | H128: =ROUND($G$128*$F$128/F128,2) -> 0 | I128: Cs | J128: $68.80 | K128: =IF(OR(ISBLANK(J128),G128=0,ISBLANK(G128)),,ROUND(J128+$K$3,2)) -> 0 | L128: =ROUND(H128*K128,2) -> 0 | M128: =ROUND(K128/F128,2) -> 0 | N128: $58.93 | O128: $0.4055 | P128: 24.35 | Q128: =ROUND(O128*P128,2) -> $9.87 | R128: =J128-Q128 -> $58.93 | S128: =R128/F128 -> $0.26 | T128: =N128/F128 -> $0.26
B129: Frozen, IQF, Fully cooked, 50-150 calories with no more than 4g saturated fat and 350
B130: mg sodium per serving. One portion provides min. 2 M/MA
B132: Possible Allergens: Egg, Milk, Soy
A134: 29 | B134: Pudding Cups, 3.75oz | C134: Kozy Shack | E134: 48/3.75z | F134: 48 | G134: 0 | H134: =ROUND(G134*F134/F134,2) -> 0 | I134: Cs | K134: =IF(OR(ISBLANK(J134),G134=0,ISBLANK(G134)),,ROUND(J134+$K$3,2)) -> 0 | L134: =ROUND(H134*K134,2) -> 0 | M134: =ROUND(K134/F134,2) -> 0
B135: Refrigerated Product, Kosher. Gluten-free | C135: 03710 Cowrageous Chocolate
B136: Smart Snacks Compliant | C136: 03720 Cowrageous Vanilla
B137: Possible Allergens: Milk
A138: 30 | B138: Ice Cream Bar, Low Fat | C138: Blue Bunny | E138: 144/3.0z | F138: 144 | G138: 0 | H138: =ROUND(G138*F138/F138,2) -> 0 | I138: Cs | K138: =IF(OR(ISBLANK(J138),G138=0,ISBLANK(G138)),,ROUND(J138+$K$3,2)) -> 0 | L138: =ROUND(H138*K138,2) -> 0 | M138: =ROUND(K138/F138,2) -> 0
B139: Frozen, Flavored Center, with a crunch coating. | C139: 1097897 Chocolate Crunch
B140: Smart Snacks Compliant | C140: 1097993 Strawberry Crunch
B141: Possible Allergens: Milk, Soy, and Wheat
A142: 17 | B142: Ice Cream Sandwich, Low Fat | C142: Blue Bunny 1097801 | E142: 96/3.0z | F142: 96 | G142: 0 | H142: =ROUND(G142*F142/F142,2) -> 0 | I142: Cs | K142: =IF(OR(ISBLANK(J142),G142=0,ISBLANK(G142)),,ROUND(J142+$K$3,2)) -> 0 | L142: =ROUND(H142*K142,2) -> 0 | M142: =ROUND(K142/F142,2) -> 0
B143: Vanilla flavored low-fat ice cream between two chocolate flavored wafers.
B144: Smart Snacks Compliant
B145: Possible Allergens: Milk, Soy, Wheat
A146: 18 | B146: Ice Cream, Fudge Bar | C146: Blue Bunny | E146: 48/3.0oz | F146: 48 | G146: 0 | H146: =ROUND(G146*F146/F146,2) -> 0 | I146: Cs | K146: =IF(OR(ISBLANK(J146),G146=0,ISBLANK(G146)),,ROUND(J146+$K$3,2)) -> 0 | L146: =ROUND(H146*K146,2) -> 0 | M146: =ROUND(K146/F146,2) -> 0
B147: Smart Snacks Compliant | C147: 218082 Classics Fudge Bar
B148: Possible Allergens: Milk
G151: 0 | I151: Page Total | L151: =SUMIF(L6:L149,">0") -> $15,063.64

Sheet Frozen Potato
B1: ='Recap Sheet'!A2 -> School Food Authority: | E1: ='Recap Sheet'!A3 -> Offeror Name: | O1: Commodity
B2: ='Recap Sheet'!B2 -> WILLIAMSBURG COUNTY SCHOOLS | C2: Return to Recap Sheet | E2: ='Recap Sheet'!B3 -> 0
A3: Item | B3: Description | C3: Approved Brand Name / Manuf ID # | F3: Firm Fixed Fee | K3: ='Recap Sheet'!B4 -> $0.00 | N3: Processing | O3: Commodity | P3: Pounds of | R3: NOI | S3: Net NOI | T3: Total Cost
A4: # | D4: Distributor | E4: Vendor | F4: Svgs | G4: Est. | H4: Bid | I4: Bid | J4: Unit | K4: Unit Price | L4: Total | M4: Cost per | N4: Fee For | O4: Value Per | P4: DF Needed | Q4: Commodity | R4: Net | S4: Cost Per | T4: Processing Fee
D5: Code | E5: Pack | F5: per unit | G5: Bid Qty | H5: Qty | I5: Unit | J5: Price | K5: plus Fee | L5: Price | M5: Unit | N5: Service | O5: Pound | P5: Per Case | Q5: Value | R5: Price | S5: Serving | T5: Per Serving
B6: Potato Products, Frz | O6: Commodity 100506
A8: 1 | B8: French Fries, Shoestring 1/4-5/16", Coated | C8: Lamb Weston S34 | E8: 6/4.5 Lb | F8: 144 | G8: 30 | H8: =ROUND($G$8*$F$8/F8,2) -> 30 | I8: Cs | O8: $0.1049 | P8: 49.09 | Q8: =ROUND(O8*P8,2) -> $5.15
B9: Frozen, USDA LF or XLF, Grade A, Low moisture, 100-150 than 1 g saturated fat and 300 mg sodium | C9: Simplot 79036357 | E9: 6/5 Lb | F9: 200 | H9: =ROUND($G$8*$F$8/F9,2) -> 21.6 | I9: Cs | J9: $23.67 | K9: =IF(OR(ISBLANK(J9),G8=0,ISBLANK(G8)),,ROUND(J9+$K$3,2)) -> $23.67 | L9: =ROUND(H9*K9,2) -> $511.27 | M9: =ROUND(K9/F9,2) -> $0.12 | N9: $17.95 | O9: $0.1049 | P9: 54.55 | Q9: =ROUND(O9*P9,2) -> $5.72 | R9: =K9-Q9 -> $17.95 | S9: =R9/F9 -> $0.09 | T9: =N9/F9 -> $0.09
B10: per 1/2 cup veg serving | C10: Cavendish 56210-05311-2 | E10: 6/4.5 lb | F10: 144 | H10: =ROUND($G$8*$F$8/F10,2) -> 30 | I10: Cs | N10: 0 | O10: $0.1049 | P10: 54.55 | Q10: $5.72
B11: Possible Allergens: None Listed
A12: 2 | B12: French Fries, 3/8" Straight Cut, Ovenable, Low Sodium | C12: Simplot 79026709 | E12: 6/5 Lb | F12: 160 | G12: 0 | H12: =ROUND($G$12*$F$12/F12,2) -> 0 | I12: Cs | J12: $22.17 | K12: =IF(OR(ISBLANK(J12),G12=0,ISBLANK(G12)),,ROUND(J12+$K$3,2)) -> 0 | L12: =ROUND(H12*K12,2) -> 0 | M12: =ROUND(K12/F12,2) -> 0 | N12: $16.45 | O12: $0.1049 | P12: 54.55 | Q12: =ROUND(O12*P12,2) -> $5.72 | R12: =K12-Q12 -> -$5.72 | S12: =R12/F12 -> $(0.04) | T12: =N12/F12 -> $0.10
B13: Frozen, Made from white, USDA Grade A potatoes. Extra Long or Long Fancy.
B14: No tropical oils, 0 trans fat, 100-150 calories, no more than 1g sat fat and no more than 30 mg sodium per 1/2c svg
B15: Possible Allergens: None Listed
A16: 3 | B16: French Fries, 3/8"-1/2", Crinkle Cut, Ovenable, Low Sodium | C16: McCain OIF00055A | E16: 6/5 Lb | F16: 160 | G16: 270 | H16: =ROUND(G16*F16/F16,2) -> 270 | I16: Cs | O16: $0.1049 | P16: 54.55 | Q16: =ROUND(O16*P16,2) -> $5.72 | T16: =N16/F16 -> 0
B17: Frozen. Made from white, USDA Grade A potatoes. Extra Long or Long Fancy. | C17: Lamb Weston R45 | E17: 6/5 Lb | F17: 160 | H17: =ROUND(G16*F16/F17,2) -> 270 | I17: Cs | O17: $0.1049 | P17: 54.55 | Q17: =ROUND(O17*P17,2) -> $5.72 | T17: 0
B18: No tropical oils, 0 trans fat, 100-150 calories, no more than 1g sat fat and no more than 50 mg sodium per 1/2c svg | C18: Simplot 71179221227 | E18: 6/5 Lb | F18: 160 | H18: =ROUND(G16*F16/F18,2) -> 270 | I18: Cs | J18: $17.37 | K18: =IF(OR(ISBLANK(J18),G16=0,ISBLANK(G16)),,ROUND(J18+$K$3,2)) -> $17.37 | L18: =ROUND(H18*K18,2) -> $4,689.90 | M18: =ROUND(K18/F18,2) -> $0.11 | O18: $0.1049 | P18: 54.55 | Q18: =ROUND(O18*P18,2) -> $5.72 | R18: =K18-Q18 -> $11.65 | S18: =R18/F18 -> $0.07 | T18: 0
B19: Possible Allergens: None Listed
A20: 4 | B20: French Fries, 3/8", Regular cut (Fried or Baked) Coated | C20: Lamb Weston S57 | E20: 6/5 Lb | F20: 160 | G20: 15 | H20: =ROUND(G20*F20/F20,2) -> 15 | I20: Cs | O20: $0.1049 | P20: 54.55 | Q20: =ROUND(O20*P20,2) -> $5.72 | T20: =N20/F20 -> 0
B21: Frozen. Made from white, USDA Grade A potatoes, Extra Long or Long Fancy. | C21: McCain MCF03788 | E21: 6/5 Lb | F21: 160 | H21: =ROUND(G20*F20/F21,2) -> 15 | I21: Cs | J21: $23.95 | K21: =IF(OR(ISBLANK(J21),G20=0,ISBLANK(G20)),,ROUND(J21+$K$3,2)) -> $23.95 | L21: =ROUND(H21*K21,2) -> $359.25 | M21: =ROUND(K21/F21,2) -> $0.15 | N21: $18.23 | O21: $0.1049 | P21: 54.55 | Q21: =ROUND(O21*P21,2) -> $5.72 | R21: =K21-Q21 -> $18.23 | S21: =R21/F21 -> $0.11 | T21: $0.11
B22: No tropical oils, 0 trans fat, 50-150 calories, no more than 1g sat fat and no more than 400 mg sodium per 1/2c svg
B23: Possible Allergens: None Listed
A24: 5 | B24: French Fries, 3/8" Straight Cut, (ovenable), Reduced Sodium, Seasoned | C24: McCain MCX04717 | E24: 6/5 Lb | F24: 160 | G24: 0 | H24: =ROUND(G24*F24/F24,2) -> 0 | I24: Cs | J24: $28.15 | K24: =IF(OR(ISBLANK(J24),G24=0,ISBLANK(G24)),,ROUND(J24+$K$3,2)) -> 0 | L24: =ROUND(H24*K24,2) -> 0 | M24: =ROUND(K24/F24,2) -> 0 | N24: $22.43 | O24: $0.1049 | P24: 54.55 | Q24: =ROUND(O24*P24,2) -> $5.72 | R24: =K24-Q24 -> -$5.72 | S24: =R24/F24 -> $(0.04) | T24: =N24/F24 -> $0.14
B25: Frozen. Made from white, USDA Grade A potatoes, Extra Long or Long Fancy with a blend of spices.
B26: No tropical oils. 0 Trans Fat. 100-150 Calories with 1g Sat fat and 150 mg Sodium per 1/2 c serving.
B27: Possible Allergens: None Listed
A28: 6 | B28: Potato Baby Bakers | C28: Simplot 79000488 | E28: 6/2.5 lbs | F28: 80 | G28: 0 | H28: =ROUND(G28*F28/F28,2) -> 0 | I28: Cs | J28: $23.42 | K28: =IF(OR(ISBLANK(J28),G28=0,ISBLANK(G28)),,ROUND(J28+$K$3,2)) -> 0 | L28: =ROUND(H28*K28,2) -> 0 | M28: =ROUND(K28/F28,2) -> 0 | N28: $21.45 | O28: $0.1049 | P28: 18.75 | Q28: =ROUND(O28*P28,2) -> $1.97 | R28: =K28-Q28 -> -$1.97 | S28: =R28/F28 -> $(0.02) | T28: =N28/F28 -> $0.27
B29: Frozen, whole miniature potatoes seasoned with garlic and black pepper, bake and serve, 80-150 calories with no
B30: more than 1 g sat fat and 200 mg sodium per 1/2 cup vegetable serving
B31: Possible Allergens: None Listed
A32: 7 | B32: Potato Roasters | C32: McCain MCF03927 | E32: 6/5 Lb | F32: 160 | G32: 0 | H32: =ROUND(G32*F32/F32,2) -> 0 | I32: Cs | J32: $28.75 | K32: =IF(OR(ISBLANK(J32),G32=0,ISBLANK(G32)),,ROUND(J32+$K$3,2)) -> 0 | L32: =ROUND(H32*K32,2) -> 0 | M32: =ROUND(K32/F32,2) -> 0 | N32: $23.03 | O32: $0.1049 | P32: 54.55 | Q32: =ROUND(O32*P32,2) -> $5.72 | R32: =K32-Q32 -> -$5.72 | S32: =R32/F32 -> $(0.04) | T32: =N32/F32 -> $0.14
B33: Frozen, diced, roasted potatoes seasoned with garlic, rosemary and herbs, bake and serve, 100-200 calories with
B34: no more than 1 g sat fat and 200 mg of sodium per 1/2 c vegetable serving
B35: Possible Allergens: None Listed
A36: 8 | B36: Potato, Red Skin, Chopped, Roasted | C36: McCain Ore/Ida MCF04851 | E36: 4/4 lbs | F36: 85 | G36: 0 | H36: =ROUND(G36*F36/F36,2) -> 0 | I36: Cs | J36: $20.00 | K36: =IF(OR(ISBLANK(J36),G36=0,ISBLANK(G36)),,ROUND(J36+$K$3,2)) -> 0 | L36: =ROUND(H36*K36,2) -> 0 | M36: =ROUND(K36/F36,2) -> 0 | N36: $17.90 | O36: $0.1049 | P36: 20 | Q36: =ROUND(O36*P36,2) -> $2.10 | R36: =K36-Q36 -> -$2.10 | S36: =R36/F36 -> $(0.02) | T36: =N36/F36 -> $0.21
B37: Frozen, chopped, roasted potatoes seasoned with garlic, rosemary and herbs, bake and serve, 100-200 calories
B38: with no more than 1 g sat fat and 200 mg of sodium per 1/2 c vegetable serving
B39: Possible Allergens: None Listed
A40: 9 | B40: Potato Rounds/Tots | C40: Lamb Weston H30 | E40: 6/5 Lb | F40: 160 | G40: 80 | H40: =ROUND(G40*F40/F40,2) -> 80 | I40: Cs | O40: $0.1049 | P40: 54.55 | Q40: =ROUND(O40*P40,2) -> $5.72
B41: Frozen, Grade A, Crisp golden brown exterior, 100-200 calories with no more than 2 g sat fat and 350 mg sodium | C41: McCain/Ore-Ida OIF00215A | E41: 6/5 Lb | F41: 160 | H41: =ROUND(G40*F40/F41,2) -> 80 | I41: Cs | O41: $0.1049 | P41: 54.55 | Q41: =ROUND(O41*P41,2) -> $5.72
B42: per 1/2 c vegetable serving | C42: Simplot 79004189 | E42: 6/5 Lb | F42: 160 | H42: =ROUND(G40*F40/F42,2) -> 80 | I42: Cs | J42: $21.57 | K42: =IF(OR(ISBLANK(J42),G40=0,ISBLANK(G40)),,ROUND(J42+$K$3,2)) -> $21.57 | L42: =ROUND(H42*K42,2) -> $1,725.60 | M42: =ROUND(K42/F42,2) -> $0.13 | N42: $15.85 | O42: $0.1049 | P42: 54.55 | Q42: =ROUND(O42*P42,2) -> $5.72 | R42: =K42-Q42 -> $15.85 | S42: =R42/F42 -> $0.10 | T42: =N42/F42 -> $0.10
B43: Possible Allergens: Soy
A44: 10 | B44: Potato Rounds/Tots, Low Sodium | C44: McCain/Ore-Ida 1000002789 | E44: 6/5 Lb | F44: 156 | G44: 0 | H44: =ROUND(G44*F44/F44,2) -> 0 | I44: Cs | J44: $27.70 | K44: =IF(OR(ISBLANK(J44),G44=0,ISBLANK(G44)),,ROUND(J44+$K$3,2)) -> 0 | L44: =ROUND(H44*K44,2) -> 0 | M44: =ROUND(K44/F44,2) -> 0 | N44: $21.98 | O44: $0.1049 | P44: 54.55 | Q44: =ROUND(O44*P44,2) -> $5.72 | R44: =K44-Q44 -> -$5.72 | S44: =R44/F44 -> $(0.04) | T44: =N44/F44 -> $0.14
B45: Frozen, Grade A, Crisp golden brown exterior, 90-200 calories with no more than 2 g sat fat and 170 mg sodium
B46: per 1/2 c vegetable serving
B47: Possible Allergens: None Listed
A48: 11 | B48: Potato, Shaped | C48: McCain/Ore-Ida OIF03456 | E48: 6/4 lb | F48: 128 | G48: 451 | H48: =ROUND(G48*F48/F48,2) -> 451 | I48: Cs | O48: $0.1049 | P48: 43.64 | Q48: =ROUND(O48*P48,2) -> $4.58
B49: Frozen, mashed and formed, 100-200 calories with no more than 1 g sat fat and 200 mg sodium per 1/2 c | C49: Lamb Weston S0026 | E49: 6/5 lb | F49: 160 | H49: =ROUND(G48*F48/F49,2) -> 360.8 | I49: Cs | J49: $27.45 | K49: =IF(OR(ISBLANK(J49),G48=0,ISBLANK(G48)),,ROUND(J49+$K$3,2)) -> $27.45 | L49: =ROUND(H49*K49,2) -> $9,903.96 | M49: =ROUND(K49/F49,2) -> $0.17 | N49: $21.73 | O49: $0.1049 | P49: 54.55 | Q49: =ROUND(O49*P49,2) -> $5.72 | R49: =K49-Q49 -> $21.73 | S49: =R49/F49 -> $0.14 | T49: =N49/F49 -> $0.14
B50: vegetable serving
B51: Possible Allergens: None Listed
A52: 12 | B52: French Fries, Spirals, Battered Red Sodium | C52: McCain/Ore-Ida 1000004108 | E52: 6/4 lbs | F52: 183 | G52: 0 | H52: =ROUND(G52*F52/F52,2) -> 0 | I52: Cs | J52: $23.98 | K52: =IF(OR(ISBLANK(J52),G52=0,ISBLANK(G52)),,ROUND(J52+$K$3,2)) -> 0 | L52: =ROUND(H52*K52,2) -> 0 | M52: =ROUND(K52/F52,2) -> 0 | N52: $19.40 | O52: $0.1049 | P52: 43.64 | Q52: =ROUND(O52*P52,2) -> $4.58 | R52: =K52-Q52 -> -$4.58 | S52: =R52/F52 -> $(0.03) | T52: =N52/F52 -> $0.11
B53: Frozen, USDA Grade A, 100-200 calories with no more thatn 1 g saturated fat and 200 mg sodium per 1/2 c
B54: vegetable serving
B55: Possible Allergens: None Listed
A56: 13 | B56: Potato Sticks, Seasoned, Reduced Sodium | C56: McCain MCX04717 | E56: 6/5 Lb | F56: 160 | G56: 0 | H56: =ROUND(G56*F56/F56,2) -> 0 | I56: Cs | J56: $28.15 | K56: =IF(OR(ISBLANK(J56),G56=0,ISBLANK(G56)),,ROUND(J56+$K$3,2)) -> 0 | L56: =ROUND(H56*K56,2) -> 0 | M56: =ROUND(K56/F56,2) -> 0 | N56: $22.43 | O56: $0.1049 | P56: 54.55 | Q56: =ROUND(O56*P56,2) -> $5.72 | R56: =K56-Q56 -> -$5.72 | S56: =R56/F56 -> $(0.04) | T56: =N56/F56 -> $0.14
B57: Frozen, USDA Grade A, 100-200 calories with no more than 1 g saturated fat and 150 mg sodium per 1/2c
B58: vegetable serving
B59: Possible Allergens: None Listed
A60: 14 | B60: Potato Wedge, 8-10 Cut, (Bake or Fry) | C60: McCain/Ore-Ida OIF0024A | E60: 6/5 Lb | F60: 160 | G60: 70 | H60: =ROUND(G60*F60/F60,2) -> 70 | I60: Cs | O60: $0.1049 | P60: 54.55 | Q60: =ROUND(O60*P60,2) -> $5.72
B61: Frozen, USDA Grade A, 50-150 calories with no more than 1 g saturated fat and 50 mg sodium per 1/2c | C61: Simplot 79238010 | E61: 6/5 Lb | F61: 160 | H61: =ROUND(G60*F60/F61,2) -> 70 | I61: Cs | J61: $19.17 | K61: =IF(OR(ISBLANK(J61),G60=0,ISBLANK(G60)),,ROUND(J61+$K$3,2)) -> $19.17 | L61: =ROUND(H61*K61,2) -> $1,341.90 | M61: =ROUND(K61/F61,2) -> $0.12 | N61: $13.45 | O61: $0.1049 | P61: 54.55 | Q61: =ROUND(O61*P61,2) -> $5.72 | R61: =K61-Q61 -> $13.45 | S61: =R61/F61 -> $0.08 | T61: =N61/F61 -> $0.08
B62: vegetable serving
B63: Possible Allergens: None Listed
A64: 15 | B64: Potato Waffle Cut | C64: McCain/Ore-Ida MCL03623 | E64: 6/5 Lb | F64: 144 | G64: 0 | H64: =ROUND(G64*F64/F64,2) -> 0 | I64: Cs | J64: $23.91 | K64: =IF(OR(ISBLANK(J64),G64=0,ISBLANK(G64)),,ROUND(J64+$K$3,2)) -> 0 | L64: =ROUND(H64*K64,2) -> 0 | M64: =ROUND(K64/F64,2) -> 0 | N64: $18.76 | O64: $0.1049 | P64: 49.09 | Q64: =ROUND(O64*P64,2) -> $5.15 | R64: =K64-Q64 -> -$5.15 | S64: =R64/F64 -> $(0.04) | T64: =N64/F64 -> $0.13
B65: Frozen, USDA Grade A, 100-200 calories with no more than 2 g saturated fat and 600 mg sodium per 1/2c
B66: vegetable serving
B67: Possible Allergens: None Listed
A68: 16 | B68: Hash Brown Rounds | C68: McCain 1000006188 | E68: 6/5 Lb | F68: 160 | G68: 15 | H68: =ROUND(G68*F68/F68,2) -> 15 | I68: Cs | J68: $29.20 | K68: =IF(OR(ISBLANK(J68),G68=0,ISBLANK(G68)),,ROUND(J68+$K$3,2)) -> $29.20 | L68: =ROUND(H68*K68,2) -> $438.00 | M68: =ROUND(K68/F68,2) -> $0.18 | N68: $23.48 | O68: $0.1049 | P68: 54.55 | Q68: =ROUND(O68*P68,2) -> $5.72 | R68: =K68-Q68 -> $23.48 | S68: =R68/F68 -> $0.15 | T68: =N68/F68 -> $0.15
B69: Frozen, USDA Grade A, 50-150 calories with no more than 1 g saturated fat and 250 mg sodium per 1/2c
B70: vegetable serving
B71: Possible Allergens: None Listed
B72: Category: Sweet Potatoes | O72: Commodity | P72: 100980
A73: 17 | B73: Potato, Sweet Potato Fries 3/8" Straight Cut | C73: Lamb Weston L8000 | E73: 5/3 Lb | F73: 80 | G73: 85 | H73: =ROUND(G73*F73/F73,2) -> 85 | I73: Cs | J73: $20.78 | K73: =IF(OR(ISBLANK(J73),G73=0,ISBLANK(G73)),,ROUND(J73+$K$3,2)) -> $20.78 | L73: =ROUND(H73*K73,2) -> $1,766.30 | M73: =ROUND(K73/F73,2) -> $0.26 | O73: $0.2231 | P73: 29.41 | Q73: =ROUND(O73*P73,2) -> $6.56 | S73: =K73-Q73 -> $14.22 | T73: =S73/F73 -> $0.18
B74: Frozen. Made from Grade A Sweet Potatoes, Extra Long or Long Fancy. No tropical oils, 0 Trans Fat.
B75: 80-200 Calories, no more than 1g Sat Fat; no more than 250mg Sodium per 1/2c serving, R/O Veg.
B76: Possible Allergens: None Listed
A77: 18 | B77: Potato, Sweet Potato, Waffle cut | C77: Lamb Weston L0090 | E77: 5/3 Lb | F77: 80 | G77: 0 | H77: =ROUND(G77*F77/F77,2) -> 0 | I77: Cs | J77: $21.53 | K77: =IF(OR(ISBLANK(J77),G77=0,ISBLANK(G77)),,ROUND(J77+$K$3,2)) -> 0 | L77: =ROUND(H77*K77,2) -> 0 | M77: =ROUND(K77/F77,2) -> 0 | N77: $15.76 | O77: $0.1963 | P77: 29.41 | Q77: =ROUND(O77*P77,2) -> $5.77 | R77: =K77-Q77 -> -$5.77 | S77: =R77/F77 -> $(0.07) | T77: =N77/F77 -> $0.20
B78: Frozen. Made from Grade A Sweet Potatoes, Fancy. No tropical oils, 0 Trans Fat. | C78: McCain MCF05074 | E78: 6/2.5 lbs | F78: 80 | H78: =ROUND(G77*F77/F78,2) -> 0 | I78: Cs | O78: $0.1963 | P78: 29.41 | Q78: =ROUND(O78*P78,2) -> $5.77
B79: 50-200 Calories, no more than 1g Sat Fat; no more than 250mg Sodium per 1/2c serving, R/O Veg.
B80: Possible Allergens: None Listed
A81: 19 | B81: Potato, Sweet Potato Fries, 3/8" Crinkle Cut | C81: Lamb Weston L0084 | E81: 5/3 Lb | F81: 80 | G81: 30 | H81: =ROUND(G81*F81/F81,2) -> 30 | I81: Cs | O81: $0.1963 | P81: 29.41 | Q81: =ROUND(O81*P81,2) -> $5.77
B82: Frozen. Made from Grade A Sweet Potatoes, Extra Long or Long Fancy. No tropical oils, 0 Trans Fat. | C82: Simplot 79020356 | E82: 6/2.5 Lb | F82: 80 | H82: =ROUND($G$81*$F$81/F82,2) -> 30 | I82: Cs | J82: $20.53 | K82: =IF(OR(ISBLANK(J82),G81=0,ISBLANK(G81)),,ROUND(J82+$K$3,2)) -> $20.53 | L82: =ROUND(H82*K82,2) -> $615.90 | M82: =ROUND(K82/F82,2) -> $0.26 | N82: $14.76 | O82: $0.1963 | P82: 29.41 | Q82: =ROUND(O82*P82,2) -> $5.77 | R82: =K82-Q82 -> $14.76 | S82: =R82/F82 -> $0.18 | T82: =N82/F82 -> $0.18
B83: 100-200 Calories, no more than 1g Sat Fat; no more than 230mg Sodium per 1/2c serving, R/O Veg.
B84: Possible Allergens: None Listed
A85: 20 | B85: Sweet Potato Mini Puffs | C85: Lamb Weston L0094 | E85: 6/2.5 lbs | F85: 80 | G85: 40 | H85: =ROUND(G85*F85/F85,2) -> 40 | I85: Cs | J85: $21.90 | K85: =IF(OR(ISBLANK(J85),G85=0,ISBLANK(G85)),,ROUND(J85+$K$3,2)) -> $21.90 | L85: =ROUND(H85*K85,2) -> $876.00 | M85: =ROUND(K85/F85,2) -> $0.27 | N85: $16.13 | O85: $0.1963 | P85: 29.41 | Q85: =ROUND(O85*P85,2) -> $5.77 | R85: =K85-Q85 -> $16.13 | S85: =R85/F85 -> $0.20 | T85: =N85/F85 -> $0.20
B86: Frozen. Grade A , 100-200 calories with no more than 1 g saturated fat and 250 mg sodium per 1/2 cu R/O
B87: vegetable serving
B88: Possible Allergens: None Listed
A89: 21 | B89: Sweet Potato Wedge, 10 cut | C89: McCain MCF04712 | E89: 6/2.5 lbs | F89: 80 | G89: 188 | H89: =ROUND(G89*F89/F89,2) -> 188 | I89: Cs | J89: $20.50 | K89: =IF(OR(ISBLANK(J89),G89=0,ISBLANK(G89)),,ROUND(J89+$K$3,2)) -> $20.50 | L89: =ROUND(H89*K89,2) -> $3,854.00 | M89: =ROUND(K89/F89,2) -> $0.26 | N89: $14.73 | O89: $0.1963 | P89: 29.41 | Q89: =ROUND(O89*P89,2) -> $5.77 | R89: =K89-Q89 -> $14.73 | S89: =R89/F89 -> $0.18 | T89: =N89/F89 -> $0.18
B90: Frozen. Grade A , 100-200 calories with no more than 1 g saturated fat and 250 mg sodium per 1/2 cu R/O
B91: vegetable serving
B92: Possible Allergens: None Listed
I94: Page Total | L94: =SUMIF(L6:L92,">0") -> $26,082.08

Sheet Sheet58

Sheet Sheet59

Sheet Sheet60

Sheet Sheet61

Sheet Sheet62

Sheet Sheet63

Sheet Sheet64

Sheet Sheet65

Sheet Sheet66

Sheet Sheet67

Sheet Sheet68

Sheet Sheet69

Sheet Sheet70

Sheet Sheet71

Sheet Sheet72

Sheet Sheet73

Sheet Sheet74

Sheet Sheet75

Sheet Sheet76

Sheet Sheet77

Sheet Sheet78

Sheet Sheet79

Sheet Sheet80

Sheet Sheet81

Sheet Sheet82

Sheet Sheet83

Sheet Sheet84

Sheet Sheet85

Sheet Sheet86

Sheet Sheet87

Sheet Sheet88

Sheet Sheet89

Sheet Sheet90

Sheet Sheet91

Sheet Sheet92

Sheet Sheet93

Sheet Sheet94

Sheet Sheet95

Sheet Sheet96

Sheet Sheet97

Sheet Sheet98

Sheet Sheet99

Sheet Sheet100

Sheet Sheet101

Sheet Sheet102

Sheet Sheet103

Sheet Sheet104

Sheet Sheet105

Sheet Sheet106

Sheet Sheet107

Sheet Sheet108

Sheet Sheet9

Sheet Sheet10

Sheet Sheet11

Sheet Sheet12

Sheet Sheet7

Sheet Sheet8

Sheet Sheet2

Sheet Sheet3

Sheet Sheet4

Sheet Sheet5

Sheet Sheet6

Sheet Frozen Fruit & Juice
B1: ='Recap Sheet'!B2 -> WILLIAMSBURG COUNTY SCHOOLS | C1: Return to Recap Sheet | E1: ='Recap Sheet'!B3 -> 0
A2: Item | B2: Description | C2: Approved Brand Name / Manuf ID # | F2: Firm Fixed Fee | K2: ='Recap Sheet'!B4 -> $0.00
A3: # | D3: Distributor | E3: Vendor | F3: Svgs | G3: Est. | H3: Bid | I3: Bid | J3: Unit | K3: Unit Price | L3: Total | M3: Cost per
D4: Code | E4: Pack | F4: per unit | G4: Bid Qty | H4: Qty | I4: Unit | J4: Price | K4: plus Fee | L4: Price | M4: Unit
B5: Frozen Fruit and Juice
A6: 1 | B6: Juice, Apple, Cartons, 4 oz | C6: Ardmore Farms 42298 | E6: 70/4.0z | F6: 70 | G6: 720 | H6: =ROUND($G$6*$F$6/F6,2) -> 720 | I6: Cs
B7: 100% Apple Juice, Unsweetened. Deliver frozen only | C7: Sun Cup 030301 | E7: 70/4.0z | F7: 70 | H7: =ROUND($G$6*$F$6/F7,2) -> 720 | I7: Cs | J7: $6.21 | K7: =IF(OR(ISBLANK(J7),G6=0,ISBLANK(G6)),,ROUND(J7+$K$2,2)) -> $6.21 | L7: =ROUND(H7*K7,2) -> $4,471.20 | M7: =ROUND(K7/F7,2) -> $0.09
B8: 1 serving = 1/2 cup fruit | C8: Mr. J. 2840 | E8: 70/4.0z | F8: 70 | H8: =ROUND($G$6*$F$6/F8,2) -> 720 | I8: Cs
A9: 2 | B9: Juice, Apple, Cartons, 6 oz | C9: Ardmore Farms 42212 | E9: 70/6.0z | F9: 70 | G9: 170 | H9: =ROUND(G9*F9/F9,2) -> 170 | I9: Cs
B10: 100% Apple Juice, unsweetened, deliver frozen only | C10: Sun Cup 50301 | E10: 70/6.0z | F10: 70 | H10: =ROUND($G$9*$F$9/F10,2) -> 170 | I10: Cs | J10: $7.91 | K10: =IF(OR(ISBLANK(J10),G9=0,ISBLANK(G9)),,ROUND(J10+$K$2,2)) -> $7.91 | L10: =ROUND(K10*H10,2) -> $1,344.70 | M10: $0.11
C11: Mr. J 2850 | E11: 70/6.0z | F11: 70 | H11: =ROUND($G$9*$F$9/F11,2) -> 170 | I11: Cs
A12: 3 | B12: Juice, Apple-Cherry, Carton, 4oz | C12: Suncup 03200 | E12: 70/4.0z | F12: 70 | G12: 405 | H12: =ROUND(G12*F12/F12,2) -> 405 | I12: Cs | J12: $6.27 | K12: =IF(OR(ISBLANK(J12),G12=0,ISBLANK(G12)),,ROUND(J12+$K$2,2)) -> $6.27 | L12: =ROUND(H12*K12,2) -> $2,539.35 | M12: $0.09
B13: 100% Apple Cherry Juice, Frozen, Meets 1/2 c Fruit | C13: Ardmore Farms 42292 | E13: 70/4.0z | F13: 70 | H13: =ROUND(G12*F12/F13,2) -> 405 | I13: Cs
A14: 4 | B14: Juice, Fruit Blend, Carton, 4 oz | C14: Ardmore Farms 42304 | E14: 70/4.0z | F14: 70 | G14: 470 | H14: =ROUND(G14*F14/F14,2) -> 470 | I14: Cs
C15: Sun Cup 030800 | E15: 70/4.0z | F15: 70 | H15: =ROUND($G$14*$F$14/F15,2) -> 470 | I15: Cs | J15: $6.40 | K15: =IF(OR(ISBLANK(J15),G14=0,ISBLANK(G14)),,ROUND(J15+$K$2,2)) -> $6.40 | L15: =ROUND(K15*H15,2) -> $3,008.00 | M15: =ROUND(K15/F15,2) -> $0.09
C16: Mr. J. 2340 | E16: 70/4.0z | F16: 70 | H16: =ROUND($G$14*$F$14/F16,2) -> 470 | I16: Cs
A17: 5 | B17: Juice, Fruit Blend, Cartons, 6 oz | C17: Ardmore Farms 42215 | E17: 70/6.0z | F17: 70 | G17: 0 | H17: =ROUND(G17*F17/F17,2) -> 0 | I17: Cs
B18: 100% Blend Fruit Juice, Frozen, unsweetened | C18: Sun Cup 50800 | E18: 70/6.0z | F18: 70 | H18: =ROUND($G$17*$F$17/F18,2) -> 0 | I18: Cs | J18: $8.24 | K18: =IF(OR(ISBLANK(J18),G17=0,ISBLANK(G17)),,ROUND(J18+$K$2,2)) -> 0 | L18: =ROUND(K18*H18,2) -> 0 | M18: 0
C19: Mr. J 2350 | E19: 70/6.0z | F19: 70 | H19: =ROUND($G$17*$F$17/F19,2) -> 0 | I19: Cs
A20: 6 | B20: Juice, Grape, Cartons, 4 oz | C20: Ardmore Farms 42301 | E20: 70/4.0z | F20: 70 | G20: 490 | H20: =ROUND($G$20*$F$20/F20,2) -> 490 | I20: Cs
B21: 100% Grape Juice, frozen | C21: Sun Cup 030501 | E21: 70/4.0z | F21: 70 | H21: =ROUND($G$20*$F$20/F21,2) -> 490 | I21: Cs | J21: $8.12 | K21: =IF(OR(ISBLANK(J21),G20=0,ISBLANK(G20)),,ROUND(J21+$K$2,2)) -> $8.12 | L21: =ROUND(H21*K21,2) -> $3,978.80 | M21: $0.12
C22: Mr. J. 2640 | E22: 70/4.0z | F22: 70 | H22: =ROUND($G$20*$F$20/F22,2) -> 490 | I22: Cs
A23: 7 | B23: Juice, Grape, Cartons, 6 oz | C23: Ardmore Farms 42213 | E23: 70/6.0z | F23: 70 | G23: 100 | H23: =ROUND(G23*F23/F23,2) -> 100 | I23: Cs
B24: 100% Grape Juice, frozen | C24: Sun Cup 50501 | E24: 70/6.0z | F24: 70 | H24: =ROUND($G$23*$F$23/F24,2) -> 100 | I24: Cs | J24: $11.47 | K24: =IF(OR(ISBLANK(J24),G23=0,ISBLANK(G23)),,ROUND(J24+$K$2,2)) -> $11.47 | L24: =ROUND(K24*H24,2) -> $1,147.00 | M24: $0.16
C25: Mr. J 2650 | E25: 70/6.0z | F25: 70 | H25: =ROUND($G$23*$F$23/F25,2) -> 100 | I25: Cs
A26: 8 | B26: Juice, Orange, Cartons, 4 oz | C26: Ardmore Farms 42297 | E26: 70/4.0z | F26: 70 | G26: 520 | H26: =ROUND($G$26*$F$26/F26,2) -> 520 | I26: Cs
B27: US Grade A, 100% Orange Juice, unsweetened, frozen | C27: Sun Cup 030100 | E27: 70/4.0z | F27: 70 | H27: =ROUND($G$26*$F$26/F27,2) -> 520 | I27: Cs | J27: $7.98 | K27: =IF(OR(ISBLANK(J27),G26=0,ISBLANK(G26)),,ROUND(J27+$K$2,2)) -> $7.98 | L27: =ROUND(H27*K27,2) -> $4,149.60 | M27: $0.11
C28: Mr. J. 2070 | E28: 70/4.0z | F28: 70 | H28: =ROUND($G$26*$F$26/F28,2) -> 520 | I28: Cs
A29: 9 | B29: Juice, Orange, Cartons, 6 oz | C29: Ardmore Farms 42210 | E29: 70/6.0z | F29: 70 | G29: 105 | H29: =ROUND(G29*F29/F29,2) -> 105 | I29: Cs
B30: US Grade A Orange Juice, unsweetened frozen | C30: Sun Cup 50100 | E30: 70/6.0z | F30: 70 | H30: =ROUND($G$29*$F$29/F30,2) -> 105 | I30: Cs | J30: $10.41 | K30: =IF(OR(ISBLANK(J30),G29=0,ISBLANK(G29)),,ROUND(J30+$K$2,2)) -> $10.41 | L30: =ROUND(K30*H30,2) -> $1,093.05 | M30: $0.15
C31: Mr. J. 2080 | E31: 70/6.0z | F31: 70 | H31: =ROUND($G$29*$F$29/F31,2) -> 105 | I31: Cs
A32: 10 | B32: Juice, Orange-Pineapple, Cartons, 4 oz | C32: Ardmore Farms 42300 | E32: 70/4.0z | F32: 70 | G32: 395 | H32: =ROUND($G$32*$F$32/F32,2) -> 395 | I32: Cs
B33: Blend of Orange and Pineapple, unsweetened, Frozen | C33: Sun Cup 031200 | E33: 70/4.0z | F33: 70 | H33: =ROUND($G$32*$F$32/F33,2) -> 395 | I33: Cs | J33: $7.32 | K33: =IF(OR(ISBLANK(J33),G32=0,ISBLANK(G32)),,ROUND(J33+$K$2,2)) -> $7.32 | L33: =ROUND(H33*K33,2) -> $2,891.40 | M33: $0.10
C34: Mr. J. 2440 | E34: 70/4.0z | F34: 70 | H34: =ROUND($G$32*$F$32/F34,2) -> 395 | I34: Cs
A35: 11 | B35: Juice, Apple, Cartons, 4 oz, Calcium Fortified | C35: Ardmore Farms 42289 | E35: 70/4.0z | F35: 70 | G35: 200 | H35: =ROUND($G$35*$F$35/F35,2) -> 200 | I35: Cs
B36: 100% Apple Juice with Calcium, Unsweetened. | C36: Sun Cup 030305 | E36: 70/4.0z | F36: 70 | H36: =ROUND($G$35*$F$35/F36,2) -> 200 | I36: Cs | J36: $6.43 | K36: =IF(OR(ISBLANK(J36),G35=0,ISBLANK(G35)),,ROUND(J36+$K$2,2)) -> $6.43 | L36: $1,286.00 | M36: $0.09
B37: Deliver frozen only | C37: Mr. J 2842 | E37: 70/4.0z | F37: 70 | H37: 200 | I37: Cs
A38: 12 | B38: Juice, Fruit Blend, Cartons, 4 oz, Ca Fortified | C38: Ardmore Farms 42291 | E38: 70/4.0z | F38: 70 | G38: 0 | H38: =ROUND($G$38*$F$38/F38,2) -> 0 | I38: Cs
B39: 100% Fruit Punch with Calcium, Deliver frozen only | C39: Sun Cup 030805 | E39: 70/4.0z | F39: 70 | H39: =ROUND($G$38*$F$38/F39,2) -> 0 | I39: Cs | J39: $6.62 | K39: =IF(OR(ISBLANK(J39),G38=0,ISBLANK(G38)),,ROUND(J39+$K$2,2)) -> 0 | L39: =ROUND(H39*K39,2) -> 0 | M39: =ROUND(K39/F39,2) -> 0
C40: Mr. J 2342 | E40: 70/4.0z | F40: 70 | H40: =ROUND($G$38*$F$38/F40,2) -> 0 | I40: Cs
A41: 13 | B41: Juice, Grape, Cartons, 4 oz, Calcium Fortified | C41: Ardmore Farms 42290 | E41: 70/4.0z | F41: 70 | G41: 0 | H41: =ROUND($G$41*$F$41/F41,2) -> 0 | I41: Cs
B42: 100% Grape Juice with Calcium, Deliver frozen only | C42: Sun Cup 030505 | E42: 70/4.0z | F42: 70 | H42: =ROUND($G$41*$F$41/F42,2) -> 0 | I42: Cs | J42: $8.34 | K42: =IF(OR(ISBLANK(J42),G41=0,ISBLANK(G41)),,ROUND(J42+$K$2,2)) -> 0 | L42: =ROUND(H42*K42,2) -> 0 | M42: =ROUND(K42/F42,2) -> 0
C43: Mr. J 2642 | E43: 70/4.0z | F43: 70 | H43: =ROUND($G$41*$F$41/F43,2) -> 0 | I43: Cs
A44: 14 | B44: Juice, Orange, Cartons, Ca Fortified, 4 oz | C44: Ardmore Farms 42294 | E44: 70/4.0z | F44: 70 | G44: 105 | H44: =ROUND($G$44*$F$44/F44,2) -> 105 | I44: Cs
B45: US Grade A, 100% Orange Juice, Calcium Fortified, Frozen | C45: Mr. J 2162 | E45: 70/4.0z | F45: 70 | H45: =ROUND($G$44*$F$44/F45,2) -> 105 | I45: Cs
C46: Sun Cup 030105 | E46: 70/4.0z | F46: 70 | H46: 105 | I46: Cs | J46: $8.20 | K46: =IF(OR(ISBLANK(J46),G44=0,ISBLANK(G44)),,ROUND(J46+$K$2,2)) -> $8.20 | L46: $861.00 | M46: $0.12
A48: 15 | B48: Juice, Apple, Cup Pack, 4 oz | C48: Ardmore Farms 41381 | E48: 96/4.0z | F48: 96 | G48: 125 | H48: =ROUND($G$48*$F$48/F48,2) -> 125 | I48: Cs
B49: 100% Apple Juice, unsweetened, deliver frozen only | C49: Sun Cup 090301 | E49: 72/4.0z | F49: 72 | H49: =ROUND($G$48*$F$48/F49,2) -> 167 | I49: Cs | J49: $6.40 | K49: =IF(OR(ISBLANK(J49),G48=0,ISBLANK(G48)),,ROUND(J49+$K$2,2)) -> $6.40 | L49: $1,066.69 | M49: $0.09
C50: Mr. J 7897 | E50: 96/4.0z | F50: 96 | H50: 125 | I50: Cs
A51: 16 | B51: Juice, Apple, Cup Pack, 6 oz | C51: Ardmore Farms 41403 | E51: 48/6.0z | F51: 48 | G51: 25 | H51: =ROUND($G$51*$F$51/F51,2) -> 25 | I51: Cs
B52: 100% Apple Juice, Frozen, unsweetened | C52: Sun Cup 40301 | E52: 48/6.0z | F52: 48 | H52: =ROUND($G$51*$F$51/F52,2) -> 25 | I52: Cs | J52: $6.42 | K52: =IF(OR(ISBLANK(J52),G51=0,ISBLANK(G51)),,ROUND(J52+$K$2,2)) -> $6.42 | L52: $160.50 | M52: $0.13
C53: Mr. J 2855 | E53: 48/6.0z | F53: 48 | H53: 25 | I53: Cs
A54: 17 | B54: Juice, Fruit Blend, Cup Pack, 4 oz | C54: Ardmore Farms 41391 | E54: 96/4.0z | F54: 96 | G54: 5 | H54: =ROUND($G$54*$F$54/F54,2) -> 5 | I54: Cs
B55: 100% Blend Fruit Juice, Frozen, unsweetened | C55: Sun Cup 090800 | E55: 72/4.0z | F55: 72 | H55: =ROUND($G$54*$F$54/F55,2) -> 7 | I55: Cs | J55: $6.60 | K55: =IF(OR(ISBLANK(J55),G54=0,ISBLANK(G54)),,ROUND(J55+$K$2,2)) -> $6.60 | L55: $44.02 | M55: $0.09
C56: Mr. J. 7398 | E56: 96/4.0z | F56: 96 | H56: 5 | I56: Cs
A57: 18 | B57: Juice, Fruit Blend, Cup Pack, 6 oz | C57: Ardmore Farms 41413 | E57: 48/6.0z | F57: 48 | G57: 90 | H57: =ROUND($G$57*$F$57/F57,2) -> 90 | I57: Cs
B58: 100% Blend fruit juices, Frozen, unsweetened | C58: Sun Cup 040800 | E58: 48/6.0z | F58: 48 | H58: =ROUND($G$57*$F$57/F58,2) -> 90 | I58: Cs | J58: $6.65 | K58: =IF(OR(ISBLANK(J58),G57=0,ISBLANK(G57)),,ROUND(J58+$K$2,2)) -> $6.65 | L58: =ROUND(K58*H58,2) -> $598.50 | M58: =ROUND(K58/F58,2) -> $0.14
C59: Mr. J 2355 | E59: 48/6.0z | F59: 48 | H59: 90 | I59: Cs
A60: 19 | B60: Juice, Grape, Cup Pack, 4 oz | C60: Ardmore Farms 41382 | E60: 96/4.0z | F60: 96 | H60: =ROUND($G$60*$F$60/F60,2) -> 0 | I60: Cs
B61: 100% Grape Juice, frozen | C61: Sun Cup 090501 | E61: 72/4.0z | F61: 72 | H61: =ROUND($G$60*$F$60/F61,2) -> 0 | I61: Cs | J61: $8.37 | K61: =IF(OR(ISBLANK(J61),G60=0,ISBLANK(G60)),,ROUND(J61+$K$2,2)) -> 0 | L61: =ROUND(H61*K61,2) -> 0 | M61: 0
C62: Mr. J. 7698 | E62: 96/4.0z | F62: 96 | H62: 0 | I62: Cs
A64: 20 | B64: Juice, Grape, Cup Pack, 6 oz | C64: Ardmore Farms 41406 | E64: 48/6.0z | F64: 48 | G64: 35 | H64: =ROUND($G$64*$F$64/F64,2) -> 35 | I64: Cs
B65: 100% Grape Juice, frozen, unsweetened | C65: Sun Cup 40501 | E65: 48/6.0z | F65: 48 | H65: =ROUND($G$64*$F$64/F65,2) -> 35 | I65: Cs | J65: $8.89 | K65: =IF(OR(ISBLANK(J65),G64=0,ISBLANK(G64)),,ROUND(J65+$K$2,2)) -> $8.89 | L65: =ROUND(H65*K65,2) -> $311.15 | M65: =ROUND(K65/F65,2) -> $0.19
C66: Mr. J 2655 | E66: 48/6.0z | F66: 48 | H66: 35 | I66: Cs
A67: 21 | B67: Juice, Orange, Cup Pack, 4 oz | C67: Ardmore Farms 41380 | E67: 96/4.0z | F67: 96 | H67: =ROUND($G$67*$F$67/F67,2) -> 0 | I67: Cs
B68: US Grade A 100% Orange Juice, unsweetened, Frozen | C68: Sun Cup 090100 | E68: 72/4.0z | F68: 72 | H68: =ROUND($G$67*$F$67/F68,2) -> 0 | I68: Cs | J68: $8.19 | K68: =IF(OR(ISBLANK(J68),G67=0,ISBLANK(G67)),,ROUND(J68+$K$2,2)) -> 0 | L68: 0 | M68: 0
C69: Mr. J. 7098 | E69: 96/4.0z | F69: 96 | H69: 0 | I69: Cs
A70: 22 | B70: Juice, Orange, Cup Pack, 6 oz | C70: Ardmore Farms 41400 | E70: 48/6.0z | F70: 48 | G70: 35 | H70: =ROUND($G$70*$F$70/F70,2) -> 35 | I70: Cs
B71: US Grade A 100% Orange Juice, unsweetened, Frozen | C71: Sun Cup 040100 | E71: 48/6.0z | F71: 48 | H71: =ROUND($G$70*$F$70/F71,2) -> 35 | I71: Cs | J71: $8.19 | K71: =IF(OR(ISBLANK(J71),G70=0,ISBLANK(G70)),,ROUND(J71+$K$2,2)) -> $8.19 | L71: =ROUND(H71*K71,2) -> $286.65 | M71: =ROUND(K71/F71,2) -> $0.17
C72: Mr. J. | E72: 48/6.0z | F72: 48 | H72: =ROUND($G$70*$F$70/F72,2) -> 35 | I72: Cs
A73: 23 | B73: Juice, Orange-Pineapple, Cup, 4 oz | C73: Ardmore Farms 41389 | E73: 96/4.0z | F73: 96 | G73: 40 | H73: =ROUND($G$73*$F$73/F73,2) -> 40 | I73: Cs
B74: 100% Orange Juice and Pineapple Blend, unsweetened, | C74: Sun Cup 091200 | E74: 72/4.0z | F74: 72 | H74: =ROUND($G$73*$F$73/F74,2) -> 53 | I74: Cs | J74: $7.54 | K74: =IF(OR(ISBLANK(J74),G73=0,ISBLANK(G73)),,ROUND(J74+$K$2,2)) -> $7.54 | L74: $402.11 | M74: $0.10
B75: Frozen | C75: Mr. J. 7498 | E75: 96/4.0z | F75: 96 | H75: 40 | I75: Cs
A76: 24 | B76: Juice, Orange-Pineapple, Cup, 6 oz | C76: Suncup 041200 | E76: 48/6.0z | F76: 48 | G76: 0 | H76: =ROUND($G$76*$F$76/F76,2) -> 0 | I76: Cs | J76: $7.68 | K76: =IF(OR(ISBLANK(J76),G76=0,ISBLANK(G76)),,ROUND(J76+$K$2,2)) -> 0 | L76: 0 | M76: 0
B77: 100% Orange Juice and Pineapple Blend, unsweetened, | C77: Mr. J | E77: 48/6.0z | F77: 48 | H77: =ROUND($G$76*$F$76/F77,2) -> 0 | I77: Cs
A78: 25 | B78: Sidekicks Smooth Frozen Juice, 100 % Fruit Juice | C78: Ridgefield Sidekicks | E78: 84/4.4z | F78: 84 | G78: 31 | H78: =ROUND($G$78*$F$78/F78,2) -> 31 | I78: Cs | J78: $26.61 | K78: =IF(OR(ISBLANK(J78),G78=0,ISBLANK(G78)),,ROUND(J78+$K$2,2)) -> $26.61 | L78: =ROUND(H78*K78,2) -> $824.91 | M78: =ROUND(K78/F78,2) -> $0.32
B79: One serving provides 1/2 cup 100% Fruit Juice with no added Sugar. | C79: 2009 Blu-Raspberry Lemon | E79: 84/4.4z | F79: 84
C80: 2014 Kiwi-Strawberry | E80: 84/4.4z | F80: 84
C81: 2015 Strawberry Mango | E81: 84/4.4.z | F81: 84
C82: 2016 Cherry Lemon | E82: 84/4.4.z | F82: 84
A83: 26 | B83: Sidekicks Smooth Frozen Juice, 100 % Fruit Juice | C83: Cherry Smooth 2021 | E83: 84/4.4z | F83: 84 | G83: 0 | H83: =ROUND(G83*F83/F83,2) -> 0 | I83: Cs | J83: $28.61 | K83: =IF(OR(ISBLANK(J83),G83=0,ISBLANK(G83)),,ROUND(J83+$K$2,2)) -> 0 | L83: =ROUND(H83*K83,2) -> 0 | M83: =ROUND(K83/F83,2) -> 0
B84: One serving provides 1/2 cup additional vegetable and 1/2 cup red/orange
A85: 27 | B85: Sidekicks Smooth Frozen Juice, 100 % Fruit Juice | C85: Sunbelievable 2020 | E85: 84/4.4z | F85: 84 | G85: 0 | H85: =ROUND(G85*F85/F85,2) -> 0 | I85: Cs | J85: $29.61 | K85: =IF(OR(ISBLANK(J85),G85=0,ISBLANK(G85)),,ROUND(J85+$K$2,2)) -> 0 | L85: =ROUND(H85*K85,2) -> 0 | M85: =ROUND(K85/F85,2) -> 0
B86: One serving provides 1/2 cup additional veg. and 1/2 cup red/orange vegetable
A87: 28 | B87: Peaches, Frozen | C87: Distributor Choice | E87: 96/4.0z | F87: 96 | G87: 100 | H87: =ROUND(G87*F87/F87,2) -> 100 | I87: Cs
B88: US Grade A Choice, frozen diced peaches cups Each portion cup=1/2 cup serving | C88: Fillable txt box | H88: =ROUND(G87*F87/F88,2) ->  | I88: Cs | K88: =IF(OR(ISBLANK(G87),G87=0,ISBLANK(F88)),,ROUND(J88+$K$2,2)) -> 0 | L88: =ROUND(H88*K88,2) ->  | M88: =ROUND(K88/F88,2) -> 
A89: 29 | B89: Strawberries, Sliced | C89: Distributor Choice | E89: 39Lb | F89: 39 | G89: 4 | H89: =ROUND(G89*F89/F89,2) -> 4 | I89: Cs
B90: Frozen. Grade A, Sweetened | C90: Fillable txt box | H90: =ROUND(G89*F89/F90,2) ->  | I90: Cs | K90: =IF(OR(ISBLANK(G89),G89=0,ISBLANK(F90)),,ROUND(J90+$K$2,2)) -> 0 | L90: =ROUND(H90*K90,2) ->  | M90: =ROUND(K90/F90,2) -> 
A91: 30 | B91: Fruit Pearls | C91: Citripak | E91: 48/1/2 cup | F91: 48 | G91: 5 | H91: =ROUND(G91*F91/F91,2) -> 5 | I91: Cs | J91: $14.40 | K91: =IF(OR(ISBLANK(J91),G91=0,ISBLANK(G91)),,ROUND(J91+$K$2,2)) -> $14.40 | L91: =ROUND(H91*K91,2) -> $72.00 | M91: =ROUND(K91/F91,2) -> $0.30
B92: Frozen, One portion to provide 1/2 cup fruit for CN program | C92: 882193005112 Strawberry
C93: 882193005129 Tropical
C94: 882193005136 Wildberry
A95: 31 | B95: Fruit Freeze Cup without Spoons, All Flavors | C95: J&J Snape-Ups and Luigis | E95: 96/4.4z | F95: 96 | G95: 135 | H95: =ROUND(G95*F95/F95,2) -> 135 | I95: Cs | J95: $24.25 | K95: =IF(OR(ISBLANK(J95),G95=0,ISBLANK(G95)),,ROUND(J95+$K$2,2)) -> $24.25 | L95: =ROUND(H95*K95,2) -> $3,273.75 | M95: =ROUND(K95/F95,2) -> $0.25
B96: Frozen, 100% fruit juice Provides min. 20% vitamin C No added sugar, Provides 1/2 cup | C96: Cherry /Blue Raspberry 48446, Orange 48441
B97: fruit juice for CN program | C97: Grape 48442, Blue Raspberry 48443
C98: Kiwi/Strawberry Swirl 48445
C99: Lime 48440 and seasonal brands
A101: 32 | B101: Fruit Slushee | C101: (17-18) Cool Tropics | E101: 60/4.0z | F101: 60 | G101: 130 | H101: =ROUND(G101*F101/F101,2) -> 130 | I101: Cs | K101: =IF(OR(ISBLANK(J101),G101=0,ISBLANK(G101)),,ROUND(J101+$K$2,2)) -> 0 | L101: =ROUND(H101*K101,2) -> 0 | M101: =ROUND(K101/F101,2) -> 0
B102: Frozen, | C102: Cherry Lemonade 19507
C103: Lemondade RIPS 19505
C104: Orange Mango 19503
C105: Punch RIPS 19504
C106: Sour Apple 13006
C107: Strawberry Kiwi
C108: Blue Raspberry 13001
I110: Page Total | L110: =SUMIF(L6:L103,">0") -> $33,810.38

Sheet Shelf-stable Fruit& Juice
B1: ='Recap Sheet'!A2 -> School Food Authority: | E1: ='Recap Sheet'!A3 -> Offeror Name: | O1: Commodity
B2: ='Recap Sheet'!B2 -> WILLIAMSBURG COUNTY SCHOOLS | C2: Return to Recap Sheet | E2: ='Recap Sheet'!B3 -> 0
A3: Item | B3: Description | C3: Approved Brand Name / Manuf ID # | F3: Firm Fixed Fee | K3: ='Recap Sheet'!B4 -> $0.00 | N3: Processing | O3: Commodity | P3: Pounds of | R3: Net | S3: Net NOI | T3: Total Cost
A4: # | B4: Federal Regulations require that all foods purchased for Child Nutrition Programs be of "domestic origin" to the | D4: Distributor | E4: Vendor | F4: Svgs | G4: Est. | H4: Bid | I4: Bid | J4: Unit | K4: Unit Price | L4: Total | M4: Cost per | N4: Fee for | O4: Value Per | P4: DF Needed | Q4: Commodity | R4: NOI | S4: Cost Per | T4: Processing Fee
B5: maximum extent possible with two exceptions. In addition, mandarin oranges & pineapple are exempt from requirement. | D5: Code | E5: Pack | F5: per unit | G5: Bid Qty | H5: Qty | I5: Unit | J5: Price | K5: plus Fee | L5: Price | M5: Unit | N5: Service | O5: Pound | P5: Per Case | Q5: Value | R5: Price | S5: Serving | T5: Per Serving
B6: Shelf-stable Fruit | O6: Apples 110149 Apples for Further Processing
A7: 1 | B7: Applesauce, Cups, Sweetened | C7: National Food Group A87210 Comm # A1500-282A | E7: 96/4.5z | F7: 96 | G7: 0 | H7: =ROUND($G$7*$F$7/F7,2) -> 0 | I7: Cs | N7: $15.90 | O7: $0.4520 | P7: 28.2 | Q7: =ROUND(O7*P7,2) -> $12.75 | T7: =N7/F7 -> $0.17
B8: Shelf Stable, Individual portion cup, color foil or mylar top | C8: White House/Ntl Fruit 718-1884 | E8: 96/4.5z | F8: 96 | H8: =ROUND($G$7*$F$7/F8,2) -> 0 | I8: Cs | J8: $18.95 | K8: =IF(OR(ISBLANK(J8),G7=0,ISBLANK(G7)),,ROUND(J8+$K$3,2)) -> 0 | L8: =ROUND(H8*K8,2) -> 0 | M8: =ROUND(K8/F8,2) -> 0 | T8: =N8/F8 -> 0
B9: One portion provides 1/2 c FV for CN programs No Imports
A10: 2 | B10: Applesauce, Cups, Unsweetened | C10: National Food Group A87120 Comm #: A3500-282A | E10: 96/4.5z | F10: 96 | G10: 0 | H10: =ROUND($G$10*$F$10/F10,2) -> 0 | I10: Cs | N10: 0 | O10: $0.4520 | P10: 28.2 | Q10: =ROUND(O10*P10,2) -> $12.75 | R10: =K10-Q10 -> $(12.75) | S10: =R10/F10 -> $(0.13) | T10: =N10/F10 -> 0
B11: Shelf Stable, Individual portion cup, color foil or mylar top | C11: Motts 100065615 | E11: 72/4.5z | F11: 72 | H11: =ROUND($G$10*$F$10/F11,2) -> 0 | I11: Cs | J11: $13.68 | K11: =IF(OR(ISBLANK(J11),G10=0,ISBLANK(G10)),,ROUND(J11+$K$3,2)) -> 0 | L11: =ROUND(H11*K11,2) -> 0 | M11: =ROUND(K11/F11,2) -> 0 | T11: =N11/F11 -> 0
B12: One portion provides 1/2 c FV for CN programs No Imports | C12: Knouse (Musselman) FASU1350 | E12: 96/4.5z | F12: 96 | H12: 0 | I12: Cs | T12: 0
C13: White House/Ntl Fruit 717-1884 | E13: 96/4.5z | F13: 96 | H13: 0 | I13: Cs | T13: 0
A14: 3 | B14: Applesauce, Blue Raspberry, Shelf Stable Cups | C14: National Food Group A88350 Comm #: A3530-282A | E14: 96/4.5z | F14: 96 | G14: 0 | H14: =ROUND($G$14*$F$14/F14,2) -> 0 | I14: Cs | J14: $20.59 | K14: =IF(OR(ISBLANK(J14),G14=0,ISBLANK(G14)),,ROUND(J14+$K$3,2)) -> 0 | L14: =ROUND(H14*K14,2) -> 0 | M14: =ROUND(K14/F14,2) -> 0 | N14: $17.65 | O14: $0.4520 | P14: 23.5 | Q14: =ROUND(O14*P14,2) -> $10.62 | R14: 0 | S14: =R14/F14 -> 0 | T14: $0.18
B15: Shelf Stable, Individual portion cup, color foil or mylar top
B16: One portion provides 1/2 c FV for CN programs No Imports
A17: 4 | B17: Applesauce, Cinnamon, Shelf Stable Cup | C17: National Food Group A87190 Comm #: A1510-282A | E17: 96/4.5z | F17: 96 | G17: 0 | H17: =ROUND($G$17*$F$17/F17,2) -> 0 | I17: Cs | J17: $20.59 | K17: =IF(OR(ISBLANK(J17),G17=0,ISBLANK(G17)),,ROUND(J17+$K$3,2)) -> 0 | L17: =ROUND(H17*K17,2) -> 0 | M17: =ROUND(K17/F17,2) -> 0 | N17: $17.65 | O17: $0.4520 | P17: 28.2 | Q17: =ROUND(O17*P17,2) -> $12.75 | R17: 0 | S17: =R17/F17 -> 0 | T17: $0.18
B18: Shelf Stable, Individual portion cup, color foil or mylar top
B19: One portion provides 1/2 c FV for CN programs No Imports
A20: 5 | B20: Applesauce, Strawberry Flavor, Shelf Stable Cup | C20: National Food Group A87170 Comm #: A1590-235A | E20: 96/4.,5z | F20: 96 | G20: 0 | H20: =ROUND($G$20*$F$20/F20,2) -> 0 | I20: Cs | N20: $15.90 | O20: $0.4520 | P20: 23.5 | Q20: =ROUND(O20*P20,2) -> $10.62 | T20: =N20/F20 -> $0.17
B21: Shelf Stable, Individual portion cup, color foil or mylar top | C21: Motts 10065614 | E21: 72/4.5z | F21: 72 | H21: =ROUND($G$20*$F$20/F21,2) -> 0 | I21: Cs | J21: $13.68 | K21: =IF(OR(ISBLANK(J21),G20=0,ISBLANK(G20)),,ROUND(J21+$K$3,2)) -> 0 | L21: =ROUND(H21*K21,2) -> 0 | M21: =ROUND(K21/F21,2) -> 0 | T21: 0
B22: One portion provides 1/2 c FV for CN programs No Imports | C22: Knouse (Musselman) FASU1403 | E22: 96/4.5z | F22: 96 | H22: 0 | I22: Cs | T22: 0
A23: 6 | B23: Applesauce, Strawberry Banana Flavor, Shelf Stable Cup | C23: National Food Group A87220 Comm#: A3790-235A | E23: 96/4.,5z | F23: 96 | G23: 0 | H23: =ROUND($G$23*$F$23/F23,2) -> 0 | I23: Cs | J23: $20.59 | K23: =IF(OR(ISBLANK(J23),G23=0,ISBLANK(G23)),,ROUND(J23+$K$3,2)) -> 0 | L23: =ROUND(H23*K23,2) -> 0 | M23: =ROUND(K23/F23,2) -> 0 | N23: $17.65 | O23: $0.4224 | P23: 23.5 | Q23: =ROUND(O23*P23,2) -> $9.93 | R23: 0 | S23: =R23/F23 -> 0 | T23: $0.18
B24: Shelf Stable, Individual portion cup, color foil or mylar top
B25: One portion provides 1/2 c FV for CN programs No Imports
A26: 7 | B26: Apples, Sliced | C26: Distributor Choice | E26: 6/#10 | F26: 6 | G26: 5 | H26: =ROUND(G26*F26/F26,2) -> 5 | I26: Cs
B27: Grade A, Minimum score 90 or above, Fancy. Solid pack, sliced, peeled, water | C27: Fillable txt box or unprotected | H27: =ROUND(G26*F26/F27,2) ->  | I27: Cs | K27: =IF(OR(ISBLANK(J27),G26=0,ISBLANK(G26)),,ROUND(J27+$K$3,2)) -> 0 | L27: =ROUND(H27*K27,2) ->  | M27: =ROUND(K27/F27,2) -> 
B28: pack. Domestic origin. No imports. Minimum drained weight 7#
A29: 8 | B29: Applesauce (No imports) | C29: Distributor Choice | E29: 6/#10 | F29: 6 | G29: 160 | H29: =ROUND(G29*F29/F29,2) -> 160 | I29: Cs
B30: Regular, sweetened, Grade A, Minimum Score 90 or above, natural flavored. | C30: Fillable txt box or unprotected | H30: =ROUND(G29*F29/F30,2) ->  | I30: Cs | K30: =IF(OR(ISBLANK(J30),G29=0,ISBLANK(G29)),,ROUND(J30+$K$3,2)) -> 0 | L30: =ROUND(H30*K30,2) ->  | M30: =ROUND(K30/F30,2) -> 
A31: 9 | B31: Applesauce (No imports) | C31: Distributor Choice | E31: 6/#10 | F31: 6 | G31: 0 | H31: =ROUND(G31*F31/F31,2) -> 0 | I31: Cs
B32: Unsweetened, Grade A, Minimum Score 90 or above. (No Imports) | C32: Fillable txt box or unprotected | H32: =ROUND(G31*F31/F32,2) ->  | I32: Cs | K32: =IF(OR(ISBLANK(J32),G31=0,ISBLANK(G31)),,ROUND(J32+$K$3,2)) -> 0 | L32: =ROUND(H32*K32,2) ->  | M32: =ROUND(K32/F32,2) -> 
A33: 10 | B33: Cherries, Maraschino Halves | C33: Distributor Choice | E33: 1/2 gal | F33: 1 | G33: 2 | H33: =ROUND(G33*F33/F33,2) -> 2 | I33: Each
B34: Without stems, Pitted, Grade A, Minimum Score 90 or above (No Imports) | C34: Fillable txt box or unprotected | H34: =ROUND(G33*F33/F34,2) ->  | I34: Cs | K34: =IF(OR(ISBLANK(J34),G33=0,ISBLANK(G33)),,ROUND(J34+$K$3,2)) -> 0 | L34: =ROUND(H34*K34,2) ->  | M34: =ROUND(K34/F34,2) -> 
A35: 11 | B35: Cranberry Sauce (No Imports) | C35: Distributor Choice | E35: 6/101 oz | F35: 6 | G35: 10 | H35: =ROUND(G35*F35/F35,2) -> 10 | I35: Cs
B36: Jellied and strained. US Grade A, Fancy. Minimum score 90 or above | C36: Fillable txt box or unprotected | G36: 150 | H36: =ROUND(G35*F35/F36,2) ->  | I36: Cs | K36: =IF(OR(ISBLANK(J36),G35=0,ISBLANK(G35)),,ROUND(J36+$K$3,2)) -> 0 | L36: =ROUND(H36*K36,2) ->  | M36: =ROUND(K36/F36,2) -> 
A37: 12 | B37: Fruit Cocktail, US Grade Choice, Minimum Score 90 or above, | C37: Distributor Choice | E37: 6/#10 | F37: 6 | G37: 0 | H37: =ROUND(G37*F37/F37,2) -> 0 | I37: Cs
B38: Light syrup mixture to contain in order of proportion: peaches, pears, pineapple, | C38: Fillable txt box or unprotected | H38: =ROUND(G37*F37/F38,2) ->  | I38: Cs | K38: =IF(OR(ISBLANK(J38),G37=0,ISBLANK(G37)),,ROUND(J38+$K$3,2)) -> 0 | L38: =ROUND(H38*K38,2) ->  | M38: =ROUND(K38/F38,2) -> 
B39: grapes,cherries. (If non domestic, insert country of origin)
A40: 13 | B40: Fruit , Mixed (If non domestic, state country of origin) | C40: Distributor Choice | E40: 6/#10 | F40: 6 | G40: 20 | H40: =ROUND(G40*F40/F40,2) -> 20 | I40: Cs
B41: US Grade Choice, Minimum Score 90 or above | C41: Fillable txt box or unprotected | H41: =ROUND(G40*F40/F41,2) ->  | I41: Cs | K41: =IF(OR(ISBLANK(J41),G40=0,ISBLANK(G40)),,ROUND(J41+$K$3,2)) -> 0 | L41: =ROUND(H41*K41,2) ->  | M41: =ROUND(K41/F41,2) -> 
B42: Light syrup mixture to contain 30-50% peaches, 25-30% pears, 6-20% grapes.
A43: 14 | B43: Fruit Salad, Tropical | C43: Distributor Choice | E43: 6/#10 | F43: 6 | G43: 5 | H43: =ROUND(G43*F43/F43,2) -> 5 | I43: Cs
B44: Diced, in 100% fruit Juice, No sugar added. Pre-cut and ready to use. | C44: Fillable txt box or unprotected | H44: =ROUND(G43*F43/F44,2) ->  | I44: Cs | K44: =IF(OR(ISBLANK(J44),G43=0,ISBLANK(G43)),,ROUND(J44+$K$3,2)) -> 0 | L44: =ROUND(H44*K44,2) ->  | M44: =ROUND(K44/F44,2) -> 
B45: (If non domestic, insert country of origin in text box)
A46: 15 | B46: Mandarin Orange, Whole Segments | C46: Distributor Choice | E46: 6/#10 | F46: 6 | G46: 160 | H46: =ROUND(G46*F46/F46,2) -> 160 | I46: Cs
B47: Whole Segments in light syrup. US Grade A Minimum score 90 or above. . | C47: Fillable txt box or unprotected | H47: =ROUND(G46*F46/F47,2) ->  | I47: Cs | K47: =IF(OR(ISBLANK(J47),G46=0,ISBLANK(G46)),,ROUND(J47+$K$3,2)) -> 0 | L47: =ROUND(H47*K47,2) ->  | M47: =ROUND(K47/F47,2) -> 
B48: No broken segments. (If non domestic, insert country of origin in text box)
B49: Peaches | O49: Peaches 100220 Cling Diced Extra Light Can
A50: 16 | B50: Peaches, Diced, Shelf Stable Cups | C50: National Food Group A87260 Comm#: A1740-235A | E50: 72/4.5z | F50: 72 | G50: 0 | H50: =ROUND($G$50*$F$50/F50,2) -> 0 | I50: Cs | J50: $37.86 | K50: =IF(OR(ISBLANK(J50),G50=0,ISBLANK(G50)),,ROUND(J50+$K$3,2)) -> 0 | L50: =ROUND(H50*K50,2) -> 0 | M50: =ROUND(K50/F50,2) -> 0 | N50: $22.45 | O50: $0.6741 | P50: 10 | Q50: =ROUND(O50*P50,2) -> $6.74 | R50: 0 | S50: =R50/F50 -> 0 | T50: =N50/F50 -> $0.31
B51: Shelf Stable, Individual portion cup, color foil or mylar top
B52: One portion provides 1/2 c FV for CN programs No Imports
B53: Pears | O53: Pears, 100225 Diced Extra Light Can
A54: 17 | B54: Pears, Diced, Shelf Stable Cups | C54: National Food Group A87250 Comm#: A1780-235A | E54: 72/4.5z | F54: 72 | G54: 0 | H54: =ROUND($G$54*$F$54/F54,2) -> 0 | I54: Cs | J54: $37.86 | K54: =IF(OR(ISBLANK(J54),G54=0,ISBLANK(G54)),,ROUND(J54+$K$3,2)) -> 0 | L54: =ROUND(H54*K54,2) -> 0 | M54: =ROUND(K54/F54,2) -> 0 | N54: $22.45 | O54: $0.6715 | P54: 10 | Q54: =ROUND(O54*P54,2) -> $6.72 | R54: 0 | S54: =R54/F54 -> 0 | T54: =N54/F54 -> $0.31
B55: Shelf Stable, Individual portion cup, color foil or mylar top
B56: One portion provides 1/2 c FV for CN programs No Imports
A57: 18 | B57: Peach Slices, Minimum score 90 or above. (No Imports). | C57: Distributor Choice | E57: 6/#10 | F57: 6 | G57: 105 | H57: =ROUND(G57*F57/F57,2) -> 105 | I57: Cs
B58: Clingstone variety, packed in light syrup. Net Wt 108 oz. | C58: Fillable txt box or unprotected | H58: =ROUND(G57*F57/F58,2) ->  | I58: Cs | K58: =IF(OR(ISBLANK(J58),G57=0,ISBLANK(G57)),,ROUND(J58+$K$3,2)) -> 0 | L58: =ROUND(H58*K58,2) ->  | M58: =ROUND(K58/F58,2) -> 
B59: Minimum drained weight 66.5 oz.
A60: 19 | B60: Pear Halves, (No Imports) | C60: Distributor Choice | E60: 6/#10 | F60: 6 | G60: 15 | H60: =ROUND(G60*F60/F60,2) -> 15 | I60: Cs
B61: Bartlett. Choice, Minimum score 90 or above. . Light syrup, 30-35 count. | C61: Fillable txt box or unprotected | H61: =ROUND(G60*F60/F61,2) ->  | I61: Cs | K61: =IF(OR(ISBLANK(J61),G60=0,ISBLANK(G60)),,ROUND(J61+$K$3,2)) -> 0 | L61: =ROUND(H61*K61,2) ->  | M61: =ROUND(K61/F61,2) -> 
B62: Minimum drained weight 65 oz. (No Imports)
A63: 20 | B63: Pear Slices, Barlett Choice (No Imports) | C63: Distributor Choice | E63: 6/#10 | F63: 6 | G63: 10 | H63: =ROUND(G63*F63/F63,2) -> 10 | I63: Cs
B64: Bartlett, Choice, Minimum score 90 or above. , light syrup. (No Imports) | C64: Fillable txt box or unprotected | H64: =ROUND(G63*F63/F64,2) ->  | I64: Cs | K64: =IF(OR(ISBLANK(J64),G63=0,ISBLANK(G63)),,ROUND(J64+$K$3,2)) -> 0 | L64: =ROUND(H64*K64,2) ->  | M64: =ROUND(K64/F64,2) -> 
B65: Minimum drained weight 65.5 oz.
A66: 21 | B66: Pineapple Slices, US Grade A, Minimum score 90 or above. . | C66: Distributor Choice | E66: 6/#10 | F66: 6 | G66: 10 | H66: =ROUND(G66*F66/F66,2) -> 10 | I66: Cs
B67: Packed in juice.(If non domestic, insert country of origin in text box) | C67: Fillable txt box or unprotected | H67: =ROUND(G66*F66/F67,2) ->  | I67: Cs | K67: =IF(OR(ISBLANK(J67),G66=0,ISBLANK(G66)),,ROUND(J67+$K$3,2)) -> 0 | L67: =ROUND(H67*K67,2) ->  | M67: =ROUND(K67/F67,2) -> 
A68: 22 | B68: Pineapple Tidbits (If non domestic, insert country of origin in text box) | C68: Distributor Choice | E68: 6/#10 | F68: 6 | G68: 150 | H68: =ROUND(G68*F68/F68,2) -> 150 | I68: Cs
B69: US Grade A Minimum score 90 or above. , Packed in Juice, Min. Drained Wt 69 oz. | C69: Fillable txt box or unprotected | H69: =ROUND(G68*F68/F69,2) ->  | I69: Cs | K69: =IF(OR(ISBLANK(J69),G68=0,ISBLANK(G68)),,ROUND(J69+$K$3,2)) -> 0 | L69: =ROUND(H69*K69,2) ->  | M69: =ROUND(K69/F69,2) -> 
A70: 23 | B70: Fruit Snack, Dried Cranberries, I/W Meets 1/2 c Fruit | C70: (15-16) Oceanspray Craisins | E70: 200/1.16z | F70: 200 | G70: 40 | H70: =ROUND(G70*F70/F70,2) -> 40 | I70: Cs | K70: =IF(OR(ISBLANK(J70),G70=0,ISBLANK(G70)),,ROUND(J70+$K$3,2)) -> 0 | L70: =ROUND(H70*K70,2) -> 0 | M70: =ROUND(K70/F70,2) -> 0
B71: Shelf Stable | C71: 23446 Blueberry
C72: 23444 Cherry
C73: 23445 Strawberry
A74: 24 | B74: Fruit Snack, Fruit Purees | C74: (15-16) Welch's | E74: 144/1.55z | F74: 144 | G74: 0 | H74: =ROUND(G74*F74/F74,2) -> 0 | I74: Cs | K74: =IF(OR(ISBLANK(J74),G74=0,ISBLANK(G74)),,ROUND(J74+$K$3,2)) -> 0 | L74: =ROUND(H74*K74,2) -> 0 | M74: =ROUND(K74/F74,2) -> 0
B75: Pouch pack, 1.55oz, 12% daily value of Fiber. | C75: 14498 Mixed Fruit
B76: Meets USDA requirement for 10% of Daily Value of one of the following nutrients: | C76: 14492 Berries n Cherries
B77: Calcium, Potassium, Vitamin D, or Dietary fiber.
A78: 25 | B78: Raisins | C78: Champion 070044-00415 | E78: 144/1.5z | F78: 144 | G78: 40 | H78: =ROUND(G78*F78/F78,2) -> 40 | I78: Cs | K78: =IF(OR(ISBLANK(J78),G78=0,ISBLANK(G78)),,ROUND(J78+$K$3,2)) -> 0 | L78: =ROUND(H78*K78,2) -> 0 | M78: =ROUND(K78/F78,2) -> 0
B79: Seedless, dark California, Individual 1.5 oz per package | C79: Sun-maid 040-2010 | E79: 144/1.5z | F79: 144 | H79: =ROUND($G$78*$F$78/F79,2) -> 40 | I79: Cs | K79: =IF(OR(ISBLANK(J79),G78=0,ISBLANK(G78)),,ROUND(J79+$K$3,2)) -> 0 | L79: =ROUND(K79*H79,2) -> 0 | M79: =ROUND(K79/F79,2) -> 0
A80: 26 | B80: Raisins, flavored. Made from Golden Raisins | C80: (16-17)Champion Raisels | E80: 200-1.5z | F80: 200 | G80: 80 | H80: =ROUND(G80*F80/F80,2) -> 80 | I80: Cs | K80: =IF(OR(ISBLANK(J80),G80=0,ISBLANK(G80)),,ROUND(J80+$K$3,2)) -> 0 | L80: =ROUND(H80*K80,2) -> 0 | M80: =ROUND(K80/F80,2) -> 0
B81: Individual, 1.5oz | C81: Lemon
B82: Sugar and Natural flavors added. | C82: Orange
C83: Fruit Splash
C84: Watermelon
A85: 27 | B85: Juice, Apple, Aseptic Pack, Shelf Stable, 4.23 oz | C85: Juicy Juice/Harvest Hill 00055 | E85: 40/4.23z | F85: 40 | G85: 75 | H85: =ROUND($G$85*$F$85/F85,2) -> 75 | I85: Cs
B86: Shelf Stable, 100% juice, must have wrap straw, 1 serving = 1/2 cup fruit | C86: Motts 10002383 | E86: 44/4.23z | F86: 44 | H86: =ROUND($G$85*$F$85/F86,2) -> 68.18 | I86: Cs
C87: Apple & Eve 86000 | E87: 40/4.23z | F87: 40 | H87: =ROUND($G$85*$F$85/F87,2) -> 75 | I87: Cs
B88: Country of Origin: | C88: Suncup 400305 | E88: 40/4.23z | F88: 40 | H88: 75 | I88: Cs | J88: $5.25 | K88: =IF(OR(ISBLANK(J88),G85=0,ISBLANK(G85)),,ROUND(J88+$K$3,2)) -> $5.25 | L88: =ROUND(H88*K88,2) -> $393.75 | M88: =ROUND(K88/F88,2) -> $0.13
C89: Ardmore Farms 62001 | E89: 44/4.23z | F89: 44 | H89: =ROUND($G$85*$F$85/F89,2) -> 68.18 | I89: Cs
C90: Capri Sun 8768400921 | E90: 48/4.05z | F90: 48 | H90: =ROUND($G$85*$F$85/F90,2) -> 62.5 | I90: Cs
C91: Tropicana 20209 | E91: 44/4.23z | F91: 44 | H91: =ROUND($G$85*$F$85/F91,2) -> 68.18 | I91: Cs
A92: 28 | B92: Juice, Fruit Blend, Aseptic Pack, Shelf Stable, 4.23 oz | C92: Juicy Juice/Harvest Hill 00059 | E92: 40/4.23z | F92: 44 | G92: 30 | H92: =ROUND(G92*F92/F92,2) -> 30 | I92: Cs
B93: Shelf Stable, 100% juice, must have wrap straw, 1 serving = 1/2 cup fruit | C93: Motts 10002384 | E93: 44/4.23z | F93: 44 | H93: =ROUND($G$92*$F$92/F93,2) -> 30 | I93: Cs
C94: Apple and Eve 86001 | E94: 40/4.23z | F94: 40 | H94: =ROUND($G$92*$F$92/F94,2) -> 33 | I94: Cs
B95: Country of Origin: | C95: Suncup 400805 | E95: 40/4.23z | F95: 40 | H95: 33 | I95: Cs | J95: $5.25 | K95: =IF(OR(ISBLANK(J95),G92=0,ISBLANK(G92)),,ROUND(J95+$K$3,2)) -> $5.25 | L95: =ROUND(H95*K95,2) -> $173.25 | M95: =ROUND(K95/F95,2) -> $0.13
C96: Capri Sun 8768400923 | E96: 48/4.05z | F96: 48 | H96: =ROUND($G$92*$F$92/F96,2) -> 27.5 | I96: Cs
C97: Ardmore Farms 62008 | E97: 40/4.23z | F97: 40 | H97: =ROUND($G$92*$F$92/F97,2) -> 33 | I97: Cs
A98: 29 | B98: Juice, Grape, Aseptic Pack, Shelf Stable, 4.23 oz | C98: Juicy Juice/Harvest Hill 00057 | E98: 40/4.23z | F98: 40 | G98: 0 | H98: =ROUND(G98*F98/F98,2) -> 0 | I98: Cs
B99: Shelf Stable, 100% juice, must have wrap straw, 1 serving = 1/2 cup fruit | C99: Apple and Eve 86004 | E99: 40/4.23z | F99: 40 | H99: =ROUND($G$98*$F$98/F99,2) -> 0 | I99: Cs
C100: Suncup 400505 | E100: 40/4.23z | F100: 40 | H100: =ROUND($G$98*$F$98/F100,2) -> 0 | I100: Cs | J100: $5.25 | K100: =IF(OR(ISBLANK(J100),G98=0,ISBLANK(G98)),,ROUND(J100+$K$3,2)) -> 0 | L100: =ROUND(H100*K100,2) -> 0 | M100: =ROUND(K100/F100,2) -> 0
B101: Country of Origin: | C101: Ardmore Farms 62002 | E101: 40/4.23z | F101: 40 | H101: =ROUND($G$98*$F$98/F101,2) -> 0 | I101: Cs
A102: 30 | B102: Juice, Grape Muscadine | C102: (17-18) Nature's Pearl | E102: 24/10 oz. | F102: 24 | G102: 0 | H102: =ROUND(G102*F102/F102,2) -> 0 | I102: Cs | K102: =IF(OR(ISBLANK(J102),G102=0,ISBLANK(G102)),,ROUND(J102+$K$3,2)) -> 0 | L102: =ROUND(H102*K102,2) -> 0 | M102: =ROUND(K102/F102,2) -> 0
B103: 100% juice One 10 oz. bottle equals 2 servings fruit
I104: Page Total | L104: =SUMIF(L7:L102,">0") -> $567.00

Sheet Frozen Vegetables
B1: ='Recap Sheet'!A2 -> School Food Authority: | E1: ='Recap Sheet'!A3 -> Offeror Name:
B2: ='Recap Sheet'!B2 -> WILLIAMSBURG COUNTY SCHOOLS | C2: Return to Recap Sheet | E2: ='Recap Sheet'!B3 -> 0
A3: Item | B3: Description | C3: Approved Brand Name / Manuf ID # | F3: Firm Fixed Fee | K3: ='Recap Sheet'!B4 -> $0.00
A4: # | D4: Distributor | E4: Vendor | F4: Svgs | G4: Est. | H4: Bid | I4: Bid | J4: Unit | K4: Unit Price | L4: Total | M4: Cost per
D5: Code | E5: Pack | F5: per unit | G5: Bid Qty | H5: Qty | I5: Unit | J5: Price | K5: plus Fee | L5: Price | M5: Unit
B6: Frozen Vegetables
A7: 1 | B7: Beans, Green, IQF (No Imports) | C7: Distributor Choice | E7: 20Lb | F7: 20 | G7: 5 | H7: =ROUND($G$7*$F$7/F7,2) -> 5 | I7: Cs
B8: Grade A, Minimum score 90 or above pieces to be 1" in length and 4 sieve in diameter | C8: Fillable txt box or unprotected | H8: =ROUND(G7*F7/F8,2) ->  | I8: Cs | K8: =IF(OR(ISBLANK(J8),G7=0,ISBLANK(G7)),,ROUND(J8+$K$3,2)) -> 0 | L8: =ROUND(H8*K8,2) ->  | M8: =ROUND(K8/F8,2) -> 
A9: 2 | B9: Beans. Lima (No Imports) | C9: Distributor Choice | E9: 20Lb | F9: 20 | G9: 0 | H9: =ROUND(G9*F9/F9,2) -> 0 | I9: Cs
B10: Small Baby lima. Grade A fancy. Must be certified | C10: Fillable txt box or unprotected | H10: =ROUND(G9*F9/F10,2) ->  | I10: Cs | K10: =IF(OR(ISBLANK(J10),G9=0,ISBLANK(G9)),,ROUND(J10+$K$3,2)) -> 0 | L10: =ROUND(H10*K10,2) ->  | M10: =ROUND(K10/F10,2) -> 
B11: Frozen. 20Lb IQF unit. Miinimum score 90 or above
A12: 3 | B12: Broccoli Florets (No Imports) | C12: Distributor Choice | E12: 12/2Lb | F12: 24 | G12: 65 | H12: =ROUND(G12*F12/F12,2) -> 65 | I12: Cs
B13: Grade A fancy. Frozen. Minimum score 90 or above. | C13: Fillable txt box or unprotected | H13: =ROUND(G12*F12/F13,2) ->  | I13: Cs | K13: =IF(OR(ISBLANK(J13),G12=0,ISBLANK(G12)),,ROUND(J13+$K$3,2)) -> 0 | L13: =ROUND(H13*K13,2) ->  | M13: =ROUND(K13/F13,2) -> 
A14: 4 | B14: Broccoli Medley, Broccoli, Cauliflower and Carrots (No Imports) | C14: Distributor Choice | E14: 24Lb | F14: 24 | G14: 0 | H14: =ROUND(G14*F14/F14,2) -> 0 | I14: Cs
B15: Grade A Fancy. Minimum score 90 or above. | C15: Fillable txt box or unprotected | H15: =ROUND(G14*F14/F15,2) ->  | I15: Cs | K15: =IF(OR(ISBLANK(J15),G14=0,ISBLANK(G14)),,ROUND(J15+$K$3,2)) -> 0 | L15: =ROUND(H15*K15,2) ->  | M15: =ROUND(K15/F15,2) -> 
A16: 5 | B16: Broccoli Spears (No Imports) | C16: Distributor Choice | E16: 12/2Lb | F16: 24 | G16: 30 | H16: =ROUND(G16*F16/F16,2) -> 30 | I16: Cs
B17: US Grade A Fancy. Minimum score 90 or above. | C17: Fillable txt box or unprotected | H17: =ROUND(G16*F16/F17,2) ->  | I17: Cs | K17: =IF(OR(ISBLANK(J17),G16=0,ISBLANK(G16)),,ROUND(J17+$K$3,2)) -> 0 | L17: =ROUND(H17*K17,2) ->  | M17: =ROUND(K17/F17,2) -> 
B18: Spears 5" average length. 18-26 Spears per 2# bag.
A19: 6 | B19: Carrots, Sliced (No Imports) | C19: Distributor Choice | E19: 20Lb | F19: 20 | G19: 5 | H19: =ROUND(G19*F19/F19,2) -> 5 | I19: Cs
B20: US Grade A Fancy. Frozen. Minimum score 90 or above. | C20: Fillable txt box or unprotected | H20: =ROUND(G19*F19/F20,2) ->  | I20: Cs | K20: =IF(OR(ISBLANK(J20),G19=0,ISBLANK(G19)),,ROUND(J20+$K$3,2)) -> 0 | L20: =ROUND(H20*K20,2) ->  | M20: =ROUND(K20/F20,2) -> 
A21: 7 | B21: Corn, Cut (No Imports) | C21: Distributor Choice | E21: 20Lb | F21: 20 | G21: 5 | H21: =ROUND(G21*F21/F21,2) -> 5 | I21: Cs
B22: US Grade A Fancy. Yellow Corn. Minimum score 90 or above. (No Imports) | C22: Fillable txt box or unprotected | H22: =ROUND(G21*F21/F22,2) ->  | I22: Cs | K22: =IF(OR(ISBLANK(J22),G21=0,ISBLANK(G21)),,ROUND(J22+$K$3,2)) -> 0 | L22: =ROUND(H22*K22,2) ->  | M22: =ROUND(K22/F22,2) -> 
A23: 8 | B23: Corn on the Cob (No Imports) | C23: Distributor Choice | E23: 96 Ct | F23: 96 | G23: 350 | H23: =ROUND(G23*F23/F23,2) -> 350 | I23: Cs
B24: Cobbett, Grade A, Fancy. Minimum score 90 or above. . Yellow whole | C24: Fillable txt box or unprotected | G24: 0 | H24: =ROUND(G23*F23/F24,2) ->  | I24: Cs | K24: =IF(OR(ISBLANK(J24),G23=0,ISBLANK(G23)),,ROUND(J24+$K$3,2)) -> 0 | L24: =ROUND(H24*K24,2) ->  | M24: =ROUND(K24/F24,2) -> 
B25: kernel. Approximately 3 inches long, no ends.
A27: 9 | B27: Okra, Breaded Pre-cooked Oven Ready, (No Imports) WGR | C27: Tasty Brand 33500 | E27: 6/5Lb | F27: 150 | G27: 5 | H27: =ROUND(G27*F27/F27,2) -> 5 | I27: Cs | K27: =IF(OR(ISBLANK(J27),G27=0,ISBLANK(G27)),,ROUND(J27+$K$3,2)) -> 0 | L27: =ROUND(H27*K27,2) -> 0 | M27: =ROUND(K27/F27,2) -> 0
B28: US Grade A, Minimum score 90 or above. One serving (17) meets 1 oz equivalent grain
B29: and 1/4 c other vegetable for Child Nutrition Meal Pattern Requirements.
A30: 10 | B30: Okra, Cut (No Imports) | C30: Distributor Choice | E30: 20Lb | F30: 20 | G30: 10 | H30: =ROUND(G30*F30/F30,2) -> 10 | I30: Cs
B31: Minimum score 90 or above. IQF, Cut in 1/2" slices | C31: Fillable txt box or unprotected | H31: =ROUND(G30*F30/F31,2) ->  | I31: Cs | K31: =IF(OR(ISBLANK(J31),G30=0,ISBLANK(G30)),,ROUND(J31+$K$3,2)) -> 0 | L31: =ROUND(H31*K31,2) ->  | M31: =ROUND(K31/F31,2) -> 
A32: 11 | B32: Onions, Diced (No Imports) | C32: Distributor Choice | E32: 6/2Lb | F32: 12 | G32: 0 | H32: =ROUND(G32*F32/F32,2) -> 0 | I32: Cs
B33: 3/8"x3/8" dice | C33: Fillable txt box or unprotected | H33: =ROUND(G32*F32/F33,2) ->  | I33: Cs | K33: =IF(OR(ISBLANK(J33),G32=0,ISBLANK(G32)),,ROUND(J33+$K$3,2)) -> 0 | L33: =ROUND(H33*K33,2) ->  | M33: =ROUND(K33/F33,2) -> 
A34: 12 | B34: Peas, Black-eyed (No Imports) | C34: Distributor Choice | E34: 20Lb | F34: 20 | G34: 5 | H34: =ROUND($G$34*F34/F34,2) -> 5 | I34: Cs
B35: Minimum score 90 or above. , Frozen, IQF | C35: Fillable txt box or unprotected | G35: 0 | H35: =ROUND(G34*F34/F35,2) ->  | I35: Cs | K35: =IF(OR(ISBLANK(J35),G34=0,ISBLANK(G34)),,ROUND(J35+$K$3,2)) -> 0 | L35: =ROUND(H35*K35,2) ->  | M35: =ROUND(K35/F35,2) -> 
A36: 13 | B36: Peas, Field (No Imports) | C36: Distributor Choice | E36: 36Lb | F36: 36 | G36: 0 | H36: =ROUND(G36*F36/F36,2) -> 0 | I36: Cs
B37: Minimum score 90 or above. , Frozen, IQF | C37: Fillable txt box or unprotected | G37: 0 | H37: =ROUND(G36*F36/F37,2) ->  | I37: Cs | K37: =IF(OR(ISBLANK(J37),G36=0,ISBLANK(G36)),,ROUND(J37+$K$3,2)) -> 0 | L37: =ROUND(H37*K37,2) ->  | M37: =ROUND(K37/F37,2) -> 
A38: 14 | B38: Peas, Green (No Imports) | C38: Distributor Choice | E38: 20Lb | F38: 20 | G38: 8 | H38: =ROUND(G38*F38/F38,2) -> 8 | I38: Cs
B39: Minimum score 90 or above. , Frozen, IQF | C39: Fillable txt box or unprotected | H39: =ROUND(G38*F38/F39,2) ->  | I39: Cs | K39: =IF(OR(ISBLANK(J39),G38=0,ISBLANK(G38)),,ROUND(J39+$K$3,2)) -> 0 | L39: =ROUND(H39*K39,2) ->  | M39: =ROUND(K39/F39,2) -> 
A40: 15 | B40: Peas and Carrots, Grade A, Minimum score 90 or above. (No Imports) | C40: Distributor Choice | E40: 20Lb | F40: 20 | G40: 60 | H40: =ROUND(G40*F40/F40,2) -> 60 | I40: Cs
B41: 60% Peas and 40% carrots, Peas 2-4 sieve, carrots 3/8" dice | C41: Fillable txt box or unprotected | H41: =ROUND(G40*F40/F41,2) ->  | I41: Cs | K41: =IF(OR(ISBLANK(J41),G40=0,ISBLANK(G40)),,ROUND(J41+$K$3,2)) -> 0 | L41: =ROUND(H41*K41,2) ->  | M41: =ROUND(K41/F41,2) -> 
A42: 16 | B42: Pepper, Bell Diced (No Imports) | C42: Distributor Choice | E42: 12/2Lb | F42: 24 | G42: 0 | H42: =ROUND(G42*F42/F42,2) -> 0 | I42: Cs
B43: Minimum score 90 or above. Frozen. | C43: Fillable txt box or unprotected | G43: 0 | H43: =ROUND(G42*F42/F43,2) ->  | I43: Cs | K43: =IF(OR(ISBLANK(J43),G42=0,ISBLANK(G42)),,ROUND(J43+$K$3,2)) -> 0 | L43: =ROUND(H43*K43,2) ->  | M43: =ROUND(K43/F43,2) -> 
A44: 17 | B44: Squash, Yellow, Sliced (No Imports) | C44: Distributor Choice | E44: 20Lb | F44: 20 | G44: 0 | H44: =ROUND($G$44*$F$44/F44,2) -> 0 | I44: Cs
B45: Minimum score 90 or above. , Frozen, IQF | C45: Fillable txt box or unprotected | H45: =ROUND(G44*F44/F45,2) ->  | I45: Cs | K45: =IF(OR(ISBLANK(J45),G44=0,ISBLANK(G44)),,ROUND(J45+$K$3,2)) -> 0 | L45: =ROUND(H45*K45,2) ->  | M45: =ROUND(K45/F45,2) -> 
A46: 18 | B46: Sweet Potato Pattie (No Imports) | C46: Distributor Choice | E46: 224/1.5 | F46: 224 | G46: 50 | H46: =ROUND(G46*F46/F46,2) -> 50 | I46: Cs
B47: Domestic sweet potatoes. No peels or stems. IQF. Fully cooked. | C47: Fillable txt box or unprotected | G47: 0 | H47: =ROUND(G46*F46/F47,2) ->  | I47: Cs | K47: =IF(OR(ISBLANK(J47),G46=0,ISBLANK(G46)),,ROUND(J47+$K$3,2)) -> 0 | L47: =ROUND(H47*K47,2) ->  | M47: =ROUND(K47/F47,2) -> 
A48: 19 | B48: Turnip Greens, Chopped (No Imports) | C48: Distributor Choice | E48: 36Lb | F48: 36 | G48: 5 | H48: =ROUND($G$48*$F$48/F48,2) -> 5 | I48: Cs
B49: Minimum score 90 or above. , Grade A , Frozen | C49: Fillable txt box or unprotected | H49: =ROUND(G48*F48/F49,2) ->  | I49: Cs | K49: =IF(OR(ISBLANK(J49),G48=0,ISBLANK(G48)),,ROUND(J49+$K$3,2)) -> 0 | L49: =ROUND(H49*K49,2) ->  | M49: =ROUND(K49/F49,2) -> 
A50: 20 | B50: Collard Greens, Chopped (No Imports) | C50: Distributor Choice | E50: 36Lb | F50: 36 | G50: 10 | H50: =ROUND(G50*F50/F50,2) -> 10 | I50: Cs
B51: US Grade A , Frozen Minimum score 90 or above | C51: Fillable txt box or unprotected | H51: =ROUND(G50*F50/F51,2) ->  | I51: Cs | K51: =IF(OR(ISBLANK(J51),G50=0,ISBLANK(G50)),,ROUND(J51+$K$3,2)) -> 0 | L51: =ROUND(H51*K51,2) ->  | M51: =ROUND(K51/F51,2) -> 
A52: 21 | B52: Kale Greens, Chopped (No Imports) | C52: Distributor Choice | E52: 20Lb | F52: 20 | G52: 0 | H52: =ROUND($G$52*$F$52/F52,2) -> 0 | I52: Cs
B53: US Grade A , Frozen Minimum score 90 or above | C53: Fillable txt box or unprotected | H53: =ROUND(G52*F52/F53,2) ->  | I53: Cs | K53: =IF(OR(ISBLANK(J53),G52=0,ISBLANK(G52)),,ROUND(J53+$K$3,2)) -> 0 | L53: =ROUND(H53*K53,2) ->  | M53: =ROUND(K53/F53,2) -> 
A54: 22 | B54: Spinach, Chopped (No Imports) | C54: Distributor Choice | E54: 20Lb | F54: 20 | G54: 0 | H54: =ROUND($G$54*$F$54/F54,2) -> 0 | I54: Cs
B55: US Grade A , Frozen Minimum score 90 or above | C55: Fillable txt box or unprotected | H55: =ROUND(G54*F54/F55,2) ->  | I55: Cs | K55: =IF(OR(ISBLANK(J55),G54=0,ISBLANK(G54)),,ROUND(J55+$K$3,2)) -> 0 | L55: =ROUND(H55*K55,2) ->  | M55: =ROUND(K55/F55,2) -> 
A56: 23 | B56: Vegetables, Mixed (No Imports) | C56: Distributor Choice | E56: 20Lb | F56: 20 | G56: 25 | H56: =ROUND(G56*F56/F56,2) -> 25 | I56: Cs
B57: US Grade A. Fancy. IQF 4 or 5 Vegetable Mix of: | C57: Fillable txt box or unprotected | H57: =ROUND(G56*F56/F57,2) ->  | I57: Cs | K57: =IF(OR(ISBLANK(J57),G56=0,ISBLANK(G56)),,ROUND(J57+$K$3,2)) -> 0 | L57: =ROUND(H57*K57,2) ->  | M57: =ROUND(K57/F57,2) -> 
B58: 1. Beans, Wax or Green, cut; 2. Beans, Limas; 3. Carrots, Diced
B59: 4. Corn, Golden whole kernel; 5. Peas, Early or Sweet
B60: All vegetables should have good color for the variety and type used.
A61: 24 | B61: Vegetables, Oriental (No Imports) | C61: Distributor Choice | E61: 12/2Lb | F61: 24 | G61: 0 | H61: =ROUND(G61*F61/F61,2) -> 0 | I61: Cs
B62: 40% French cut beans; 18-20% onions; 5% mushrooms. Grade A Fancy. IQF | C62: Fillable txt box or unprotected | H62: =ROUND(G61*F61/F62,2) ->  | I62: Cs | K62: =IF(OR(ISBLANK(J62),G61=0,ISBLANK(G61)),,ROUND(J62+$K$3,2)) -> 0 | L62: =ROUND(H62*K62,2) ->  | M62: =ROUND(K62/F62,2) -> 
A63: 25 | B63: Vegetable Soup Mix (No Imports) | C63: Distributor Choice | E63: 20Lb | F63: 20 | G63: 5 | H63: =ROUND(G63*F63/F63,2) -> 5 | I63: Cs
B64: Grade A Fancy. IQF Nine Vegetable mix of okra, lima beans, whole kernel corn, | C64: Fillable txt box or unprotected | H64: =ROUND(G63*F63/F64,2) ->  | I64: Cs | K64: =IF(OR(ISBLANK(J64),G63=0,ISBLANK(G63)),,ROUND(J64+$K$3,2)) -> 0 | L64: =ROUND(H64*K64,2) ->  | M64: =ROUND(K64/F64,2) -> 
B65: celery, onions, diced carrots, diced potatoes, green beans and green peas.
I67: Page Total | L67: =SUMIF(L6:L65,">0") -> 0

Sheet Breakfast Products
B1: ='Recap Sheet'!A2 -> School Food Authority: | E1: ='Recap Sheet'!A3 -> Offeror Name: | O1: Commodity
C2: Return to Recap Sheet | E2: GORDON FOOD SERVICE COMPANY
A3: Item | B3: Description | C3: Approved Brand Name / Manuf ID # | F3: Firm Fixed Fee | K3: ='Recap Sheet'!B4 -> $0.00 | N3: Processing | O3: Commodity | P3: Pounds of | S3: NOI | T3: Net
A4: # | D4: Distributor | E4: Vendor | F4: Svgs | G4: Est. | H4: Bid | I4: Bid | J4: Unit | K4: Unit Price | L4: Total | M4: Cost per | N4: Fee for | O4: Value Per | P4: DF Needed | Q4: Commodity | R4: NOI | S4: Price/ | T4: Cost Per
D5: Code | E5: Pack | F5: per unit | G5: Bid Qty | H5: Qty | I5: Unit | J5: Price | K5: plus Fee | L5: Price | M5: Unit | N5: Service | O5: Pound | P5: Per Case | Q5: Value | R5: Price | S5: Serving | T5: Serving
B6: Breakfast Products | O6: Eggs 100047
A7: 1 | B7: Bar, Mini Breakfast Bar WGR | C7: J& J Snacks Maple Brown Sugar 40452 | E7: 96/1.25z | F7: 96 | G7: 0 | H7: =ROUND(G7*F7/F7,2) -> 0 | I7: Cs | K7: =IF(OR(ISBLANK(J7),G7=0,ISBLANK(G7)),,ROUND(J7+$K$3,2)) -> 0 | L7: =ROUND(H7*K7,2) -> 0 | M7: =ROUND(K7/F7,2) -> 0
B8: Thaw and Serve. One Serving provides 1.0 oz Equivalent Grain
B9: Contains: Eggs, Milk, Soybeans, Wheat
C11: Darlington Farms | E11: 216/1.2z | F11: 216 | H11: =ROUND($G$7*$F$7/F11,2) -> 0 | I11: Cs | K11: =IF(OR(ISBLANK(J11),G7=0,ISBLANK(G7)),,ROUND(J11+$K$3,2)) -> 0 | L11: =ROUND(H11*K11,2) -> 0 | M11: =ROUND(K11/F11,2) -> 0
C12: 70300 Chocolate Chip Soft Oatmeal
C13: 70100 Apple Soft Oatmeal
C14: 70400 Strawberry Soft Oatmeal Bar
A15: 2 | B15: Bar, Whole Grain Oat Bar, Fruit filled WGR 1.0 OEG | C15: NutriGrain Bar | E15: 96/1.55z | F15: 96 | G15: 0 | H15: =ROUND(G15*F15/F15,2) -> 0 | I15: Cs | K15: =IF(OR(ISBLANK(J15),G15=0,ISBLANK(G15)),,ROUND(J15+$K$3,2)) -> 0 | L15: =ROUND(H15*K15,2) -> 0 | M15: =ROUND(K15/F15,2) -> 0
B16: IW, Single Serve, Made with real fruit puree | C16: 38000-59772 Strawberry
B17: SMART SNACKS COMPLIANT | C17: 38000-90819 Blueberry
C18: 38000-59779 Apple Cinnamon
A19: 3 | B19: Biscuit, Chicken, IW. WGR | C19: Grand Strand Sandwich Co. 4009 | E19: 90/3.6z | F19: 90 | G19: 0 | H19: =ROUND($G$19*$F$19/F19,2) -> 0 | I19: Cs | K19: =IF(OR(ISBLANK(J19),G19=0,ISBLANK(G19)),,ROUND(J19+$K$3,2)) -> 0 | L19: =ROUND(H19*K19,2) -> 0 | M19: =ROUND(K19/F19,2) -> 0
B20: Breaded chicken patty with alternate protein and or egg additives. | C20: Tyson 25839-328 (Discontinued per Manufact. (03/06/18) | E20: 100/4.0z | F20: 100 | H20: =ROUND($G$19*$F$19/F20,2) -> 0 | I20: Cs | K20: =IF(OR(ISBLANK(J20),G19=0,ISBLANK(G19)),,ROUND(J20+$K$3,2)) -> 0 | L20: 0 | M20: 0
B21: Contains 0 Trans Fat | C21: Snak Time STF9645NL/72 | E21: 100/2.85z | F21: 100 | H21: 0 | I21: Cs | K21: =IF(OR(ISBLANK(J21),G19=0,ISBLANK(G19)),,ROUND(J21+$K$3,2)) -> 0 | L21: 0 | M21: 0
A22: 4 | B22: Biscuit, Yeast Raised Potato Sausage (twin pack) WGR | C22: (18-19) Snak Time STF9420NL/60 | E22: 100/2.60z | F22: 100 | G22: 0 | H22: =ROUND($G$25*$F$25/F22,2) -> 0 | I22: Cs | K22: =IF(OR(ISBLANK(J22),G22=0,ISBLANK(G22)),,ROUND(J22+$K$3,2)) -> 0 | L22: 0 | M22: 0
B23: Fully cooked, each portion provides 1 M/MA and 1.75 OEG
B24: Contains 0 Trans Fat
A25: 5 | B25: Biscuit, Peach Cobbler | C25: Tasty Brands 22020IW | E25: 100/2.8z | F25: 100 | G25: 0 | H25: =ROUND($G$25*$F$25/F25,2) -> 0 | I25: Cs | K25: =IF(OR(ISBLANK(J25),G25=0,ISBLANK(G25)),,ROUND(J25+$K$3,2)) -> 0 | L25: =ROUND(H25*K25,2) -> 0 | M25: =ROUND(K25/F25,2) -> 0
B26: 0 Trans fat. One serving provides 2 equivalent grains
A28: 6 | B28: Biscuits, Pre-formed Dough, Frozen WGR | C28: Richs 09315 | E28: 216/2.1z | F28: 216 | G28: 400 | H28: =ROUND($G$28*$F$28/F28,2) -> 400 | I28: Cs | K28: =IF(OR(ISBLANK(J28),G28=0,ISBLANK(G28)),,ROUND(J28+$K$3,2)) -> 0 | L28: 0 | M28: 0
B29: 0 Trans fat. Provides not more than 2oz equivalent grains based on | C29: Mary B's 87000 | E29: 220/2.2z | F29: 220 | H29: =ROUND($G$28*$F$28/F29,2) -> 392.73 | I29: Cs | K29: =IF(OR(ISBLANK(J29),G28=0,ISBLANK(G28)),,ROUND(J29+$K$3,2)) -> 0 | L29: 0 | M29: 0
B30: 16 g =1 oz, at a minimum. | C30: Pillsbury 132267 | E30: 216/2.51z | F30: 216 | H30: =ROUND($G$28*$F$28/F30,2) -> 400 | I30: Cs | K30: =IF(OR(ISBLANK(J30),G28=0,ISBLANK(G28)),,ROUND(J30+$K$3,2)) -> 0 | L30: 0 | M30: 0
A31: 7 | B31: Biscuits, WGR,Frozen dough puck, EASY SPLIT, ready to bake. Less than or equal | C31: Pillsbury 132268 | E31: 216/2.51z | F31: 216 | G31: 0 | H31: =ROUND($G$31*$F$31/F31,2) -> 0 | I31: Cs | K31: =IF(OR(ISBLANK(J31),G31=0,ISBLANK(G31)),,ROUND(J31+$K$3,2)) -> 0 | L31: 0 | M31: 0
B32: to 220 calories, no more than 5g sat fat, and less than or equal to 400mg Sodium.
B33: Approx 2.51z serving must provide 2g equivalent
A34: 8 | B34: Biscuits,Mini Pre-formed Dough, Frozen WGR | C34: Pillsbury 132269 | E34: 210/1.25z | F34: 210 | G34: 0 | H34: =ROUND($G$34*$F$34/F34,2) -> 0 | I34: Cs | K34: =IF(OR(ISBLANK(J34),G34=0,ISBLANK(G34)),,ROUND(J34+$K$3,2)) -> 0 | L34: =ROUND(H34*K34,2) -> 0 | M34: =ROUND(K34/F34,2) -> 0
B35: One serving provides 1.0 z equivalent grain. 0 Trans fat
A37: 9 | B37: Bread, Slice Whole Wheat WGR | C37: Super Bakery | E37: 70/3.4z | F37: 70 | G37: 0 | H37: =ROUND(G37*F37/F37,2) -> 0 | I37: Cs | K37: =IF(OR(ISBLANK(J37),G37=0,ISBLANK(G37)),,ROUND(J37+$K$3,2)) -> 0 | L37: =ROUND(H37*K37,2) -> 0 | M37: =ROUND(K37/F37,2) -> 0
B38: Frozen, IW, Thaw and serve. Product meets a minimum of 1.5 OEG | C38: 6073 Ultra Wild Forest Berry Slice | E38: 70/3.4z | F38: 70
B39: 220-280 calories with 2g of Sat fat or less, 0 trans fat, 220 mg of Sodium or | C39: 6071 Ultra Banana Slice | E39: 70/3.4z | F39: 70
B40: less. | C40: 6075 Ultra Pumpkin | E40: 70/3.4z | F40: 70
A42: 10 | B42: Breakfast Bites,WG Pancake and Pork WGR | C42: 71000 CN State Fair (3) WG | E42: 180/.85z | F42: 60 | G42: 0 | H42: =ROUND(G42*F42/F42,2) -> 0 | I42: Cs | K42: =IF(OR(ISBLANK(J42),G42=0,ISBLANK(G42)),,ROUND(J42+$K$3,2)) -> 0 | L42: =ROUND(H42*K42,2) -> 0 | M42: =ROUND(K42/F42,2) -> 0
B43: Frozen, Heat and Serve. Whole Grain batter around a pre-cooked ground pork
B44: sausage link w/TVP. 3 g Sat fat or less, 0 Trans Fat, 500mg Sodium or less.
B45: One serving meets 1 oz. of cooked meat/meat alternate and one bread alternate.
A46: 11 | B46: Breakfast Item, Individually Wrapped WGR 2.0 OEG | C46: Kelloggs Crunchmania | E46: 100/1.76z | F46: 100 | G46: 0 | H46: =ROUND(G46*F46/F46,2) -> 0 | I46: Cs | K46: =IF(OR(ISBLANK(J46),G46=0,ISBLANK(G46)),,ROUND(J46+$K$3,2)) -> 0 | L46: =ROUND(H46*K46,2) -> 0 | M46: =ROUND(K46/F46,2) -> 0
B47: Bite size whole grain grahams. Meets 2.0 OEG | C47: 38000- 24518 Cinnamon Bun
C48: 38000- 24520 French Toast
A49: 12 | B49: Breakfast Kits, Kelloggs & General Mills WGR 2.0 OEG | C49: Kelloggs (Morning Jump Starts) | E49: 44Ct | F49: 44 | G49: 0 | H49: =ROUND(G49*F49/F49,2) -> 0 | I49: Cs | K49: =IF(OR(ISBLANK(J49),G49=0,ISBLANK(G49)),,ROUND(J49+$K$3,2)) -> 0 | L49: =ROUND(H49*K49,2) -> 0 | M49: =ROUND(K49/F49,2) -> 0
B50: Each kit provides: 2oz equivalent grain, 1/2 cup fruit serving, | C50: 38000-51091 Blue Frosted Flaked R/ S
B51: plus a spoon/napkin kit, each master case includes trash bag. | C51: 38000-78792 Froot Loops R/S
B52: Contains 3 Ct Keebler Graham Cracker, 1.0 oz Cereal Bowl | C52: 38000-78791 Green Apple Jacks R/S
B53: and 100% Fruit juice
C54: ES Breaks | E54: 60Ct | F54: 60 | H54: =ROUND($G$49*$F$49/F54,2) -> 0 | I54: Cs | K54: =IF(OR(ISBLANK(J54),G49=0,ISBLANK(G49)),,ROUND(J54+$K$3,2)) -> 0 | L54: =ROUND(H54*K54,2) -> 0 | M54: =ROUND(K54/F54,2) -> 0
C55: 61101 Cocoa Puffs - RS
C56: 61103 Lucky Charms
C57: 61114 Trix Reduced Sugar
C58: 61123 Froot Loops - Reduced Sugar
C59: 61202 Cheerios with Craisins
A60: 13 | B60: Cereal, General Mills, Assorted Flavors, WGR | C60: General Mills | E60: 96 Ct | F60: 96 | G60: 705 | H60: =ROUND(G60*F60/F60,2) -> 705 | I60: Cs | K60: =IF(OR(ISBLANK(J60),G60=0,ISBLANK(G60)),,ROUND(J60+$K$3,2)) -> 0 | L60: =ROUND(H60*K60,2) -> 0 | M60: =ROUND(K60/F60,2) -> 0
B61: Made from whole grain. Prepackaged, Bowl pack. | C61: 31879 Apple Cinnamon Cheerios WG
B62: 1 oz Cereal = 1oz Equivalent Grain | C62: 32262 Cheerios Whole Grain
C63: 11815 Cinnamon Toast Crunch Whole Grain
C64: 11943 Golden Grahams Whole Grain
C65: 11918 Honey Nut Cheerios Whole Grain
C66: 11866 Honey Nut Chex Whole Grain
C67: 31917 Lucky Charms Whole Grain
C68: 32263 Multigrain Cheerios
C69: 31919 Reese's Puffs Whole Grain
C70: 12392 Total Raisin Bran Whole Grain
C71: 31923 Trix Whole Grain
C72: 31916 Fruity Cheerios Whole Grain
C73: 11768 Frosted Corn Flakes Whole Grain
B74: Asst bowl pack: 40 25% LS Cinnamon TSt Crunch; 16 Golden Grahams; | C74: 32301 Kids Choice Asst Bowl pack
B75: 28 Apple Cinnamon cheerios;12 Frosted Corn flakes
A76: 14 | B76: Cereal, General Mills, Reduced Sugar, Assorted Flavors WGR | C76: General Mills Whole Grain 1/2013 | E76: 96 Ct | F76: 96 | G76: 0 | H76: =ROUND(G76*F76/F76,2) -> 0 | I76: Cs | K76: =IF(OR(ISBLANK(J76),G76=0,ISBLANK(G76)),,ROUND(J76+$K$3,2)) -> 0 | L76: =ROUND(H76*K76,2) -> 0 | M76: =ROUND(K76/F76,2) -> 0
B77: Made from whole grain. Prepackaged, Bowl Pack. | C77: 29444 Redu Sugar Cinnamon Toast Crunch
B78: 1oz Cereal provides 1 oz Grain Equivalent | C78: 31922 Reduced Sugar Trix
C79: 31888 Reduced Sugar Cocoa Puffs
A80: 15 | B80: Cereal, Kelloggs, Assorted Flavors, Whole Grain Rich WGR 1.0 OEG | C80: Kelloggs | E80: 96 Ct | F80: 96 | G80: 200 | H80: =ROUND(G80*F80/F80,2) -> 200 | I80: Cs | K80: =IF(OR(ISBLANK(J80),G80=0,ISBLANK(G80)),,ROUND(J80+$K$3,2)) -> 0 | L80: =ROUND(H80*K80,2) -> 0 | M80: =ROUND(K80/F80,2) -> 0
B81: Prepackaged, bowl pack 1oz Cereal provides 1oz Equivalent Grain | C81: 38000-00896 Raisin Bran
C82: 38000-04996 Frosted Mini Wheats. Bite Size | E82: CACFP APPROVED
C83: 38000-45861 Choc Frsted Mini Whts Bite-size
C84: 38000-78789 Rice Krispies, WG-Gluten Free | E84: CACFP APPROVED
A86: 16 | B86: Cereal, Kelloggs, Reduced Sugar, Whole Grain Rich WGR 1.0 OEG | C86: Kelloggs | E86: 96 Ct | F86: 96 | G86: 0 | H86: =ROUND(G86*F86/F86,2) -> 0 | I86: Cs | K86: =IF(OR(ISBLANK(J86),G86=0,ISBLANK(G86)),,ROUND(J86+$K$3,2)) -> 0 | L86: =ROUND(H86*K86,2) -> 0 | M86: =ROUND(K86/F86,2) -> 0
B87: Prepackaged, bowl pack 1oz Cereal provides 1oz Equivalent Grain | C87: 38000-78788 Reduced Sugar, Froot Loops
C88: 38000-78787 Reduced Sugar, Apple Jacks
C89: 38000-54998 Red Sugar,Frosted Flakes, MG
C90: 38000-78786 Cinnamon Flakes MultiGrain | E90: CACFP APPROVED
C91: 38000-10992 Chocolate Zucaritas Frosted Flakes
A93: 17 | B93: Cereal, Post Consumer Brands, Assorted Flavors | C93: Post Consumer Brands | E93: 96 Ct | F93: 96 | G93: 0 | H93: =ROUND(G93*F93/F93,2) -> 0 | I93: Cs | K93: =IF(OR(ISBLANK(J93),G93=0,ISBLANK(G93)),,ROUND(J93+$K$3,2)) -> 0 | L93: =ROUND(H93*K93,2) -> 0 | M93: =ROUND(K93/F93,2) -> 0
B94: Prepackaged, Bowl Pack. | C94: 03915 Cinnamon Toasters WG 1 OEG | E94: 96/1z | F94: 96
B95: 1 oz Cereal = 1oz Equivalent Grain | C95: 27597 Honey Scooter WG 1 OEG | E95: 96/1z | F95: 96
C96: 27596 Marshmallow Mateys WG 1 OEG | E96: 96/1z | F96: 96
C97: 04515 Honey Graham Squares 1 OEG | E97: 96/1z | F97: 96
C98: 715 Raisin Bran 1 OEG | E98: 96/1.25z | F98: 96
C99: 27164 Scooter Whole Grain 1 OEG | E99: 96/1z | F99: 96
A102: 18 | B102: Cereal, Single Serve Pouch, Meets 1.0 OEG | C102: Kellogg's | E102: 96/1.0z | F102: 96 | G102: 50 | H102: =ROUND(G102*F102/F102,2) -> 50 | I102: Cs | K102: =IF(OR(ISBLANK(J102),G102=0,ISBLANK(G102)),,ROUND(J102+$K$3,2)) -> 0 | L102: =ROUND(H102*K102,2) -> 0 | M102: =ROUND(K102/F102,2) -> 0
B103: No high fructose corn syrup | C103: 38000-11465 Frosted Flakes Multi-Grain RS | E103: Smart Snack Compliant
C104: 38000-11467 Fruit Loops RS
B105: Contains:Wheat, may contain Milk and soy | C105: 38000-11469 Apple Jacks RS
A107: 19 | B107: Cereal Bar, Whole Grain WGR 1.0 OEG | C107: General Mills Whole Grain Bar | E107: 96/1.42z | F107: 96 | G107: 0 | H107: =ROUND($G$107*$F$107/F107,2) -> 0 | I107: Cs | K107: =IF(OR(ISBLANK(J107),G107=0,ISBLANK(G107)),,ROUND(J107+$K$3,2)) -> 0 | L107: =ROUND(H107*K107,2) -> 0 | M107: =ROUND(K107/F107,2) -> 0
B108: made from Whole Grain Oats | C108: 45576 Cinnamon Toast Crunch
B109: Calories 150 or less, 0 Trans fat; Saturated Fat 1g or less; | C109: 45577 Cocoa Puffs
B110: 90- 140mg Sodium per serving. | C110: 31912 Fruity Cheerios
C111: 31914 Team Cherrios
B112: Smart Snacks Compliant | C112: 31915 Trix
C113: Kelloggs, Chewy Granola Bar | E113: 96/1.34z | F113: 96 | H113: =ROUND($G$107*$F$107/F113,2) -> 0 | I113: Cs | K113: =IF(OR(ISBLANK(J113),G107=0,ISBLANK(G107)),,ROUND(J113+$K$3,2)) -> 0 | L113: =ROUND(K113*H113,2) -> 0 | M113: =ROUND(K113/F113,2) -> 0
C114: 38000-91612 Chocolate
C115: 38000-48396 Apple Cinnamon
C116: 38000-54937 Berry
A118: 20 | B118: Cinnamon Rolls, Individually Wrapped WGR 2.0 OEG | C118: Pillsbury Mini Cinnis 133686000 | E118: 72/2.29z | F118: 72 | G118: 0 | H118: =ROUND(G118*F118/F118,2) -> 0 | I118: Cs | K118: =IF(OR(ISBLANK(J118),G118=0,ISBLANK(G118)),,ROUND(J118+$K$3,2)) -> 0 | L118: =ROUND(H118*K118,2) -> 0 | M118: =ROUND(K118/F118,2) -> 0
B119: Thaw /Heat/ Serve, One serving provides 2 oz Equivalent Grains | C119: Hadley Farms 375IW | E119: 144/2.7z | F119: 144 | H119: =ROUND(G118*F118/F119,2) -> 0 | I119: Cs | K119: =IF(OR(ISBLANK(J119),G118=0,ISBLANK(G118)),,ROUND(J119+$K$3,2)) -> 0 | L119: =ROUND(H119*K119,2) -> 0 | M119: =ROUND(K119/F119,2) -> 0
A121: 21 | B121: Cinnamon Rolls, Whole Wheat WGR | C121: Bridgford 6718 (1.75) | E121: 160/2.25z | F121: 160 | G121: 0 | H121: =ROUND(G121*F121/F121,2) -> 0 | I121: Cs | K121: =IF(OR(ISBLANK(J121),G121=0,ISBLANK(G121)),,ROUND(J121+$K$3,2)) -> 0 | L121: =ROUND(H121*K121,2) -> 0 | M121: =ROUND(K121/F121,2) -> 0
B122: Pre-sliced cinnamon roll dough, IQF. 0 trans fat, 1 g sat fat
B123: One serving provides not more than 2oz Equivalent grains
A124: 22 | B124: Dough, Whole Wheat , "Ranch Style Roll" , Proof and Bake | C124: Distributor Choice | E124: 240/1.5z | F124: 240 | G124: 0 | H124: =ROUND(G124*F124/F124,2) -> 0 | I124: Cs | K124: =IF(OR(ISBLANK(J124),G124=0,ISBLANK(G124)),,ROUND(J124+$K$3,2)) -> 0 | L124: =ROUND(H124*K124,2) -> 0 | M124: =ROUND(K124/F124,2) -> 0
B125: Contains a minimum 51% Whole wheat flour, enriched | C125: Fillable txt box
B126: One serving equals 1.5 grain/bread servings
A128: 23 | B128: Doughnut Holes, Ind.wrapped. WGR 1.0 OEG | C128: Super Bakery | E128: 160/1.3z | F128: 160 | G128: 0 | H128: =ROUND(G128*F128/F128,2) -> 0 | I128: Cs | K128: =IF(OR(ISBLANK(J128),G128=0,ISBLANK(G128)),,ROUND(J128+$K$3,2)) -> 0 | L128: =ROUND(H128*K128,2) -> 0 | M128: =ROUND(K128/F128,2) -> 0
B129: One serving provides 1oz equivalent grain. | C129: 9200 Glazed (Discontinued by Manuf. 03/06/18)
B130: Frozen. Thaw and serve. Meets Smart Snacks | C130: 9201 Cinnamon (Discontinued by Manuf. 03/06/18)
C131: 9202 Powdered
A132: 24 | B132: Doughnut Holes, Bulk | C132: (18-19) Rich's 2725 | E132: 384/.41z | F132: 128 | G132: 0 | H132: =ROUND(G132*F132/F132,2) -> 0 | I132: Cs | K132: =IF(OR(ISBLANK(J132),G132=0,ISBLANK(G132)),,ROUND(J132+$K$3,2)) -> 0 | L132: =ROUND(H132*K132,2) -> 0 | M132: =ROUND(K132/F132,2) -> 0
B133: Frozen, thaw, heat and serve 100-200 calories with no more than 4 g saturated fat and
B134: 200 mg of sodium per serving. One portion provides min. 1 OEG
B135: Possible Allergens: Wheat, Soy, Milk
A136: 25 | B136: Doughnut, Yeast Raised Donut, WG | C136: (18-19) Rich's 14839 | E136: 84/2.45z | F136: 84 | G136: 0 | H136: =ROUND(G136*F136/F136,2) -> 0 | I136: Cs | K136: =IF(OR(ISBLANK(J136),G136=0,ISBLANK(G136)),,ROUND(J136+$K$3,2)) -> 0 | L136: =ROUND(H136*K136,2) -> 0 | M136: =ROUND(K136/F136,2) -> 0
B137: Frozen, thaw, heat and serve 200-300 calories with no more than 7 g saturated fat and
B138: 350 mg of sodium per serving. One portion provides min. 2 OEG
B139: Possible Allergens: Wheat, Soy, Milk, and Eggs
A140: 26 | B140: Dunkin Stick, WGR | C140: Super Bakery 7010 | E140: 100/1.9z | F140: 100 | G140: 0 | H140: =ROUND(G140*F140/F140,2) -> 0 | I140: Cs | K140: =IF(OR(ISBLANK(J140),G140=0,ISBLANK(G140)),,ROUND(J140+$K$3,2)) -> 0 | L140: =ROUND(H140*K140,2) -> 0 | M140: =ROUND(K140/F140,2) -> 0
B141: One 1.9 oz. serving equals one EOG
A144: 27 | B144: French Toast Sticks, Pre-Cooked, IQF, WGR 2.0 OEG | C144: Farm Rich 37722 (4) | E144: 480/cs | F144: 120 | G144: 62 | H144: =ROUND(G144*F144/F144,2) -> 62 | I144: Cs | J144: $33.40 | K144: =IF(OR(ISBLANK(J144),G144=0,ISBLANK(G144)),,ROUND(J144+$K$3,2)) -> $33.40 | L144: =ROUND(H144*K144,2) -> $2,070.80 | M144: =ROUND(K144/F144,2) -> $0.28
B145: Frozen, heat and serve, 150-250 calories with no more than 2 g saturated fat and 350 mg | C145: Krusteaz 068615160346 (4) 2.25 OEG | E145: 176/.78z | F145: 44 | H145: =ROUND($G$152*$F$152/F145,2) -> 0 | I145: Cs | K145: =IF(OR(ISBLANK(J145),G144=0,ISBLANK(G144)),,ROUND(J145+$K$3,2)) -> 0 | L145: =ROUND(K145*H145,2) -> 0 | M145: 0
B146: sodium, CN labeled for four sticks to provide min. 2 OEG | C146: Aunt Jemima 43586 (4) 10# | E146: 188/.85 | F146: 47 | H146: =ROUND($G$152*$F$152/F146,2) -> 0 | I146: Cs | K146: =IF(OR(ISBLANK(J146),G144=0,ISBLANK(G144)),,ROUND(J146+$K$3,2)) -> 0 | L146: =ROUND(K146*H146,2) -> 0 | M146: 0
B147: Possible Allergens: Egg, Soy, Milk and Wheat | C147: Right Start RS8627 (3) | E147: 85/3.0 | F147: 85 | H147: =ROUND($G$152*$F$152/F147,2) -> 0 | I147: Cs | K147: =IF(OR(ISBLANK(J147),G144=0,ISBLANK(G144)),,ROUND(J147+$K$3,2)) -> 0 | L147: =ROUND(K147*H147,2) -> 0 | M147: 0
A148: 28 | B148: French Toast Sticks, Maple Glazed, WG | C148: Michael Foods 75010 | E148: 85/2.90z | F148: 85 | G148: 0 | H148: =ROUND(G148*F148/F148,2) -> 0 | I148: Cs | J148: $30.04 | K148: =IF(OR(ISBLANK(J148),G148=0,ISBLANK(G148)),,ROUND(J148+$K$3,2)) -> 0 | L148: =ROUND(H148*K148,2) -> 0 | M148: 0 | N148: $28.04 | O148: $0.4055 | P148: 4.93 | Q148: =ROUND(O148*P148,2) -> $2.00 | R148: =K148-Q148 -> -$2.00 | S148: =R148/F148 -> -$0.02 | T148: =N148/F148 -> $0.33
B149: Frozen, heat and serve, 150-250 calories with no more than 2 g saturated fat and 350 mg | C149: Sunny Fresh 40097 | E149: 100/2.90z | F149: 100 | H149: =ROUND($G$148*$F$148/F149,2) -> 0 | I149: Cs | K149: =IF(OR(ISBLANK(J149),G148=0,ISBLANK(G148)),,ROUND(J149+$K$3,2)) -> 0 | L149: =ROUND(K149*H149,2) -> 0 | M149: 0 | N149: 0 | O149: $0.4055 | P149: 8.01 | Q149: =ROUND(O149*P149,2) -> $3.25 | T149: =N149/F149 -> 0
B150: sodium per serving, CN labeled for three sticks to provide min. 1 OEG
B151: Possible Allergens: Egg, Milk ,Soy, and Wheat
A152: 29 | B152: French Toast Sticks, WG Cinnamon, IW | C152: Sunny Fresh 40094 | E152: 110/2.90z | F152: 110 | G152: 0 | H152: =ROUND(G152*F152/F152,2) -> 0 | I152: Cs | J152: $46.68 | K152: =IF(OR(ISBLANK(J152),G152=0,ISBLANK(G152)),,ROUND(J152+$K$3,2)) -> 0 | L152: =ROUND(H152*K152,2) -> 0 | M152: =ROUND(K152/F152,2) -> 0 | N152: $43.28 | O152: $0.4055 | P152: 8.38 | Q152: =ROUND(O152*P152,2) -> $3.40 | R152: =K152-Q152 -> -$3.40 | S152: =R152/F152 -> -$0.03 | T152: =N152/F152 -> $0.39
B153: Frozen, heat and serve, 150-250 calories with no more than 2 g saturated fat and 350 mg
B154: Sodium CIndicate # of sticks to equal 2 oz equivalent grain.
B155: Possible Allergens: Egg, Soy, and Wheat
A156: 30 | B156: French Toast, Mini, 100% Whole Grain, Ovenable Bag WGR 2.0 OEG | C156: (14-15) Eggo Mini French Toast Bites | E156: 72/3.03z | F156: 72 | G156: 36 | H156: =ROUND($G$156*$F$156/F156,2) -> 36 | I156: Cs | K156: =IF(OR(ISBLANK(J156),G156=0,ISBLANK(G156)),,ROUND(J156+$K$3,2)) -> 0 | L156: =ROUND(H156*K156,2) -> 0 | M156: =ROUND(K156/F156,2) -> 0
B157: IW Heat from Frozen, ovenable bag No HFCS, 8 mini french toasts per bag. | C157: 38000-80801 Chocolate Chip
B158: Presweetened, syrup infused. Less than 2 g Sat Fat, 0 Trans Fat, Less than | C158: 38000-80693-3 Original Maple(15-16)
C159: (15-16)Pillsbury 137309 Cinnamon Rush | E159: 72/2.64z | F159: 72 | H159: =ROUND($G$156*$F$156/F159,2) -> 36 | I159: Cs | K159: =IF(OR(ISBLANK(J159),G156=0,ISBLANK(G156)),,ROUND(J159+$K$3,2)) -> 0 | L159: =ROUND(H159*K159,2) -> 0 | M159: =ROUND(K159/F159,2) -> 0
A160: 31 | B160: Strudel Stick, Fruit Filled, WGR 2.0 OEG | C160: (14-15) 127852000 Pillsbury Frudel, Apple Strudel | E160: 72/2.29z | F160: 72 | G160: 0 | H160: =ROUND(G160*F160/F160,2) -> 0 | I160: Cs | K160: =IF(OR(ISBLANK(J160),G160=0,ISBLANK(G160)),,ROUND(J160+$K$3,2)) -> 0 | L160: =ROUND(H160*K160,2) -> 0 | M160: =ROUND(K160/F160,2) -> 0
B161: Frozen. Heat and serve. Whole grain rich. No more than 6 g
B162: fat and 280 mg sodium per serving. 0 trans fat. One serving
B163: provides 2 oz Equivalent Grains
A165: 32 | B165: Fruit Pocket, with Whole Grain Rich crust WGR 2.0 OEG | C165: Horizon Snack Foods (Cutie Pie) | E165: 80/3.95 z | F165: 80 | G165: 0 | H165: =ROUND(G165*F165/F165,2) -> 0 | I165: Cs | K165: =IF(OR(ISBLANK(J165),G165=0,ISBLANK(G165)),,ROUND(J165+$K$3,2)) -> 0 | L165: =ROUND(H165*K165,2) -> 0 | M165: =ROUND(K165/F165,2) -> 0
B166: Fruit filling. One Fruit Pocket provides 1/2 cup fruit and 2.0 OEG, 0 trans fat | C166: 1402-1 Apple
B167: Thaw and Serve, Individually Wrapped
A169: 33 | B169: Fruit Pocket, with Whole Grain Rich crust WGR 2.0 OEG | C169: Horizon Snack Foods (Cutie Pie) | E169: 80/3.95 z | F169: 80 | G169: 0 | H169: =ROUND(G169*F169/F169,2) -> 0 | I169: Cs | K169: =IF(OR(ISBLANK(J169),G169=0,ISBLANK(G169)),,ROUND(J169+$K$3,2)) -> 0 | L169: =ROUND(H169*K169,2) -> 0 | M169: =ROUND(K169/F169,2) -> 0
B170: Fruit filling. One Fruit Pocket provides 1/2 cup fruit and 2.0 OEG, 0 trans fat | C170: 1402-13 Cherry
B171: Thaw and Serve, Individually Wrapped
A173: 34 | B173: Grits, Whole Grain Enriched | C173: Distributor Choice | E173: 8/5# | F173: 40 | G173: 13 | H173: =ROUND($G$173*$F$173/F173,2) -> 13 | I173: Cs | K173: =IF(OR(ISBLANK(J173),G173=0,ISBLANK(G173)),,ROUND(J173+$K$3,2)) -> 0 | L173: =ROUND(H173*K173,2) -> 0 | M173: =ROUND(K173/F173,2) -> 0
B174: Shelf Stable | C174: Fillable txt box
A175: 35 | B175: Grits, Regular | C175: Distributor Choice | E175: 8/5# | F175: 40 | G175: 60 | H175: =ROUND($G$175*$F$175/F175,2) -> 60 | I175: Cs | K175: =IF(OR(ISBLANK(J175),G175=0,ISBLANK(G175)),,ROUND(J175+$K$3,2)) -> 0 | L175: =ROUND(H175*K175,2) -> 0 | M175: =ROUND(K175/F175,2) -> 0
B176: Shelf Stable. Quick cooking | C176: Fillable txt box
A177: 36 | B177: Oats, Rolled | C177: Distributor Choice | E177: 12/42 oz | F177: 504 | G177: 13 | H177: =ROUND($G$177*$F$177/F177,2) -> 13 | I177: Cs | K177: =IF(OR(ISBLANK(J177),G177=0,ISBLANK(G177)),,ROUND(J177+$K$3,2)) -> 0 | L177: =ROUND(H177*K177,2) -> 0 | M177: =ROUND(K177/F177,2) -> 0
B178: 100% Natural | C178: Fillable txt box
A179: 37 | B179: Honey Bun, Individually wrapped. Thaw and Serve. WGR | C179: Super Bakery | E179: 80/2.75z | F179: 80 | G179: 55 | H179: =ROUND(G179*F179/F179,2) -> 55 | I179: Cs | K179: =IF(OR(ISBLANK(J179),G179=0,ISBLANK(G179)),,ROUND(J179+$K$3,2)) -> 0 | L179: =ROUND(H179*K179,2) -> 0 | M179: =ROUND(K179/F179,2) -> 0
B180: One serving provides 2 oz equivalent grain. | C180: 6060 Goody Bun
A182: 38 | B182: Loaf, Mini, IW, WGR 1.0 OEG | C182: Super Bakery | E182: 120/2.0z | F182: 120 | G182: 0 | H182: =ROUND(G182*F182/F182,2) -> 0 | I182: Cs | K182: =IF(OR(ISBLANK(J182),G182=0,ISBLANK(G182)),,ROUND(J182+$K$3,2)) -> 0 | L182: =ROUND(H182*K182,2) -> 0 | M182: =ROUND(K182/F182,2) -> 0
B183: Frozen, thaw and serve. 100% Whole Wheat | C183: 7055 Blueberry
B184: 1 serving provides 1 oz equivalent grain | C184: 7056 Banana
C185: 7057 Apple Cinnamon
A186: 39 | B186: Muffins, Individually Wrapped WGR 1.0 OEG | C186: COOL MUFFINS | E186: 96/1.8z | F186: 96 | G186: 0 | H186: =ROUND($G$186*$F$186/F186,2) -> 0 | I186: Cs | K186: =IF(OR(ISBLANK(J186),G186=0,ISBLANK(G186)),,ROUND(J186+$K$3,2)) -> 0 | L186: =ROUND(H186*K186,2) -> 0 | M186: =ROUND(K186/F186,2) -> 0
B187: One muffin provides 1oz Equivalent grain | C187: 30921 Cinnamon
B188: Frozen, Thaw and Serve | C188: 30727 Blueberry
C189: 30720 Apple
C190: 30723 Banana
C191: Super Bakery | E191: 72/2.0z | F191: 72 | H191: =ROUND($G$186*$F$186/F191,2) -> 0 | I191: Cs | K191: =IF(OR(ISBLANK(J191),G186=0,ISBLANK(G186)),,ROUND(J191+$K$3,2)) -> 0 | L191: =ROUND(H191*K191,2) -> 0 | M191: =ROUND(K191/F191,2) -> 0
C192: 9050 Blueberry
C193: 9052 Banana
A195: 40 | B195: Muffins, Reduced Fat, WGR 1.0 OEG | C195: Otis Spunkmeyer | E195: 72/2.0z | F195: 72 | G195: 466 | H195: =ROUND(G195*F195/F195,2) -> 466 | I195: Cs | K195: =IF(OR(ISBLANK(J195),G195=0,ISBLANK(G195)),,ROUND(J195+$K$3,2)) -> 0 | L195: =ROUND(H195*K195,2) -> 0 | M195: =ROUND(K195/F195,2) -> 0
B196: 30% or less of calories from fat, 30% or less by weight of added sugar. | C196: 10143 Wild Blueberry
B197: Individually Wrapped | C197: 10144 Banana
B198: One muffin provides 1.0 oz Equivalent grain | C198: 10145 Chocolate Chocolate Chip
C199: 10146 Apple Cinnamon
C200: Smart Choice | E200: 96/2.0z | F200: 96 | H200: =ROUND(G195*F195/F200,2) -> 349.5 | I200: Cs | K200: =IF(OR(ISBLANK(J200),G195=0,ISBLANK(G195)),,ROUND(J200+$K$3,2)) -> 0 | L200: =ROUND(H200*K200,2) -> 0 | M200: =ROUND(K200/F200,2) -> 0
C201: 2661 Blueberry
C202: 2666 Apple Cinnamon
C203: 2670 Chocolate Chip
C204: 2675 Banana
A205: 41 | B205: Muffins, Reduced Fat, WGR 1.0 OEG | C205: Chef Pierre WG | E205: 48/2oz | F205: 48 | G205: 0 | H205: =ROUND(G205*F205/F205,2) -> 0 | K205: =IF(OR(ISBLANK(J205),G205=0,ISBLANK(G205)),,ROUND(J205+$K$3,2)) -> 0 | L205: =ROUND(H205*K205,2) -> 0 | M205: =ROUND(K205/F205,2) -> 0
B206: 30% or less of calories from fat, 30% or less by weight of added sugar. | C206: 8860 Blueberry
B207: Individually Wrapped, Muffin provides 1.0 OEG | C207: 8861 Banana
A208: 42 | B208: Pancake and Sausage on a Stick, WGR 1.0 M 1.5 OEG | C208: Jimmy Dean 19010 WG | E208: 60/2.51z | F208: 60 | G208: 5 | H208: =ROUND(G208*F208/F208,2) -> 5 | I208: Cs | K208: =IF(OR(ISBLANK(J208),G208=0,ISBLANK(G208)),,ROUND(J208+$K$3,2)) -> 0 | L208: =ROUND(H208*K208,2) -> 0 | M208: =ROUND(K208/F208,2) -> 0
B209: Pork w Alternate Protein Product. Shall provide 1 oz. cooked meat/meat
B210: alt. and a minimum one grain/bread serving.
A211: 43 | B211: Pancake Wrap, Maple Flavored (IW) WG | C211: Foster Farms 95127 | E211: 68/2.85z | F211: 68 | G211: 0 | H211: =ROUND(G211*F211/F211,2) -> 0 | I211: Cs | K211: =IF(OR(ISBLANK(J211),G211=0,ISBLANK(G211)),,ROUND(J211+$K$3,2)) -> 0 | L211: =ROUND(H211*K211,2) -> 0 | M211: =ROUND(K211/F211,2) -> 0
B212: Frozen, fully cooked turkey lnks wrapped in 100% WG maple flavored, (3) .85 links provide
B213: 1.0 oz. M/MA and 1 OEG, 150-250 calories with no more than 3 g sat fat and 350 mg
B214: of sodium per serving.
B215: Possible Allergens: Wheat, Soy, Milk and Eggs
A216: 44 | B216: Pancake and Turkey Sausage on a Stick, Maple flavored WGR 1M 1.0 OEG | C216: Foster Farms 97169 | E216: 63/2.55z | F216: 63 | G216: 75 | H216: =ROUND(G216*F216/F216,2) -> 75 | I216: Cs | K216: =IF(OR(ISBLANK(J216),G216=0,ISBLANK(G216)),,ROUND(J216+$K$3,2)) -> 0 | L216: =ROUND(H216*K216,2) -> 0 | M216: =ROUND(K216/F216,2) -> 0
B217: Frozen, Heat and serve, 130-250 calories with no more than 3 g sat fat and 550 mg sodium
B218: per serving. CN labeled to provide 1 M/MA and 1 OEG
B219: Possible Allergens: Wheat, Soy, Eggs and Gluten
... 45 more rows

Sheet Sheet109

Sheet Shelf-stable Vegetables
B1: ='Recap Sheet'!A2 -> School Food Authority: | E1: ='Recap Sheet'!A3 -> Offeror Name: | O1: Commodity
B2: ='Recap Sheet'!B2 -> WILLIAMSBURG COUNTY SCHOOLS | C2: Return to Recap Sheet | E2: ='Recap Sheet'!B3 -> 0
A3: Item | B3: Description | C3: Approved Brand Name / Manuf ID # | F3: Firm Fixed Fee | K3: ='Recap Sheet'!B4 -> $0.00 | N3: Processing | O3: Commodity | P3: Pounds of | S3: NOI | T3: Net
A4: # | D4: Distributor | E4: Vendor | F4: Svgs | G4: Est. | H4: Bid | I4: Bid | J4: Unit | K4: Unit Price | L4: Total | M4: Cost per | N4: Fee for | O4: Value Per | P4: DF Needed | Q4: Commodity | R4: NOI | S4: Price/ | T4: Cost Per
D5: Code | E5: Pack | F5: per unit | G5: Bid Qty | H5: Qty | I5: Unit | J5: Price | K5: plus Fee | L5: Price | M5: Unit | N5: Service | O5: Pound | P5: Per Case | Q5: Value | R5: Price | S5: Serving | T5: Serving
B6: Shelf-stable / Canned Vegetables | O6: Potatoes, Dehydrated 100506/110227
A7: 1 | B7: Beans, Green (No Imports) | C7: Distributor Choice | E7: 6/#10 | F7: 6 | G7: 180 | H7: =ROUND(G7*F7/F7,2) -> 180 | I7: Cs
B8: Sieve 3 or 4; variety Blue Lake; Style cut, no strings; | C8: Fillable txt box or unprotected | H8: =ROUND(G7*F7/F8,2) ->  | I8: Cs | K8: =IF(OR(ISBLANK(J8),G7=0,ISBLANK(G7)),,ROUND(J8+$K$3,2)) -> 0 | L8: =ROUND(H8*K8,2) ->  | M8: =ROUND(K8/F8,2) -> 
B9: Drained weight 63 oz. Grade A Fancy
A10: 2 | B10: Beans, Lima, Green (No Imports) | C10: Distributor Choice | E10: 6/#10 | F10: 6 | G10: 20 | H10: =ROUND(G10*F10/F10,2) -> 20 | I10: Cs
B11: Grade A, minimum drained weight 71 oz | C11: Fillable txt box or unprotected | H11: =ROUND(G10*F10/F11,2) ->  | I11: Cs | K11: =IF(OR(ISBLANK(J11),G10=0,ISBLANK(G10)),,ROUND(J11+$K$3,2)) -> 0 | L11: =ROUND(H11*K11,2) ->  | M11: =ROUND(K11/F11,2) -> 
A12: 3 | B12: Beans, Pintos (No Imports) | C12: Distributor Choice | E12: 6/#10 | F12: 6 | G12: 90 | H12: =ROUND($G$12*$F$12/F12,2) -> 90 | I12: Cs
B13: USDA Grade A | C13: Fillable txt box or unprotected | H13: =ROUND(G12*F12/F13,2) ->  | I13: Cs | K13: =IF(OR(ISBLANK(J13),G12=0,ISBLANK(G12)),,ROUND(J13+$K$3,2)) -> 0 | L13: =ROUND(H13*K13,2) ->  | M13: =ROUND(K13/F13,2) -> 
A14: 4 | B14: Beans, Black, Fancy (No Imports) | C14: Distributor Choice | E14: 6/#10 | F14: 6 | G14: 5 | H14: =ROUND($G$14*$F$14/F14,2) -> 5 | I14: Cs
B15: USDA Grade A | C15: Fillable txt box or unprotected | H15: =ROUND(G14*F14/F15,2) ->  | I15: Cs | K15: =IF(OR(ISBLANK(J15),G14=0,ISBLANK(G14)),,ROUND(J15+$K$3,2)) -> 0 | L15: =ROUND(H15*K15,2) ->  | M15: =ROUND(K15/F15,2) -> 
A16: 5 | B16: Beans with Pork (No Imports) | C16: Distributor Choice | E16: 6/#10 | F16: 6 | G16: 5 | H16: =ROUND(G16*F16/F16,2) -> 5 | I16: Cs
B17: First Quality Grade A, Small White beans, in tomato sauce pack, with pork. | C17: Fillable txt box or unprotected | H17: =ROUND(G16*F16/F17,2) ->  | I17: Cs | K17: =IF(OR(ISBLANK(J17),G16=0,ISBLANK(G16)),,ROUND(J17+$K$3,2)) -> 0 | L17: =ROUND(H17*K17,2) ->  | M17: =ROUND(K17/F17,2) -> 
B18: Drained weight 85 oz. Minimum score 90 or above; (No Imports)
A19: 6 | B19: Beans ,Baked (No Imports) | C19: Distributor Choice | E19: 6/#10 | F19: 6 | G19: 35 | H19: =ROUND(G19*F19/F19,2) -> 35 | I19: Cs
B20: Dry mature beans, baked in brown sugar, molasses | C20: Fillable txt box or unprotected | H20: =ROUND(G19*F19/F20,2) ->  | I20: Cs | K20: =IF(OR(ISBLANK(J20),G19=0,ISBLANK(G19)),,ROUND(J20+$K$3,2)) -> 0 | L20: =ROUND(H20*K20,2) ->  | M20: =ROUND(K20/F20,2) -> 
B21: or New England sauce. (No soy beans.) Minimum score 90 or above; Grade A
A22: 7 | B22: Vegetarian Beans, Small White beans, in tomato sauce pack. (No Imports) | C22: Distributor Choice | E22: 6/#10 | F22: 6 | G22: 30 | H22: =ROUND($G$22*$F$22/F22,2) -> 30 | I22: Cs
B23: Drained weight 85 oz. Minimum score 90 or above; Grade A | C23: Fillable txt box or unprotected | H23: =ROUND(G22*F22/F23,2) ->  | I23: Cs | K23: =IF(OR(ISBLANK(J23),G22=0,ISBLANK(G22)),,ROUND(J23+$K$3,2)) -> 0 | L23: =ROUND(H23*K23,2) ->  | M23: =ROUND(K23/F23,2) -> 
A24: 8 | B24: Bean, Kidney, Light (No Imports) | C24: Distributor Choice | E24: 6/#10 | F24: 6 | G24: 0 | H24: =ROUND($G$24*$F$24/F24,2) -> 0 | I24: Cs
C25: Fillable txt box or unprotected | H25: =ROUND(G24*F24/F25,2) ->  | I25: Cs | K25: =IF(OR(ISBLANK(J25),G24=0,ISBLANK(G24)),,ROUND(J25+$K$3,2)) -> 0 | L25: =ROUND(H25*K25,2) ->  | M25: =ROUND(K25/F25,2) -> 
A26: 9 | B26: Carrots, Sliced (No Imports) | C26: Distributor Choice | E26: 6/#10 | F26: 6 | G26: 10 | H26: =ROUND($G$26*$F$26/F26,2) -> 10 | I26: Cs
B27: Medium Fancy, 3/15-5/16 inch cut | C27: Fillable txt box or unprotected | H27: =ROUND(G26*F26/F27,2) ->  | I27: Cs | K27: =IF(OR(ISBLANK(J27),G26=0,ISBLANK(G26)),,ROUND(J27+$K$3,2)) -> 0 | L27: =ROUND(H27*K27,2) ->  | M27: =ROUND(K27/F27,2) -> 
A28: 10 | B28: Corn, Whole Kernel (No Imports) | C28: Distributor Choice | E28: 6/#10 | F28: 6 | G28: 55 | H28: =ROUND(G28*F28/F28,2) -> 55 | I28: Cs
B29: Golden; drained net weight per #10 can 72 oz. Grade A, Fancy | C29: Fillable txt box or unprotected | H29: =ROUND(G28*F28/F29,2) ->  | I29: Cs | K29: =IF(OR(ISBLANK(J29),G28=0,ISBLANK(G28)),,ROUND(J29+$K$3,2)) -> 0 | L29: =ROUND(H29*K29,2) ->  | M29: =ROUND(K29/F29,2) -> 
B30: Minimum score 90; must be packed in enamel lined tins (No Imports)
A31: 11 | B31: Mixed Vegetables (No Imports) | C31: Distributor Choice | E31: 6/#10 | F31: 6 | G31: 0 | H31: =ROUND(G31*F31/F31,2) -> 0 | I31: Cs
B32: US Grade A Fancy,. Mix to include carrots, potatoes, celery, peas,corn, lima beans | C32: Fillable txt box or unprotected | H32: =ROUND(G31*F31/F32,2) ->  | I32: Cs | K32: =IF(OR(ISBLANK(J32),G31=0,ISBLANK(G31)),,ROUND(J32+$K$3,2)) -> 0 | L32: =ROUND(H32*K32,2) ->  | M32: =ROUND(K32/F32,2) -> 
A33: 12 | B33: Onions, Chopped, Dehydrated (No Imports) | C33: Distributor Choice | E33: 6/2Lb | F33: 12 | G33: 5 | H33: =ROUND(G33*F33/F33,2) -> 5 | I33: Cs
B34: White. Yield 1# dehydrated equals 5# fresh. US Grade A | C34: Fillable txt box or unprotected | H34: =ROUND(G33*F33/F34,2) ->  | I34: Cs | K34: =IF(OR(ISBLANK(J34),G33=0,ISBLANK(G33)),,ROUND(J34+$K$3,2)) -> 0 | L34: =ROUND(H34*K34,2) ->  | M34: =ROUND(K34/F34,2) -> 
A35: 13 | B35: Peas and Carrots (No Imports) | C35: Distributor Choice | E35: 6/#10 | F35: 6 | G35: 0 | H35: =ROUND(G35*F35/F35,2) -> 0 | I35: Cs
B36: June peas and diced carrots. Carrots equal to Grade A, Fancy, Peas Grade 5 | C36: Fillable txt box or unprotected | H36: =ROUND(G35*F35/F36,2) ->  | I36: Cs | K36: =IF(OR(ISBLANK(J36),G35=0,ISBLANK(G35)),,ROUND(J36+$K$3,2)) -> 0 | L36: =ROUND(H36*K36,2) ->  | M36: =ROUND(K36/F36,2) -> 
A37: 14 | B37: Peas, Black-eyed (No Imports) | C37: Distributor Choice | E37: 6/#10 | F37: 6 | H37: =ROUND(G37*F37/F37,2) -> 0 | I37: Cs
B38: Grade A, Fancy. Green, fresh peas, 3 sieve. Minimum drained weight 72 oz | C38: Fillable txt box or unprotected | G38: 0 | H38: =ROUND(G37*F37/F38,2) ->  | I38: Cs | K38: =IF(OR(ISBLANK(J38),G37=0,ISBLANK(G37)),,ROUND(J38+$K$3,2)) -> 0 | L38: =ROUND(H38*K38,2) ->  | M38: =ROUND(K38/F38,2) -> 
A39: 15 | B39: Peas, Field (No Imports) | C39: Distributor Choice | E39: 6/#10 | F39: 6 | G39: 45 | H39: =ROUND(G39*F39/F39,2) -> 45 | I39: Cs
B40: Grade A, Fancy. May include snaps. Minimum drained weight 73 oz. | C40: Fillable txt box or unprotected | H40: =ROUND(G39*F39/F40,2) ->  | I40: Cs | K40: =IF(OR(ISBLANK(J40),G39=0,ISBLANK(G39)),,ROUND(J40+$K$3,2)) -> 0 | L40: =ROUND(H40*K40,2) ->  | M40: =ROUND(K40/F40,2) -> 
A41: 16 | B41: Peas, Green (No Imports) | C41: Distributor Choice | E41: 6/#10 | F41: 6 | G41: 105 | H41: =ROUND(G41*F41/F41,2) -> 105 | I41: Cs
B42: Grade A, Fancy. Sieve No. 3 or smaller either sweet or | C42: Fillable txt box or unprotected | H42: =ROUND(G41*F41/F42,2) ->  | I42: Cs | K42: =IF(OR(ISBLANK(J42),G41=0,ISBLANK(G41)),,ROUND(J42+$K$3,2)) -> 0 | L42: =ROUND(H42*K42,2) ->  | M42: =ROUND(K42/F42,2) -> 
B43: early variety. Score 90 or higher. Minimum drained weight 72 oz
A44: 17 | B44: Potatoes, Mashed, Complete | C44: Idahoan 2970000313 | E44: 12/26z | F44: 458 | G44: 85 | H44: =ROUND($G$44*$F$44/F44,2) -> 85 | I44: Cs | J44: $39.39 | K44: =IF(OR(ISBLANK(J44),G44=0,ISBLANK(G44)),,ROUND(J44+$K$3,2)) -> $39.39 | L44: =ROUND(H44*K44,2) -> $3,348.15 | M44: =ROUND(K44/F44,2) -> $0.09 | O44: $0.0621 | P44: 97.5 | Q44: =ROUND(O44*P44,2) -> $6.05 | R44: =K44-Q44 -> $33.34 | S44: =R44/F44 -> $0.07 | T44: =N44/F44 -> 0
B45: Shelf Stable, Add water only, mix, rest and serve prep., 1/2 cup prepared No Imports | C45: Commodity #: 700003132
B46: Possible Allergens: Milk, Soy, Sulfites
A47: 18 | B47: Potatoes, Mashed, Complete | C47: Basic American 76468 | E47: 12/28 oz | F47: 504 | G47: 0 | H47: =ROUND(G47*F47/F47,2) -> 0 | I47: Cs | J47: $41.99 | K47: =IF(OR(ISBLANK(J47),G47=0,ISBLANK(G47)),,ROUND(J47+$K$3,2)) -> 0 | L47: =ROUND(H47*K47,2) -> 0 | M47: =ROUND(K47/F47,2) -> 0 | O47: $0.0621 | P47: 105 | Q47: =ROUND(O47*P47,2) -> $6.52 | R47: =K47-Q47 -> $(6.52) | S47: =R47/F47 -> $(0.01) | T47: 0
B48: Shelf Stable, Add water only, mix, rest and serve prep., 1/2 cup prepared No Imports
B49: Possible Allergens: Milk, Soy, Sulfites
A50: 19 | B50: Potatoes, White Diced (No Imports) | C50: Distributor Choice | E50: 6/#10 | F50: 6 | G50: 20 | H50: =ROUND(G50*F50/F50,2) -> 20 | I50: Cs
B51: Grade A, Fancy, First Quality. White Irish Pack: 6/#10 | C51: Fillable txt box or unprotected | H51: =ROUND(G50*F50/F51,2) ->  | I51: Cs | K51: =IF(OR(ISBLANK(J51),G50=0,ISBLANK(G50)),,ROUND(J51+$K$3,2)) -> 0 | L51: =ROUND(H51*K51,2) ->  | M51: =ROUND(K51/F51,2) -> 
A52: 20 | B52: Potatoes, White, Whole (No Imports) | C52: Distributor Choice | E52: 6/#10 | F52: 6 | G52: 0 | H52: =ROUND(G52*F52/F52,2) -> 0 | I52: Cs
B53: Small whole size 2. 100 count per #10 can. First Quality (No Imports) | C53: Fillable txt box or unprotected | H53: =ROUND(G52*F52/F53,2) ->  | I53: Cs | K53: =IF(OR(ISBLANK(J53),G52=0,ISBLANK(G52)),,ROUND(J53+$K$3,2)) -> 0 | L53: =ROUND(H53*K53,2) ->  | M53: =ROUND(K53/F53,2) -> 
O54: Tomato Paste for Bulk Processing 100332
A55: 21 | B55: Salsa, Mild, Thick and Chunky, Nutritionally Enhanced | C55: Red Gold 72940-11005 | E55: 6/#10 | F55: 206 | G55: 5 | H55: =ROUND(G55*F55/F55,2) -> 5 | I55: Cs | J55: $26.28 | K55: =IF(OR(ISBLANK(J55),G55=0,ISBLANK(G55)),,ROUND(J55+$K$3,2)) -> $26.28 | L55: =ROUND(H55*K55,2) -> $131.40 | M55: =ROUND(K55/F55,2) -> $0.13 | O55: $0.4105 | P55: 5.9 | Q55: =ROUND(O55*P55,2) -> $2.42 | R55: =K55-Q55 -> $23.86 | S55: =R55/F55 -> $0.12 | T55: 0
B56: Canned, Grade A 3 oz. = 1/2 c Red/Orange Vegetable | C56: Commodity #: REDSC99
A57: 22 | B57: Salsa, Mild, Dipping Cup | C57: Red Gold 72940-11139-5 Comm#: REDSC2ZC84 | E57: 84/3.0z | F57: 84 | G57: 0 | H57: =ROUND(G57*F57/F57,2) -> 0 | I57: Cs | J57: $27.25 | K57: =IF(OR(ISBLANK(J57),G57=0,ISBLANK(G57)),,ROUND(J57+$K$3,2)) -> 0 | L57: =ROUND(H57*K57,2) -> 0 | M57: =ROUND(K57/F57,2) -> 0 | O57: $0.4105 | P57: 2.36 | Q57: =ROUND(O57*P57,2) -> $0.97 | R57: =K57-Q57 -> $(0.97) | S57: =R57/F57 -> $(0.01) | T57: =N57/F57 -> 0
B58: Canned Grade A 3 oz. serving = 1/2 c Red/Orange Vegetable | C58: Red Gold 72940-11139-7 Comm#: REDSC2Z168 | E58: 168/3.0z | F58: 168 | H58: =ROUND(G57*F57/F58,2) -> 0 | I58: Cs | J58: $52.75 | K58: =IF(OR(ISBLANK(J58),G58=0,ISBLANK(G58)),,ROUND(J58+$K$3,2)) -> $52.75 | L58: =ROUND(H58*K58,2) -> 0 | M58: =ROUND(K58/F58,2) -> $0.31 | O58: $0.4105 | P58: 4.72 | Q58: =ROUND(O58*P58,2) -> $1.94 | R58: =K58-Q58 -> $50.81 | S58: =R58/F58 -> $0.30 | T58: =N58/F58 -> 0
A59: 23 | B59: Squash, Sliced (No Imports) | C59: Distributor Choice | E59: 6/#10 | F59: 6 | G59: 0 | H59: =ROUND(G59*F59/F59,2) -> 0 | I59: Cs
B60: Grade A, Minimum drained weight 61 oz | C60: Fillable txt box or unprotected | H60: =ROUND(G59*F59/F60,2) ->  | I60: Cs | K60: =IF(OR(ISBLANK(J60),G59=0,ISBLANK(G59)),,ROUND(J60+$K$3,2)) -> 0 | L60: =ROUND(H60*K60,2) ->  | M60: =ROUND(K60/F60,2) -> 
A61: 24 | B61: Sweet Potatoes, Cut (No Imports) | C61: Distributor Choice | E61: 6/#10 | F61: 6 | G61: 15 | H61: =ROUND(G61*F61/F61,2) -> 15 | I61: Cs
B62: Grade A, Fancy. Packed in syrup. Minimum drained weight 73 oz. First Quality | C62: Fillable txt box or unprotected | H62: =ROUND(G61*F61/F62,2) ->  | I62: Cs | K62: =IF(OR(ISBLANK(J62),G61=0,ISBLANK(G61)),,ROUND(J62+$K$3,2)) -> 0 | L62: =ROUND(H62*K62,2) ->  | M62: =ROUND(K62/F62,2) -> 
A63: 25 | B63: Tomato Catsup | C63: Red Gold 72940-11002 Comm#: REDY599 | E63: 6/#10 | F63: 1151 | G63: 35 | H63: =ROUND(G63*F63/F63,2) -> 35 | I63: Cs | O63: $0.4105 | P63: 9.81 | Q63: =ROUND(O63*P63,2) -> $4.03
B64: Canned, Grade A Fancy, 33% Solids | C64: Hunt's 27000-38251 | E64: 6/114z | F64: 1140 | H64: =ROUND($G$63*$F$63/F64,2) -> 35.34 | I64: Cs | T64: 0
C65: Heinz 130005129000 | E65: 6/#10 | F65: 1140 | H65: =ROUND($G$63*$F$63/F65,2) -> 35.34 | I65: Cs | J65: $17.50 | K65: =IF(OR(ISBLANK(J65),G63=0,ISBLANK(G63)),,ROUND(J65+$K$3,2)) -> $17.50 | L65: =ROUND(K65*H65,2) -> $618.45 | M65: =ROUND(K65/F65,2) -> $0.02 | O65: $0.4105 | P65: 9.3 | Q65: =ROUND(O65*P65,2) -> $3.82 | R65: =K65-Q65 -> $13.68 | S65: =R65/F65 -> $0.01 | T65: 0
A67: 26 | B67: Tomatoes, Crushed | C67: Red Gold 72940-81400 Comm#:RPKDX99 | E67: 6/#10 | F67: 286 | G67: 15 | H67: =ROUND(G67*F67/F67,2) -> 15 | I67: Cs | J67: $19.73 | K67: =IF(OR(ISBLANK(J67),G67=0,ISBLANK(G67)),,ROUND(J67+$K$3,2)) -> $19.73 | L67: =ROUND(K67*H67,2) -> $295.95 | M67: =ROUND(K67/F67,2) -> $0.07 | O67: $0.4105 | P67: 17.41 | Q67: =ROUND(O67*P67,2) -> $7.15 | R67: =K67-Q67 -> $12.58 | S67: =R67/F67 -> $0.04 | T67: 0
B68: Grade B, Extra Standard, Packed in tomato juice. Drained weight 64 oz.
B69: 2 oz. = 1/2 cup Red/Orange Vegetable
A70: 27 | B70: Tomato Paste | C70: Red Gold 72940-82300 Comm#: RPKUA99 | E70: 6/#10 | F70: 666 | G70: 45 | H70: =ROUND(G70*F70/F70,2) -> 45 | I70: Cs | O70: $0.4116 | P70: 30.97 | Q70: =ROUND(O70*P70,2) -> $12.75 | R70: =K70-Q70 -> $(12.75) | S70: =R70/F70 -> $(0.02) | T70: 0
B71: Minimum 24% solids, Grade A. Minimum drained weight 111 oz. only salt added. | C71: Hunt's 27000-38835 | E71: 6/111z | F71: 564 | H71: =ROUND($G$70*$F$70/F71,2) -> 53.14 | I71: Cs | T71: 0
B72: 1 oz. = 1/2 c Red/Orange Vegetable | C72: Heinz 130005731000 | E72: 6/#10 | F72: 555 | H72: =ROUND($G$70*$F$70/F72,2) -> 54 | I72: Cs | J72: $23.75 | K72: =IF(OR(ISBLANK(J72),G70=0,ISBLANK(G70)),,ROUND(J72+$K$3,2)) -> $23.75 | L72: =ROUND(K72*H72,2) -> $1,282.50 | M72: =ROUND(K72/F72,2) -> $0.04 | O72: $0.4105 | P72: 32.11 | Q72: =ROUND(O72*P72,2) -> $13.18 | R72: =K72-Q72 -> $10.57 | S72: =R72/F72 -> $0.02 | T72: 0
A74: 28 | B74: 12 | C74: Red Gold 72940-81800 Comm#: RPKHA99 | E74: 6/#10 | F74: 212 | G74: 0 | H74: =ROUND(G74*F74/F74,2) -> 0 | I74: Cs | O74: $0.4105 | P74: 9.72 | Q74: =ROUND(O74*P74,2) -> $3.99
B75: US Grade A. Canned, 3 oz. = 1/2 c Red/Orange Vegetable | C75: Heinz 130005724000 | E75: 6/#10 | F75: 295 | H75: =ROUND(G74*F74/F75,2) -> 0 | I75: Cs | J75: $19.30 | K75: =IF(OR(ISBLANK(J75),G74=0,ISBLANK(G74)),,ROUND(J75+$K$3,2)) -> 0 | L75: =ROUND(K75*H75,2) -> 0 | M75: =ROUND(K75/F75,2) -> 0 | O75: $0.4105 | P75: 9.57 | Q75: $3.93 | R75: =K75-Q75 -> $(3.93) | S75: =R75/F75 -> $(0.01) | T75: =N75/F75 -> 0
A77: 29 | B77: Sauce, Marinara | C77: Red Gold 72940-82200 Comm#: RPKNA99 | E77: 6/#10 | F77: 225 | G77: 5 | H77: =ROUND(G77*F77/F77,2) -> 5 | I77: Cs | J77: $25.83 | K77: =IF(OR(ISBLANK(J77),G77=0,ISBLANK(G77)),,ROUND(J77+$K$3,2)) -> $25.83 | L77: =ROUND(K77*H77,2) -> $129.15 | M77: =ROUND(K77/F77,2) -> $0.11 | O77: $0.4105 | P77: 7.52 | Q77: =ROUND(O77*P77,2) -> $3.09 | R77: =K77-Q77 -> $22.74 | S77: =R77/F77 -> $0.10 | T77: =N77/F77 -> 0
B78: Canned, Grade ! Fancy, 2.8 oz = 1/2 c Red/Orange Vegetable
A80: 30 | B80: Sauce, Marinara, Portion Control | C80: Red Gold 72940-82207-9 Comm#: REDNA2ZC84 | E80: 84/2.5z | F80: 84 | G80: 5 | H80: =ROUND(G80*F80/F80,2) -> 5 | I80: Cs | J80: $21.45 | K80: =IF(OR(ISBLANK(J80),G80=0,ISBLANK(G80)),,ROUND(J80+$K$3,2)) -> $21.45 | L80: =ROUND(K80*H80,2) -> $107.25 | M80: =ROUND(K80/F80,2) -> $0.26 | O80: $0.4105 | P80: 3.67 | Q80: =ROUND(O80*P80,2) -> $1.51 | R80: =K80-Q80 -> $19.94 | S80: =R80/F80 -> $0.24 | T80: 0
B81: Shelf Stable, US Grade A, Ready to serve | C81: Red Gold 72940-82207-3 Comm#: REDNA2ZC168 | E81: 168/2,5z | F81: 168 | H81: =ROUND(G80*F80/F80,2) -> 5 | I81: Cs | J81: $41.42 | K81: =IF(OR(ISBLANK(J81),G79=0,ISBLANK(G79)),,ROUND(J81+$K$3,2)) -> 0 | L81: =ROUND(K81*H81,2) -> 0 | M81: =ROUND(K81/F81,2) -> 0 | O81: $0.4105 | P81: 7.33 | Q81: =ROUND(O81*P81,2) -> $3.01 | R81: =K81-Q81 -> $(3.01) | S81: =R81/F81 -> $(0.02) | T81: =N81/F81 -> 0
B82: 2 oz. = 1/2 cup Red/Orange Vegetable
A83: 31 | B83: Sauce, Pizza Canned | C83: Red Gold 72940-81907 Comm#: RPKIL99 | E83: 6/#10 | F83: 212 | G83: 0 | H83: =ROUND(G83*F83/F83,2) -> 0 | I83: Cs | J83: $24.68 | K83: =IF(OR(ISBLANK(J83),G83=0,ISBLANK(G83)),,ROUND(J83+$K$3,2)) -> 0 | L83: =ROUND(K83*H83,2) -> 0 | M83: =ROUND(K83/F83,2) -> 0 | O83: $0.4105 | P83: 12.26 | Q83: =ROUND(O83*P83,2) -> $5.03 | R83: =K83-Q83 -> $(5.03) | S83: =R83/F83 -> $(0.02) | T83: 0
B84: Canned First Quality 2 oz. = 1/2 cup Red/Orange Vegetable | C84: Heinz 130005733000 | E84: 6/#10 | F84: 212 | H84: =ROUND(G83*F83/F84,2) -> 0 | I84: Cs | O84: $0.4105 | P84: 13.69 | Q84: $5.62 | T84: 0
A86: 32 | B86: Catsup, 100% Natural made w/sugar, low sodium, PC | C86: Red Gold 72940-11584 Comm#: REDYL9G | E86: 1000/9gm | F86: 1000 | H86: =ROUND(G86*F86/F86,2) -> 0 | I86: Cs | J86: $14.19 | K86: =IF(OR(ISBLANK(J86),G86=0,ISBLANK(G86)),,ROUND(J86+$K$3,2)) -> 0 | L86: =ROUND(K86*H86,2) -> 0 | M86: =ROUND(K86/F86,2) -> 0 | O86: $0.4015 | P86: 4.81 | Q86: =ROUND(O86*P86,2) -> $1.93 | R86: =K86-Q86 -> $(1.93) | S86: =R86/F86 -> $(0.00) | T86: 0
B87: US Grade A, 9 gm foil packets
A89: 33 | B89: Catsup, Tomato, Portion Control | C89: Red Gold 72940-11581 Comm#: REDY59G | E89: 1000/9gm | F89: 1000 | G89: 280 | H89: =ROUND(G89*F89/F89,2) -> 280 | I89: Cs | O89: $0.4105 | P89: 4.21 | Q89: =ROUND(O89*P89,2) -> $1.73 | T89: 0
B90: 33% solids, Grade A 9 gm foil packets | C90: Hunts 27000-38287 | E90: 1000/9gm | F90: 1000 | H90: =ROUND(G89*F89/F90,2) -> 280 | I90: Cs | S90: =M90/E90 -> 
C91: Heinz 130009848000 | E91: 1000/9gm | F91: 1000 | H91: =ROUND(G89*F89/F91,2) -> 280 | I91: Cs | J91: $11.00 | K91: =IF(OR(ISBLANK(J91),G89=0,ISBLANK(G89)),,ROUND(J91+$K$3,2)) -> $11.00 | L91: =ROUND(K91*H91,2) -> $3,080.00 | M91: =ROUND(K91/F91,2) -> $0.01 | O91: $0.4105 | P91: 4.32 | Q91: =ROUND(O91*P91,2) -> $1.77 | R91: =K91-Q91 -> $9.23 | S91: =R91/F91 -> $0.01 | T91: 0
A92: 34 | B92: Sauce, Spaghetti Smooth | C92: Red Gold 72940-82100 Comm#: RPKMA9C | E92: 6/#10 | F92: 212 | G92: 0 | H92: =ROUND(G92*F92/F92,2) -> 0 | I92: Cs | J92: $24.53 | K92: =IF(OR(ISBLANK(J92),G92=0,ISBLANK(G92)),,ROUND(J92+$K$3,2)) -> 0 | L92: =ROUND(H92*K92,2) -> 0 | M92: =ROUND(K92/F92,2) -> 0 | O92: $0.4105 | P92: 10.67 | Q92: =ROUND(O92*P92,2) -> $4.38
B93: Canned, US Grade A, Crediting statement with amount to provide 1/2c Red/Orange | C93: Heinz 130005880000 | E93: 6/#10 | F93: 215 | H93: =ROUND(G92*F92/F93,2) -> 0 | I93: Cs | O93: $0.4105 | P93: 11.9 | Q93: $4.88 | T93: =N93/F93 -> 0
B94: Vegetable
A95: 35 | B95: Sauce, Spaghetti, Nutritionally Balanced | C95: Red Gold 72940-82107 Comm#: RPKMA9E | E95: 6/#10 | F95: 212 | G95: 10 | H95: =ROUND(G95*F95/F95,2) -> 10 | I95: Cs | J95: $24.53 | K95: =IF(OR(ISBLANK(J95),G95=0,ISBLANK(G95)),,ROUND(J95+$K$3,2)) -> $24.53 | L95: =ROUND(H95*K95,2) -> $245.30 | M95: =ROUND(K95/F95,2) -> $0.12 | O95: $0.4105 | P95: 10.32 | Q95: =ROUND(O95*P95,2) -> $4.24 | R95: =K95-Q95 -> $20.29 | S95: =R95/F95 -> $0.10 | T95: 0
B96: Canned, US Grade A, 3 oz. = 1/2 c Red/Orange Vegetable | C96: Heinz 130005880000 | E96: 6/#10 | F96: 215 | H96: =ROUND(G95*F95/F96,2) -> 9.86 | I96: Cs | O96: $0.4105 | P96: 11.9 | Q96: $4.88
A98: 36 | B98: Ketchup, Sriracha, Hot Chili | C98: Red Gold 72940-11204 Comm#: HUYYW8G | E98: 1000/8gm | F98: 1000 | G98: 5 | H98: =ROUND($G$109*$F$109/F98,2) -> 0 | I98: Cs | J98: $21.24 | K98: =IF(OR(ISBLANK(J98),G98=0,ISBLANK(G98)),,ROUND(J98+$K$3,2)) -> $21.24 | L98: =ROUND(H98*K98,2) -> 0 | M98: =ROUND(K98/F98,2) -> $0.02 | O98: $0.4105 | P98: 3.89 | Q98: =ROUND(O98*P98,2) -> $1.60 | R98: =K98-Q98 -> $19.64 | S98: =R98/F98 -> $0.02 | T98: =N98/F98 -> 0
B99: 8 gram foil packages
A101: 37 | B101: Sauce, Barbecue, 12 gram | C101: Heinz/Kraft 130005338000 | E101: 200/12 gm | F101: 200 | G101: 50 | H101: =ROUND($G$105*$F$105/F101,2) -> 65 | I101: Cs | J101: $5.50 | K101: =IF(OR(ISBLANK(J101),G101=0,ISBLANK(G101)),,ROUND(J101+$K$3,2)) -> $5.50 | L101: =ROUND(H101*K101,2) -> $357.50 | M101: =ROUND(K101/F101,2) -> $0.03 | O101: $0.4105 | P101: 1.01 | Q101: =ROUND(O101*P101,2) -> $0.41 | R101: =K101-Q101 -> $5.09 | S101: =R101/F101 -> $0.03 | T101: =N101/F101 -> 0
B102: Shelf Stable, 12 grams per packet | C102: PPI 7160372781000 | E102: 200/12 gm | F102: 200 | H102: =ROUND($G$105*$F$105/F102,2) -> 65 | I102: Cs | J102: $4.45 | K102: =IF(OR(ISBLANK(J101),G101=0,ISBLANK(G101)),,ROUND(J102+$K$3,2)) -> $4.45 | L102: =ROUND(H102*K102,2) -> $289.25 | M102: =ROUND(K102/F102,2) -> $0.02 | S102: =M102/E102 -> 
C103: Sauer's | E103: 200/12 gm | F103: 200 | H103: 65 | I103: Cs
B104: Allergens: Wheat, Soy | C104: Diamond/Flavor Fresh 76009 | E104: 200/12 gm | F104: 200 | H104: 65 | I104: Cs
A105: 38 | B105: Sauce, Taco | C105: Heinz/Kraft 130005324000 | E105: 200/9 gm | F105: 200 | G105: 65 | H105: =ROUND($G$105*$F$105/F105,2) -> 65 | I105: Cs | J105: $3.70 | K105: =IF(OR(ISBLANK(J105),G105=0,ISBLANK(G105)),,ROUND(J105+$K$3,2)) -> $3.70 | L105: =ROUND(H105*K105,2) -> $240.50 | M105: =ROUND(K105/F105,2) -> $0.02 | O105: $0.4105 | P105: 0.75 | Q105: =ROUND(O105*P105,2) -> $0.31 | R105: =K105-Q105 -> $3.39 | S105: =R105/F105 -> $0.02 | T105: =N105/F105 -> 0
B106: Shelf Stable, 9 grams per packet | C106: Sauer's | E106: 200/9 gm | F106: 200 | H106: =ROUND($G$105*$F$105/F106,2) -> 65 | I106: Cs | S106: =M106/E106 -> 
B107: \ | C107: Rosarita | E107: 200/9 gm | F107: 200 | H107: 65 | I107: Cs
A109: 39 | B109: Ketchup, Sriracha, Hot Chili | C109: Red Gold 72940-11204 Comm#: HUYYW8G | E109: 1000/8gm | F109: 1000 | G109: 0 | H109: =ROUND($G$109*$F$109/F109,2) -> 0 | I109: Cs | J109: $21.24 | K109: =IF(OR(ISBLANK(J109),G109=0,ISBLANK(G109)),,ROUND(J109+$K$3,2)) -> 0 | L109: =ROUND(H109*K109,2) -> 0 | M109: =ROUND(K109/F109,2) -> 0 | O109: $0.4105 | P109: 3.89 | Q109: =ROUND(O109*P109,2) -> $1.60 | R109: =K109-Q109 -> $(1.60) | S109: =R109/F109 -> $(0.00) | T109: 0
B110: 8 gram foil packages
O112: Garbanzo Beans 100360
A113: 40 | B113: Hummus Cups | C113: National Food Group 600355 | E113: 120/3.0z | F113: 120 | G113: 0 | H113: =ROUND(G113*F113/F113,2) -> 0 | I113: Cs | J113: $42.00 | K113: =IF(OR(ISBLANK(J113),G113=0,ISBLANK(G113)),,ROUND(J113+$K$3,2)) -> 0 | L113: =ROUND(H113*K113,2) -> 0 | M113: =ROUND(K113/F113,2) -> 0 | N113: $29.98 | O113: $0.3677 | P113: 17.55 | Q113: =ROUND(O113*P113,2) -> $6.45 | R113: 0 | S113: =R113/F113 -> 0 | T113: =N113/F113 -> $0.25
B114: One serving equals 1 M/MA and 1/4 cup vegetable
B115: or as a base.
A116: 41 | B116: Turnip Greens, chopped | C116: Distributor Choice | E116: 6/#10 | F116: 6 | G116: 5 | H116: =ROUND(G116*F116/F116,2) -> 5 | I116: Cs
B117: Fancy, Minimum drained weight 58 oz (No Imports) | C117: Fillable txt box or unprotected | H117: =ROUND(G116*F116/F117,2) ->  | I117: Cs | K117: =IF(OR(ISBLANK(J117),G116=0,ISBLANK(G116)),,ROUND(J117+$K$3,2)) -> 0 | L117: =ROUND(H117*K117,2) ->  | M117: =ROUND(K117/F117,2) -> 
I120: Page Total | L120: =SUMIF(L6:L118,">0") -> $10,125.40

Sheet Groceries
B1: ='Recap Sheet'!A2 -> School Food Authority: | E1: ='Recap Sheet'!A3 -> Offeror Name:
B2: ='Recap Sheet'!B2 -> WILLIAMSBURG COUNTY SCHOOLS | C2: Return to Recap Sheet | E2: ='Recap Sheet'!B3 -> 0
A3: Item | B3: Description | C3: Approved Brand Name / Manuf ID # | F3: Firm Fixed Fee | K3: ='Recap Sheet'!B4 -> $0.00
A4: # | D4: Distributor | E4: Vendor | F4: Svgs | G4: Est. | H4: Bid | I4: Bid | J4: Unit | K4: Unit Price | L4: Total | M4: Cost per
D5: Code | E5: Pack | F5: per unit | G5: Bid Qty | H5: Qty | I5: Unit | J5: Price | K5: plus Fee | L5: Price | M5: Unit
B6: Groceries
A7: 1 | B7: Bacon Bits | C7: Distributor Choice | E7: 25Lb | F7: 25 | G7: 0 | H7: =ROUND(G7*F7/F7,2) -> 0 | I7: Cs
B8: Imitation. For use on salad bar. | C8: Fillable txt box or unprotected | H8: =ROUND(G7*F7/F8,2) ->  | I8: Cs | K8: =IF(OR(ISBLANK(J8),G7=0,ISBLANK(G7)),,ROUND(J8+$K$3,2)) -> 0 | L8: =ROUND(H8*K8,2) ->  | M8: =ROUND(K8/F8,2) -> 
A9: 2 | B9: Baking Powder | C9: Distributor Choice | E9: 40Lb | F9: 40 | G9: 10 | H9: =ROUND(G9*F9/F9,2) -> 10 | I9: Cs
B10: Must meet Fed/ Spec #EE-B-86B. Double Acting. | C10: Fillable txt box or unprotected | H10: =ROUND(G9*F9/F10,2) ->  | I10: Cs | K10: =IF(OR(ISBLANK(J10),G9=0,ISBLANK(G9)),,ROUND(J10+$K$3,2)) -> 0 | L10: =ROUND(H10*K10,2) ->  | M10: =ROUND(K10/F10,2) -> 
A11: 3 | B11: Baking Soda | C11: Distributor Choice | E11: 24/1 lb | F11: 24 | G11: 10
B12: Shelf Stable | C12: Fillable txt box or unprotected | H12: =ROUND(G11*F11/F12,2) ->  | I12: Cs | K12: =IF(OR(ISBLANK(J12),G11=0,ISBLANK(G11)),,ROUND(J12+$K$3,2)) -> 0 | L12: =ROUND(H12*K12,2) ->  | M12: =ROUND(K12/F12,2) -> 
A13: 4 | B13: Bases, Soup, Beef Flavor | C13: Distributor Choice | E13: 12/1Lb | F13: 12 | G13: 30 | H13: =ROUND(G13*F13/F13,2) -> 30 | I13: Cs
B14: First ingredient, meat, 1 lb reconstituted yields 5 gallons broth. No MSG | C14: Fillable txt box or unprotected | H14: =ROUND(G13*F13/F14,2) ->  | I14: Cs | K14: =IF(OR(ISBLANK(J14),G13=0,ISBLANK(G13)),,ROUND(J14+$K$3,2)) -> 0 | L14: =ROUND(H14*K14,2) ->  | M14: =ROUND(K14/F14,2) -> 
A16: 5 | B16: Bases, Soup, Chicken Flavor | C16: Distributor Choice | E16: 12/1Lb | F16: 12 | G16: 50 | H16: =ROUND(G16*F16/F16,2) -> 50 | I16: Cs
B17: First ingredient, meat, 1 lb reconstituted yields 5 gallons broth. No MSG | C17: Fillable txt box or unprotected | H17: =ROUND(G16*F16/F17,2) ->  | I17: Cs | K17: =IF(OR(ISBLANK(J17),G16=0,ISBLANK(G16)),,ROUND(J17+$K$3,2)) -> 0 | L17: =ROUND(H17*K17,2) ->  | M17: =ROUND(K17/F17,2) -> 
A18: 6 | B18: Bases, Soup, Ham Flavor | C18: Distributor Choice | E18: 12/1Lb | F18: 12 | G18: 10 | H18: =ROUND(G18*F18/F18,2) -> 10 | I18: Cs
B19: First ingredient, meat,1 lb reconstituted yields 5 gallons broth. No MSG | C19: Fillable txt box or unprotected | H19: =ROUND(G18*F18/F19,2) ->  | I19: Cs | K19: =IF(OR(ISBLANK(J19),G18=0,ISBLANK(G18)),,ROUND(J19+$K$3,2)) -> 0 | L19: =ROUND(H19*K19,2) ->  | M19: =ROUND(K19/F19,2) -> 
A20: 7 | B20: Bread Sticks, Frozen Dough. WGR 1.0 OEG | C20: Rich's 12194 | E20: 250/1.0z | F20: 250 | G20: 15 | H20: =ROUND(G20*F20/F20,2) -> 15 | I20: Cs | K20: =IF(OR(ISBLANK(J20),G20=0,ISBLANK(G20)),,ROUND(J20+$K$3,2)) -> 0 | L20: =ROUND(H20*K20,2) -> 0 | M20: =ROUND(K20/F20,2) -> 0
B21: Pre-cut frozen bread dough. Bake and Serve 1breadstick = 1.0 OEG
A22: 8 | B22: Breadsticks, Frozen, Fully Baked, WGR | C22: Adv-Pierre 133908 | E22: 144/1g.5z | F22: 144 | G22: 285 | H22: =ROUND(G22*F22/F22,2) -> 285 | I22: CS | K22: =IF(OR(ISBLANK(J22),G22=0,ISBLANK(G22)),,ROUND(J22+$K$3,2)) -> 0 | L22: =ROUND(H22*K22,2) -> 0 | M22: =ROUND(K22/F22,2) -> 0
B23: 1 breadstick provides 1.5 oz Equivalent Grain, Thaw and Serve
A24: 9 | B24: Chips, Nachos , Bulk | C24: 62399 Tostitos Crispy Rounds | E24: 8/1Lb | F24: 8 | G24: 0 | H24: =ROUND($G$24*$F$24/F24,2) -> 0 | K24: =IF(OR(ISBLANK(J24),G24=0,ISBLANK(G24)),,ROUND(J24+$K$3,2)) -> 0 | L24: =ROUND(H24*K24,2) -> 0 | M24: =ROUND(K24/F24,2) -> 0
B25: Must meet Whole Grain Rich
A26: 10 | B26: Cookie Dough, Frozen, Red. Fat WGR Not More Than 1.0 OEG | C26: Otis Spunkmeyer | E26: 240/1.5z | F26: 240 | G26: 220 | H26: =ROUND(G26*F26/F26,2) -> 220 | I26: Cs | K26: =IF(OR(ISBLANK(J26),G26=0,ISBLANK(G26)),,ROUND(J26+$K$3,2)) -> 0 | L26: =ROUND(H26*K26,2) -> 0 | M26: =ROUND(K26/F26,2) -> 0
C27: 55680 Chocolate Chip .5 OEG
B28: 1 cookie provides no more than 30% calories from total fat, | C28: 55683 Oatmeal Raisin .5 OEG
B29: 10% calories from saturated, 35% sugar by weight | C29: 55684 Butter Sugar 1.0 OEG
C30: 55688 Carnival .5 OEG
C31: 55689 Chocolate Brownie .75 OEG
A32: 11 | B32: Cookies, Mini, Whole Grain, Indv. WGR 1.0 OEG | C32: Chortles | E32: 100/1z | F32: 100 | G32: 10 | H32: =ROUND($G$32*$F$32/F32,2) -> 10 | I32: Cs | K32: =IF(OR(ISBLANK(J32),G32=0,ISBLANK(G32)),,ROUND(J32+$K$3,2)) -> 0 | L32: =ROUND(H32*K32,2) -> 0 | M32: =ROUND(K32/F32,2) -> 0
B33: 0 transfat, low in sugar and calories, No HFCS | C33: 09535-00005 Graham
B34: 1 package = 1 oz eq grain. | C34: 09535- 00004 Chocolate
C35: Kelloggs Gripz, Cookie, Mini | E35: 150/.95z | F35: 150 | H35: =ROUND($G$32*$F$32/F35,2) -> 6.67 | I35: Cs | K35: =IF(OR(ISBLANK(J35),G32=0,ISBLANK(G32)),,ROUND(J35+$K$3,2)) -> 0 | L35: =ROUND(H35*K35,2) -> 0 | M35: =ROUND(K35/F35,2) -> 0
B36: Chortles and Kelloggs products are Smark Snack Compliant | C36: 30100-45682 Cinnamon Graham Bites
C37: 30100-80741 Chocolate Chip Graham
A38: 12 | B38: Cornmeal, Yellow, Enriched. | C38: Distributor Choice | E38: 25Lb | F38: 25 | G38: 70 | H38: =ROUND(G38*F38/F38,2) -> 70 | I38: Cs
B39: First Quality | C39: Fillable txt box | H39: =ROUND(G38*F38/F39,2) ->  | I39: Cs | K39: =IF(OR(ISBLANK(J39),G38=0,ISBLANK(G38)),,ROUND(J39+$K$3,2)) -> 0 | L39: =ROUND(H39*K39,2) ->  | M39: =ROUND(K39/F39,2) -> 
B40: This is not a Whole Grain Rich product.
A41: 13 | B41: Cornstarch | C41: Distributor Choice | E41: 24/1gLb | F41: 24 | G41: 25 | H41: =ROUND(G41*F41/F41,2) -> 25 | I41: Cs
B42: Must meet Federal spec #N-C-541E | C42: Fillable txt box | H42: =ROUND(G41*F41/F42,2) ->  | I42: Cs | K42: =IF(OR(ISBLANK(J42),G41=0,ISBLANK(G41)),,ROUND(J42+$K$3,2)) -> 0 | L42: =ROUND(H42*K42,2) ->  | M42: =ROUND(K42/F42,2) -> 
A43: 14 | B43: Crackers, Animal WGR 1.0 OEG | C43: Keebler 30100-20150 | E43: 150/1oz | F43: 150 | G43: 0 | H43: =ROUND(G43*F43/F43,2) -> 0 | I43: Cs | K43: =IF(OR(ISBLANK(J43),G43=0,ISBLANK(G43)),,ROUND(J43+$K$3,2)) -> 0 | L43: =ROUND(H43*K43,2) -> 0 | M43: =ROUND(K43/F43,2) -> 0
B44: One serving provides 1.0oz equivalent grain. No HFCS, made with sugar
B45: Contains wheat and soy. Contains 18g credible grain Smart Snacks Compliant
A46: 15 | B46: Crackers, Animal, Baked WGR 1.0 OEG | C46: Pepperidge Farms -Giant Goldfish | E46: 300/.9z | F46: 300 | G46: 0 | H46: =ROUND(G46*F46/F46,2) -> 0 | I46: Cs | K46: =IF(OR(ISBLANK(J46),G46=0,ISBLANK(G46)),,ROUND(J46+$K$3,2)) -> 0 | L46: =ROUND(H46*K46,2) -> 0 | M46: =ROUND(K46/F46,2) -> 0
B47: <30% calories from fat, <10% from Saturated Fat, 0 Trans Fat, | C47: 15094 Cinnamon Grahams
B48: Made from whole-grain flour, 1 package = 1 grain/bread serving | C48: 15263 Chocolate Grahams
C49: 18432 Honey Oats Graham
B50: Smart Snacks Compliant | C50: 19246 Vanilla Grahams
A51: 16 | B51: Crackers, Cheddar Cheese, Goldfish Shape, Whole Grain | C51: Pepperidge Farms 18105 | E51: 300/.75z | F51: 300 | G51: 10 | H51: =ROUND(G51*F51/F51,2) -> 10 | I51: Cs | K51: =IF(OR(ISBLANK(J51),G51=0,ISBLANK(G51)),,ROUND(J51+$K$3,2)) -> 0 | L51: =ROUND(H51*K51,2) -> 0 | M51: =ROUND(K51/F51,2) -> 0
B52: One package meets one grain/bread serving
B53: Smart Snacks Compliant
A54: 17 | B54: Crackers, Graham WGR 1.0 OEG | C54: Keebler 91822, 16 gms Grains 1/2013 | E54: 150/3Ct | F54: 150 | G54: 5 | H54: =ROUND(G54*F54/F54,2) -> 5 | I54: Cs | K54: =IF(OR(ISBLANK(J54),G54=0,ISBLANK(G54)),,ROUND(J54+$K$3,2)) -> 0 | L54: =ROUND(H54*K54,2) -> 0 | M54: =ROUND(K54/F54,2) -> 0
B55: 1 serving = 1 grain/bread equivalent Smart Snacks Complaint
A56: 18 | B56: Crackers, Graham, Bug Shaped, WGR | C56: Keebler 55644(Bug Bites) | E56: 210/1.0z | F56: 210 | G56: 0 | H56: =ROUND(G56*F56/F56,2) -> 0 | I56: Cs | K56: =IF(OR(ISBLANK(J56),G56=0,ISBLANK(G56)),,ROUND(J56+$K$3,2)) -> 0 | L56: =ROUND(H56*K56,2) -> 0 | M56: =ROUND(K56/F56,2) -> 0
B57: Ready to Eat. One serving = Minimum 1 oz equivalent grains
B58: Smart Snacks Compliant
A59: 19 | B59: Crackers, Graham, Elf Shaped WGR | C59: Keebler | E59: 150/1.0z | F59: 150 | G59: 25 | H59: =ROUND(G59*F59/F59,2) -> 25 | I59: Cs | K59: =IF(OR(ISBLANK(J59),G59=0,ISBLANK(G59)),,ROUND(J59+$K$3,2)) -> 0 | L59: =ROUND(H59*K59,2) -> 0 | M59: =ROUND(K59/F59,2) -> 0
B60: Assorted Flavors, Ready to eat, 1 pkg shall meet | C60: 40213 Original
B61: one grain/bread serving. | C61: 40221 Cinnamon
B62: Smart Snacks Compliant | C62: 40239 Chocolate
A63: 20 | B63: Crackers, Saltines, Whole Grain, I/ W WGR 0.5 OEG | C63: Keebler- Zesta Minis 30100 10088 | E63: 300/.39z | F63: 300 | G63: 7 | H63: =IF(F63>0,ROUND(G63*F63/F63,2),) -> 7 | I63: Cs | K63: =IF(OR(ISBLANK(J63),G63=0,ISBLANK(G63)),,ROUND(J63+$K$3,2)) -> 0 | L63: =ROUND(H63*K63,2) -> 0 | M63: =ROUND(K63/F63,2) -> 0
B64: Mini saltine crackers made with whole grain, provides .5 OEG per serving.
A66: 21 | B66: Crackers, Saltines, Whole Grain WGR | C66: Distributor Choice | E66: 500/2 Ct | F66: 500 | G66: 70 | H66: =ROUND($G$66*$F$66/F66,2) -> 70 | I66: Cs
B67: Individually wrapped | C67: Fillable txt box | H67: =ROUND(G66*F66/F67,2) ->  | I67: Cs | K67: =IF(OR(ISBLANK(J67),G66=0,ISBLANK(G66)),,ROUND(J67+$K$3,2)) -> 0 | L67: =ROUND(H67*K67,2) ->  | M67: =ROUND(K67/F67,2) -> 
B68: 2 Packages (4 crackers) provides .5 oz Equivalent Grain
A70: 22 | B70: Croissants, Whole Grain, O Trans Fat, Pre-sliced , Thaw & Serve | C70: Hadley Farms 139TF WG | E70: 144/2.2z | F70: 144 | G70: 0 | H70: =ROUND(G70*F70/F70,2) -> 0 | I70: Cs | K70: =IF(OR(ISBLANK(J70),G70=0,ISBLANK(G70)),,ROUND(J70+$K$3,2)) -> 0 | L70: =ROUND(H70*K70,2) -> 0 | M70: =ROUND(K70/F70,2) -> 0
B71: 1 serving = 2 grain/bread servings
A72: 23 | B72: Dressings, Regular, Honey Mustard | C72: Naturally Fresh 85016875061 | E72: 4/1g | F72: 4 | G72: 5 | H72: =ROUND(G72*F72/F72,2) -> 5 | I72: Cs | K72: =IF(OR(ISBLANK(J72),G72=0,ISBLANK(G72)),,ROUND(J72+$K$3,2)) -> 0 | L72: =ROUND(H72*K72,2) -> 0 | M72: =ROUND(K72/F72,2) -> 0
B73: Does not require refrigeration until after opened. | C73: Hellmans 83023501 | E73: 4/1g | F73: 4 | H73: =ROUND($G$72*$F$72/F73,2) -> 5 | I73: Cs | J73: 0 | K73: =IF(OR(ISBLANK(J73),G72=0,ISBLANK(G72)),,ROUND(J73+$K$3,2)) -> 0 | L73: =ROUND(K73*H73,2) -> 0 | M73: 0
C74: CF Sauer Dukes 06148 | E74: 4/1g | F74: 4 | H74: =ROUND($G$72*$F$72/F74,2) -> 5 | I74: Cs | J74: 0 | K74: =IF(OR(ISBLANK(J74),G72=0,ISBLANK(G72)),,ROUND(J74+$K$3,2)) -> 0 | L74: =ROUND(K74*H74,2) -> 0 | M74: 0
C75: Southern Classic 17107410 | E75: 4/1g | F75: 4 | H75: =ROUND($G$72*$F$72/F75,2) -> 5 | I75: Cs | J75: 0 | K75: =IF(OR(ISBLANK(J75),G72=0,ISBLANK(G72)),,ROUND(J75+$K$3,2)) -> 0 | L75: =ROUND(K75*H75,2) -> 0 | M75: =ROUND(K75/F75,2) -> 0
C76: Kraft 210007052400 | E76: 4/1g | F76: 4 | H76: =ROUND($G$72*$F$72/F76,2) -> 5 | I76: Cs | J76: 0 | K76: =IF(OR(ISBLANK(J76),G72=0,ISBLANK(G72)),,ROUND(J76+$K$3,2)) -> 0 | L76: =ROUND(K76*H76,2) -> 0 | M76: 0
A77: 24 | B77: Dressings, Reduced Calorie, Italian | C77: Southern Classics 13007310 | E77: 4/1g | F77: 4 | G77: 0 | H77: =ROUND($G$77*$F$77/F77,2) -> 0 | I77: Cs | J77: 0 | K77: =IF(OR(ISBLANK(J77),G77=0,ISBLANK(G77)),,ROUND(J77+$K$3,2)) -> 0 | L77: =ROUND(H77*K77,2) -> 0 | M77: 0
B78: Does not require refrigeration until after opened. | C78: CFSauer Dukes 06156 | E78: 4/1g | F78: 4 | H78: =ROUND($G$77*$F$77/F78,2) -> 0 | I78: Cs | J78: 0 | K78: =IF(OR(ISBLANK(J78),G77=0,ISBLANK(G77)),,ROUND(J78+$K$3,2)) -> 0 | L78: =ROUND(H78*K78,2) -> 0 | M78: 0
C79: Kraft 210006438900 | E79: 4/1g | F79: 4 | H79: =ROUND($G$77*$F$77/F79,2) -> 0 | I79: Cs | J79: 0 | K79: =IF(OR(ISBLANK(J79),G77=0,ISBLANK(G77)),,ROUND(J79+$K$3,2)) -> 0 | L79: =ROUND(H79*K79,2) -> 0 | M79: =ROUND(K79/F79,2) -> 0
A80: 25 | B80: Dressings, Regular, Ranch | C80: Marzetti 837966 | E80: 4/1g | F80: 4 | G80: 5 | H80: =ROUND(G80*F80/F80,2) -> 5 | I80: Cs | K80: =IF(OR(ISBLANK(J80),G80=0,ISBLANK(G80)),,ROUND(J80+$K$3,2)) -> 0 | L80: =ROUND(H80*K80,2) -> 0 | M80: =ROUND(K80/F80,2) -> 0
B81: Does not require refrigeration until after opened. | C81: Hellmann's 25711 | E81: 4/1g | F81: 4 | H81: =ROUND($G$80*$F$80/F81,2) -> 5 | I81: Cs | K81: =IF(OR(ISBLANK(J81),G80=0,ISBLANK(G80)),,ROUND(J81+$K$3,2)) -> 0 | L81: =ROUND(K81*H81,2) -> 0 | M81: 0
C82: Kens KE0789 | E82: 4/1g | F82: 4 | H82: 5 | I82: Cs | K82: =IF(OR(ISBLANK(J82),G80=0,ISBLANK(G80)),,ROUND(J82+$K$3,2)) -> 0 | L82: 0 | M82: 0
C83: Hidden Valley 85620 | E83: 4/1g | F83: 4 | H83: 5 | I83: Cs | K83: =IF(OR(ISBLANK(J83),G80=0,ISBLANK(G80)),,ROUND(J83+$K$3,2)) -> 0 | L83: 0 | M83: 0
